Workbook

Sheet Introduction
B3: KSU-Farm Financial Benchmarking Tool
B5: A spreadsheet tool to for benchmarking your farm's financial measures based on regions of Kansas, crop acres, and cattle inventory
L8: Version- 8.15.2017
B28: INTRODUCTION
B29: The KSU-Farm Financial Benchmarking tool is designed for producers to compare their financial ratios to farms of similar region, size and enterprise type. The percentage of farms that falls within a range of ratio values gives a distribution so a producer can see where they rank among their peers. Ten-year averages and past year values give two different distributions to benchmark from.
B31: INSTRUCTIONS FOR THE USER:
B32: Be sure to "Enable Content" and "Enable Macros" for the spreadsheet to function correctly. Select the tab for what region of Kansas you would like to benchmark against or "state" to benchmark additional categories. Use the dropdown menus in the tan boxes to select the benchmark category. If the benchmark shows N/A, you have mismatched categories and need to "Start Over". You may add your own farm values to be graphed against benchmark values in the green boxes or leave them as 2016 benchmark averages. You may also use the supplied Balance Sheet and Income Statement frameworks to calculate your own financial ratio values and then click "Enter Your Farm Values" to bring these into the benchmarking spreadsheets.
B35: The benchmarking tables and graphs can either be displayed in a normal distribution format (showing what percentage of farms fall within each range) or a cumlative distribution format (showing what percentage of farms are lower than the range value). Use the buttons on the top of the spreadsheet to switch back and forth between these two formats. This may take a few seconds to run.
B36: FOR MORE INFORMATION:
B37: See Farm Management Guides:
B38: Balance Sheet | E38: Income Statement | H38: Financial Ratios
B39: Developed by: | F39: With Assistance From:
B41: Robin Reid | F41: Kevin Herbel | J41: Mark Dikeman
B42: Extension Associate | F42: Kansas Farm Management Association | J42: Kansas Farm Management Association
B43: Kansas State University | F43: Kansas State University | J43: Kansas State University
B44: robinreid@ksu.edu | F44: kherbel@ksu.edu | J44: dikemanm@ksu.edu
B45: 785-532-0964 | F45: 785-532-8706 | J45: 785-539-0373
B47: ACKNOWLEDGEMENTS:
B48: Funded in part through the 2016/2017 CoBank Research Fellow program.

Sheet State
E1: KSU FARM FINANCIAL BENCHMARKING TOOL-State of Kansas | S1: Category | T1: Lookup | U1: 2016 | W1: Operator Age<40 | AI1: 10-Year
S2: Crop Acres | T2: Acres | U2: 2016 KFMA Farms | W2: Current Ratio | X2: Working Capital Ratio | Y2: Debt to Asset Ratio | Z2: Operating Profit Margin | AA2: ROA | AB2: ROE | AC2: Asset Turnover | AD2: Operating Expense Ratio | AE2: Depr Expense Ratio | AF2: Interest Expense Ratio | AG2: NFI Ratio | AJ2: Current Ratio | AK2: Working Capital Ratio | AL2: Debt to Asset Ratio | AM2: Operating Profit Margin | AN2: ROA | AO2: ROE | AP2: Asset Turnover | AQ2: Operating Expense Ratio | AR2: Depr Expense Ratio | AS2: Interest Expense Ratio | AT2: NFI Ratio
E3: Benchmarked by: | G3: =B16 -> Dairy | I3: =A17 ->  | K3: =IF(B17="","",B17) ->  | L3: =A18 ->  | N3: =IF(B18="","",B18) ->  | S3: Dairy | T3: Dairy | W3: 0 | X3: 7 | Y3: 6 | Z3: 8 | AA3: 13 | AB3: 33 | AC3: 0 | AD3: 5 | AE3: 4 | AF3: 9 | AG3: 6 | AJ3: 2 | AK3: 2 | AL3: 6 | AM3: 8 | AN3: 9 | AO3: 28 | AP3: 0 | AQ3: 2 | AR3: 0 | AS3: 3 | AT3: 1
S4: Operator Age | T4: Age | W4: 9 | X4: 5 | Y4: 5 | Z4: 3 | AA4: 6 | AB4: 9 | AC4: 5 | AD4: 7 | AE4: 10 | AF4: 31 | AG4: 3 | AJ4: 3 | AK4: 3 | AL4: 28 | AM4: 1 | AN4: 9 | AO4: 14 | AP4: 0 | AQ4: 15 | AR4: 16 | AS4: 85 | AT4: 0
E5: Current Ratio | W5: 14 | X5: 11 | Y5: 14 | Z5: 4 | AA5: 12 | AB5: 14 | AC5: 11 | AD5: 14 | AE5: 20 | AF5: 24 | AG5: 4 | AJ5: 18 | AK5: 16 | AL5: 24 | AM5: 9 | AN5: 21 | AO5: 27 | AP5: 16 | AQ5: 39 | AR5: 53 | AS5: 68 | AT5: 6
F6: =U1 -> 2016 | G6: 10-Year | T6: =B16&B17&B18 -> Dairy | W6: 17 | X6: 20 | Y6: 6 | Z6: 8 | AA6: 26 | AB6: 16 | AC6: 11 | AD6: 17 | AE6: 16 | AF6: 15 | AG6: 9 | AJ6: 39 | AK6: 65 | AL6: 29 | AM6: 11 | AN6: 36 | AO6: 29 | AP6: 20 | AQ6: 76 | AR6: 71 | AS6: 36 | AT6: 6
E7: 0 | F7: =Q17 -> 0 | G7: =R17 -> 0 | Q7: =Q17 -> 0 | R7: =R17 -> 0 | W7: 5 | X7: 20 | Y7: 12 | Z7: 23 | AA7: 21 | AB7: 6 | AC7: 14 | AD7: 30 | AE7: 20 | AF7: 9 | AG7: 32 | AJ7: 23 | AK7: 50 | AL7: 33 | AM7: 24 | AN7: 42 | AO7: 45 | AP7: 20 | AQ7: 59 | AR7: 52 | AS7: 11 | AT7: 51
E8: 0.5 | F8: =Q18 -> 0.08695652174 | G8: =R18 -> 0 | Q8: =Q7+Q18 -> 0.08695652174 | R8: =R7+R18 -> 0 | S8: Acres | W8: 7 | X8: 14 | Y8: 11 | Z8: 25 | AA8: 9 | AB8: 4 | AC8: 12 | AD8: 9 | AE8: 13 | AF8: 1 | AG8: 24 | AJ8: 23 | AK8: 29 | AL8: 35 | AM8: 67 | AN8: 55 | AO8: 38 | AP8: 33 | AQ8: 16 | AR8: 14 | AS8: 6 | AT8: 109
E9: 1 | F9: 0.1739130435 | G9: 0.025 | Q9: 0.2608695652 | R9: 0.025 | S9: <500 | T9: SLT | W9: 8 | X9: 10 | Y9: 8 | Z9: 19 | AA9: 1 | AB9: 4 | AC9: 12 | AD9: 6 | AE9: 7 | AF9: 2 | AG9: 15 | AJ9: 20 | AK9: 25 | AL9: 20 | AM9: 80 | AN9: 31 | AO9: 18 | AP9: 24 | AQ9: 4 | AR9: 4 | AS9: 3 | AT9: 39
E10: 1.5 | F10: 0.1739130435 | G10: 0.275 | Q10: 0.4347826087 | R10: 0.3 | S10: 500-1000 | T10: SIBL | W10: 1 | X10: 4 | Y10: 10 | Z10: 8 | AA10: 4 | AB10: 2 | AC10: 3 | AD10: 4 | AE10: 2 | AF10: 5 | AG10: 4 | AJ10: 7 | AK10: 15 | AL10: 23 | AM10: 16 | AN10: 8 | AO10: 6 | AP10: 27 | AQ10: 3 | AR10: 5 | AS10: 1 | AT10: 4
E11: 2 | F11: 0.08695652174 | G11: 0.1 | Q11: 0.5217391304 | R11: 0.4 | S11: 1000-2000 | T11: SIBH | W11: 1 | X11: 3 | Y11: 27 | Z11: 1 | AA11: 1 | AB11: 2 | AC11: 7 | AD11: 7 | AE11: 7 | AF11: 3 | AG11: 2 | AJ11: 5 | AK11: 6 | AL11: 18 | AM11: 0 | AN11: 3 | AO11: 2 | AP11: 27 | AQ11: 2 | AR11: 1 | AS11: 3 | AT11: 0
E12: 2.5 | F12: 0.04347826087 | G12: 0.1 | Q12: 0.5652173913 | R12: 0.5 | S12: 2000+ | T12: SGT | W12: 37 | X12: 5 | Z12: 0 | AA12: 6 | AB12: 9 | AC12: 24 | AG12: 0 | AJ12: 76 | AK12: 5 | AM12: 0 | AN12: 2 | AO12: 9 | AP12: 49 | AT12: 0
E13: 3 | F13: 0 | G13: 0.025 | Q13: 0.5652173913 | R13: 0.525 | S13: Cattle | V13: Count | W13: 99 | X13: 99 | Y13: 99 | Z13: 99 | AA13: 99 | AB13: 99 | AC13: 99 | AD13: 99 | AE13: 99 | AF13: 99 | AG13: 99 | AI13: Count | AJ13: 216 | AK13: 216 | AL13: 216 | AM13: 216 | AN13: 216 | AO13: 216 | AP13: 216 | AQ13: 216 | AR13: 216 | AS13: 216 | AT13: 216
E14: 3.5 | F14: 0 | G14: 0.125 | Q14: 0.5652173913 | R14: 0.65 | S14: None | V14: Average | W14: 1.821827836 | X14: 0.3481135218 | Y14: 0.4550664478 | Z14: 0.0497831957 | AA14: 0.01713207966 | AB14: -0.000936908729 | AC14: 0.3441337869 | AD14: 0.7258825388 | AE14: 0.0951245544 | AF14: 0.04893780325 | AG14: 0.1300551036 | AI14: Average | AJ14: 2.262169395 | AK14: 0.4199083426 | AL14: 0.338427301 | AM14: 0.1646717779 | AN14: 0.06276131888 | AO14: 0.06999282037 | AP14: 0.3811297823 | AQ14: 0.6757683553 | AR14: 0.0763321311 | AS14: 0.03872187184 | AT14: 0.2091776417
A15: BENCHMARK CATEGORY | E15: 4 | F15: 0.04347826087 | G15: 0.05 | Q15: 0.6086956522 | R15: 0.7 | S15: No Cows-Feedlot | V15: Non-ratio average | X15: 138693.0047 | AG15: 51815.66345 | AI15: Non-ratio average | AK15: 246101.0909 | AT15: 122595.4348
A16: Benchmark by: | B16: Dairy | E16: More | F16: 0.3913043478 | G16: 0.3 | Q16: 1 | R16: 1 | S16: <100 Cows
A17: =IF(B16="Dairy", "", "Category:") ->  | E17: Count | F17: =IF($T$6=$W$1,$W$13,IF($T$6=$W$17,$W$29,IF($T$6=$W$33,$W$45,IF($T$6=$W$49,$W$61,IF($T$6=$W$65,$W$77,IF($T$6=$W$81,$W$93,IF($T$6=$W$97,$W$109,IF($T$6=$W$113,$W$125,IF($T$6=$W$129,$W$141,IF($T$6=$W$145,$W$157,IF(T6=$W$161,$W$173,IF($T$6=$W$177,$W$189,IF($T$6=$W$193,$W$205,IF($T$6=$W$209,$W$221,IF($T$6=$W$225,$W$237,IF($T$6=$W$241,$W$253,IF($T$6=$W$257,$W$269,IF($T$6=$W$273,$W$285,IF($T$6=$W$289,$W$301,IF($T$6=$W$305,$W$317,"N/A")))))))))))))))))))) -> 23 | G17: =IF($T$6=$W$1,$AJ$13,IF($T$6=$W$17,$AJ$29,IF($T$6=$W$33,$AJ$45,IF($T$6=$W$49,$AJ$61,IF($T$6=$W$65,$AJ$77,IF($T$6=$W$81,$AJ$93,IF($T$6=$W$97,$AJ$109,IF($T$6=$W$113,$AJ$125,IF($T$6=$W$129,$AJ$141,IF($T$6=$W$145,$AJ$157, IF($T$6=$W$161,$AJ$173,IF($T$6=$W$177,$AJ$189,IF($T$6=$W$193,$AJ$205,IF($T$6=$W$209,$AJ$221,IF($T$6=$W$225,$AJ$237,IF($T$6=$W$241,$AJ$253,IF($T$6=$W$257,$AJ$269,IF($T$6=$W$273,$AJ$285,IF($T$6=$W$289,$AJ$301,IF($T$6=$W$305,$AJ$317,"N/A")))))))))))))))))))) -> 40 | Q17: =IF($T$6=$W$1,W3/$W$13,IF($T$6=$W$17,W19/$W$29,IF($T$6=$W$33,W35/$W$45,IF($T$6=$W$49,W51/$W$61,IF($T$6=$W$65,W67/$W$77,IF($T$6=$W$81,W83/$W$93,IF($T$6=$W$97,W99/$W$109,IF($T$6=$W$113,W115/$W$125,IF($T$6=$W$129,W131/$W$141,IF($T$6=$W$145,W147/$W$157,IF($T$6=$W$161,W163/$W$173,IF($T$6=$W$177,W179/$W$189,IF($T$6=$W$193,W195/$W$205,IF($T$6=$W$209,W211/$W$221,IF($T$6=$W$225,W227/$W$237,IF($T$6=$W$241,W243/$W$253,IF($T$6=$W$257,W259/$W$269,IF($T$6=$W$273,W275/$W$285,IF($T$6=$W$289,W291/$W$301,IF($T$6=$W$305,W307/$W$317,"N/A")))))))))))))))))))) -> 0 | R17: =IF($T$6=$W$1,AJ3/$AJ$13,IF($T$6=$W$17,AJ19/$AJ$29,IF($T$6=$W$33,AJ35/$AJ$45,IF($T$6=$W$49,AJ51/$AJ$61,IF($T$6=$W$65,AJ67/$AJ$77,IF($T$6=$W$81,AJ83/$AJ$93,IF($T$6=$W$97,AJ99/$AJ$109,IF($T$6=$W$113,AJ115/$AJ$125,IF($T$6=$W$129,AJ131/$AJ$141,IF($T$6=$W$145,AJ147/$AJ$157,IF($T$6=$W$161,AJ163/$AJ$173,IF($T$6=$W$177,AJ179/$AJ$189,IF($T$6=$W$193,AJ195/$AJ$205,IF($T$6=$W$209,AJ211/$AJ$221,IF($T$6=$W$225,AJ227/$AJ$237,IF($T$6=$W$241,AJ243/$AJ$253,IF($T$6=$W$257,AJ259/$AJ$269,IF($T$6=$W$273,AJ275/$AJ$285,IF($T$6=$W$289,AJ291/$AJ$301,IF($T$6=$W$305,AJ307/$AJ$317,"N/A")))))))))))))))))))) -> 0 | S17: 100+ Cows | W17: Operator Age40-60
A18: =(IF(B16="Crop Acres","Cattle:","")) ->  | E18: Average | F18: =IF($T$6=$W$1,$W$14,IF($T$6=$W$17,$W$30,IF($T$6=$W$33,$W$46,IF($T$6=$W$49,$W$62,IF($T$6=$W$65,$W$78,IF($T$6=$W$81,$W$94,IF($T$6=$W$97,$W$110,IF($T$6=$W$113,$W$126,IF($T$6=$W$129,$W$142,IF($T$6=$W$145,$W$158,IF($T$6=$W$161,$W$174,IF($T$6=$W$177,$W$190,IF($T$6=$W$193,$W$206,IF($T$6=$W$209,$W$222,IF($T$6=$W$225,$W$238,IF($T$6=$W$241,$W$254,IF($T$6=$W$257,$W$270,IF($T$6=$W$273,$W$286,IF($T$6=$W$289,$W$302,IF($T$6=$W$305,$W$318,"N/A")))))))))))))))))))) -> 2.842387453 | G18: =IF($T$6=$W$1,$AJ$14,IF($T$6=$W$17,$AJ$30,IF($T$6=$W$33,$AJ$46,IF($T$6=$W$49,$AJ$62,IF($T$6=$W$65,$AJ$78,IF($T$6=$W$81,$AJ$94,IF($T$6=$W$97,$AJ$110,IF($T$6=$W$113,$AJ$126,IF($T$6=$W$129,$AJ$142,IF($T$6=$W$145,$AJ$158,IF($T$6=$W$161,$AJ$174,IF($T$6=$W$177,$AJ$190,IF($T$6=$W$193,$AJ$206,IF($T$6=$W$209,$AJ$222,IF($T$6=$W$225,$AJ$238,IF($T$6=$W$241,$AJ$254,IF($T$6=$W$257,$AJ$270,IF($T$6=$W$273,$AJ$286,IF($T$6=$W$289,$AJ$302,IF($T$6=$W$305,$AJ$318,"N/A")))))))))))))))))))) -> 3.304765223 | Q18: 0.08695652174 | R18: 0 | W18: Current Ratio | X18: Working Capital Ratio | Y18: Debt to Asset Ratio | Z18: Operating Profit Margin | AA18: ROA | AB18: ROE | AC18: Asset Turnover | AD18: Operating Expense Ratio | AE18: Depr Expense Ratio | AF18: Interest Expense Ratio | AG18: NFI Ratio | AJ18: Current Ratio | AK18: Working Capital Ratio | AL18: Debt to Asset Ratio | AM18: Operating Profit Margin | AN18: ROA | AO18: ROE | AP18: Asset Turnover | AQ18: Operating Expense Ratio | AR18: Depr Expense Ratio | AS18: Interest Expense Ratio | AT18: NFI Ratio
Q19: 0.1739130435 | R19: 0.025 | W19: 1 | X19: 24 | Y19: 26 | Z19: 23 | AA19: 27 | AB19: 80 | AC19: 0 | AD19: 3 | AE19: 0 | AF19: 39 | AG19: 16 | AJ19: 4 | AK19: 9 | AL19: 18 | AM19: 8 | AN19: 16 | AO19: 45 | AP19: 0 | AQ19: 4 | AR19: 2 | AS19: 12 | AT19: 2
F20: =IF(B22=F18,"","Your Farm") ->  | G20: =IF(B22=F18,"",B22) ->  | Q20: 0.1739130435 | R20: 0.275 | S20: Age | W20: 33 | X20: 27 | Y20: 81 | Z20: 13 | AA20: 38 | AB20: 65 | AC20: 8 | AD20: 7 | AE20: 19 | AF20: 133 | AG20: 11 | AJ20: 15 | AK20: 11 | AL20: 154 | AM20: 7 | AN20: 16 | AO20: 52 | AP20: 3 | AQ20: 20 | AR20: 35 | AS20: 280 | AT20: 2
A21: YOUR FARM VALUES* | Q21: 0.08695652174 | R21: 0.1 | S21: <40 | W21: 70 | X21: 53 | Y21: 49 | Z21: 36 | AA21: 99 | AB21: 122 | AC21: 65 | AD21: 29 | AE21: 55 | AF21: 119 | AG21: 35 | AJ21: 63 | AK21: 58 | AL21: 113 | AM21: 11 | AN21: 49 | AO21: 114 | AP21: 23 | AQ21: 112 | AR21: 152 | AS21: 195 | AT21: 6
A22: Current Ratio: | B22: =S37 -> 2.842387453 | Q22: 0.04347826087 | R22: 0.1 | S22: 40-60 | W22: 83 | X22: 89 | Y22: 77 | Z22: 64 | AA22: 145 | AB22: 99 | AC22: 92 | AD22: 107 | AE22: 88 | AF22: 72 | AG22: 83 | AJ22: 84 | AK22: 123 | AL22: 102 | AM22: 30 | AN22: 170 | AO22: 195 | AP22: 88 | AQ22: 235 | AR22: 211 | AS22: 91 | AT22: 28
A23: Working Capital Ratio: | B23: 0.42840466 | Q23: 0 | R23: 0.025 | S23: 60+ | W23: 31 | X23: 70 | Y23: 75 | Z23: 102 | AA23: 71 | AB23: 25 | AC23: 86 | AD23: 107 | AE23: 108 | AF23: 26 | AG23: 136 | AJ23: 77 | AK23: 161 | AL23: 90 | AM23: 94 | AN23: 223 | AO23: 135 | AP23: 114 | AQ23: 168 | AR23: 152 | AS23: 39 | AT23: 181
A24: Debt to Asset Ratio: | B24: 0.1966264414 | Q24: 0 | R24: 0.125 | W24: 27 | X24: 57 | Y24: 37 | Z24: 124 | AA24: 28 | AB24: 17 | AC24: 54 | AD24: 75 | AE24: 71 | AF24: 13 | AG24: 116 | AJ24: 48 | AK24: 115 | AL24: 66 | AM24: 255 | AN24: 113 | AO24: 55 | AP24: 119 | AQ24: 83 | AR24: 57 | AS24: 16 | AT24: 303
A25: Operating Profit Margin | B25: -0.09825268857 | Q25: 0.04347826087 | R25: 0.05 | W25: 8 | X25: 40 | Y25: 27 | Z25: 57 | AA25: 12 | AB25: 4 | AC25: 35 | AD25: 47 | AE25: 41 | AF25: 7 | AG25: 25 | AJ25: 28 | AK25: 70 | AL25: 37 | AM25: 201 | AN25: 35 | AO25: 21 | AP25: 98 | AQ25: 10 | AR25: 20 | AS25: 5 | AT25: 109
A26: Rate of Return on Farm Assets | B26: -0.01687580117 | E26: Working Captial Ratio | Q26: 0.3913043478 | R26: 0.3 | W26: 10 | X26: 25 | Y26: 22 | Z26: 6 | AA26: 3 | AB26: 3 | AC26: 19 | AD26: 28 | AE26: 15 | AF26: 8 | AG26: 3 | AJ26: 30 | AK26: 38 | AL26: 26 | AM26: 32 | AN26: 14 | AO26: 9 | AP26: 60 | AQ26: 5 | AR26: 9 | AS26: 1 | AT26: 10
A27: Rate of Return on Farm Equity | B27: -0.03044356084 | F27: =U1 -> 2016 | G27: 10-Year | S27: Your Farm Line-Current Ratio | W27: 12 | X27: 16 | Y27: 31 | Z27: 0 | AA27: 0 | AB27: 2 | AC27: 21 | AD27: 22 | AE27: 28 | AF27: 8 | AG27: 0 | AJ27: 25 | AK27: 27 | AL27: 35 | AM27: 3 | AN27: 3 | AO27: 4 | AP27: 35 | AQ27: 4 | AR27: 3 | AS27: 2 | AT27: 0
A28: Asset Turnover Rate | B28: 0.1717591794 | E28: -0.5 | F28: =Q38 -> 0.08695652174 | G28: =R38 -> 0 | Q28: =Q38 -> 0.08695652174 | R28: =R38 -> 0 | S28: X's | T28: =IF(B22<4.5,B22,4.5) -> 2.842387453 | U28: =IF(B22<4.5,B22,4.5) -> 2.842387453 | W28: 150 | X28: 24 | Z28: 0 | AA28: 2 | AB28: 8 | AC28: 45 | AG28: 0 | AJ28: 267 | AK28: 29 | AM28: 0 | AN28: 2 | AO28: 11 | AP28: 101 | AT28: 0
A29: Operating Expense Ratio | B29: 0.8769436989 | E29: =E28+0.25 -> -0.25 | F29: =Q39 -> 0 | G29: =R39 -> 0 | Q29: =Q28+Q39 -> 0.08695652174 | R29: =R28+R39 -> 0 | S29: Y's | T29: 0 | U29: 1 | V29: Count | W29: 425 | X29: 425 | Y29: 425 | Z29: 425 | AA29: 425 | AB29: 425 | AC29: 425 | AD29: 425 | AE29: 425 | AF29: 425 | AG29: 425 | AI29: Count | AJ29: 641 | AK29: 641 | AL29: 641 | AM29: 641 | AN29: 641 | AO29: 641 | AP29: 641 | AQ29: 641 | AR29: 641 | AS29: 641 | AT29: 641
A30: Depreciation Expense Ratio | B30: 0.07856598632 | E30: =E29+0.25 -> 0 | F30: 0.1739130435 | G30: 0.025 | Q30: 0.2608695652 | R30: 0.025 | S30: =IF(B22=F18,U1 &" Average","Your Farm") -> 2016 Average | V30: Average | W30: 1.95954729 | X30: 0.419936987 | Y30: 0.269972421 | Z30: 0.006053686686 | AA30: 0.001360118011 | AB30: -0.01231946063 | AC30: 0.2246759837 | AD30: 0.7822641002 | AE30: 0.1066924361 | AF30: 0.04363116264 | AG30: 0.06741230103 | AI30: Average | AJ30: 2.802486038 | AK30: 0.5276919182 | AL30: 0.2396700049 | AM30: 0.1530578241 | AN30: 0.04543539485 | AO30: 0.04429621486 | AP30: 0.2968511744 | AQ30: 0.6801453396 | AR30: 0.08054012518 | AS30: 0.0354490223 | AT30: 0.2038655129
A31: Interest Expense Ratio | B31: 0.03188679411 | E31: 0.25 | F31: 0.4347826087 | G31: 0.625 | Q31: 0.6956521739 | R31: 0.65 | S31: Your Farm Line-Working Capital Ratio | V31: Non-ratio average | X31: 304460.7919 | AG31: 48874.95788 | AI31: Non-ratio average | AK31: 329592.3431 | AT31: 127332.8429
A32: Net Farm Income Ratio: | B32: 0.01260352062 | E32: 0.5 | F32: 0 | G32: 0.175 | Q32: 0.6956521739 | R32: 0.825 | S32: X's | T32: =IF(B23>1.75,1.75,B23) -> 0.42840466 | U32: =IF(B23>1.75,1.75,B23) -> 0.42840466
A33: *Defaults to Averages for 2016 if not entered | E33: 0.75 | F33: 0.1304347826 | G33: 0.075 | Q33: 0.8260869565 | R33: 0.9 | S33: Y's | T33: 0 | U33: 1 | W33: Operator Age60+
E34: 1 | F34: 0.04347826087 | G34: 0.05 | Q34: 0.8695652174 | R34: 0.95 | S34: =IF(B23=F39,U1 &" Average","Your Farm") -> 2016 Average | W34: Current Ratio | X34: Working Capital Ratio | Y34: Debt to Asset Ratio | Z34: Operating Profit Margin | AA34: ROA | AB34: ROE | AC34: Asset Turnover | AD34: Operating Expense Ratio | AE34: Depr Expense Ratio | AF34: Interest Expense Ratio | AG34: NFI Ratio | AJ34: Current Ratio | AK34: Working Capital Ratio | AL34: Debt to Asset Ratio | AM34: Operating Profit Margin | AN34: ROA | AO34: ROE | AP34: Asset Turnover | AQ34: Operating Expense Ratio | AR34: Depr Expense Ratio | AS34: Interest Expense Ratio | AT34: NFI Ratio
E35: 1.25 | F35: 0 | G35: 0.025 | Q35: 0.8695652174 | R35: 0.975 | W35: 1 | X35: 26 | Y35: 100 | Z35: 56 | AA35: 36 | AB35: 72 | AC35: 0 | AD35: 5 | AE35: 1 | AF35: 103 | AG35: 29 | AJ35: 1 | AK35: 3 | AL35: 29 | AM35: 9 | AN35: 4 | AO35: 19 | AP35: 0 | AQ35: 3 | AR35: 0 | AS35: 25 | AT35: 1
E36: 1.5 | F36: 0.04347826087 | G36: 0.025 | Q36: 0.9130434783 | R36: 1 | W36: 36 | X36: 22 | Y36: 151 | Z36: 26 | AA36: 55 | AB36: 73 | AC36: 46 | AD36: 14 | AE36: 18 | AF36: 178 | AG36: 20 | AJ36: 7 | AK36: 8 | AL36: 160 | AM36: 6 | AN36: 10 | AO36: 21 | AP36: 11 | AQ36: 17 | AR36: 22 | AS36: 191 | AT36: 1
E37: More | F37: 0.08695652174 | G37: 0 | Q37: 1 | R37: 1 | S37: =$F$18 -> 2.842387453 | W37: 42 | X37: 30 | Y37: 84 | Z37: 57 | AA37: 114 | AB37: 186 | AC37: 122 | AD37: 42 | AE37: 71 | AF37: 98 | AG37: 58 | AJ37: 16 | AK37: 12 | AL37: 68 | AM37: 10 | AN37: 40 | AO37: 100 | AP37: 56 | AQ37: 87 | AR37: 95 | AS37: 102 | AT37: 5
E38: Count | F38: =F17 -> 23 | G38: =G17 -> 40 | Q38: =IF($T$6=$W$1,X3/$F$38,IF($T$6=$W$17,X19/$F$38,IF($T$6=$W$33,X35/$F$38,IF($T$6=$W$49,X51/$F$38,IF($T$6=$W$65,X67/$F$38,IF($T$6=$W$81,X83/$F$38,IF($T$6=$W$97,X99/$F$38,IF($T$6=$W$113,X115/$F$38,IF($T$6=$W$129,X131/$F$38,IF($T$6=$W$145,X147/$F$38,IF($T$6=$W$161,X163/$F$38,IF($T$6=$W$177,X179/$F$38,IF($T$6=$W$193,X195/$F$38,IF($T$6=$W$209,X211/$F$38,IF($T$6=$W$225,X227/$F$38,IF($T$6=$W$241,X243/$F$38,IF($T$6=$W$257,X259/$F$38,IF($T$6=$W$273,X275/$F$38,IF($T$6=$W$289,X291/$F$38,IF($T$6=$W$305,X307/$F$38,"N/A")))))))))))))))))))) -> 0.08695652174 | R38: =IF($T$6=$W$1,AK3/$G$38,IF($T$6=$W$17,AK19/$G$38,IF($T$6=$W$33,AK35/$G$38,IF($T$6=$W$49,AK51/$G$38,IF($T$6=$W$65,AK67/$G$38,IF($T$6=$W$81,AK83/$G$38,IF($T$6=$W$97,AK99/$G$38,IF($T$6=$W$113,AK115/$G$38,IF($T$6=$W$129,AK131/$G$38,IF($T$6=$W$145,AK147/$G$38,IF($T$6=$W$161,AK163/$G$38,IF($T$6=$W$177,AK179/$G$38,IF($T$6=$W$193,AK195/$G$38,IF($T$6=$W$209,AK211/$G$38,IF($T$6=$W$225,AK227/$G$38,IF($T$6=$W$241,AK243/$G$38,IF($T$6=$W$257,AK259/$G$38,IF($T$6=$W$273,AK275/$G$38,IF($T$6=$W$289,AK291/$G$38,IF($T$6=$W$305,AK307/$G$38,"N/A")))))))))))))))))))) -> 0 | S38: =$F$39 -> 0.42840466 | W38: 48 | X38: 67 | Y38: 63 | Z38: 65 | AA38: 195 | AB38: 126 | AC38: 130 | AD38: 87 | AE38: 95 | AF38: 51 | AG38: 88 | AJ38: 36 | AK38: 55 | AL38: 54 | AM38: 20 | AN38: 150 | AO38: 178 | AP38: 86 | AQ38: 131 | AR38: 119 | AS38: 41 | AT38: 17
E39: Average | F39: =IF($T$6=$W$1,$X$14,IF($T$6=$W$17,$X$30,IF($T$6=$W$33,$X$46,IF($T$6=$W$49,$X$62,IF($T$6=$W$65,$X$78,IF($T$6=$W$81,$X$94,IF($T$6=$W$97,$X$110,IF($T$6=$W$113,$X$126,IF($T$6=$W$129,$X$142,IF($T$6=$W$145,$X$158,IF($T$6=$W$161,$X$174,IF($T$6=$W$177,$X$190,IF($T$6=$W$193,$X$206,IF($T$6=$W$209,$X$222,IF($T$6=$W$225,$X$238,IF($T$6=$W$241,$X$254,IF($T$6=$W$257,$X$270,IF($T$6=$W$273,$X$286,IF($T$6=$W$289,$X$302,IF($T$6=$W$305,$X$318,"N/A")))))))))))))))))))) -> 0.42840466 | G39: =IF($T$6=$W$1,$AK$14,IF($T$6=$W$17,$AK$30,IF($T$6=$W$33,$AK$46,IF($T$6=$W$49,$AK$62,IF($T$6=$W$65,$AK$78,IF($T$6=$W$81,$AK$94,IF($T$6=$W$97,$AK$110,IF($T$6=$W$113,$AK$126,IF($T$6=$W$129,$AK$142,IF($T$6=$W$145,$AK$158,IF($T$6=$W$161,$AK$174,IF($T$6=$W$177,$AK$190,IF($T$6=$W$193,$AK$206,IF($T$6=$W$209,$AK$222,IF($T$6=$W$225,$AK$238,IF($T$6=$W$241,$AK$254,IF($T$6=$W$257,$AK$270,IF($T$6=$W$273,$AK$286,IF($T$6=$W$289,$AK$302,IF($T$6=$W$305,$AK$318,"N/A")))))))))))))))))))) -> 0.3277843962 | Q39: 0 | R39: 0 | S39: =$F$59 -> 0.1966264414 | W39: 39 | X39: 65 | Y39: 40 | Z39: 115 | AA39: 74 | AB39: 22 | AC39: 69 | AD39: 107 | AE39: 102 | AF39: 36 | AG39: 135 | AJ39: 44 | AK39: 64 | AL39: 39 | AM39: 63 | AN39: 135 | AO39: 54 | AP39: 69 | AQ39: 86 | AR39: 76 | AS39: 19 | AT39: 107
E40: Working Capital Avg. | Q40: 0.1739130435 | R40: 0.025 | S40: =$F$81 -> -0.09825268857 | W40: 22 | X40: 64 | Y40: 21 | Z40: 104 | AA40: 10 | AB40: 4 | AC40: 45 | AD40: 96 | AE40: 64 | AF40: 10 | AG40: 113 | AJ40: 21 | AK40: 75 | AL40: 20 | AM40: 142 | AN40: 38 | AO40: 13 | AP40: 69 | AQ40: 45 | AR40: 44 | AS40: 7 | AT40: 158
F41: =IF($T$6=$W$1,$X$15,IF($T$6=$W$17,$X$31,IF($T$6=$W$33,$X$47,IF($T$6=$W$49,$X$63,IF($T$6=$W$65,$X$79,IF($T$6=$W$81,$X$95,IF($T$6=$W$97,$X$111,IF($T$6=$W$113,$X$127,IF($T$6=$W$129,$X$143,IF($T$6=$W$145,$X$159,IF($T$6=$W$161,$X$175,IF($T$6=$W$177,$X$191,IF($T$6=$W$193,$X$207,IF($T$6=$W$209,$X$223,IF($T$6=$W$225,$X$239,IF($T$6=$W$241,$X$255,IF($T$6=$W$257,$X$271,IF($T$6=$W$273,$X$287,IF($T$6=$W$289,$X$303,IF($T$6=$W$305,$X$319,"N/A")))))))))))))))))))) -> 395898.9447 | G41: =IF($T$6=$W$1,$AK$15,IF($T$6=$W$17,$AK$31,IF($T$6=$W$33,$AK$47,IF($T$6=$W$49,$AK$63,IF($T$6=$W$65,$AK$79,IF($T$6=$W$81,$AK$95,IF($T$6=$W$97,$AK$111,IF($T$6=$W$113,$AK$127,IF($T$6=$W$129,$AK$143,IF($T$6=$W$145,$AK$159,IF($T$6=$W$161,$AK$175,IF($T$6=$W$177,$AK$191,IF($T$6=$W$193,$AK$207,IF($T$6=$W$209,$AK$223,IF($T$6=$W$225,$AK$239,IF($T$6=$W$241,$AK$255,IF($T$6=$W$257,$AK$271,IF($T$6=$W$273,$AK$287,IF($T$6=$W$289,$AK$303,IF($T$6=$W$305,$AK$319,"N/A")))))))))))))))))))) -> 271589.2472 | Q41: 0.4347826087 | R41: 0.625 | S41: =$F$102 -> -0.01687580117 | W41: 17 | X41: 71 | Y41: 11 | Z41: 57 | AA41: 6 | AB41: 2 | AC41: 30 | AD41: 53 | AE41: 57 | AF41: 5 | AG41: 40 | AJ41: 20 | AK41: 72 | AL41: 7 | AM41: 119 | AN41: 10 | AO41: 1 | AP41: 32 | AQ41: 14 | AR41: 25 | AS41: 2 | AT41: 89
Q42: 0 | R42: 0.175 | S42: =$F$123 -> -0.03044356084 | W42: 18 | X42: 31 | Y42: 6 | Z42: 10 | AA42: 2 | AB42: 2 | AC42: 15 | AD42: 36 | AE42: 29 | AF42: 3 | AG42: 9 | AJ42: 12 | AK42: 31 | AL42: 5 | AM42: 18 | AN42: 1 | AO42: 0 | AP42: 18 | AQ42: 2 | AR42: 2 | AS42: 0 | AT42: 9
F43: =IF(B23=F39,"","Your Farm") ->  | G43: =IF(B23=F39,"",B23) ->  | Q43: 0.1304347826 | R43: 0.075 | S43: =$F$144 -> 0.1717591794 | W43: 7 | X43: 36 | Y43: 17 | Z43: 2 | AA43: 1 | AB43: 2 | AC43: 9 | AD43: 53 | AE43: 56 | AF43: 9 | AG43: 0 | AJ43: 13 | AK43: 19 | AL43: 6 | AM43: 1 | AN43: 0 | AO43: 0 | AP43: 20 | AQ43: 3 | AR43: 5 | AS43: 1 | AT43: 1
Q44: 0.04347826087 | R44: 0.05 | S44: =$F$164 -> 0.8769436989 | W44: 263 | X44: 81 | Z44: 1 | AA44: 0 | AB44: 4 | AC44: 27 | AG44: 1 | AJ44: 218 | AK44: 49 | AM44: 0 | AN44: 0 | AO44: 2 | AP44: 27 | AT44: 0
Q45: 0 | R45: 0.025 | S45: =$F$185 -> 0.07856598632 | V45: Count | W45: 493 | X45: 493 | Y45: 493 | Z45: 493 | AA45: 493 | AB45: 493 | AC45: 493 | AD45: 493 | AE45: 493 | AF45: 493 | AG45: 493 | AI45: Count | AJ45: 388 | AK45: 388 | AL45: 388 | AM45: 388 | AN45: 388 | AO45: 388 | AP45: 388 | AQ45: 388 | AR45: 388 | AS45: 388 | AT45: 388
Q46: 0.04347826087 | R46: 0.025 | S46: =$F$206 -> 0.03188679411 | V46: Average | W46: 2.885582453 | X46: 0.6832101346 | Y46: 0.1517211224 | Z46: -0.03214026998 | AA46: -0.005258249875 | AB46: -0.01329702455 | AC46: 0.1636031644 | AD46: 0.7879874541 | AE46: 0.1105136904 | AF46: 0.03376736166 | AG46: 0.06773149387 | AI46: Average | AJ46: 3.520708847 | AK46: 0.6690084191 | AL46: 0.1628188414 | AM46: 0.1347011577 | AN46: 0.03003340181 | AO46: 0.02655104588 | AP46: 0.2229632048 | AQ46: 0.684564981 | AR46: 0.08565258708 | AS46: 0.03209915612 | AT46: 0.1976832758
E47: Debt to Asset Ratio | Q47: 0.08695652174 | R47: 0 | S47: =$F$228 -> 0.01260352062 | V47: Non-ratio average | X47: 355099.4116 | AG47: 35203.53754 | AI47: Non-ratio average | AK47: 329603.1944 | AT47: 97393.45176
F48: =U1 -> 2016 | G48: 10-Year
E49: 0 | F49: =Q58 -> 0.1304347826 | G49: =R58 -> 0.05 | Q49: =Q58 -> 0.1304347826 | R49: =R58 -> 0.05 | S49: Your Farm Line-Debt to Asset | W49: Crop Acres<500None
E50: 0.1 | F50: =Q59 -> 0.1739130435 | G50: =R59 -> 0.225 | Q50: =Q49+Q59 -> 0.3043478261 | R50: 0.275 | S50: X's | T50: =IF(B24>0.8,0.8,B24) -> 0.1966264414 | U50: =T50 -> 0.1966264414 | W50: Current Ratio | X50: Working Capital Ratio | Y50: Debt to Asset Ratio | Z50: Operating Profit Margin | AA50: ROA | AB50: ROE | AC50: Asset Turnover | AD50: Operating Expense Ratio | AE50: Depr Expense Ratio | AF50: Interest Expense Ratio | AG50: NFI Ratio | AJ50: Current Ratio | AK50: Working Capital Ratio | AL50: Debt to Asset Ratio | AM50: Operating Profit Margin | AN50: ROA | AO50: ROE | AP50: Asset Turnover | AQ50: Operating Expense Ratio | AR50: Depr Expense Ratio | AS50: Interest Expense Ratio | AT50: NFI Ratio
E51: 0.2 | F51: 0.08695652174 | G51: 0.125 | Q51: 0.3913043478 | R51: 0.4 | S51: Y's | T51: 0 | U51: 1 | W51: 0 | X51: 3 | Y51: 17 | Z51: 7 | AA51: 3 | AB51: 7 | AC51: 0 | AD51: 5 | AE51: 3 | AF51: 17 | AG51: 2 | AJ51: 0 | AK51: 1 | AL51: 8 | AM51: 6 | AN51: 4 | AO51: 7 | AP51: 0 | AQ51: 4 | AR51: 1 | AS51: 10 | AT51: 1
E52: 0.3 | F52: 0.2173913043 | G52: 0.075 | Q52: 0.6086956522 | R52: 0.475 | S52: =IF(B24=F59,U1 &" Average","Your Farm") -> 2016 Average | W52: 3 | X52: 2 | Y52: 13 | Z52: 5 | AA52: 6 | AB52: 6 | AC52: 8 | AD52: 2 | AE52: 6 | AF52: 16 | AG52: 4 | AJ52: 2 | AK52: 2 | AL52: 20 | AM52: 2 | AN52: 6 | AO52: 7 | AP52: 1 | AQ52: 3 | AR52: 9 | AS52: 20 | AT52: 1
E53: 0.4 | F53: 0.04347826087 | G53: 0.175 | Q53: 0.652173913 | R53: 0.65 | W53: 2 | X53: 0 | Y53: 7 | Z53: 4 | AA53: 11 | AB53: 14 | AC53: 10 | AD53: 6 | AE53: 11 | AF53: 7 | AG53: 4 | AJ53: 3 | AK53: 2 | AL53: 7 | AM53: 1 | AN53: 8 | AO53: 11 | AP53: 12 | AQ53: 13 | AR53: 13 | AS53: 11 | AT53: 1
E54: 0.5 | F54: 0.04347826087 | G54: 0.125 | Q54: 0.6956521739 | R54: 0.775 | W54: 3 | X54: 5 | Y54: 5 | Z54: 5 | AA54: 17 | AB54: 14 | AC54: 16 | AD54: 8 | AE54: 7 | AF54: 6 | AG54: 6 | AJ54: 3 | AK54: 7 | AL54: 7 | AM54: 7 | AN54: 16 | AO54: 17 | AP54: 13 | AQ54: 16 | AR54: 14 | AS54: 9 | AT54: 4
E55: 0.6 | F55: 0.1739130435 | G55: 0.075 | Q55: 0.8695652174 | R55: 0.85 | W55: 0 | X55: 9 | Y55: 3 | Z55: 7 | AA55: 9 | AB55: 4 | AC55: 2 | AD55: 10 | AE55: 7 | AF55: 3 | AG55: 10 | AJ55: 3 | AK55: 12 | AL55: 1 | AM55: 11 | AN55: 13 | AO55: 4 | AP55: 8 | AQ55: 8 | AR55: 7 | AS55: 0 | AT55: 8
E56: 0.7 | F56: 0.1304347826 | G56: 0.15 | Q56: 1 | R56: 1 | W56: 3 | X56: 5 | Y56: 2 | Z56: 9 | AA56: 0 | AB56: 0 | AC56: 4 | AD56: 6 | AE56: 1 | AF56: 0 | AG56: 9 | AJ56: 2 | AK56: 3 | AL56: 4 | AM56: 9 | AN56: 2 | AO56: 2 | AP56: 4 | AQ56: 2 | AR56: 9 | AS56: 2 | AT56: 17
E57: More | F57: 0 | G57: 0 | Q57: 1 | R57: 1 | W57: 3 | X57: 6 | Y57: 1 | Z57: 8 | AA57: 0 | AB57: 1 | AC57: 2 | AD57: 5 | AE57: 6 | AF57: 0 | AG57: 10 | AJ57: 1 | AK57: 9 | AL57: 0 | AM57: 11 | AN57: 3 | AO57: 0 | AP57: 5 | AQ57: 3 | AR57: 1 | AS57: 1 | AT57: 17
E58: Count | F58: =F38 -> 23 | G58: =G38 -> 40 | Q58: =IF($T$6=$W$1,Y3/$F$58,IF($T$6=$W$17,Y19/$F$58,IF($T$6=$W$33,Y35/$F$58,IF($T$6=$W$49,Y51/$F$58,IF($T$6=$W$65,Y67/$F$58,IF($T$6=$W$81,Y83/$F$58,IF($T$6=$W$97,Y99/$F$58,IF($T$6=$W$113,Y115/$F$58,IF($T$6=$W$129,Y131/$F$58,IF($T$6=$W$145,Y147/$F$58,IF($T$6=$W$161,Y163/$F$58, IF($T$6=$W$177,Y179/$F$58,IF($T$6=$W$193,Y195/$F$58,IF($T$6=$W$209,Y211/$F$58,IF($T$6=$W$225,Y227/$F$58,IF($T$6=$W$241,Y243/$F$58,IF($T$6=$W$257,Y259/$F$58,IF($T$6=$W$273,Y275/$F$58,IF($T$6=$W$289,Y291/$F$58,IF($T$6=$W$305,Y307/$F$58,"N/A")))))))))))))))))))) -> 0.1304347826 | R58: =IF($T$6=$W$1,AL3/$G$38,IF($T$6=$W$17,AL19/$G$38,IF($T$6=$W$33,AL35/$G$38,IF($T$6=$W$49,AL51/$G$38,IF($T$6=$W$65,AL67/$G$38,IF($T$6=$W$81,AL83/$G$38,IF($T$6=$W$97,AL99/$G$38,IF($T$6=$W$113,AL115/$G$38,IF($T$6=$W$129,AL131/$G$38,IF($T$6=$W$145,AL147/$G$38,IF($T$6=$W$161,AL163/$G$38,IF($T$6=$W$177,AL179/$G$38,IF($T$6=$W$193,AL195/$G$38,IF($T$6=$W$209,AL211/$G$38,IF($T$6=$W$225,AL227/$G$38,IF($T$6=$W$241,AL243/$G$38,IF($T$6=$W$257,AL259/$G$38,IF($T$6=$W$273,AL275/$G$38,IF($T$6=$W$289,AL291/$G$38,IF($T$6=$W$305,AL307/$G$38,"N/A")))))))))))))))))))) -> 0.05 | W58: 1 | X58: 2 | Y58: 1 | Z58: 4 | AA58: 0 | AB58: 0 | AC58: 0 | AD58: 2 | AE58: 1 | AF58: 0 | AG58: 3 | AJ58: 2 | AK58: 1 | AL58: 2 | AM58: 6 | AN58: 1 | AO58: 1 | AP58: 0 | AQ58: 3 | AR58: 0 | AS58: 0 | AT58: 4
E59: Average | F59: =IF($T$6=$W$1,$Y$14,IF($T$6=$W$17,$Y$30,IF($T$6=$W$33,$Y$46,IF($T$6=$W$49,$Y$62,IF($T$6=$W$65,$Y$78,IF($T$6=$W$81,$Y$94,IF($T$6=$W$97,$Y$110,IF($T$6=$W$113,$Y$126,IF($T$6=$W$129,$Y$142,IF($T$6=$W$145,$Y$158,IF($T$6=$W$161,$Y$174,IF($T$6=$W$177,$Y$190,IF($T$6=$W$193,$Y$206,IF($T$6=$W$209,$Y$222,IF($T$6=$W$225,$Y$238,IF($T$6=$W$241,$Y$254,IF($T$6=$W$257,$Y$270,IF($T$6=$W$273,$Y$286,IF($T$6=$W$289,$Y$302,IF($T$6=$W$305,$Y$318,"N/A")))))))))))))))))))) -> 0.1966264414 | G59: =IF($T$6=$W$1,$AL$14,IF($T$6=$W$17,$AL$30,IF($T$6=$W$33,$AL$46,IF($T$6=$W$49,$AL$62,IF($T$6=$W$65,$AL$78,IF($T$6=$W$81,$AL$94,IF($T$6=$W$97,$AL$110,IF($T$6=$W$113,$AL$126,IF($T$6=$W$129,$AL$142,IF($T$6=$W$145,$AL$158,IF($T$6=$W$161,$AL$174,IF($T$6=$W$177,$AL$190,IF($T$6=$W$193,$AL$206,IF($T$6=$W$209,$AL$222,IF($T$6=$W$225,$AL$238,IF($T$6=$W$241,$AL$254,IF($T$6=$W$257,$AL$270,IF($T$6=$W$273,$AL$286,IF($T$6=$W$289,$AL$302,IF($T$6=$W$305,$AL$318,"N/A")))))))))))))))))))) -> 0.2376809547 | Q59: 0.1739130435 | R59: 0.225 | W59: 0 | X59: 5 | Y59: 1 | Z59: 1 | AA59: 1 | AB59: 0 | AC59: 0 | AD59: 6 | AE59: 8 | AF59: 1 | AG59: 2 | AJ59: 1 | AK59: 3 | AL59: 5 | AM59: 1 | AN59: 0 | AO59: 1 | AP59: 3 | AQ59: 2 | AR59: 0 | AS59: 1 | AT59: 1
Q60: 0.08695652174 | R60: 0.125 | W60: 35 | X60: 13 | Z60: 0 | AA60: 3 | AB60: 4 | AC60: 8 | AG60: 0 | AJ60: 37 | AK60: 14 | AM60: 0 | AN60: 1 | AO60: 4 | AP60: 8 | AT60: 0
Q61: 0.2173913043 | R61: 0.075 | V61: Count | W61: 50 | X61: 50 | Y61: 50 | Z61: 50 | AA61: 50 | AB61: 50 | AC61: 50 | AD61: 50 | AE61: 50 | AF61: 50 | AG61: 50 | AI61: Count | AJ61: 54 | AK61: 54 | AL61: 54 | AM61: 54 | AN61: 54 | AO61: 54 | AP61: 54 | AQ61: 54 | AR61: 54 | AS61: 54 | AT61: 54
Q62: 0.04347826087 | R62: 0.175 | V62: Average | W62: 7.603526583 | X62: 1.22510634 | Y62: 0.07731206539 | Z62: -0.07684856649 | AA62: -0.00942453411 | AB62: -0.0139997996 | AC62: 0.1226377347 | AD62: 0.7312582967 | AE62: 0.1092145461 | AF62: 0.02930739541 | AG62: 0.1302197618 | AI62: Average | AJ62: 6.767423873 | AK62: 0.9227697656 | AL62: 0.1037238698 | AM62: 0.08614765859 | AN62: 0.01503095417 | AO62: 0.01035457991 | AP62: 0.1744789634 | AQ62: 0.6187750699 | AR62: 0.07472888382 | AS62: 0.03041904679 | AT62: 0.2760769995
F63: =IF(B24=F59,"","Your Farm") ->  | G63: =IF(B24=F59,"",B24) ->  | Q63: 0.04347826087 | R63: 0.125 | V63: Non-ratio average | X63: 167428.0212 | AG63: 17796.36292 | AI63: Non-ratio average | AK63: 111460.9148 | AT63: 33347.20757
Q64: 0.1739130435 | R64: 0.075
Q65: 0.1304347826 | R65: 0.15 | W65: Crop Acres<500No Cows-Feedlot
Q66: 0 | R66: 0 | W66: Current Ratio | X66: Working Capital Ratio | Y66: Debt to Asset Ratio | Z66: Operating Profit Margin | AA66: ROA | AB66: ROE | AC66: Asset Turnover | AD66: Operating Expense Ratio | AE66: Depr Expense Ratio | AF66: Interest Expense Ratio | AG66: NFI Ratio | AJ66: Current Ratio | AK66: Working Capital Ratio | AL66: Debt to Asset Ratio | AM66: Operating Profit Margin | AN66: ROA | AO66: ROE | AP66: Asset Turnover | AQ66: Operating Expense Ratio | AR66: Depr Expense Ratio | AS66: Interest Expense Ratio | AT66: NFI Ratio
W67: 0 | X67: 2 | Y67: 2 | Z67: 1 | AA67: 0 | AB67: 6 | AC67: 0 | AD67: 0 | AE67: 1 | AF67: 2 | AG67: 2 | AJ67: 1 | AK67: 0 | AL67: 0 | AM67: 0 | AN67: 1 | AO67: 5 | AP67: 0 | AQ67: 0 | AR67: 0 | AS67: 1 | AT67: 0
E68: Operating Profit Margin Ratio | W68: 0 | X68: 1 | Y68: 0 | Z68: 3 | AA68: 2 | AB68: 3 | AC68: 4 | AD68: 0 | AE68: 2 | AF68: 0 | AG68: 1 | AJ68: 0 | AK68: 0 | AL68: 3 | AM68: 1 | AN68: 0 | AO68: 2 | AP68: 1 | AQ68: 0 | AR68: 8 | AS68: 3 | AT68: 0
F69: =U1 -> 2016 | G69: 10-Year | W69: 4 | X69: 1 | Y69: 2 | Z69: 2 | AA69: 5 | AB69: 1 | AC69: 3 | AD69: 2 | AE69: 4 | AF69: 1 | AG69: 2 | AJ69: 3 | AK69: 3 | AL69: 0 | AM69: 1 | AN69: 3 | AO69: 4 | AP69: 2 | AQ69: 1 | AR69: 6 | AS69: 1 | AT69: 0
E70: -0.6 | F70: =Q80 -> 0.1304347826 | G70: =R80 -> 0.025 | Q70: =Q80 -> 0.1304347826 | R70: =R80 -> 0.025 | W70: 5 | X70: 3 | Y70: 0 | Z70: 1 | AA70: 4 | AB70: 2 | AC70: 4 | AD70: 1 | AE70: 0 | AF70: 2 | AG70: 1 | AJ70: 4 | AK70: 3 | AL70: 2 | AM70: 2 | AN70: 5 | AO70: 3 | AP70: 4 | AQ70: 4 | AR70: 2 | AS70: 6 | AT70: 3
E71: -0.45 | F71: =Q81 -> 0 | G71: =R81 -> 0.025 | Q71: =Q70+Q81 -> 0.1304347826 | R71: =R70+R81 -> 0.05 | S71: Your Farm Line-Operating Profit Margin Ratio | W71: 1 | X71: 3 | Y71: 2 | Z71: 1 | AA71: 0 | AB71: 0 | AC71: 0 | AD71: 2 | AE71: 2 | AF71: 3 | AG71: 3 | AJ71: 3 | AK71: 2 | AL71: 5 | AM71: 4 | AN71: 5 | AO71: 1 | AP71: 6 | AQ71: 6 | AR71: 1 | AS71: 3 | AT71: 6
E72: -0.3 | F72: 0.2608695652 | G72: 0.05 | Q72: 0.3913043478 | R72: 0.1 | S72: X's | T72: =IF(B25>0.75,0.75,B25) -> -0.09825268857 | U72: =T72 -> -0.09825268857 | W72: 0 | X72: 1 | Y72: 3 | Z72: 3 | AA72: 1 | AB72: 1 | AC72: 2 | AD72: 2 | AE72: 3 | AF72: 3 | AG72: 2 | AJ72: 1 | AK72: 6 | AL72: 2 | AM72: 3 | AN72: 2 | AO72: 2 | AP72: 1 | AQ72: 5 | AR72: 0 | AS72: 1 | AT72: 7
E73: -0.15 | F73: 0.2173913043 | G73: 0.075 | Q73: 0.6086956522 | R73: 0.175 | S73: Y's | T73: 0 | U73: 1 | W73: 0 | X73: 0 | Y73: 1 | Z73: 0 | AA73: 0 | AB73: 0 | AC73: 0 | AD73: 1 | AE73: 0 | AF73: 0 | AG73: 2 | AJ73: 0 | AK73: 0 | AL73: 0 | AM73: 4 | AN73: 1 | AO73: 0 | AP73: 1 | AQ73: 1 | AR73: 0 | AS73: 1 | AT73: 1
E74: 0 | F74: 0.2173913043 | G74: 0.225 | Q74: 0.8260869565 | R74: 0.4 | S74: =IF(B25=F81,U1 &" Average","Your Farm") -> 2016 Average | W74: 0 | X74: 0 | Y74: 0 | Z74: 2 | AA74: 1 | AB74: 0 | AC74: 0 | AD74: 2 | AE74: 0 | AF74: 1 | AG74: 0 | AJ74: 0 | AK74: 1 | AL74: 2 | AM74: 0 | AN74: 0 | AO74: 0 | AP74: 0 | AQ74: 0 | AR74: 0 | AS74: 0 | AT74: 0
E75: 0.15 | F75: 0.1304347826 | G75: 0.35 | Q75: 0.9565217391 | R75: 0.75 | W75: 0 | X75: 0 | Y75: 3 | Z75: 0 | AA75: 0 | AB75: 0 | AC75: 0 | AD75: 3 | AE75: 1 | AF75: 1 | AG75: 0 | AJ75: 1 | AK75: 1 | AL75: 3 | AM75: 2 | AN75: 0 | AO75: 0 | AP75: 1 | AQ75: 0 | AR75: 0 | AS75: 1 | AT75: 0
E76: 0.3 | F76: 0.04347826087 | G76: 0.225 | Q76: 1 | R76: 0.975 | W76: 3 | X76: 2 | Z76: 0 | AA76: 0 | AB76: 0 | AC76: 0 | AG76: 0 | AJ76: 4 | AK76: 1 | AM76: 0 | AN76: 0 | AO76: 0 | AP76: 1 | AT76: 0
E77: 0.45 | F77: 0 | G77: 0.025 | Q77: 1 | R77: 1 | V77: Count | W77: 13 | X77: 13 | Y77: 13 | Z77: 13 | AA77: 13 | AB77: 13 | AC77: 13 | AD77: 13 | AE77: 13 | AF77: 13 | AG77: 13 | AI77: Count | AJ77: 17 | AK77: 17 | AL77: 17 | AM77: 17 | AN77: 17 | AO77: 17 | AP77: 17 | AQ77: 17 | AR77: 17 | AS77: 17 | AT77: 17
E78: 0.6 | F78: 0 | G78: 0 | Q78: 1 | R78: 1 | V78: Average | W78: 1.502848407 | X78: 0.58569372 | Y78: 0.2986924581 | Z78: -0.1968203465 | AA78: -0.02025746426 | AB78: -0.0438325224 | AC78: 0.1029236287 | AD78: 0.8673092417 | AE78: 0.08878970188 | AF78: 0.09721095647 | AG78: -0.05330990005 | AI78: Average | AJ78: 1.801467114 | AK78: 0.6216379507 | AL78: 0.3729487315 | AM78: 0.1199377635 | AN78: 0.02418457952 | AO78: 0.004783790794 | AP78: 0.2016427423 | AQ78: 0.762836504 | AR78: 0.03512567027 | AS78: 0.07314117621 | AT78: 0.1288966496
E79: More | F79: 0 | G79: 0 | Q79: 1 | R79: 1 | V79: Non-ratio average | X79: 120416.4392 | AG79: -10960.31615 | AI79: Non-ratio average | AK79: 214871.6408 | AT79: 44553.64181
E80: Count | F80: =F58 -> 23 | G80: =G58 -> 40 | Q80: =IF($T$6=$W$1,Z3/$F$80,IF($T$6=$W$17,Z19/$F$80,IF($T$6=$W$33,Z35/$F$80,IF($T$6=$W$49,Z51/$F$80,IF($T$6=$W$65,Z67/$F$80,IF($T$6=$W$81,Z83/$F$80,IF($T$6=$W$97,Z99/$F$80,IF($T$6=$W$113,Z115/$F$80,IF($T$6=$W$129,Z131/$F$80,IF($T$6=$W$145,Z147/$F$80,IF($T$6=$W$161,Z163/$F$80,IF($T$6=$W$177,Z179/$F$58,IF($T$6=$W$193,Z195/$F$58,IF($T$6=$W$209,Z211/$F$58,IF($T$6=$W$225,Z227/$F$58,IF($T$6=$W$241,Z243/$F$58,IF($T$6=$W$257,Z259/$F$58,IF($T$6=$W$273,Z275/$F$58,IF($T$6=$W$289,Z291/$F$58,IF($T$6=$W$305,Z307/$F$58,"N/A")))))))))))))))))))) -> 0.1304347826 | R80: =IF($T$6=$W$1,AM3/$G$38,IF($T$6=$W$17,AM19/$G$38,IF($T$6=$W$33,AM35/$G$38,IF($T$6=$W$49,AM51/$G$38,IF($T$6=$W$65,AM67/$G$38,IF($T$6=$W$81,AM83/$G$38,IF($T$6=$W$97,AM99/$G$38,IF($T$6=$W$113,AM115/$G$38,IF($T$6=$W$129,AM131/$G$38,IF($T$6=$W$145,AM147/$G$38,IF($T$6=$W$161,AM163/$G$38,IF($T$6=$W$177,AM179/$G$38,IF($T$6=$W$193,AM195/$G$38,IF($T$6=$W$209,AM211/$G$38,IF($T$6=$W$225,AM227/$G$38,IF($T$6=$W$241,AM243/$G$38,IF($T$6=$W$257,AM259/$G$38,IF($T$6=$W$273,AM275/$G$38,IF($T$6=$W$289,AM291/$G$38,IF($T$6=$W$305,AM307/$G$38,"N/A")))))))))))))))))))) -> 0.025
E81: Average | F81: =IF($T$6=$W$1,$Z$14,IF($T$6=$W$17,$Z$30,IF($T$6=$W$33,$Z$46,IF($T$6=$W$49,$Z$62,IF($T$6=$W$65,$Z$78,IF($T$6=$W$81,$Z$94,IF($T$6=$W$97,$Z$110,IF($T$6=$W$113,$Z$126,IF($T$6=$W$129,$Z$142,IF($T$6=$W$145,$Z$158,IF($T$6=W161,Z174,IF($T$6=$W$177,$Z$190,IF($T$6=$W$193,$Z$206,IF($T$6=$W$209,$Z$222,IF($T$6=$W$225,$Z$238,IF($T$6=$W$241,$Z$254,IF($T$6=$W$257,$Z$270,IF($T$6=$W$273,$Z$286,IF($T$6=$W$289,$Z$302,IF($T$6=$W$305,$Z$318,"N/A")))))))))))))))))))) -> -0.09825268857 | G81: =IF($T$6=$W$1,$AM$14,IF($T$6=$W$17,$AM$30,IF($T$6=$W$33,$AM$46,IF($T$6=$W$49,$AM$62,IF($T$6=$W$65,$AM$78,IF($T$6=$W$81,$AM$94,IF($T$6=$W$97,$AM$110,IF($T$6=$W$113,$AM$126,IF($T$6=$W$129,$AM$142,IF($T$6=$W$145,$AM$158,IF($T$6=$W$161,$AM$174,IF($T$6=$W$177,$AM$190,IF($T$6=$W$193,$AM$206,IF($T$6=$W$209,$AM$222,IF($T$6=$W$225,$AM$238,IF($T$6=$W$241,$AM$254,IF($T$6=$W$257,$AM$270,IF($T$6=$W$273,$AM$286,IF($T$6=$W$289,$AM$302,IF($T$6=$W$305,$AM$318,"N/A")))))))))))))))))))) -> 0.1115769018 | Q81: 0 | R81: 0.025 | W81: Crop Acres<500<100 Cows
Q82: 0.2608695652 | R82: 0.05 | W82: Current Ratio | X82: Working Capital Ratio | Y82: Debt to Asset Ratio | Z82: Operating Profit Margin | AA82: ROA | AB82: ROE | AC82: Asset Turnover | AD82: Operating Expense Ratio | AE82: Depr Expense Ratio | AF82: Interest Expense Ratio | AG82: NFI Ratio | AJ82: Current Ratio | AK82: Working Capital Ratio | AL82: Debt to Asset Ratio | AM82: Operating Profit Margin | AN82: ROA | AO82: ROE | AP82: Asset Turnover | AQ82: Operating Expense Ratio | AR82: Depr Expense Ratio | AS82: Interest Expense Ratio | AT82: NFI Ratio
Q83: 0.2173913043 | R83: 0.075 | W83: 0 | X83: 6 | Y83: 16 | Z83: 17 | AA83: 11 | AB83: 18 | AC83: 0 | AD83: 3 | AE83: 0 | AF83: 16 | AG83: 11 | AJ83: 1 | AK83: 3 | AL83: 8 | AM83: 15 | AN83: 9 | AO83: 22 | AP83: 0 | AQ83: 1 | AR83: 0 | AS83: 6 | AT83: 3
Q84: 0.2173913043 | R84: 0.225 | W84: 5 | X84: 3 | Y84: 10 | Z84: 6 | AA84: 9 | AB84: 11 | AC84: 14 | AD84: 7 | AE84: 9 | AF84: 12 | AG84: 3 | AJ84: 3 | AK84: 2 | AL84: 35 | AM84: 5 | AN84: 11 | AO84: 16 | AP84: 8 | AQ84: 7 | AR84: 8 | AS84: 35 | AT84: 0
F85: =IF(B25=F81,"","Your Farm") ->  | G85: =IF(B25=F81,"",B25) ->  | Q85: 0.1304347826 | R85: 0.35 | W85: 7 | X85: 3 | Y85: 15 | Z85: 6 | AA85: 13 | AB85: 23 | AC85: 24 | AD85: 2 | AE85: 11 | AF85: 14 | AG85: 8 | AJ85: 6 | AK85: 4 | AL85: 17 | AM85: 8 | AN85: 28 | AO85: 40 | AP85: 23 | AQ85: 13 | AR85: 25 | AS85: 18 | AT85: 10
Q86: 0.04347826087 | R86: 0.225 | W86: 7 | X86: 8 | Y86: 5 | Z86: 9 | AA86: 23 | AB86: 11 | AC86: 6 | AD86: 11 | AE86: 11 | AF86: 8 | AG86: 10 | AJ86: 10 | AK86: 16 | AL86: 11 | AM86: 15 | AN86: 36 | AO86: 15 | AP86: 31 | AQ86: 15 | AR86: 25 | AS86: 19 | AT86: 13
Q87: 0 | R87: 0.025 | W87: 7 | X87: 15 | Y87: 6 | Z87: 11 | AA87: 10 | AB87: 2 | AC87: 6 | AD87: 11 | AE87: 9 | AF87: 8 | AG87: 14 | AJ87: 8 | AK87: 18 | AL87: 8 | AM87: 29 | AN87: 12 | AO87: 3 | AP87: 15 | AQ87: 27 | AR87: 17 | AS87: 11 | AT87: 28
Q88: 0 | R88: 0 | W88: 3 | X88: 12 | Y88: 4 | Z88: 13 | AA88: 1 | AB88: 0 | AC88: 5 | AD88: 10 | AE88: 6 | AF88: 3 | AG88: 12 | AJ88: 8 | AK88: 21 | AL88: 7 | AM88: 16 | AN88: 3 | AO88: 3 | AP88: 7 | AQ88: 25 | AR88: 9 | AS88: 5 | AT88: 29
E89: Rate of Return on Farm Assets | Q89: 0 | R89: 0 | W89: 3 | X89: 6 | Y89: 3 | Z89: 4 | AA89: 0 | AB89: 0 | AC89: 6 | AD89: 6 | AE89: 8 | AF89: 3 | AG89: 7 | AJ89: 7 | AK89: 15 | AL89: 9 | AM89: 7 | AN89: 0 | AO89: 0 | AP89: 7 | AQ89: 3 | AR89: 5 | AS89: 3 | AT89: 14
F90: =U1 -> 2016 | G90: 10-Year | W90: 0 | X90: 2 | Y90: 3 | Z90: 3 | AA90: 1 | AB90: 1 | AC90: 2 | AD90: 6 | AE90: 2 | AF90: 1 | AG90: 4 | AJ90: 4 | AK90: 5 | AL90: 2 | AM90: 5 | AN90: 1 | AO90: 1 | AP90: 4 | AQ90: 4 | AR90: 4 | AS90: 0 | AT90: 3
E91: -0.1 | F91: =Q101 -> 0.1304347826 | G91: =R101 -> 0.1 | Q91: =Q101 -> 0.1304347826 | R91: =R101 -> 0.1 | W91: 2 | X91: 2 | Y91: 7 | Z91: 0 | AA91: 0 | AB91: 1 | AC91: 1 | AD91: 13 | AE91: 13 | AF91: 4 | AG91: 0 | AJ91: 2 | AK91: 7 | AL91: 3 | AM91: 0 | AN91: 0 | AO91: 0 | AP91: 2 | AQ91: 5 | AR91: 7 | AS91: 3 | AT91: 0
E92: -0.06 | F92: =Q102 -> 0.2608695652 | G92: =R102 -> 0.05 | Q92: =Q91+Q102 -> 0.3913043478 | R92: =R91+R102 -> 0.15 | W92: 35 | X92: 12 | Z92: 0 | AA92: 1 | AB92: 2 | AC92: 5 | AG92: 0 | AJ92: 51 | AK92: 9 | AM92: 0 | AN92: 0 | AO92: 0 | AP92: 3 | AT92: 0
E93: -0.02 | F93: 0.2608695652 | G93: 0.075 | Q93: 0.652173913 | R93: 0.225 | S93: Your Farm Line-Return on Assets | V93: Count | W93: 69 | X93: 69 | Y93: 69 | Z93: 69 | AA93: 69 | AB93: 69 | AC93: 69 | AD93: 69 | AE93: 69 | AF93: 69 | AG93: 69 | AI93: Count | AJ93: 100 | AK93: 100 | AL93: 100 | AM93: 100 | AN93: 100 | AO93: 100 | AP93: 100 | AQ93: 100 | AR93: 100 | AS93: 100 | AT93: 100
E94: 0.02 | F94: 0.2173913043 | G94: 0.35 | Q94: 0.8695652174 | R94: 0.575 | S94: X's | T94: =IF(B26>0.24,0.24,B26) -> -0.01687580117 | U94: =T94 -> -0.01687580117 | V94: Average | W94: 2.341433305 | X94: 0.5816575455 | Y94: 0.1920475301 | Z94: -0.236454893 | AA94: -0.02781554962 | AB94: -0.04383720512 | AC94: 0.117635754 | AD94: 0.8045322328 | AE94: 0.1027235893 | AF94: 0.06009967332 | AG94: 0.03264450454 | AI94: Average | AJ94: 1.937003134 | AK94: 0.5254331806 | AL94: 0.2147443487 | AM94: -0.05575370305 | AN94: -0.008498357126 | AO94: -0.02483613796 | AP94: 0.1524267746 | AQ94: 0.7358331031 | AR94: 0.07349571463 | AS94: 0.05861809913 | AT94: 0.1320530831
E95: 0.06 | F95: 0.08695652174 | G95: 0.2 | Q95: 0.9565217391 | R95: 0.775 | S95: Y's | T95: 0 | U95: 1 | V95: Non-ratio average | X95: 61405.75913 | AG95: 3446.29 | AI95: Non-ratio average | AK95: 79253.43417 | AT95: 19918.15652
E96: 0.1 | F96: 0.04347826087 | G96: 0.125 | Q96: 1 | R96: 0.9 | S96: =IF(B26=F102,U1 &" Average","Your Farm") -> 2016 Average
E97: 0.14 | F97: 0 | G97: 0.075 | Q97: 1 | R97: 0.975 | W97: Crop Acres<500100+ Cows
E98: 0.18 | F98: 0 | G98: 0 | Q98: 1 | R98: 0.975 | W98: Current Ratio | X98: Working Capital Ratio | Y98: Debt to Asset Ratio | Z98: Operating Profit Margin | AA98: ROA | AB98: ROE | AC98: Asset Turnover | AD98: Operating Expense Ratio | AE98: Depr Expense Ratio | AF98: Interest Expense Ratio | AG98: NFI Ratio | AJ98: Current Ratio | AK98: Working Capital Ratio | AL98: Debt to Asset Ratio | AM98: Operating Profit Margin | AN98: ROA | AO98: ROE | AP98: Asset Turnover | AQ98: Operating Expense Ratio | AR98: Depr Expense Ratio | AS98: Interest Expense Ratio | AT98: NFI Ratio
E99: 0.22 | F99: 0 | G99: 0.025 | Q99: 1 | R99: 1 | W99: 0 | X99: 0 | Y99: 3 | Z99: 3 | AA99: 2 | AB99: 5 | AC99: 0 | AD99: 1 | AE99: 0 | AF99: 4 | AG99: 1 | AJ99: 0 | AK99: 2 | AL99: 1 | AM99: 1 | AN99: 0 | AO99: 5 | AP99: 0 | AQ99: 0 | AR99: 0 | AS99: 2 | AT99: 0
E100: More | F100: 0 | G100: 0 | Q100: 1 | R100: 1 | W100: 2 | X100: 3 | Y100: 7 | Z100: 1 | AA100: 1 | AB100: 5 | AC100: 2 | AD100: 1 | AE100: 4 | AF100: 7 | AG100: 1 | AJ100: 2 | AK100: 1 | AL100: 18 | AM100: 0 | AN100: 3 | AO100: 7 | AP100: 1 | AQ100: 4 | AR100: 5 | AS100: 15 | AT100: 0
E101: Count | F101: =F80 -> 23 | G101: =G80 -> 40 | Q101: =IF($T$6=$W$1,AA3/$F$101,IF($T$6=$W$17,AA19/$F$101,IF($T$6=$W$33,AA35/$F$101,IF($T$6=$W$49,AA51/$F$101,IF($T$6=$W$65,AA67/$F$101,IF($T$6=$W$81,AA83/$F$101,IF($T$6=$W$97,AA99/$F$101,IF($T$6=$W$113,AA115/$F$101,IF($T$6=$W$129,AA131/$F$101,IF($T$6=$W$145,AA147/$F$101,IF($T$6=$W$161,AA163/$F$101,IF($T$6=$W$177,AA179/$F$58,IF($T$6=$W$193,AA195/$F$58,IF($T$6=$W$209,AA211/$F$58,IF($T$6=$W$225,AA227/$F$58,IF($T$6=$W$241,AA243/$F$58,IF($T$6=$W$257,AA259/$F$58,IF($T$6=$W$273,AA275/$F$58,IF($T$6=$W$289,AA291/$F$58,IF($T$6=$W$305,AA307/$F$58,"N/A")))))))))))))))))))) -> 0.1304347826 | R101: =IF($T$6=$W$1,AN3/$G$38,IF($T$6=$W$17,AN19/$G$38,IF($T$6=$W$33,AN35/$G$38,IF($T$6=$W$49,AN51/$G$38,IF($T$6=$W$65,AN67/$G$38,IF($T$6=$W$81,AN83/$G$38,IF($T$6=$W$97,AN99/$G$38,IF($T$6=$W$113,AN115/$G$38,IF($T$6=$W$129,AN131/$G$38,IF($T$6=$W$145,AN147/$G$38,IF($T$6=$W$161,AN163/$G$38,IF($T$6=$W$177,AN179/$G$38,IF($T$6=$W$193,AN195/$G$38,IF($T$6=$W$209,AN211/$G$38,IF($T$6=$W$225,AN227/$G$38,IF($T$6=$W$241,AN243/$G$38,IF($T$6=$W$257,AN259/$G$38,IF($T$6=$W$273,AN275/$G$38,IF($T$6=$W$289,AN291/$G$38,IF($T$6=$W$305,AN307/$G$38,"N/A")))))))))))))))))))) -> 0.1 | W101: 3 | X101: 2 | Y101: 3 | Z101: 7 | AA101: 11 | AB101: 10 | AC101: 11 | AD101: 1 | AE101: 6 | AF101: 7 | AG101: 1 | AJ101: 4 | AK101: 3 | AL101: 9 | AM101: 6 | AN101: 11 | AO101: 12 | AP101: 14 | AQ101: 6 | AR101: 11 | AS101: 10 | AT101: 1
E102: Average | F102: =IF($T$6=$W$1,$AA$14,IF($T$6=$W$17,$AA$30,IF($T$6=$W$33,$AA$46,IF($T$6=$W$49,$AA$62,IF($T$6=$W$65,$AA$78,IF($T$6=$W$81,$AA$94,IF($T$6=$W$97,$AA$110,IF($T$6=$W$113,$AA$126,IF($T$6=$W$129,$AA$142,IF($T$6=$W$145,$AA$158,IF($T$6=$W$161,AA174,IF($T$6=$W$177,$AA$190,IF($T$6=$W$193,$AA$206,IF($T$6=$W$209,$AA$222,IF($T$6=$W$225,$AA$238,IF($T$6=$W$241,$AA$254,IF($T$6=$W$257,$AA$270,IF($T$6=$W$273,$AA$286,IF($T$6=$W$289,$AA$302,IF($T$6=$W$305,$AA$318,"N/A")))))))))))))))))))) -> -0.01687580117 | G102: =IF($T$6=$W$1,$AN$14,IF($T$6=$W$17,$AN$30,IF($T$6=$W$33,$AN$46,IF($T$6=$W$49,$AN$62,IF($T$6=$W$65,$AN$78,IF($T$6=$W$81,$AN$94,IF($T$6=$W$97,$AN$110,IF($T$6=$W$113,$AN$126,IF($T$6=$W$129,$AN$142,IF($T$6=$W$145,$AN$158,IF($T$6=$W$161,$AN$174,IF($T$6=$W$177,$AN$190,IF($T$6=$W$193,$AN$206,IF($T$6=$W$209,$AN$222,IF($T$6=$W$225,$AN$238,IF($T$6=$W$241,$AN$254,IF($T$6=$W$257,$AN$270,IF($T$6=$W$273,$AN$286,IF($T$6=$W$289,$AN$302,IF($T$6=$W$305,$AN$318,"N/A")))))))))))))))))))) -> 0.03309611758 | Q102: 0.2608695652 | R102: 0.05 | W102: 6 | X102: 7 | Y102: 3 | Z102: 3 | AA102: 9 | AB102: 6 | AC102: 8 | AD102: 7 | AE102: 5 | AF102: 2 | AG102: 4 | AJ102: 4 | AK102: 4 | AL102: 2 | AM102: 9 | AN102: 18 | AO102: 16 | AP102: 15 | AQ102: 16 | AR102: 18 | AS102: 9 | AT102: 5
Q103: 0.2608695652 | R103: 0.075 | W103: 2 | X103: 2 | Y103: 4 | Z103: 5 | AA103: 4 | AB103: 1 | AC103: 2 | AD103: 6 | AE103: 7 | AF103: 5 | AG103: 12 | AJ103: 2 | AK103: 8 | AL103: 6 | AM103: 7 | AN103: 9 | AO103: 2 | AP103: 6 | AQ103: 11 | AR103: 10 | AS103: 6 | AT103: 13
Q104: 0.2173913043 | R104: 0.35 | W104: 0 | X104: 2 | Y104: 2 | Z104: 5 | AA104: 1 | AB104: 0 | AC104: 4 | AD104: 6 | AE104: 2 | AF104: 2 | AG104: 5 | AJ104: 6 | AK104: 13 | AL104: 4 | AM104: 11 | AN104: 5 | AO104: 1 | AP104: 3 | AQ104: 7 | AR104: 0 | AS104: 3 | AT104: 15
Q105: 0.08695652174 | R105: 0.2 | W105: 1 | X105: 5 | Y105: 1 | Z105: 4 | AA105: 0 | AB105: 0 | AC105: 0 | AD105: 2 | AE105: 1 | AF105: 1 | AG105: 3 | AJ105: 3 | AK105: 6 | AL105: 2 | AM105: 11 | AN105: 0 | AO105: 2 | AP105: 3 | AQ105: 2 | AR105: 1 | AS105: 0 | AT105: 11
F106: =IF(B26=F102,"","Your Farm") ->  | G106: =IF(B26=F102,"",B26) ->  | Q106: 0.04347826087 | R106: 0.125 | W106: 0 | X106: 5 | Y106: 3 | Z106: 0 | AA106: 0 | AB106: 0 | AC106: 0 | AD106: 3 | AE106: 2 | AF106: 0 | AG106: 1 | AJ106: 1 | AK106: 4 | AL106: 1 | AM106: 1 | AN106: 0 | AO106: 0 | AP106: 3 | AQ106: 0 | AR106: 1 | AS106: 1 | AT106: 1
Q107: 0 | R107: 0.075 | W107: 2 | X107: 0 | Y107: 2 | Z107: 0 | AA107: 0 | AB107: 0 | AC107: 0 | AD107: 1 | AE107: 1 | AF107: 0 | AG107: 0 | AJ107: 0 | AK107: 1 | AL107: 3 | AM107: 0 | AN107: 0 | AO107: 0 | AP107: 0 | AQ107: 0 | AR107: 0 | AS107: 0 | AT107: 0
Q108: 0 | R108: 0 | W108: 12 | X108: 2 | Z108: 0 | AA108: 0 | AB108: 1 | AC108: 1 | AG108: 0 | AJ108: 24 | AK108: 4 | AM108: 0 | AN108: 0 | AO108: 1 | AP108: 1 | AT108: 0
Q109: 0 | R109: 0.025 | V109: Count | W109: 28 | X109: 28 | Y109: 28 | Z109: 28 | AA109: 28 | AB109: 28 | AC109: 28 | AD109: 28 | AE109: 28 | AF109: 28 | AG109: 28 | AI109: Count | AJ109: 46 | AK109: 46 | AL109: 46 | AM109: 46 | AN109: 46 | AO109: 46 | AP109: 46 | AQ109: 46 | AR109: 46 | AS109: 46 | AT109: 46
E110: Rate of Return on Farm Equity | Q110: 0 | R110: 0 | V110: Average | W110: 1.565072993 | X110: 0.4324018673 | Y110: 0.2506060416 | Z110: -0.04228083003 | AA110: -0.005877488296 | AB110: -0.01994849917 | AC110: 0.1390107122 | AD110: 0.8181554934 | AE110: 0.06047941444 | AF110: 0.04711465361 | AG110: 0.07425043859 | AI110: Average | AJ110: 2.389111952 | AK110: 0.4849082191 | AL110: 0.1832321285 | AM110: 0.04097350368 | AN110: 0.006650177776 | AO110: -0.003401176149 | AP110: 0.1623043474 | AQ110: 0.7051036603 | AR110: 0.06158853028 | AS110: 0.04587568474 | AT110: 0.1874321247
F111: =U1 -> 2016 | G111: 10-Year | V111: Non-ratio average | X111: 173959.7407 | AG111: 29871.71893 | AI111: Non-ratio average | AK111: 116641.6451 | AT111: 45085.62757
E112: -0.1 | F112: =Q122 -> 0.4347826087 | G112: =R122 -> 0.175 | Q112: =Q122 -> 0.4347826087 | R112: =R122 -> 0.175
E113: -0.05 | F113: =Q123 -> 0.1739130435 | G113: =R123 -> 0.05 | Q113: =Q112+Q123 -> 0.6086956522 | R113: =R112+R123 -> 0.225 | W113: Crop Acres500-1000None
E114: 0 | F114: 0.2608695652 | G114: 0.2 | Q114: 0.8695652174 | R114: 0.425 | W114: Current Ratio | X114: Working Capital Ratio | Y114: Debt to Asset Ratio | Z114: Operating Profit Margin | AA114: ROA | AB114: ROE | AC114: Asset Turnover | AD114: Operating Expense Ratio | AE114: Depr Expense Ratio | AF114: Interest Expense Ratio | AG114: NFI Ratio | AJ114: Current Ratio | AK114: Working Capital Ratio | AL114: Debt to Asset Ratio | AM114: Operating Profit Margin | AN114: ROA | AO114: ROE | AP114: Asset Turnover | AQ114: Operating Expense Ratio | AR114: Depr Expense Ratio | AS114: Interest Expense Ratio | AT114: NFI Ratio
E115: 0.05 | F115: 0.04347826087 | G115: 0.3 | Q115: 0.9130434783 | R115: 0.725 | S115: Your Farm Line-Return on Equity | W115: 1 | X115: 7 | Y115: 13 | Z115: 5 | AA115: 3 | AB115: 7 | AC115: 0 | AD115: 0 | AE115: 0 | AF115: 16 | AG115: 2 | AJ115: 1 | AK115: 1 | AL115: 9 | AM115: 0 | AN115: 1 | AO115: 4 | AP115: 0 | AQ115: 0 | AR115: 0 | AS115: 4 | AT115: 0
E116: 0.1 | F116: 0.08695652174 | G116: 0.15 | Q116: 1 | R116: 0.875 | S116: X's | T116: =IF(B27>0.35,0.35,B27) -> -0.03044356084 | U116: =T116 -> -0.03044356084 | W116: 7 | X116: 0 | Y116: 23 | Z116: 0 | AA116: 6 | AB116: 8 | AC116: 2 | AD116: 1 | AE116: 3 | AF116: 27 | AG116: 1 | AJ116: 5 | AK116: 4 | AL116: 37 | AM116: 1 | AN116: 3 | AO116: 8 | AP116: 1 | AQ116: 7 | AR116: 5 | AS116: 49 | AT116: 0
E117: 0.15 | F117: 0 | G117: 0.05 | Q117: 1 | R117: 0.925 | S117: Y's | T117: 0 | U117: 1 | W117: 2 | X117: 2 | Y117: 9 | Z117: 6 | AA117: 15 | AB117: 24 | AC117: 14 | AD117: 10 | AE117: 10 | AF117: 9 | AG117: 7 | AJ117: 9 | AK117: 9 | AL117: 8 | AM117: 4 | AN117: 8 | AO117: 19 | AP117: 6 | AQ117: 21 | AR117: 24 | AS117: 22 | AT117: 1
E118: 0.2 | F118: 0 | G118: 0.05 | Q118: 1 | R118: 0.975 | S118: =IF(B27=F123,U1 &" Average","Your Farm") -> 2016 Average | W118: 8 | X118: 11 | Y118: 8 | Z118: 7 | AA118: 29 | AB118: 20 | AC118: 16 | AD118: 17 | AE118: 17 | AF118: 6 | AG118: 9 | AJ118: 8 | AK118: 12 | AL118: 9 | AM118: 5 | AN118: 32 | AO118: 35 | AP118: 15 | AQ118: 36 | AR118: 24 | AS118: 7 | AT118: 2
E119: 0.25 | F119: 0 | G119: 0 | Q119: 1 | R119: 0.975 | W119: 3 | X119: 10 | Y119: 3 | Z119: 19 | AA119: 9 | AB119: 2 | AC119: 12 | AD119: 15 | AE119: 12 | AF119: 2 | AG119: 16 | AJ119: 6 | AK119: 17 | AL119: 13 | AM119: 15 | AN119: 30 | AO119: 15 | AP119: 12 | AQ119: 18 | AR119: 21 | AS119: 6 | AT119: 15
E120: 0.3 | F120: 0 | G120: 0.025 | Q120: 1 | R120: 1 | W120: 2 | X120: 6 | Y120: 1 | Z120: 24 | AA120: 2 | AB120: 1 | AC120: 8 | AD120: 12 | AE120: 10 | AF120: 0 | AG120: 23 | AJ120: 2 | AK120: 14 | AL120: 6 | AM120: 39 | AN120: 14 | AO120: 5 | AP120: 18 | AQ120: 7 | AR120: 10 | AS120: 2 | AT120: 44
E121: More | F121: 0 | G121: 0 | Q121: 1 | R121: 1 | W121: 3 | X121: 10 | Y121: 1 | Z121: 4 | AA121: 0 | AB121: 0 | AC121: 3 | AD121: 6 | AE121: 4 | AF121: 0 | AG121: 6 | AJ121: 5 | AK121: 13 | AL121: 3 | AM121: 26 | AN121: 3 | AO121: 1 | AP121: 9 | AQ121: 1 | AR121: 6 | AS121: 1 | AT121: 26
E122: Count | F122: =F101 -> 23 | G122: =G101 -> 40 | Q122: =IF($T$6=$W$1,AB3/$F$122,IF($T$6=$W$17,AB19/$F$122,IF($T$6=$W$33,AB35/$F$122,IF($T$6=$W$49,AB51/$F$122,IF($T$6=$W$65,AB67/$F$122,IF($T$6=$W$81,AB83/$F$122,IF($T$6=$W$97,AB99/$F$122,IF($T$6=$W$113,AB115/$F$122,IF($T$6=$W$129,AB131/$F$122,IF($T$6=$W$145,AB147/$F$122,IF($T$6=$W$161,AB163/$F$122,IF($T$6=$W$177,AB179/$F$58,IF($T$6=$W$193,AB195/$F$58,IF($T$6=$W$209,AB211/$F$58,IF($T$6=$W$225,AB227/$F$58,IF($T$6=$W$241,AB243/$F$58,IF($T$6=$W$257,AB259/$F$58,IF($T$6=$W$273,AB275/$F$58,IF($T$6=$W$289,AB291/$F$58,IF($T$6=$W$305,AB307/$F$58,"N/A")))))))))))))))))))) -> 0.4347826087 | R122: =IF($T$6=$W$1,AO3/$G$38,IF($T$6=$W$17,AO19/$G$38,IF($T$6=$W$33,AO35/$G$38,IF($T$6=$W$49,AO51/$G$38,IF($T$6=$W$65,AO67/$G$38,IF($T$6=$W$81,AO83/$G$38,IF($T$6=$W$97,AO99/$G$38,IF($T$6=$W$113,AO115/$G$38,IF($T$6=$W$129,AO131/$G$38,IF($T$6=$W$145,AO147/$G$38,IF($T$6=$W$161,AO163/$G$38,IF($T$6=$W$177,AO179/$G$38,IF($T$6=$W$193,AO195/$G$38,IF($T$6=$W$209,AO211/$G$38,IF($T$6=$W$225,AO227/$G$38,IF($T$6=$W$241,AO243/$G$38,IF($T$6=$W$257,AO259/$G$38,IF($T$6=$W$273,AO275/$G$38,IF($T$6=$W$289,AO291/$G$38,IF($T$6=$W$305,AO307/$G$38,"N/A")))))))))))))))))))) -> 0.175 | W122: 1 | X122: 4 | Y122: 0 | Z122: 0 | AA122: 0 | AB122: 0 | AC122: 0 | AD122: 2 | AE122: 2 | AF122: 3 | AG122: 1 | AJ122: 2 | AK122: 5 | AL122: 1 | AM122: 1 | AN122: 0 | AO122: 0 | AP122: 9 | AQ122: 1 | AR122: 1 | AS122: 0 | AT122: 3
E123: Average | F123: =IF($T$6=$W$1,$AB$14,IF($T$6=$W$17,$AB$30,IF($T$6=$W$33,$AB$46,IF($T$6=$W$49,$AB$62,IF($T$6=$W$65,$AB$78,IF($T$6=$W$81,$AB$94,IF($T$6=$W$97,$AB$110,IF($T$6=$W$113,$AB$126,IF($T$6=$W$129,$AB$142,IF($T$6=$W$145,$AB$158,IF($T$6=W161,AB174,IF($T$6=$W$177,$AB$190,IF($T$6=$W$193,$AB$206,IF($T$6=$W$209,$AB$222,IF($T$6=$W$225,$AB$238,IF($T$6=$W$241,$AB$254,IF($T$6=$W$257,$AB$270,IF($T$6=$W$273,$AB$286,IF($T$6=$W$289,$AB$302,IF($T$6=$W$305,$AB$318,"N/A")))))))))))))))))))) -> -0.03044356084 | G123: =IF($T$6=$W$1,$AO$14,IF($T$6=$W$17,$AO$30,IF($T$6=$W$33,$AO$46,IF($T$6=$W$49,$AO$62,IF($T$6=$W$65,$AO$78,IF($T$6=$W$81,$AO$94,IF($T$6=$W$97,$AO$110,IF($T$6=$W$113,$AO$126,IF($T$6=$W$129,$AO$142,IF($T$6=$W$145,$AO$158,IF($T$6=$W$161,$AO$174,IF($T$6=$W$177,$AO$190,IF($T$6=$W$193,$AO$206,IF($T$6=$W$209,$AO$222,IF($T$6=$W$225,$AO$238,IF($T$6=$W$241,$AO$254,IF($T$6=$W$257,$AO$270,IF($T$6=$W$273,$AO$286,IF($T$6=$W$289,$AO$302,IF($T$6=$W$305,$AO$318,"N/A")))))))))))))))))))) -> 0.02788648528 | Q123: 0.1739130435 | R123: 0.05 | W123: 0 | X123: 6 | Y123: 7 | Z123: 0 | AA123: 0 | AB123: 0 | AC123: 2 | AD123: 2 | AE123: 7 | AF123: 2 | AG123: 0 | AJ123: 2 | AK123: 3 | AL123: 5 | AM123: 0 | AN123: 0 | AO123: 0 | AP123: 11 | AQ123: 0 | AR123: 0 | AS123: 0 | AT123: 0
Q124: 0.2608695652 | R124: 0.2 | W124: 38 | X124: 9 | Z124: 0 | AA124: 1 | AB124: 3 | AC124: 8 | AG124: 0 | AJ124: 51 | AK124: 13 | AM124: 0 | AN124: 0 | AO124: 4 | AP124: 10 | AT124: 0
Q125: 0.04347826087 | R125: 0.3 | V125: Count | W125: 65 | X125: 65 | Y125: 65 | Z125: 65 | AA125: 65 | AB125: 65 | AC125: 65 | AD125: 65 | AE125: 65 | AF125: 65 | AG125: 65 | AI125: Count | AJ125: 91 | AK125: 91 | AL125: 91 | AM125: 91 | AN125: 91 | AO125: 91 | AP125: 91 | AQ125: 91 | AR125: 91 | AS125: 91 | AT125: 91
Q126: 0.08695652174 | R126: 0.15 | V126: Average | W126: 3.513990712 | X126: 0.7023474162 | Y126: 0.1311885257 | Z126: -0.05831271221 | AA126: -0.009076517908 | AB126: -0.01604814982 | AC126: 0.1556524738 | AD126: 0.7379969533 | AE126: 0.1155597645 | AF126: 0.0345112008 | AG126: 0.1119320815 | AI126: Average | AJ126: 4.363395321 | AK126: 0.6199086757 | AL126: 0.1467916327 | AM126: 0.09137571655 | AN126: 0.02179882638 | AO126: 0.01627785641 | AP126: 0.2385625766 | AQ126: 0.6453283659 | AR126: 0.08840937061 | AS126: 0.03064841081 | AT126: 0.2356138527
F127: =IF(B27=F123,"","Your Farm") ->  | G127: =IF(B27=F123,"",B27) ->  | Q127: 0 | R127: 0.05 | V127: Non-ratio average | X127: 179411.2767 | AG127: 28592.51302 | AI127: Non-ratio average | AK127: 168316.4107 | AT127: 63973.41989
Q128: 0 | R128: 0.05
Q129: 0 | R129: 0 | W129: Crop Acres500-1000No Cows-Feedlot
Q130: 0 | R130: 0.025 | W130: Current Ratio | X130: Working Capital Ratio | Y130: Debt to Asset Ratio | Z130: Operating Profit Margin | AA130: ROA | AB130: ROE | AC130: Asset Turnover | AD130: Operating Expense Ratio | AE130: Depr Expense Ratio | AF130: Interest Expense Ratio | AG130: NFI Ratio | AJ130: Current Ratio | AK130: Working Capital Ratio | AL130: Debt to Asset Ratio | AM130: Operating Profit Margin | AN130: ROA | AO130: ROE | AP130: Asset Turnover | AQ130: Operating Expense Ratio | AR130: Depr Expense Ratio | AS130: Interest Expense Ratio | AT130: NFI Ratio
E131: Asset Turnover Rate | Q131: 0 | R131: 0 | W131: 0 | X131: 0 | Y131: 0 | Z131: 1 | AA131: 0 | AB131: 3 | AC131: 0 | AD131: 0 | AE131: 0 | AF131: 0 | AG131: 0 | AJ131: 0 | AK131: 0 | AL131: 0 | AM131: 0 | AN131: 0 | AO131: 3 | AP131: 0 | AQ131: 0 | AR131: 0 | AS131: 0 | AT131: 0
F132: =U1 -> 2016 | G132: 10-Year | W132: 0 | X132: 1 | Y132: 3 | Z132: 0 | AA132: 1 | AB132: 2 | AC132: 1 | AD132: 0 | AE132: 1 | AF132: 2 | AG132: 0 | AJ132: 0 | AK132: 0 | AL132: 4 | AM132: 0 | AN132: 1 | AO132: 1 | AP132: 0 | AQ132: 2 | AR132: 2 | AS132: 7 | AT132: 0
E133: 0 | F133: =Q143 -> 0 | G133: =R143 -> 0 | Q133: =Q143 -> 0 | R133: =R143 -> 0 | W133: 2 | X133: 1 | Y133: 1 | Z133: 0 | AA133: 2 | AB133: 5 | AC133: 4 | AD133: 0 | AE133: 3 | AF133: 4 | AG133: 2 | AJ133: 6 | AK133: 6 | AL133: 4 | AM133: 0 | AN133: 1 | AO133: 11 | AP133: 7 | AQ133: 1 | AR133: 10 | AS133: 11 | AT133: 0
E134: 0.1 | F134: =Q144 -> 0 | G134: =R144 -> 0 | Q134: =Q133+Q144 -> 0 | R134: =R133+R144 -> 0 | W134: 4 | X134: 1 | Y134: 2 | Z134: 2 | AA134: 7 | AB134: 1 | AC134: 2 | AD134: 4 | AE134: 3 | AF134: 2 | AG134: 1 | AJ134: 6 | AK134: 4 | AL134: 5 | AM134: 1 | AN134: 18 | AO134: 10 | AP134: 8 | AQ134: 8 | AR134: 8 | AS134: 2 | AT134: 1
E135: 0.2 | F135: 0.1739130435 | G135: 0.075 | Q135: 0.1739130435 | R135: 0.075 | W135: 0 | X135: 5 | Y135: 0 | Z135: 4 | AA135: 1 | AB135: 0 | AC135: 3 | AD135: 3 | AE135: 3 | AF135: 2 | AG135: 5 | AJ135: 7 | AK135: 6 | AL135: 5 | AM135: 4 | AN135: 7 | AO135: 1 | AP135: 3 | AQ135: 13 | AR135: 6 | AS135: 7 | AT135: 14
E136: 0.3 | F136: 0.2608695652 | G136: 0.025 | Q136: 0.4347826087 | R136: 0.1 | W136: 1 | X136: 0 | Y136: 0 | Z136: 4 | AA136: 0 | AB136: 0 | AC136: 0 | AD136: 2 | AE136: 0 | AF136: 0 | AG136: 3 | AJ136: 0 | AK136: 4 | AL136: 3 | AM136: 17 | AN136: 1 | AO136: 1 | AP136: 2 | AQ136: 5 | AR136: 3 | AS136: 2 | AT136: 11
E137: 0.4 | F137: 0.1304347826 | G137: 0.25 | Q137: 0.5652173913 | R137: 0.35 | S137: Your Farm Line-Asset Turnover Rate | W137: 1 | X137: 1 | Y137: 1 | Z137: 0 | AA137: 0 | AB137: 0 | AC137: 0 | AD137: 0 | AE137: 1 | AF137: 0 | AG137: 0 | AJ137: 2 | AK137: 5 | AL137: 3 | AM137: 6 | AN137: 0 | AO137: 0 | AP137: 2 | AQ137: 0 | AR137: 0 | AS137: 0 | AT137: 3
E138: 0.5 | F138: 0.1739130435 | G138: 0.2 | Q138: 0.7391304348 | R138: 0.55 | S138: X's | T138: =IF(B28>0.9,0.9,B28) -> 0.1717591794 | U138: =T138 -> 0.1717591794 | W138: 1 | X138: 0 | Y138: 1 | Z138: 0 | AA138: 0 | AB138: 0 | AC138: 0 | AD138: 2 | AE138: 0 | AF138: 1 | AG138: 0 | AJ138: 0 | AK138: 1 | AL138: 3 | AM138: 1 | AN138: 0 | AO138: 0 | AP138: 2 | AQ138: 0 | AR138: 0 | AS138: 0 | AT138: 0
E139: 0.6 | F139: 0.04347826087 | G139: 0.125 | Q139: 0.7826086957 | R139: 0.675 | S139: Y's | T139: 0 | U139: 1 | W139: 0 | X139: 1 | Y139: 3 | Z139: 0 | AA139: 0 | AB139: 0 | AC139: 1 | AD139: 0 | AE139: 0 | AF139: 0 | AG139: 0 | AJ139: 1 | AK139: 1 | AL139: 2 | AM139: 0 | AN139: 1 | AO139: 0 | AP139: 2 | AQ139: 0 | AR139: 0 | AS139: 0 | AT139: 0
E140: 0.7 | F140: 0.04347826087 | G140: 0.075 | Q140: 0.8260869565 | R140: 0.75 | S140: =IF(B28=F144,U1 &" Average","Your Farm") -> 2016 Average | W140: 2 | X140: 1 | Z140: 0 | AA140: 0 | AB140: 0 | AC140: 0 | AG140: 0 | AJ140: 7 | AK140: 2 | AM140: 0 | AN140: 0 | AO140: 2 | AP140: 3 | AT140: 0
E141: 0.8 | F141: 0.08695652174 | G141: 0.125 | Q141: 0.9130434783 | R141: 0.875 | V141: Count | W141: 11 | X141: 11 | Y141: 11 | Z141: 11 | AA141: 11 | AB141: 11 | AC141: 11 | AD141: 11 | AE141: 11 | AF141: 11 | AG141: 11 | AI141: Count | AJ141: 29 | AK141: 29 | AL141: 29 | AM141: 29 | AN141: 29 | AO141: 29 | AP141: 29 | AQ141: 29 | AR141: 29 | AS141: 29 | AT141: 29
E142: More | F142: 0.08695652174 | G142: =R152 -> 0.125 | Q142: 1 | R142: 1 | V142: Average | W142: 1.398997645 | X142: 0.519093198 | Y142: 0.3121894412 | Z142: -0.1245151333 | AA142: -0.01414935482 | AB142: -0.03551935986 | AC142: 0.1136356236 | AD142: 0.8665372321 | AE142: 0.06098230452 | AF142: 0.05732824895 | AG142: 0.01515221444 | AI142: Average | AJ142: 1.704280207 | AK142: 0.5323054186 | AL142: 0.3147159144 | AM142: 0.08489926515 | AN142: 0.01556973617 | AO142: 0.001194895435 | AP142: 0.1833907059 | AQ142: 0.756743248 | AR142: 0.05959701944 | AS142: 0.05729438243 | AT142: 0.1263653502
E143: Count | F143: =F122 -> 23 | G143: =G122 -> 40 | Q143: =IF($T$6=$W$1,AC3/$F$143,IF($T$6=$W$17,AC19/$F$143,IF($T$6=$W$33,AC35/$F$143,IF($T$6=$W$49,AC51/$F$143,IF($T$6=$W$65,AC67/$F$143,IF($T$6=$W$81,AC83/$F$143,IF($T$6=$W$97,AC99/$F$143,IF($T$6=$W$113,AC115/$F$143,IF($T$6=$W$129,AC131/$F$143,IF($T$6=$W$145,AC147/$F$143,IF($T$6=$W$161,AC163/$F$143,IF($T$6=$W$177,AC179/$F$58,IF($T$6=$W$193,AC195/$F$58,IF($T$6=$W$209,AC211/$F$58,IF($T$6=$W$225,AC227/$F$58,IF($T$6=$W$241,AC243/$F$58,IF($T$6=$W$257,AC259/$F$58,IF($T$6=$W$273,AC275/$F$58,IF($T$6=$W$289,AC291/$F$58,IF($T$6=$W$305,AC307/$F$58,"N/A")))))))))))))))))))) -> 0 | R143: =IF($T$6=$W$1,AP3/$G$38,IF($T$6=$W$17,AP19/$G$38,IF($T$6=$W$33,AP35/$G$38,IF($T$6=$W$49,AP51/$G$38,IF($T$6=$W$65,AP67/$G$38,IF($T$6=$W$81,AP83/$G$38,IF($T$6=$W$97,AP99/$G$38,IF($T$6=$W$113,AP115/$G$38,IF($T$6=$W$129,AP131/$G$38,IF($T$6=$W$145,AP147/$G$38,IF($T$6=$W$161,AP163/$G$38,IF($T$6=$W$177,AP179/$G$38,IF($T$6=$W$193,AP195/$G$38,IF($T$6=$W$209,AP211/$G$38,IF($T$6=$W$225,AP227/$G$38,IF($T$6=$W$241,AP243/$G$38,IF($T$6=$W$257,AP259/$G$38,IF($T$6=$W$273,AP275/$G$38,IF($T$6=$W$289,AP291/$G$38,IF($T$6=$W$305,AP307/$G$38,"N/A")))))))))))))))))))) -> 0 | V143: Non-ratio average | X143: 293656.4264 | AG143: 8571.765455 | AI143: Non-ratio average | AK143: 244734.0506 | AT143: 58098.04469
E144: Average | F144: =IF($T$6=$W$1,$AC$14,IF($T$6=$W$17,$AC$30,IF($T$6=$W$33,$AC$46,IF($T$6=$W$49,$AC$62,IF($T$6=$W$65,$AC$78,IF($T$6=$W$81,$AC$94,IF($T$6=$W$97,$AC$110,IF($T$6=$W$113,$AC$126,IF($T$6=$W$129,$AC$142,IF($T$6=$W$145,$AC$158,IF($T$6=W161,AC174,IF($T$6=$W$177,$AC$190,IF($T$6=$W$193,$AC$206,IF($T$6=$W$209,$AC$222,IF($T$6=$W$225,$AC$238,IF($T$6=$W$241,$AC$254,IF($T$6=$W$257,$AC$270,IF($T$6=$W$273,$AC$286,IF($T$6=$W$289,$AC$302,IF($T$6=$W$305,$AC$318,"N/A")))))))))))))))))))) -> 0.1717591794 | G144: =IF($T$6=$W$1,$AP$14,IF($T$6=$W$17,$AP$30,IF($T$6=$W$33,$AP$46,IF($T$6=$W$49,$AP$62,IF($T$6=$W$65,$AP$78,IF($T$6=$W$81,$AP$94,IF($T$6=$W$97,$AP$110,IF($T$6=$W$113,$AP$126,IF($T$6=$W$129,$AP$142,IF($T$6=$W$145,$AP$158,IF($T$6=$W$161,$AP$174,IF($T$6=$W$177,$AP$190,IF($T$6=$W$193,$AP$206,IF($T$6=$W$209,$AP$222,IF($T$6=$W$225,$AP$238,IF($T$6=$W$241,$AP$254,IF($T$6=$W$257,$AP$270,IF($T$6=$W$273,$AP$286,IF($T$6=$W$289,$AP$302,IF($T$6=$W$305,$AP$318,"N/A")))))))))))))))))))) -> 0.2966215861 | Q144: 0 | R144: 0
Q145: 0.1739130435 | R145: 0.075 | W145: Crop Acres500-1000<100 Cows
Q146: 0.2608695652 | R146: 0.025 | W146: Current Ratio | X146: Working Capital Ratio | Y146: Debt to Asset Ratio | Z146: Operating Profit Margin | AA146: ROA | AB146: ROE | AC146: Asset Turnover | AD146: Operating Expense Ratio | AE146: Depr Expense Ratio | AF146: Interest Expense Ratio | AG146: NFI Ratio | AJ146: Current Ratio | AK146: Working Capital Ratio | AL146: Debt to Asset Ratio | AM146: Operating Profit Margin | AN146: ROA | AO146: ROE | AP146: Asset Turnover | AQ146: Operating Expense Ratio | AR146: Depr Expense Ratio | AS146: Interest Expense Ratio | AT146: NFI Ratio
Q147: 0.1304347826 | R147: 0.25 | W147: 1 | X147: 3 | Y147: 10 | Z147: 13 | AA147: 6 | AB147: 10 | AC147: 0 | AD147: 0 | AE147: 0 | AF147: 11 | AG147: 6 | AJ147: 0 | AK147: 2 | AL147: 5 | AM147: 2 | AN147: 5 | AO147: 11 | AP147: 0 | AQ147: 1 | AR147: 0 | AS147: 3 | AT147: 0
F148: =IF(B28=F144,"","Your Farm") ->  | G148: =IF(B28=F144,"",B28) ->  | Q148: 0.1739130435 | R148: 0.2 | W148: 4 | X148: 2 | Y148: 18 | Z148: 3 | AA148: 10 | AB148: 27 | AC148: 5 | AD148: 1 | AE148: 5 | AF148: 24 | AG148: 3 | AJ148: 2 | AK148: 3 | AL148: 31 | AM148: 1 | AN148: 3 | AO148: 12 | AP148: 1 | AQ148: 1 | AR148: 12 | AS148: 53 | AT148: 1
Q149: 0.04347826087 | R149: 0.125 | W149: 5 | X149: 5 | Y149: 14 | Z149: 13 | AA149: 28 | AB149: 22 | AC149: 16 | AD149: 4 | AE149: 11 | AF149: 16 | AG149: 6 | AJ149: 11 | AK149: 8 | AL149: 20 | AM149: 5 | AN149: 15 | AO149: 39 | AP149: 4 | AQ149: 22 | AR149: 24 | AS149: 28 | AT149: 0
Q150: 0.04347826087 | R150: 0.075 | W150: 15 | X150: 19 | Y150: 9 | Z150: 11 | AA150: 21 | AB150: 13 | AC150: 20 | AD150: 16 | AE150: 17 | AF150: 12 | AG150: 15 | AJ150: 18 | AK150: 22 | AL150: 12 | AM150: 3 | AN150: 55 | AO150: 37 | AP150: 25 | AQ150: 45 | AR150: 47 | AS150: 17 | AT150: 3
Q151: 0.08695652174 | R151: 0.125 | W151: 5 | X151: 14 | Y151: 6 | Z151: 17 | AA151: 9 | AB151: 2 | AC151: 12 | AD151: 23 | AE151: 14 | AF151: 7 | AG151: 22 | AJ151: 10 | AK151: 29 | AL151: 18 | AM151: 35 | AN151: 25 | AO151: 5 | AP151: 22 | AQ151: 33 | AR151: 19 | AS151: 10 | AT151: 36
E152: Operating Expense Ratio | Q152: 0.08695652174 | R152: 0.125 | W152: 7 | X152: 11 | Y152: 7 | Z152: 14 | AA152: 0 | AB152: 1 | AC152: 7 | AD152: 12 | AE152: 8 | AF152: 3 | AG152: 21 | AJ152: 3 | AK152: 16 | AL152: 12 | AM152: 51 | AN152: 5 | AO152: 7 | AP152: 20 | AQ152: 10 | AR152: 7 | AS152: 2 | AT152: 56
F153: =U1 -> 2016 | G153: 10-Year | W153: 0 | X153: 8 | Y153: 3 | Z153: 6 | AA153: 2 | AB153: 0 | AC153: 8 | AD153: 8 | AE153: 9 | AF153: 0 | AG153: 4 | AJ153: 6 | AK153: 14 | AL153: 7 | AM153: 15 | AN153: 7 | AO153: 2 | AP153: 16 | AQ153: 3 | AR153: 6 | AS153: 2 | AT153: 18
E154: 0.4 | F154: =Q163 -> 0 | G154: =R163 -> 0 | Q154: =Q163 -> 0 | R154: =R163 -> 0 | W154: 0 | X154: 1 | Y154: 3 | Z154: 0 | AA154: 0 | AB154: 0 | AC154: 2 | AD154: 5 | AE154: 6 | AF154: 2 | AG154: 0 | AJ154: 6 | AK154: 6 | AL154: 3 | AM154: 4 | AN154: 1 | AO154: 2 | AP154: 3 | AQ154: 0 | AR154: 0 | AS154: 0 | AT154: 2
E155: 0.5 | F155: =Q164 -> 0 | G155: =R164 -> 0.025 | Q155: =Q154+Q164 -> 0 | R155: 0.025 | W155: 3 | X155: 1 | Y155: 7 | Z155: 0 | AA155: 0 | AB155: 0 | AC155: 1 | AD155: 8 | AE155: 7 | AF155: 2 | AG155: 0 | AJ155: 2 | AK155: 7 | AL155: 8 | AM155: 0 | AN155: 0 | AO155: 0 | AP155: 11 | AQ155: 1 | AR155: 1 | AS155: 1 | AT155: 0
E156: 0.6 | F156: 0.04347826087 | G156: 0 | Q156: 0.04347826087 | R156: 0.025 | W156: 37 | X156: 13 | Z156: 0 | AA156: 1 | AB156: 2 | AC156: 6 | AG156: 0 | AJ156: 58 | AK156: 9 | AM156: 0 | AN156: 0 | AO156: 1 | AP156: 14 | AT156: 0
E157: 0.7 | F157: 0.08695652174 | G157: 0.075 | Q157: 0.1304347826 | R157: 0.1 | V157: Count | W157: 77 | X157: 77 | Y157: 77 | Z157: 77 | AA157: 77 | AB157: 77 | AC157: 77 | AD157: 77 | AE157: 77 | AF157: 77 | AG157: 77 | AI157: Count | AJ157: 116 | AK157: 116 | AL157: 116 | AM157: 116 | AN157: 116 | AO157: 116 | AP157: 116 | AQ157: 116 | AR157: 116 | AS157: 116 | AT157: 116
E158: 0.8 | F158: 0.2173913043 | G158: 0.425 | Q158: 0.347826087 | R158: 0.525 | V158: Average | W158: 2.446532121 | X158: 0.5076449351 | Y158: 0.2025876721 | Z158: -0.1392573958 | AA158: -0.02321411562 | AB158: -0.03979100597 | AC158: 0.1666993375 | AD158: 0.7832159258 | AE158: 0.1107644165 | AF158: 0.04909006687 | AG158: 0.05692959083 | AI158: Average | AJ158: 3.361654342 | AK158: 0.5991737458 | AL158: 0.2164736295 | AM158: 0.05744197589 | AN158: 0.01403875346 | AO158: 0.003846465238 | AP158: 0.2443988606 | AQ158: 0.6759746744 | AR158: 0.07747904549 | AS158: 0.04247294429 | AT158: 0.2040733359
E159: 0.9 | F159: 0.347826087 | G159: 0.425 | Q159: 0.6956521739 | R159: 0.95 | S159: Your Farm Line-Operating Expense Ratio | V159: Non-ratio average | X159: 130511.1044 | AG159: 14636.10343 | AI159: Non-ratio average | AK159: 160260.6521 | AT159: 54583.37605
E160: 1 | F160: 0.08695652174 | G160: 0.025 | Q160: 0.7826086957 | R160: 0.975 | S160: X's | T160: =IF(B29>1.2,1.2,B29) -> 0.8769436989 | U160: =T160 -> 0.8769436989
E161: 1.1 | F161: 0.1304347826 | G161: 0 | Q161: 0.9130434783 | R161: 0.975 | S161: Y's | T161: 0 | U161: 1 | W161: Crop Acres500-1000100+ Cows
E162: More | F162: 0.08695652174 | G162: 0.025 | Q162: 1 | R162: 1 | S162: =IF(B29=F164,U1 &" Average","Your Farm") -> 2016 Average | W162: Current Ratio | X162: Working Capital Ratio | Y162: Debt to Asset Ratio | Z162: Operating Profit Margin | AA162: ROA | AB162: ROE | AC162: Asset Turnover | AD162: Operating Expense Ratio | AE162: Depr Expense Ratio | AF162: Interest Expense Ratio | AG162: NFI Ratio | AJ162: Current Ratio | AK162: Working Capital Ratio | AL162: Debt to Asset Ratio | AM162: Operating Profit Margin | AN162: ROA | AO162: ROE | AP162: Asset Turnover | AQ162: Operating Expense Ratio | AR162: Depr Expense Ratio | AS162: Interest Expense Ratio | AT162: NFI Ratio
E163: Count | F163: =F143 -> 23 | G163: =G143 -> 40 | Q163: =IF($T$6=$W$1,AD3/$F$143,IF($T$6=$W$17,AD19/$F$143,IF($T$6=$W$33,AD35/$F$143,IF($T$6=$W$49,AD51/$F$143,IF($T$6=$W$65,AD67/$F$143,IF($T$6=$W$81,AD83/$F$143,IF($T$6=$W$97,AD99/$F$143,IF($T$6=$W$113,AD115/$F$143,IF($T$6=$W$129,AD131/$F$143,IF($T$6=$W$145,AD147/$F$143,IF($T$6=$W$161,AD163/$F$143,IF($T$6=$W$177,AD179/$F$58,IF($T$6=$W$193,AD195/$F$58,IF($T$6=$W$209,AD211/$F$58,IF($T$6=$W$225,AD227/$F$58,IF($T$6=$W$241,AD243/$F$58,IF($T$6=$W$257,AD259/$F$58,IF($T$6=$W$273,AD275/$F$58,IF($T$6=$W$289,AD291/$F$58,IF($T$6=$W$305,AD307/$F$58,"N/A")))))))))))))))))))) -> 0 | R163: =IF($T$6=$W$1,AQ3/$G$38,IF($T$6=$W$17,AQ19/$G$38,IF($T$6=$W$33,AQ35/$G$38,IF($T$6=$W$49,AQ51/$G$38,IF($T$6=$W$65,AQ67/$G$38,IF($T$6=$W$81,AQ83/$G$38,IF($T$6=$W$97,AQ99/$G$38,IF($T$6=$W$113,AQ115/$G$38,IF($T$6=$W$129,AQ131/$G$38,IF($T$6=$W$145,AQ147/$G$38,IF($T$6=$W$161,AQ163/$G$38,IF($T$6=$W$177,AQ179/$G$38,IF($T$6=$W$193,AQ195/$G$38,IF($T$6=$W$209,AQ211/$G$38,IF($T$6=$W$225,AQ227/$G$38,IF($T$6=$W$241,AQ243/$G$38,IF($T$6=$W$257,AQ259/$G$38,IF($T$6=$W$273,AQ275/$G$38,IF($T$6=$W$289,AQ291/$G$38,IF($T$6=$W$305,AQ307/$G$38,"N/A")))))))))))))))))))) -> 0 | W163: 0 | X163: 2 | Y163: 2 | Z163: 4 | AA163: 2 | AB163: 8 | AC163: 0 | AD163: 0 | AE163: 0 | AF163: 2 | AG163: 2 | AJ163: 0 | AK163: 0 | AL163: 3 | AM163: 0 | AN163: 0 | AO163: 0 | AP163: 0 | AQ163: 0 | AR163: 0 | AS163: 1 | AT163: 0
E164: Average | F164: =IF($T$6=$W$1,$AD$14,IF($T$6=$W$17,$AD$30,IF($T$6=$W$33,$AD$46,IF($T$6=$W$49,$AD$62,IF($T$6=$W$65,$AD$78,IF($T$6=$W$81,$AD$94,IF($T$6=$W$97,$AD$110,IF($T$6=$W$113,$AD$126,IF($T$6=$W$129,$AD$142,IF($T$6=$W$145,$AD$158,IF($T$6=W161,AD174,IF($T$6=$W$177,$AD$190,IF($T$6=$W$193,$AD$206,IF($T$6=$W$209,$AD$222,IF($T$6=$W$225,$AD$238,IF($T$6=$W$241,$AD$254,IF($T$6=$W$257,$AD$270,IF($T$6=$W$273,$AD$286,IF($T$6=$W$289,$AD$302,IF($T$6=$W$305,$AD$318,"N/A")))))))))))))))))))) -> 0.8769436989 | G164: =IF($T$6=$W$1,$AQ$14,IF($T$6=$W$17,$AQ$30,IF($T$6=$W$33,$AQ$46,IF($T$6=$W$49,$AQ$62,IF($T$6=$W$65,$AQ$78,IF($T$6=$W$81,$AQ$94,IF($T$6=$W$97,$AQ$110,IF($T$6=$W$113,$AQ$126,IF($T$6=$W$129,$AQ$142,IF($T$6=$W$145,$AQ$158,IF($T$6=$W$161,$AQ$174,IF($T$6=$W$177,$AQ$190,IF($T$6=$W$193,$AQ$206,IF($T$6=$W$209,$AQ$222,IF($T$6=$W$225,$AQ$238,IF($T$6=$W$241,$AQ$254,IF($T$6=$W$257,$AQ$270,IF($T$6=$W$273,$AQ$286,IF($T$6=$W$289,$AQ$302,IF($T$6=$W$305,$AQ$318,"N/A")))))))))))))))))))) -> 0.7655435998 | Q164: 0 | R164: 0.025 | W164: 2 | X164: 1 | Y164: 8 | Z164: 2 | AA164: 6 | AB164: 5 | AC164: 2 | AD164: 2 | AE164: 2 | AF164: 16 | AG164: 1 | AJ164: 0 | AK164: 1 | AL164: 13 | AM164: 0 | AN164: 0 | AO164: 3 | AP164: 0 | AQ164: 2 | AR164: 2 | AS164: 16 | AT164: 0
Q165: 0.04347826087 | R165: 0 | W165: 1 | X165: 0 | Y165: 10 | Z165: 3 | AA165: 10 | AB165: 19 | AC165: 13 | AD165: 1 | AE165: 10 | AF165: 9 | AG165: 3 | AJ165: 4 | AK165: 3 | AL165: 9 | AM165: 1 | AN165: 3 | AO165: 17 | AP165: 6 | AQ165: 11 | AR165: 16 | AS165: 20 | AT165: 0
Q166: 0.08695652174 | R166: 0.075 | W166: 6 | X166: 9 | Y166: 9 | Z166: 12 | AA166: 18 | AB166: 6 | AC166: 11 | AD166: 8 | AE166: 6 | AF166: 6 | AG166: 11 | AJ166: 3 | AK166: 3 | AL166: 11 | AM166: 1 | AN166: 27 | AO166: 22 | AP166: 17 | AQ166: 16 | AR166: 17 | AS166: 8 | AT166: 2
Q167: 0.2173913043 | R167: 0.425 | W167: 7 | X167: 8 | Y167: 6 | Z167: 7 | AA167: 2 | AB167: 2 | AC167: 8 | AD167: 10 | AE167: 13 | AF167: 4 | AG167: 9 | AJ167: 2 | AK167: 14 | AL167: 6 | AM167: 9 | AN167: 15 | AO167: 4 | AP167: 12 | AQ167: 14 | AR167: 8 | AS167: 2 | AT167: 12
F168: =IF(B29=F164,"","Your Farm") ->  | G168: =IF(B29=F164,"",B29) ->  | Q168: 0.347826087 | R168: 0.425 | W168: 3 | X168: 9 | Y168: 6 | Z168: 8 | AA168: 3 | AB168: 1 | AC168: 2 | AD168: 10 | AE168: 5 | AF168: 0 | AG168: 12 | AJ168: 2 | AK168: 9 | AL168: 5 | AM168: 26 | AN168: 2 | AO168: 0 | AP168: 4 | AQ168: 4 | AR168: 5 | AS168: 0 | AT168: 25
Q169: 0.08695652174 | R169: 0.025 | W169: 3 | X169: 4 | Y169: 0 | Z169: 4 | AA169: 0 | AB169: 0 | AC169: 3 | AD169: 6 | AE169: 0 | AF169: 1 | AG169: 2 | AJ169: 4 | AK169: 10 | AL169: 0 | AM169: 9 | AN169: 1 | AO169: 1 | AP169: 2 | AQ169: 1 | AR169: 0 | AS169: 0 | AT169: 8
Q170: 0.1304347826 | R170: 0 | W170: 2 | X170: 2 | Y170: 0 | Z170: 1 | AA170: 0 | AB170: 0 | AC170: 0 | AD170: 2 | AE170: 3 | AF170: 1 | AG170: 1 | AJ170: 3 | AK170: 5 | AL170: 0 | AM170: 2 | AN170: 0 | AO170: 0 | AP170: 3 | AQ170: 0 | AR170: 0 | AS170: 1 | AT170: 1
Q171: 0.08695652174 | R171: 0.025 | W171: 0 | X171: 1 | Y171: 0 | Z171: 0 | AA171: 0 | AB171: 0 | AC171: 1 | AD171: 2 | AE171: 2 | AF171: 2 | AG171: 0 | AJ171: 5 | AK171: 0 | AL171: 1 | AM171: 0 | AN171: 0 | AO171: 0 | AP171: 1 | AQ171: 0 | AR171: 0 | AS171: 0 | AT171: 0
W172: 17 | X172: 5 | Z172: 0 | AA172: 0 | AB172: 0 | AC172: 1 | AG172: 0 | AJ172: 25 | AK172: 3 | AM172: 0 | AN172: 0 | AO172: 1 | AP172: 3 | AT172: 0
E173: Depreciation Expense Ratio | V173: Count | W173: 41 | X173: 41 | Y173: 41 | Z173: 41 | AA173: 41 | AB173: 41 | AC173: 41 | AD173: 41 | AE173: 41 | AF173: 41 | AG173: 41 | AI173: Count | AJ173: 48 | AK173: 48 | AL173: 48 | AM173: 48 | AN173: 48 | AO173: 48 | AP173: 48 | AQ173: 48 | AR173: 48 | AS173: 48 | AT173: 48
F174: =U1 -> 2016 | G174: 10-Year | V174: Average | W174: 2.66267747 | X174: 0.613125347 | Y174: 0.1898457906 | Z174: -0.1036471701 | AA174: -0.01433144922 | AB174: -0.02687305092 | AC174: 0.1382714955 | AD174: 0.7934387494 | AE174: 0.09439121379 | AF174: 0.04490918845 | AG174: 0.0672608484 | AI174: Average | AJ174: 2.97544787 | AK174: 0.5841918855 | AL174: 0.1771551203 | AM174: 0.09579184806 | AN174: 0.01769454978 | AO174: 0.01049292245 | AP174: 0.1847187431 | AQ174: 0.6935440549 | AR174: 0.06884349833 | AS174: 0.04138426873 | AT174: 0.1962281781
E175: 0 | F175: =Q184 -> 0 | G175: =R184 -> 0 | Q175: =Q184 -> 0 | R175: =R184 -> 0 | V175: Non-ratio average | X175: 220623.9024 | AG175: 24202.80115 | AI175: Non-ratio average | AK175: 227158.6163 | AT175: 76301.84963
E176: 0.03 | F176: =Q185 -> 0.08695652174 | G176: =R185 -> 0.05 | Q176: =Q175+Q185 -> 0.08695652174 | R176: 0.05
E177: 0.06 | F177: 0.3913043478 | G177: 0.5 | Q177: 0.4782608696 | R177: 0.55 | W177: Crop Acres1000-2000None | AI177: 10-Year
E178: 0.09 | F178: 0.3043478261 | G178: 0.325 | Q178: 0.7826086957 | R178: 0.875 | W178: Current Ratio | X178: Working Capital Ratio | Y178: Debt to Asset Ratio | Z178: Operating Profit Margin | AA178: ROA | AB178: ROE | AC178: Asset Turnover | AD178: Operating Expense Ratio | AE178: Depr Expense Ratio | AF178: Interest Expense Ratio | AG178: NFI Ratio | AJ178: Current Ratio | AK178: Working Capital Ratio | AL178: Debt to Asset Ratio | AM178: Operating Profit Margin | AN178: ROA | AO178: ROE | AP178: Asset Turnover | AQ178: Operating Expense Ratio | AR178: Depr Expense Ratio | AS178: Interest Expense Ratio | AT178: NFI Ratio
E179: 0.12 | F179: 0.08695652174 | G179: 0.1 | Q179: 0.8695652174 | R179: 0.975 | W179: 0 | X179: 5 | Y179: 28 | Z179: 8 | AA179: 7 | AB179: 16 | AC179: 0 | AD179: 3 | AE179: 0 | AF179: 26 | AG179: 4 | AJ179: 2 | AK179: 1 | AL179: 9 | AM179: 0 | AN179: 5 | AO179: 11 | AP179: 0 | AQ179: 3 | AR179: 1 | AS179: 2 | AT179: 0
E180: 0.15 | F180: 0.08695652174 | G180: 0.025 | Q180: 0.9565217391 | R180: 1 | W180: 12 | X180: 10 | Y180: 44 | Z180: 6 | AA180: 13 | AB180: 19 | AC180: 5 | AD180: 4 | AE180: 4 | AF180: 64 | AG180: 2 | AJ180: 2 | AK180: 3 | AL180: 54 | AM180: 0 | AN180: 2 | AO180: 6 | AP180: 0 | AQ180: 10 | AR180: 8 | AS180: 95 | AT180: 0
E181: 0.18 | F181: 0.04347826087 | G181: 0 | Q181: 1 | R181: 1 | S181: Your Farm Line-Depreciation Expense Ratio | W181: 22 | X181: 19 | Y181: 16 | Z181: 8 | AA181: 28 | AB181: 48 | AC181: 21 | AD181: 25 | AE181: 16 | AF181: 33 | AG181: 11 | AJ181: 13 | AK181: 11 | AL181: 25 | AM181: 1 | AN181: 10 | AO181: 23 | AP181: 7 | AQ181: 41 | AR181: 28 | AS181: 40 | AT181: 1
E182: 0.21 | F182: 0 | G182: 0 | Q182: 1 | R182: 1 | S182: X's | T182: =IF(B30>0.24,0.24,B30) -> 0.07856598632 | U182: =T182 -> 0.07856598632 | W182: 14 | X182: 23 | Y182: 14 | Z182: 20 | AA182: 55 | AB182: 39 | AC182: 30 | AD182: 30 | AE182: 25 | AF182: 11 | AG182: 24 | AJ182: 11 | AK182: 29 | AL182: 23 | AM182: 8 | AN182: 37 | AO182: 56 | AP182: 12 | AQ182: 55 | AR182: 47 | AS182: 13 | AT182: 2
E183: More | F183: 0 | G183: 0 | Q183: 1 | R183: 1 | S183: Y's | T183: 0 | U183: 1 | W183: 9 | X183: 16 | Y183: 15 | Z183: 36 | AA183: 26 | AB183: 7 | AC183: 22 | AD183: 34 | AE183: 35 | AF183: 8 | AG183: 41 | AJ183: 22 | AK183: 33 | AL183: 14 | AM183: 20 | AN183: 55 | AO183: 28 | AP183: 25 | AQ183: 33 | AR183: 33 | AS183: 4 | AT183: 41
E184: Count | F184: =F163 -> 23 | G184: =G163 -> 40 | Q184: =IF($T$6=$W$1,AE3/$F$143,IF($T$6=$W$17,AE19/$F$143,IF($T$6=$W$33,AE35/$F$143,IF($T$6=$W$49,AE51/$F$143,IF($T$6=$W$65,AE67/$F$143,IF($T$6=$W$81,AE83/$F$143,IF($T$6=$W$97,AE99/$F$143,IF($T$6=$W$113,AE115/$F$143,IF($T$6=$W$129,AE131/$F$143,IF($T$6=$W$145,AE147/$F$143,IF($T$6=$W$161,AE163/$F$143,IF($T$6=$W$177,AE179/$F$58,IF($T$6=$W$193,AE195/$F$58,IF($T$6=$W$209,AE211/$F$58,IF($T$6=$W$225,AE227/$F$58,IF($T$6=$W$241,AE243/$F$58,IF($T$6=$W$257,AE259/$F$58,IF($T$6=$W$273,AE275/$F$58,IF($T$6=$W$289,AE291/$F$58,IF($T$6=$W$305,AE307/$F$58,"N/A")))))))))))))))))))) -> 0 | R184: =IF($T$6=$W$1,AR3/$G$38,IF($T$6=$W$17,AR19/$G$38,IF($T$6=$W$33,AR35/$G$38,IF($T$6=$W$49,AR51/$G$38,IF($T$6=$W$65,AR67/$G$38,IF($T$6=$W$81,AR83/$G$38,IF($T$6=$W$97,AR99/$G$38,IF($T$6=$W$113,AR115/$G$38,IF($T$6=$W$129,AR131/$G$38,IF($T$6=$W$145,AR147/$G$38,IF($T$6=$W$161,AR163/$G$38,IF($T$6=$W$177,AR179/$G$38,IF($T$6=$W$193,AR195/$G$38,IF($T$6=$W$209,AR211/$G$38,IF($T$6=$W$225,AR227/$G$38,IF($T$6=$W$241,AR243/$G$38,IF($T$6=$W$257,AR259/$G$38,IF($T$6=$W$273,AR275/$G$38,IF($T$6=$W$289,AR291/$G$38,IF($T$6=$W$305,AR307/$G$38,"N/A")))))))))))))))))))) -> 0 | S184: =IF(B30=F185,U1 &" Average","Your Farm") -> 2016 Average | W184: 2 | X184: 19 | Y184: 9 | Z184: 41 | AA184: 12 | AB184: 7 | AC184: 14 | AD184: 20 | AE184: 18 | AF184: 1 | AG184: 43 | AJ184: 15 | AK184: 24 | AL184: 10 | AM184: 60 | AN184: 25 | AO184: 17 | AP184: 24 | AQ184: 13 | AR184: 22 | AS184: 3 | AT184: 67
E185: Average | F185: =IF($T$6=$W$1,$AE$14,IF($T$6=$W$17,$AE$30,IF($T$6=$W$33,$AE$46,IF($T$6=$W$49,$AE$62,IF($T$6=$W$65,$AE$78,IF($T$6=$W$81,$AE$94,IF($T$6=$W$97,$AE$110,IF($T$6=$W$113,$AE$126,IF($T$6=$W$129,$AE$142,IF($T$6=$W$145,$AE$158,IF($T$6=$W$161,AE174,IF($T$6=$W$177,$AE$190,IF($T$6=$W$193,$AE$206,IF($T$6=$W$209,$AE$222,IF($T$6=$W$225,$AE$238,IF($T$6=$W$241,$AE$254,IF($T$6=$W$257,$AE$270,IF($T$6=$W$273,$AE$286,IF($T$6=$W$289,$AE$302,IF($T$6=$W$305,$AE$318,"N/A")))))))))))))))))))) -> 0.07856598632 | G185: =IF($T$6=$W$1,$AR$14,IF($T$6=$W$17,$AR$30,IF($T$6=$W$33,$AR$46,IF($T$6=$W$49,$AR$62,IF($T$6=$W$65,$AR$78,IF($T$6=$W$81,$AR$94,IF($T$6=$W$97,$AR$110,IF($T$6=$W$113,$AR$126,IF($T$6=$W$129,$AR$142,IF($T$6=$W$145,$AR$158,IF($T$6=$W$161,$AR$174,IF($T$6=$W$177,$AR$190,IF($T$6=$W$193,$AR$206,IF($T$6=$W$209,$AR$222,IF($T$6=$W$225,$AR$238,IF($T$6=$W$241,$AR$254,IF($T$6=$W$257,$AR$270,IF($T$6=$W$273,$AR$286,IF($T$6=$W$289,$AR$302,IF($T$6=$W$305,$AR$318,"N/A")))))))))))))))))))) -> 0.05842590841 | Q185: 0.08695652174 | R185: 0.05 | W185: 4 | X185: 15 | Y185: 5 | Z185: 23 | AA185: 2 | AB185: 3 | AC185: 19 | AD185: 15 | AE185: 25 | AF185: 2 | AG185: 18 | AJ185: 8 | AK185: 24 | AL185: 5 | AM185: 57 | AN185: 15 | AO185: 9 | AP185: 22 | AQ185: 3 | AR185: 13 | AS185: 1 | AT185: 42
Q186: 0.3913043478 | R186: 0.5 | W186: 6 | X186: 13 | Y186: 2 | Z186: 2 | AA186: 3 | AB186: 1 | AC186: 11 | AD186: 7 | AE186: 8 | AF186: 1 | AG186: 2 | AJ186: 6 | AK186: 16 | AL186: 8 | AM186: 11 | AN186: 7 | AO186: 1 | AP186: 22 | AQ186: 0 | AR186: 5 | AS186: 0 | AT186: 5
Q187: 0.3043478261 | R187: 0.325 | W187: 4 | X187: 9 | Y187: 13 | Z187: 1 | AA187: 0 | AB187: 2 | AC187: 9 | AD187: 8 | AE187: 15 | AF187: 0 | AG187: 0 | AJ187: 5 | AK187: 7 | AL187: 10 | AM187: 1 | AN187: 1 | AO187: 3 | AP187: 9 | AQ187: 0 | AR187: 1 | AS187: 0 | AT187: 0
Q188: 0.08695652174 | R188: 0.1 | W188: 73 | X188: 17 | Z188: 1 | AA188: 0 | AB188: 4 | AC188: 15 | AG188: 1 | AJ188: 74 | AK188: 10 | AM188: 0 | AN188: 1 | AO188: 4 | AP188: 37 | AT188: 0
F189: =IF(B30=F185,"","Your Farm") ->  | G189: =IF(B30=F185,"",B30) ->  | Q189: 0.08695652174 | R189: 0.025 | V189: Count | W189: 146 | X189: 146 | Y189: 146 | Z189: 146 | AA189: 146 | AB189: 146 | AC189: 146 | AD189: 146 | AE189: 146 | AF189: 146 | AG189: 146 | AI189: Count | AJ189: 158 | AK189: 158 | AL189: 158 | AM189: 158 | AN189: 158 | AO189: 158 | AP189: 158 | AQ189: 158 | AR189: 158 | AS189: 158 | AT189: 158
Q190: 0.04347826087 | R190: 0 | V190: Average | W190: 2.912026963 | X190: 0.599962309 | Y190: 0.1590216159 | Z190: -0.00317656656 | AA190: -0.000639110141 | AB190: -0.008201055009 | AC190: 0.2011952619 | AD190: 0.7264066438 | AE190: 0.1216711343 | AF190: 0.03138443972 | AG190: 0.1205377822 | AI190: Average | AJ190: 3.864247375 | AK190: 0.6283947497 | AL190: 0.1802173834 | AM190: 0.1490868434 | AN190: 0.04452438677 | AO190: 0.04400820372 | AP190: 0.2986473235 | AQ190: 0.6387528567 | AR190: 0.09495034033 | AS190: 0.02823139569 | AT190: 0.2380654073
Q191: 0 | R191: 0 | V191: Non-ratio average | X191: 268843.6162 | AG191: 54013.08177 | AI191: Non-ratio average | AK191: 298576.1254 | AT191: 113114.6416
Q192: 0 | R192: 0
W193: Crop Acres1000-2000No Cows-Feedlot
E194: Interest Expense Ratio | W194: Current Ratio | X194: Working Capital Ratio | Y194: Debt to Asset Ratio | Z194: Operating Profit Margin | AA194: ROA | AB194: ROE | AC194: Asset Turnover | AD194: Operating Expense Ratio | AE194: Depr Expense Ratio | AF194: Interest Expense Ratio | AG194: NFI Ratio | AJ194: Current Ratio | AK194: Working Capital Ratio | AL194: Debt to Asset Ratio | AM194: Operating Profit Margin | AN194: ROA | AO194: ROE | AP194: Asset Turnover | AQ194: Operating Expense Ratio | AR194: Depr Expense Ratio | AS194: Interest Expense Ratio | AT194: NFI Ratio
F195: =U1 -> 2016 | G195: 10-Year | W195: 0 | X195: 4 | Y195: 2 | Z195: 2 | AA195: 1 | AB195: 9 | AC195: 0 | AD195: 0 | AE195: 0 | AF195: 1 | AG195: 2 | AJ195: 1 | AK195: 1 | AL195: 0 | AM195: 0 | AN195: 0 | AO195: 2 | AP195: 0 | AQ195: 0 | AR195: 0 | AS195: 1 | AT195: 0
E196: 0 | F196: =Q205 -> 0.2173913043 | G196: =R205 -> 0.025 | Q196: =Q205 -> 0.2173913043 | R196: =R205 -> 0.025 | W196: 2 | X196: 2 | Y196: 3 | Z196: 1 | AA196: 5 | AB196: 1 | AC196: 0 | AD196: 0 | AE196: 1 | AF196: 6 | AG196: 1 | AJ196: 1 | AK196: 1 | AL196: 10 | AM196: 0 | AN196: 0 | AO196: 1 | AP196: 0 | AQ196: 1 | AR196: 1 | AS196: 15 | AT196: 0
E197: 0.03 | F197: =Q206 -> 0.3913043478 | G197: =R206 -> 0.55 | Q197: =Q196+Q206 -> 0.6086956522 | R197: 0.575 | W197: 4 | X197: 0 | Y197: 2 | Z197: 5 | AA197: 4 | AB197: 6 | AC197: 5 | AD197: 0 | AE197: 5 | AF197: 4 | AG197: 5 | AJ197: 3 | AK197: 2 | AL197: 9 | AM197: 0 | AN197: 2 | AO197: 6 | AP197: 2 | AQ197: 7 | AR197: 15 | AS197: 10 | AT197: 0
E198: 0.06 | F198: 0.2173913043 | G198: 0.2 | Q198: 0.8260869565 | R198: 0.775 | W198: 5 | X198: 3 | Y198: 3 | Z198: 2 | AA198: 8 | AB198: 5 | AC198: 8 | AD198: 2 | AE198: 2 | AF198: 6 | AG198: 4 | AJ198: 9 | AK198: 7 | AL198: 3 | AM198: 0 | AN198: 10 | AO198: 12 | AP198: 9 | AQ198: 15 | AR198: 5 | AS198: 5 | AT198: 0
E199: 0.09 | F199: 0.04347826087 | G199: 0.175 | Q199: 0.8695652174 | R199: 0.95 | W199: 1 | X199: 2 | Y199: 6 | Z199: 6 | AA199: 3 | AB199: 0 | AC199: 3 | AD199: 6 | AE199: 7 | AF199: 1 | AG199: 6 | AJ199: 3 | AK199: 7 | AL199: 3 | AM199: 8 | AN199: 18 | AO199: 11 | AP199: 8 | AQ199: 12 | AR199: 9 | AS199: 4 | AT199: 10
E200: 0.12 | F200: 0.08695652174 | G200: 0.025 | Q200: 0.9565217391 | R200: 0.975 | W200: 0 | X200: 4 | Y200: 4 | Z200: 4 | AA200: 0 | AB200: 1 | AC200: 2 | AD200: 5 | AE200: 2 | AF200: 2 | AG200: 3 | AJ200: 1 | AK200: 1 | AL200: 3 | AM200: 10 | AN200: 4 | AO200: 4 | AP200: 8 | AQ200: 2 | AR200: 5 | AS200: 1 | AT200: 20
... 114 more rows

Sheet NorthWest
E1: KSU FARM FINANCIAL BENCHMARKING TOOL-Northwest Kansas | S1: Acres | T1: Lookup | U1: 2016 | W1: Less than 1500No | AI1: 10-Year
S2: Less than 1500 | T2: LT | U2: 2016 KFMA Farms | W2: Current Ratio | X2: Working Capital Ratio | Y2: Debt to Asset Ratio | Z2: Operating Profit Margin | AA2: ROA | AB2: ROE | AC2: Asset Turnover | AD2: Operating Expense Ratio | AE2: Depr Expense Ratio | AF2: Interest Expense Ratio | AG2: NFI Ratio | AJ2: Current Ratio | AK2: Working Capital Ratio | AL2: Debt to Asset Ratio | AM2: Operating Profit Margin | AN2: ROA | AO2: ROE | AP2: Asset Turnover | AQ2: Operating Expense Ratio | AR2: Depr Expense Ratio | AS2: Interest Expense Ratio | AT2: NFI Ratio
E3: Tillable Crop Acres: | G3: =B16 -> All Farms | I3: =A17 ->  | K3: =IF(B17="","",B17) ->  | P3: =IF(B18="","",B18) ->  | S3: 1500-3000 | T3: BTW | W3: 0 | X3: 2 | Y3: 2 | Z3: 1 | AA3: 1 | AB3: 2 | AC3: 0 | AD3: 0 | AE3: 0 | AF3: 3 | AG3: 0 | AJ3: 0 | AK3: 0 | AL3: 0 | AM3: 0 | AN3: 0 | AO3: 0 | AP3: 0 | AQ3: 1 | AR3: 0 | AS3: 0 | AT3: 0
S4: Greater than 3000 | T4: GT | W4: 3 | X4: 0 | Y4: 11 | Z4: 1 | AA4: 3 | AB4: 5 | AC4: 0 | AD4: 0 | AE4: 1 | AF4: 8 | AG4: 1 | AJ4: 1 | AK4: 2 | AL4: 8 | AM4: 0 | AN4: 0 | AO4: 1 | AP4: 0 | AQ4: 0 | AR4: 1 | AS4: 9 | AT4: 0
E5: Current Ratio | S5: All Farms | T5: All | W5: 3 | X5: 4 | Y5: 0 | Z5: 1 | AA5: 4 | AB5: 7 | AC5: 6 | AD5: 1 | AE5: 2 | AF5: 3 | AG5: 4 | AJ5: 1 | AK5: 0 | AL5: 2 | AM5: 0 | AN5: 2 | AO5: 4 | AP5: 1 | AQ5: 4 | AR5: 3 | AS5: 2 | AT5: 0
F6: =U1 -> 2016 | G6: 10-Year | S6: LTList | T6: =B16&B17&B18 -> All Farms | W6: 1 | X6: 2 | Y6: 2 | Z6: 7 | AA6: 9 | AB6: 2 | AC6: 6 | AD6: 1 | AE6: 4 | AF6: 1 | AG6: 1 | AJ6: 1 | AK6: 1 | AL6: 2 | AM6: 0 | AN6: 5 | AO6: 6 | AP6: 4 | AQ6: 4 | AR6: 5 | AS6: 2 | AT6: 1
E7: 0 | F7: =Q17 -> 0 | G7: =R17 -> 0.008196721311 | S7: Yes | W7: 1 | X7: 1 | Y7: 0 | Z7: 4 | AA7: 0 | AB7: 0 | AC7: 2 | AD7: 4 | AE7: 4 | AF7: 0 | AG7: 7 | AJ7: 2 | AK7: 5 | AL7: 1 | AM7: 2 | AN7: 6 | AO7: 2 | AP7: 1 | AQ7: 6 | AR7: 4 | AS7: 1 | AT7: 4
E8: 0.5 | F8: =Q18 -> 0.09259259259 | G8: =R18 -> 0.02459016393 | Q8: =Q7+Q18 -> 0.09259259259 | R8: =R7+R18 -> 0.02459016393 | S8: No | W8: 1 | X8: 3 | Y8: 0 | Z8: 2 | AA8: 0 | AB8: 0 | AC8: 1 | AD8: 4 | AE8: 3 | AF8: 0 | AG8: 3 | AJ8: 1 | AK8: 3 | AL8: 0 | AM8: 6 | AN8: 1 | AO8: 1 | AP8: 6 | AQ8: 0 | AR8: 1 | AS8: 1 | AT8: 6
E9: 1 | F9: 0.2407407407 | G9: 0.04918032787 | Q9: 0.3333333333 | R9: 0.0737704918 | W9: 0 | X9: 2 | Y9: 0 | Z9: 1 | AA9: 0 | AB9: 0 | AC9: 0 | AD9: 5 | AE9: 0 | AF9: 0 | AG9: 1 | AJ9: 0 | AK9: 2 | AL9: 0 | AM9: 6 | AN9: 1 | AO9: 0 | AP9: 1 | AQ9: 0 | AR9: 1 | AS9: 0 | AT9: 3
E10: 1.5 | F10: 0.1358024691 | G10: 0.1557377049 | Q10: 0.4691358025 | R10: 0.2295081967 | W10: 0 | X10: 0 | Y10: 0 | Z10: 0 | AA10: 0 | AB10: 0 | AC10: 0 | AD10: 2 | AE10: 2 | AF10: 1 | AG10: 0 | AJ10: 1 | AK10: 1 | AL10: 1 | AM10: 1 | AN10: 0 | AO10: 0 | AP10: 1 | AQ10: 0 | AR10: 0 | AS10: 0 | AT10: 1
E11: 2 | F11: 0.06172839506 | G11: 0.1229508197 | Q11: 0.5308641975 | R11: 0.3524590164 | S11: BTWList | T11: Lookup | W11: 0 | X11: 1 | Y11: 2 | Z11: 0 | AA11: 0 | AB11: 0 | AC11: 0 | AD11: 0 | AE11: 1 | AF11: 1 | AG11: 0 | AJ11: 1 | AK11: 0 | AL11: 1 | AM11: 0 | AN11: 0 | AO11: 0 | AP11: 0 | AQ11: 0 | AR11: 0 | AS11: 0 | AT11: 0
E12: 2.5 | F12: 0.1049382716 | G12: 0.08196721311 | Q12: 0.6358024691 | R12: 0.4344262295 | S12: Yes | T12: LL | W12: 8 | X12: 2 | Z12: 0 | AA12: 0 | AB12: 1 | AC12: 2 | AG12: 0 | AJ12: 7 | AK12: 1 | AM12: 0 | AN12: 0 | AO12: 1 | AP12: 1 | AT12: 0
E13: 3 | F13: 0.02469135802 | G13: 0.02459016393 | Q13: 0.6604938272 | R13: 0.4590163934 | S13: No | T13: GG | V13: Count | W13: 17 | X13: 17 | Y13: 17 | Z13: 17 | AA13: 17 | AB13: 17 | AC13: 17 | AD13: 17 | AE13: 17 | AF13: 17 | AG13: 17 | AI13: Count | AJ13: 15 | AK13: 15 | AL13: 15 | AM13: 15 | AN13: 15 | AO13: 15 | AP13: 15 | AQ13: 15 | AR13: 15 | AS13: 15 | AT13: 15
E14: 3.5 | F14: 0.006172839506 | G14: 0.04098360656 | Q14: 0.6666666667 | R14: 0.5 | V14: Average | W14: 1.361694782 | X14: 0.1962759446 | Y14: 0.1838922422 | Z14: -0.1340761732 | AA14: -0.01862314396 | AB14: -0.03005398639 | AC14: 0.1388997278 | AD14: 0.8445325042 | AE14: 0.1145440363 | AF14: 0.05822562696 | AG14: -0.01730216747 | AI14: Average | AJ14: 2.320562733 | AK14: 0.4304058622 | AL14: 0.211090097 | AM14: 0.1271173061 | AN14: 0.02931086078 | AO14: 0.02326674361 | AP14: 0.2305811984 | AQ14: 0.6789294347 | AR14: 0.08565729383 | AS14: 0.0412833852 | AT14: 0.1941298863
A15: BENCHMARK CATEGORY | E15: 4 | F15: 0.01234567901 | G15: 0.06557377049 | Q15: 0.6790123457 | R15: 0.5655737705 | V15: Non-ratio average | X15: 42003.75729 | AG15: -3702.726 | AI15: Non-ratio average | AK15: 131395.2383 | AT15: 59264.39417
A16: Tillable Crop Acres: | B16: All Farms | E16: More | F16: 0.3209876543 | G16: 0.4262295082 | Q16: 1 | R16: 0.9918032787 | S16: GTList
A17: =IF(B16="All Farms","","Cow Herd:") ->  | E17: Count | F17: =IF($T$6=$W$1,$W$13,IF($T$6=$W$17,$W$29,IF($T$6=$W$33,$W$45,IF($T$6=$W$49,$W$61,IF($T$6=$W$65,$W$77,IF($T$6=$W$81,$W$93,IF($T$6=$W$97,$W$109,IF($T$6=$W$113,$W$125,IF($T$6=$W$129,$W$141,IF($T$6=$W$145,$W$157,IF(T6=$W$161,$W$173,"N/A"))))))))))) -> 162 | G17: =IF($T$6=$W$1,$AJ$13,IF($T$6=$W$17,$AJ$29,IF($T$6=$W$33,$AJ$45,IF($T$6=$W$49,$AJ$61,IF($T$6=$W$65,$AJ$77,IF($T$6=$W$81,$AJ$93,IF($T$6=$W$97,$AJ$109,IF($T$6=$W$113,$AJ$125,IF($T$6=$W$129,$AJ$141,IF($T$6=$W$145,$AJ$157, IF($T$6=$W$161,$AJ$173,"N/A"))))))))))) -> 122 | Q17: =IF($T$6=$W$1,W3/$W$13,IF($T$6=$W$17,W19/$W$29,IF($T$6=$W$33,W35/$W$45,IF($T$6=$W$49,W51/$W$61,IF($T$6=$W$65,W67/$W$77,IF($T$6=$W$81,W83/$W$93,IF($T$6=$W$97,W99/$W$109,IF($T$6=$W$113,W115/$W$125,IF($T$6=$W$129,W131/$W$141,IF($T$6=$W$145,W147/$W$157,IF($T$6=$W$161,W163/$W$173,"N/A"))))))))))) -> 0 | R17: =IF($T$6=$W$1,AJ3/$AJ$13,IF($T$6=$W$17,AJ19/$AJ$29,IF($T$6=$W$33,AJ35/$AJ$45,IF($T$6=$W$49,AJ51/$AJ$61,IF($T$6=$W$65,AJ67/$AJ$77,IF($T$6=$W$81,AJ83/$AJ$93,IF($T$6=$W$97,AJ99/$AJ$109,IF($T$6=$W$113,AJ115/$AJ$125,IF($T$6=$W$129,AJ131/$AJ$141,IF($T$6=$W$145,AJ147/$AJ$157,IF($T$6=$W$161,AJ163/$AJ$173,"N/A"))))))))))) -> 0.008196721311 | S17: Yes | W17: Less than 1500Yes
E18: Average | F18: =IF($T$6=$W$1,$W$14,IF($T$6=$W$17,$W$30,IF($T$6=$W$33,$W$46,IF($T$6=$W$49,$W$62,IF($T$6=$W$65,$W$78,IF($T$6=$W$81,$W$94,IF($T$6=$W$97,$W$110,IF($T$6=$W$113,$W$126,IF($T$6=$W$129,$W$142,IF($T$6=$W$145,$W$158, IF($T$6=$W$161,$W$174,"N/A"))))))))))) -> 1.934137595 | G18: =IF($T$6=$W$1,$AJ$14,IF($T$6=$W$17,$AJ$30,IF($T$6=$W$33,$AJ$46,IF($T$6=$W$49,$AJ$62,IF($T$6=$W$65,$AJ$78,IF($T$6=$W$81,$AJ$94,IF($T$6=$W$97,$AJ$110,IF($T$6=$W$113,$AJ$126,IF($T$6=$W$129,$AJ$142,IF($T$6=$W$145,$AJ$158, IF($T$6=$W$161,$AJ$174,"N/A"))))))))))) -> 2.86601162 | Q18: 0.09259259259 | R18: 0.02459016393 | S18: No | W18: Current Ratio | X18: Working Capital Ratio | Y18: Debt to Asset Ratio | Z18: Operating Profit Margin | AA18: ROA | AB18: ROE | AC18: Asset Turnover | AD18: Operating Expense Ratio | AE18: Depr Expense Ratio | AF18: Interest Expense Ratio | AG18: NFI Ratio | AJ18: Current Ratio | AK18: Working Capital Ratio | AL18: Debt to Asset Ratio | AM18: Operating Profit Margin | AN18: ROA | AO18: ROE | AP18: Asset Turnover | AQ18: Operating Expense Ratio | AR18: Depr Expense Ratio | AS18: Interest Expense Ratio | AT18: NFI Ratio
Q19: 0.2407407407 | R19: 0.04918032787 | W19: 0 | X19: 3 | Y19: 2 | Z19: 5 | AA19: 7 | AB19: 13 | AC19: 0 | AD19: 0 | AE19: 0 | AF19: 2 | AG19: 2 | AJ19: 0 | AK19: 1 | AL19: 0 | AM19: 0 | AN19: 0 | AO19: 1 | AP19: 0 | AQ19: 0 | AR19: 0 | AS19: 0 | AT19: 0
F20: =IF(B22=F18,"","Your Farm") ->  | G20: =IF(B22=F18,"",B22) ->  | Q20: 0.1358024691 | R20: 0.1557377049 | W20: 5 | X20: 5 | Y20: 8 | Z20: 1 | AA20: 5 | AB20: 11 | AC20: 2 | AD20: 0 | AE20: 5 | AF20: 10 | AG20: 3 | AJ20: 1 | AK20: 1 | AL20: 5 | AM20: 0 | AN20: 0 | AO20: 3 | AP20: 0 | AQ20: 0 | AR20: 3 | AS20: 5 | AT20: 0
A21: YOUR FARM VALUES* | Q21: 0.06172839506 | R21: 0.1229508197 | W21: 8 | X21: 5 | Y21: 5 | Z21: 8 | AA21: 17 | AB21: 14 | AC21: 13 | AD21: 3 | AE21: 7 | AF21: 10 | AG21: 6 | AJ21: 1 | AK21: 0 | AL21: 3 | AM21: 0 | AN21: 2 | AO21: 7 | AP21: 0 | AQ21: 5 | AR21: 9 | AS21: 8 | AT21: 0
A22: Current Ratio: | B22: =S37 -> 1.934137595 | Q22: 0.1049382716 | R22: 0.08196721311 | S22: LLList | W22: 10 | X22: 10 | Y22: 5 | Z22: 13 | AA22: 9 | AB22: 3 | AC22: 9 | AD22: 1 | AE22: 8 | AF22: 10 | AG22: 14 | AJ22: 5 | AK22: 6 | AL22: 4 | AM22: 0 | AN22: 13 | AO22: 10 | AP22: 11 | AQ22: 9 | AR22: 5 | AS22: 6 | AT22: 0
A23: Working Capital Ratio: | B23: 0.4194362224 | Q23: 0.02469135802 | R23: 0.02459016393 | S23: Yes | W23: 2 | X23: 7 | Y23: 8 | Z23: 10 | AA23: 2 | AB23: 0 | AC23: 8 | AD23: 13 | AE23: 9 | AF23: 5 | AG23: 11 | AJ23: 4 | AK23: 5 | AL23: 4 | AM23: 5 | AN23: 6 | AO23: 1 | AP23: 4 | AQ23: 5 | AR23: 1 | AS23: 1 | AT23: 9
A24: Debt to Asset Ratio: | B24: 0.2480371791 | Q24: 0.006172839506 | R24: 0.04098360656 | S24: No | W24: 6 | X24: 4 | Y24: 4 | Z24: 4 | AA24: 0 | AB24: 0 | AC24: 4 | AD24: 7 | AE24: 3 | AF24: 2 | AG24: 4 | AJ24: 0 | AK24: 2 | AL24: 4 | AM24: 11 | AN24: 1 | AO24: 0 | AP24: 3 | AQ24: 3 | AR24: 2 | AS24: 2 | AT24: 9
A25: Operating Profit Margin | B25: -0.02660606138 | Q25: 0.01234567901 | R25: 0.06557377049 | W25: 1 | X25: 2 | Y25: 2 | Z25: 1 | AA25: 1 | AB25: 0 | AC25: 1 | AD25: 10 | AE25: 3 | AF25: 2 | AG25: 2 | AJ25: 0 | AK25: 3 | AL25: 0 | AM25: 6 | AN25: 0 | AO25: 0 | AP25: 2 | AQ25: 0 | AR25: 2 | AS25: 0 | AT25: 4
A26: Rate of Return on Farm Assets | B26: -0.004998398711 | E26: Working Captial Ratio | Q26: 0.3209876543 | R26: 0.4262295082 | W26: 0 | X26: 2 | Y26: 2 | Z26: 0 | AA26: 0 | AB26: 0 | AC26: 1 | AD26: 2 | AE26: 3 | AF26: 1 | AG26: 0 | AJ26: 1 | AK26: 1 | AL26: 0 | AM26: 0 | AN26: 0 | AO26: 0 | AP26: 1 | AQ26: 0 | AR26: 0 | AS26: 0 | AT26: 0
A27: Rate of Return on Farm Equity | B27: -0.01900246117 | F27: =U1 -> 2016 | G27: 10-Year | S27: Your Farm Line-Current Ratio | W27: 2 | X27: 1 | Y27: 6 | Z27: 0 | AA27: 0 | AB27: 0 | AC27: 0 | AD27: 6 | AE27: 4 | AF27: 0 | AG27: 0 | AJ27: 2 | AK27: 2 | AL27: 2 | AM27: 0 | AN27: 0 | AO27: 0 | AP27: 0 | AQ27: 0 | AR27: 0 | AS27: 0 | AT27: 0
A28: Asset Turnover Rate | B28: 0.1878669165 | E28: -0.5 | F28: =Q38 -> 0.04938271605 | G28: =R38 -> 0.01639344262 | Q28: =Q38 -> 0.04938271605 | R28: =R38 -> 0.01639344262 | S28: X's | T28: =IF(B22<4.5,B22,4.5) -> 1.934137595 | U28: =IF(B22<4.5,B22,4.5) -> 1.934137595 | W28: 8 | X28: 3 | Z28: 0 | AA28: 1 | AB28: 1 | AC28: 4 | AG28: 0 | AJ28: 8 | AK28: 1 | AM28: 0 | AN28: 0 | AO28: 0 | AP28: 1 | AT28: 0
A29: Operating Expense Ratio | B29: 0.8358662139 | E29: =E28+0.25 -> -0.25 | F29: =Q39 -> 0.09259259259 | G29: =R39 -> 0.02459016393 | Q29: =Q28+Q39 -> 0.1419753086 | R29: =R28+R39 -> 0.04098360656 | S29: Y's | T29: 0 | U29: 1 | V29: Count | W29: 42 | X29: 42 | Y29: 42 | Z29: 42 | AA29: 42 | AB29: 42 | AC29: 42 | AD29: 42 | AE29: 42 | AF29: 42 | AG29: 42 | AI29: Count | AJ29: 22 | AK29: 22 | AL29: 22 | AM29: 22 | AN29: 22 | AO29: 22 | AP29: 22 | AQ29: 22 | AR29: 22 | AS29: 22 | AT29: 22
A30: Depreciation Expense Ratio | B30: 0.1061734113 | E30: =E29+0.25 -> 0 | F30: 0.1913580247 | G30: 0.03278688525 | Q30: 0.3333333333 | R30: 0.0737704918 | S30: =IF(B22=F18,U1 &" Average","Your Farm") -> 2016 Average | V30: Average | W30: 1.44775001 | X30: 0.2453142137 | Y30: 0.2448932978 | Z30: -0.176085211 | AA30: -0.02852190847 | AB30: -0.04931741125 | AC30: 0.1619778759 | AD30: 0.8851912753 | AE30: 0.09299317643 | AF30: 0.05810818911 | AG30: -0.03629264089 | AI30: Average | AJ30: 1.959517302 | AK30: 0.4017064704 | AL30: 0.2751142396 | AM30: 0.117699699 | AN30: 0.02544069434 | AO30: 0.01480480981 | AP30: 0.2161491877 | AQ30: 0.6892709486 | AR30: 0.0669712963 | AS30: 0.06241462017 | AT30: 0.1813431349
A31: Interest Expense Ratio | B31: 0.04896237067 | E31: 0.25 | F31: 0.1481481481 | G31: 0.2131147541 | Q31: 0.4814814815 | R31: 0.2868852459 | S31: Your Farm Line-Working Capital Ratio | V31: Non-ratio average | X31: 69257.52083 | AG31: -10246.19933 | AI31: Non-ratio average | AK31: 136759.5006 | AT31: 61737.60791
A32: Net Farm Income Ratio: | B32: 0.008998004103 | E32: 0.5 | F32: 0.1234567901 | G32: 0.2131147541 | Q32: 0.6049382716 | R32: 0.5 | S32: X's | T32: =IF(B23>1.75,1.75,B23) -> 0.4194362224 | U32: =IF(B23>1.75,1.75,B23) -> 0.4194362224
A33: *Defaults to Averages for 2016 if not entered | E33: 0.75 | F33: 0.1234567901 | G33: 0.1721311475 | Q33: 0.7283950617 | R33: 0.6721311475 | S33: Y's | T33: 0 | U33: 1 | W33: 1500-3000No
E34: 1 | F34: 0.08641975309 | G34: 0.1393442623 | Q34: 0.8148148148 | R34: 0.8114754098 | S34: =IF(B23=F39,U1 &" Average","Your Farm") -> 2016 Average | W34: Current Ratio | X34: Working Capital Ratio | Y34: Debt to Asset Ratio | Z34: Operating Profit Margin | AA34: ROA | AB34: ROE | AC34: Asset Turnover | AD34: Operating Expense Ratio | AE34: Depr Expense Ratio | AF34: Interest Expense Ratio | AG34: NFI Ratio | AJ34: Current Ratio | AK34: Working Capital Ratio | AL34: Debt to Asset Ratio | AM34: Operating Profit Margin | AN34: ROA | AO34: ROE | AP34: Asset Turnover | AQ34: Operating Expense Ratio | AR34: Depr Expense Ratio | AS34: Interest Expense Ratio | AT34: NFI Ratio
E35: 1.25 | F35: 0.06172839506 | G35: 0.09016393443 | Q35: 0.8765432099 | R35: 0.9016393443 | W35: 0 | X35: 0 | Y35: 5 | Z35: 0 | AA35: 1 | AB35: 3 | AC35: 0 | AD35: 0 | AE35: 0 | AF35: 6 | AG35: 0 | AJ35: 1 | AK35: 0 | AL35: 1 | AM35: 0 | AN35: 0 | AO35: 2 | AP35: 0 | AQ35: 0 | AR35: 0 | AS35: 0 | AT35: 0
E36: 1.5 | F36: 0.04938271605 | G36: 0.05737704918 | Q36: 0.9259259259 | R36: 0.9590163934 | W36: 1 | X36: 1 | Y36: 6 | Z36: 0 | AA36: 2 | AB36: 1 | AC36: 2 | AD36: 0 | AE36: 0 | AF36: 7 | AG36: 0 | AJ36: 0 | AK36: 0 | AL36: 8 | AM36: 0 | AN36: 1 | AO36: 0 | AP36: 0 | AQ36: 1 | AR36: 1 | AS36: 15 | AT36: 0
E37: More | F37: 0.07407407407 | G37: 0.04098360656 | Q37: 1 | R37: 1 | S37: =$F$18 -> 1.934137595 | W37: 5 | X37: 5 | Y37: 1 | Z37: 1 | AA37: 3 | AB37: 6 | AC37: 2 | AD37: 2 | AE37: 5 | AF37: 8 | AG37: 1 | AJ37: 2 | AK37: 2 | AL37: 5 | AM37: 0 | AN37: 0 | AO37: 0 | AP37: 0 | AQ37: 5 | AR37: 5 | AS37: 4 | AT37: 0
E38: Count | F38: =F17 -> 162 | G38: =G17 -> 122 | Q38: =IF($T$6=$W$1,X3/$F$38,IF($T$6=$W$17,X19/$F$38,IF($T$6=$W$33,X35/$F$38,IF($T$6=$W$49,X51/$F$38,IF($T$6=$W$65,X67/$F$38,IF($T$6=$W$81,X83/$F$38,IF($T$6=$W$97,X99/$F$38,IF($T$6=$W$113,X115/$F$38,IF($T$6=$W$129,X131/$F$38,IF($T$6=$W$145,X147/$F$38,IF($T$6=$W$161,X163/$F$38,"N/A"))))))))))) -> 0.04938271605 | R38: =IF($T$6=$W$1,AK3/$G$38,IF($T$6=$W$17,AK19/$G$38,IF($T$6=$W$33,AK35/$G$38,IF($T$6=$W$49,AK51/$G$38,IF($T$6=$W$65,AK67/$G$38,IF($T$6=$W$81,AK83/$G$38,IF($T$6=$W$97,AK99/$G$38,IF($T$6=$W$113,AK115/$G$38,IF($T$6=$W$129,AK131/$G$38,IF($T$6=$W$145,AK147/$G$38,IF($T$6=$W$161,AK163/$G$38,"N/A"))))))))))) -> 0.01639344262 | S38: =$F$39 -> 0.4194362224 | W38: 1 | X38: 1 | Y38: 1 | Z38: 4 | AA38: 9 | AB38: 6 | AC38: 4 | AD38: 5 | AE38: 1 | AF38: 0 | AG38: 5 | AJ38: 1 | AK38: 3 | AL38: 0 | AM38: 0 | AN38: 3 | AO38: 5 | AP38: 1 | AQ38: 10 | AR38: 4 | AS38: 0 | AT38: 0
E39: Average | F39: =IF($T$6=$W$1,$X$14,IF($T$6=$W$17,$X$30,IF($T$6=$W$33,$X$46,IF($T$6=$W$49,$X$62,IF($T$6=$W$65,$X$78,IF($T$6=$W$81,$X$94,IF($T$6=$W$97,$X$110,IF($T$6=$W$113,$X$126,IF($T$6=$W$129,$X$142,IF($T$6=$W$145,$X$158,IF($T$6=$W$161,$X$174,"N/A"))))))))))) -> 0.4194362224 | G39: =IF($T$6=$W$1,$AK$14,IF($T$6=$W$17,$AK$30,IF($T$6=$W$33,$AK$46,IF($T$6=$W$49,$AK$62,IF($T$6=$W$65,$AK$78,IF($T$6=$W$81,$AK$94,IF($T$6=$W$97,$AK$110,IF($T$6=$W$113,$AK$126,IF($T$6=$W$129,$AK$142,IF($T$6=$W$145,$AK$158,IF($T$6=$W$161,$AK$174,"N/A"))))))))))) -> 0.5723619295 | Q39: 0.09259259259 | R39: 0.02459016393 | S39: =$F$59 -> 0.2480371791 | W39: 0 | X39: 1 | Y39: 1 | Z39: 6 | AA39: 3 | AB39: 1 | AC39: 4 | AD39: 7 | AE39: 2 | AF39: 0 | AG39: 8 | AJ39: 1 | AK39: 0 | AL39: 1 | AM39: 1 | AN39: 3 | AO39: 6 | AP39: 2 | AQ39: 2 | AR39: 6 | AS39: 0 | AT39: 4
E40: Working Capital Avg. | Q40: 0.1913580247 | R40: 0.03278688525 | S40: =$F$81 -> -0.02660606138 | W40: 2 | X40: 2 | Y40: 2 | Z40: 4 | AA40: 2 | AB40: 1 | AC40: 1 | AD40: 2 | AE40: 6 | AF40: 0 | AG40: 5 | AJ40: 1 | AK40: 1 | AL40: 2 | AM40: 4 | AN40: 8 | AO40: 3 | AP40: 2 | AQ40: 1 | AR40: 0 | AS40: 0 | AT40: 5
F41: =IF($T$6=$W$1,$X$15,IF($T$6=$W$17,$X$31,IF($T$6=$W$33,$X$47,IF($T$6=$W$49,$X$63,IF($T$6=$W$65,$X$79,IF($T$6=$W$81,$X$95,IF($T$6=$W$97,$X$111,IF($T$6=$W$113,$X$127,IF($T$6=$W$129,$X$143,IF($T$6=$W$145,$X$159,IF($T$6=$W$161,$X$175,"N/A"))))))))))) -> 326259.0029 | G41: =IF($T$6=$W$1,$AK$15,IF($T$6=$W$17,$AK$31,IF($T$6=$W$33,$AK$47,IF($T$6=$W$49,$AK$63,IF($T$6=$W$65,$AK$79,IF($T$6=$W$81,$AK$95,IF($T$6=$W$97,$AK$111,IF($T$6=$W$113,$AK$127,IF($T$6=$W$129,$AK$143,IF($T$6=$W$145,$AK$159,IF($T$6=$W$161,$AK$175,"N/A"))))))))))) -> 504292.2022 | Q41: 0.1481481481 | R41: 0.2131147541 | S41: =$F$102 -> -0.004998398711 | W41: 0 | X41: 3 | Y41: 2 | Z41: 5 | AA41: 1 | AB41: 1 | AC41: 2 | AD41: 4 | AE41: 5 | AF41: 0 | AG41: 2 | AJ41: 0 | AK41: 5 | AL41: 0 | AM41: 11 | AN41: 1 | AO41: 2 | AP41: 6 | AQ41: 0 | AR41: 2 | AS41: 0 | AT41: 10
Q42: 0.1234567901 | R42: 0.2131147541 | S42: =$F$123 -> -0.01900246117 | W42: 0 | X42: 2 | Y42: 1 | Z42: 1 | AA42: 0 | AB42: 1 | AC42: 1 | AD42: 1 | AE42: 2 | AF42: 0 | AG42: 0 | AJ42: 0 | AK42: 6 | AL42: 1 | AM42: 3 | AN42: 2 | AO42: 0 | AP42: 1 | AQ42: 0 | AR42: 1 | AS42: 0 | AT42: 0
F43: =IF(B23=F39,"","Your Farm") ->  | G43: =IF(B23=F39,"",B23) ->  | Q43: 0.1234567901 | R43: 0.1721311475 | S43: =$F$144 -> 0.1878669165 | W43: 0 | X43: 3 | Y43: 2 | Z43: 0 | AA43: 0 | AB43: 0 | AC43: 1 | AD43: 0 | AE43: 0 | AF43: 0 | AG43: 0 | AJ43: 0 | AK43: 2 | AL43: 1 | AM43: 0 | AN43: 1 | AO43: 0 | AP43: 3 | AQ43: 0 | AR43: 0 | AS43: 0 | AT43: 0
Q44: 0.08641975309 | R44: 0.1393442623 | S44: =$F$164 -> 0.8358662139 | W44: 12 | X44: 3 | Z44: 0 | AA44: 0 | AB44: 1 | AC44: 4 | AG44: 0 | AJ44: 13 | AK44: 0 | AM44: 0 | AN44: 0 | AO44: 1 | AP44: 4 | AT44: 0
Q45: 0.06172839506 | R45: 0.09016393443 | S45: =$F$185 -> 0.1061734113 | V45: Count | W45: 21 | X45: 21 | Y45: 21 | Z45: 21 | AA45: 21 | AB45: 21 | AC45: 21 | AD45: 21 | AE45: 21 | AF45: 21 | AG45: 21 | AI45: Count | AJ45: 19 | AK45: 19 | AL45: 19 | AM45: 19 | AN45: 19 | AO45: 19 | AP45: 19 | AQ45: 19 | AR45: 19 | AS45: 19 | AT45: 19
Q46: 0.04938271605 | R46: 0.05737704918 | S46: =$F$206 -> 0.04896237067 | V46: Average | W46: 2.739104856 | X46: 0.6016177705 | Y46: 0.1561792187 | Z46: 0.022193002 | AA46: 0.004719974073 | AB46: -1.706970667e-05 | AC46: 0.2126784864 | AD46: 0.7635106359 | AE46: 0.1200807619 | AF46: 0.02226201095 | AG46: 0.09414659126 | AI46: Average | AJ46: 7.204457066 | AK46: 0.8051782904 | AL46: 0.1372419829 | AM46: 0.2328939691 | AN46: 0.07679331049 | AO46: 0.08229465929 | AP46: 0.3297350755 | AQ46: 0.6129347444 | AR46: 0.09059828752 | AS46: 0.01837921954 | AT46: 0.2780877485
E47: Debt to Asset Ratio | Q47: 0.07407407407 | R47: 0.04098360656 | S47: =$F$228 -> 0.008998004103 | V47: Non-ratio average | X47: 369979.8963 | AG47: 57897.80119 | AI47: Non-ratio average | AK47: 516991.6449 | AT47: 178555.5376
F48: =U1 -> 2016 | G48: 10-Year
E49: 0 | F49: =Q58 -> 0.06172839506 | G49: =R58 -> 0.008196721311 | Q49: =Q58 -> 0.06172839506 | R49: =R58 -> 0.008196721311 | S49: Your Farm Line-Debt to Asset | W49: 1500-3000Yes
E50: 0.1 | F50: =Q59 -> 0.2777777778 | G50: =R59 -> 0.2704918033 | Q50: =Q49+Q59 -> 0.3395061728 | R50: 0.2786885246 | S50: X's | T50: =IF(B24>0.8,0.8,B24) -> 0.2480371791 | U50: =IF(B24>0.8,0.8,B24) -> 0.2480371791 | W50: Current Ratio | X50: Working Capital Ratio | Y50: Debt to Asset Ratio | Z50: Operating Profit Margin | AA50: ROA | AB50: ROE | AC50: Asset Turnover | AD50: Operating Expense Ratio | AE50: Depr Expense Ratio | AF50: Interest Expense Ratio | AG50: NFI Ratio | AJ50: Current Ratio | AK50: Working Capital Ratio | AL50: Debt to Asset Ratio | AM50: Operating Profit Margin | AN50: ROA | AO50: ROE | AP50: Asset Turnover | AQ50: Operating Expense Ratio | AR50: Depr Expense Ratio | AS50: Interest Expense Ratio | AT50: NFI Ratio
E51: 0.2 | F51: 0.1234567901 | G51: 0.2295081967 | Q51: 0.462962963 | R51: 0.5081967213 | S51: Y's | T51: 0 | U51: 1 | W51: 0 | X51: 0 | Y51: 1 | Z51: 0 | AA51: 1 | AB51: 5 | AC51: 0 | AD51: 0 | AE51: 0 | AF51: 2 | AG51: 1 | AJ51: 1 | AK51: 1 | AL51: 1 | AM51: 0 | AN51: 0 | AO51: 1 | AP51: 0 | AQ51: 0 | AR51: 0 | AS51: 1 | AT51: 0
E52: 0.3 | F52: 0.1358024691 | G52: 0.1475409836 | Q52: 0.5987654321 | R52: 0.6557377049 | S52: =IF(B24=F59,U1 &" Average","Your Farm") -> 2016 Average | W52: 2 | X52: 4 | Y52: 7 | Z52: 1 | AA52: 1 | AB52: 2 | AC52: 1 | AD52: 0 | AE52: 0 | AF52: 9 | AG52: 1 | AJ52: 1 | AK52: 0 | AL52: 7 | AM52: 0 | AN52: 0 | AO52: 2 | AP52: 0 | AQ52: 0 | AR52: 0 | AS52: 11 | AT52: 0
E53: 0.4 | F53: 0.1049382716 | G53: 0.106557377 | Q53: 0.7037037037 | R53: 0.762295082 | W53: 7 | X53: 5 | Y53: 5 | Z53: 3 | AA53: 7 | AB53: 11 | AC53: 7 | AD53: 1 | AE53: 5 | AF53: 3 | AG53: 3 | AJ53: 1 | AK53: 1 | AL53: 4 | AM53: 0 | AN53: 3 | AO53: 1 | AP53: 1 | AQ53: 5 | AR53: 9 | AS53: 11 | AT53: 0
E54: 0.5 | F54: 0.07407407407 | G54: 0.106557377 | Q54: 0.7777777778 | R54: 0.868852459 | W54: 1 | X54: 3 | Y54: 4 | Z54: 3 | AA54: 12 | AB54: 7 | AC54: 6 | AD54: 4 | AE54: 5 | AF54: 5 | AG54: 5 | AJ54: 6 | AK54: 8 | AL54: 3 | AM54: 0 | AN54: 5 | AO54: 11 | AP54: 3 | AQ54: 6 | AR54: 7 | AS54: 2 | AT54: 1
E55: 0.6 | F55: 0.06790123457 | G55: 0.04918032787 | Q55: 0.8456790123 | R55: 0.9180327869 | W55: 3 | X55: 2 | Y55: 2 | Z55: 9 | AA55: 4 | AB55: 0 | AC55: 4 | AD55: 8 | AE55: 5 | AF55: 2 | AG55: 11 | AJ55: 2 | AK55: 3 | AL55: 3 | AM55: 3 | AN55: 9 | AO55: 6 | AP55: 3 | AQ55: 13 | AR55: 8 | AS55: 1 | AT55: 7
E56: 0.7 | F56: 0.03086419753 | G56: 0.04098360656 | Q56: 0.8765432099 | R56: 0.9590163934 | W56: 2 | X56: 4 | Y56: 2 | Z56: 8 | AA56: 0 | AB56: 0 | AC56: 2 | AD56: 6 | AE56: 6 | AF56: 2 | AG56: 3 | AJ56: 1 | AK56: 6 | AL56: 4 | AM56: 14 | AN56: 6 | AO56: 2 | AP56: 3 | AQ56: 1 | AR56: 2 | AS56: 0 | AT56: 13
E57: More | F57: 0.1234567901 | G57: 0.04098360656 | Q57: 1 | R57: 1 | W57: 0 | X57: 4 | Y57: 2 | Z57: 1 | AA57: 0 | AB57: 0 | AC57: 1 | AD57: 2 | AE57: 3 | AF57: 1 | AG57: 1 | AJ57: 1 | AK57: 3 | AL57: 2 | AM57: 7 | AN57: 1 | AO57: 2 | AP57: 4 | AQ57: 1 | AR57: 0 | AS57: 0 | AT57: 5
E58: Count | F58: =F38 -> 162 | G58: =G38 -> 122 | Q58: =IF($T$6=$W$1,Y3/$F$58,IF($T$6=$W$17,Y19/$F$58,IF($T$6=$W$33,Y35/$F$58,IF($T$6=$W$49,Y51/$F$58,IF($T$6=$W$65,Y67/$F$58,IF($T$6=$W$81,Y83/$F$58,IF($T$6=$W$97,Y99/$F$58,IF($T$6=$W$113,Y115/$F$58,IF($T$6=$W$129,Y131/$F$58,IF($T$6=$W$145,Y147/$F$58,IF($T$6=$W$161,Y163/$F$58,"N/A"))))))))))) -> 0.06172839506 | R58: =IF($T$6=$W$1,AL3/$G$38,IF($T$6=$W$17,AL19/$G$38,IF($T$6=$W$33,AL35/$G$38,IF($T$6=$W$49,AL51/$G$38,IF($T$6=$W$65,AL67/$G$38,IF($T$6=$W$81,AL83/$G$38,IF($T$6=$W$97,AL99/$G$38,IF($T$6=$W$113,AL115/$G$38,IF($T$6=$W$129,AL131/$G$38,IF($T$6=$W$145,AL147/$G$38,IF($T$6=$W$161,AL163/$G$38,"N/A"))))))))))) -> 0.008196721311 | W58: 0 | X58: 0 | Y58: 0 | Z58: 0 | AA58: 0 | AB58: 0 | AC58: 1 | AD58: 2 | AE58: 0 | AF58: 0 | AG58: 0 | AJ58: 1 | AK58: 2 | AL58: 2 | AM58: 2 | AN58: 0 | AO58: 0 | AP58: 7 | AQ58: 0 | AR58: 0 | AS58: 0 | AT58: 0
E59: Average | F59: =IF($T$6=$W$1,$Y$14,IF($T$6=$W$17,$Y$30,IF($T$6=$W$33,$Y$46,IF($T$6=$W$49,$Y$62,IF($T$6=$W$65,$Y$78,IF($T$6=$W$81,$Y$94,IF($T$6=$W$97,$Y$110,IF($T$6=$W$113,$Y$126,IF($T$6=$W$129,$Y$142,IF($T$6=$W$145,$Y$158,IF($T$6=$W$161,$Y$174,"N/A"))))))))))) -> 0.2480371791 | G59: =IF($T$6=$W$1,$AL$14,IF($T$6=$W$17,$AL$30,IF($T$6=$W$33,$AL$46,IF($T$6=$W$49,$AL$62,IF($T$6=$W$65,$AL$78,IF($T$6=$W$81,$AL$94,IF($T$6=$W$97,$AL$110,IF($T$6=$W$113,$AL$126,IF($T$6=$W$129,$AL$142,IF($T$6=$W$145,$AL$158,IF($T$6=$W$161,$AL$174,"N/A"))))))))))) -> 0.2423692819 | Q59: 0.2777777778 | R59: 0.2704918033 | W59: 0 | X59: 2 | Y59: 2 | Z59: 0 | AA59: 0 | AB59: 0 | AC59: 1 | AD59: 2 | AE59: 1 | AF59: 1 | AG59: 0 | AJ59: 1 | AK59: 0 | AL59: 0 | AM59: 0 | AN59: 1 | AO59: 1 | AP59: 1 | AQ59: 0 | AR59: 0 | AS59: 0 | AT59: 0
Q60: 0.1234567901 | R60: 0.2295081967 | W60: 10 | X60: 1 | Z60: 0 | AA60: 0 | AB60: 0 | AC60: 2 | AG60: 0 | AJ60: 11 | AK60: 2 | AM60: 0 | AN60: 1 | AO60: 0 | AP60: 4 | AT60: 0
Q61: 0.1358024691 | R61: 0.1475409836 | V61: Count | W61: 25 | X61: 25 | Y61: 25 | Z61: 25 | AA61: 25 | AB61: 25 | AC61: 25 | AD61: 25 | AE61: 25 | AF61: 25 | AG61: 25 | AI61: Count | AJ61: 26 | AK61: 26 | AL61: 26 | AM61: 26 | AN61: 26 | AO61: 26 | AP61: 26 | AQ61: 26 | AR61: 26 | AS61: 26 | AT61: 26
Q62: 0.1049382716 | R62: 0.106557377 | V62: Average | W62: 1.834128302 | X62: 0.3670052402 | Y62: 0.2369847861 | Z62: -0.08550186022 | AA62: -0.01288525493 | AB62: -0.03053603938 | AC62: 0.1507014572 | AD62: 0.8337175324 | AE62: 0.1169590287 | AF62: 0.06808704598 | AG62: -0.01876360709 | AI62: Average | AJ62: 2.925879076 | AK62: 0.5268589795 | AL62: 0.2140778353 | AM62: 0.1433661238 | AN62: 0.04024990026 | AO62: 0.03805467295 | AP62: 0.2807490304 | AQ62: 0.6898534555 | AR62: 0.08303642112 | AS62: 0.0353507902 | AT62: 0.1917593331
F63: =IF(B24=F59,"","Your Farm") ->  | G63: =IF(B24=F59,"",B24) ->  | Q63: 0.07407407407 | R63: 0.106557377 | V63: Non-ratio average | X63: 174442.658 | AG63: -8918.60152 | AI63: Non-ratio average | AK63: 310116.2308 | AT63: 112872.1041
Q64: 0.06790123457 | R64: 0.04918032787
Q65: 0.03086419753 | R65: 0.04098360656 | W65: Greater than 3000No
Q66: 0.1234567901 | R66: 0.04098360656 | W66: Current Ratio | X66: Working Capital Ratio | Y66: Debt to Asset Ratio | Z66: Operating Profit Margin | AA66: ROA | AB66: ROE | AC66: Asset Turnover | AD66: Operating Expense Ratio | AE66: Depr Expense Ratio | AF66: Interest Expense Ratio | AG66: NFI Ratio | AJ66: Current Ratio | AK66: Working Capital Ratio | AL66: Debt to Asset Ratio | AM66: Operating Profit Margin | AN66: ROA | AO66: ROE | AP66: Asset Turnover | AQ66: Operating Expense Ratio | AR66: Depr Expense Ratio | AS66: Interest Expense Ratio | AT66: NFI Ratio
W67: 0 | X67: 0 | Y67: 0 | Z67: 0 | AA67: 0 | AB67: 4 | AC67: 0 | AD67: 0 | AE67: 0 | AF67: 1 | AG67: 0 | AJ67: 0 | AK67: 0 | AL67: 0 | AM67: 0 | AN67: 0 | AO67: 0 | AP67: 0 | AQ67: 0 | AR67: 0 | AS67: 0 | AT67: 0
E68: Operating Profit Margin Ratio | W68: 2 | X68: 2 | Y68: 7 | Z68: 1 | AA68: 3 | AB68: 3 | AC68: 0 | AD68: 0 | AE68: 0 | AF68: 10 | AG68: 2 | AJ68: 0 | AK68: 0 | AL68: 1 | AM68: 0 | AN68: 0 | AO68: 0 | AP68: 0 | AQ68: 1 | AR68: 1 | AS68: 8 | AT68: 0
F69: =U1 -> 2016 | G69: 10-Year | W69: 4 | X69: 4 | Y69: 5 | Z69: 0 | AA69: 6 | AB69: 8 | AC69: 2 | AD69: 1 | AE69: 2 | AF69: 9 | AG69: 4 | AJ69: 0 | AK69: 0 | AL69: 5 | AM69: 0 | AN69: 0 | AO69: 0 | AP69: 0 | AQ69: 4 | AR69: 1 | AS69: 2 | AT69: 0
E70: -0.6 | F70: =Q80 -> 0.05555555556 | G70: =R80 -> 0 | Q70: =Q80 -> 0.05555555556 | R70: =R80 -> 0 | W70: 2 | X70: 2 | Y70: 4 | Z70: 6 | AA70: 9 | AB70: 7 | AC70: 8 | AD70: 4 | AE70: 4 | AF70: 3 | AG70: 5 | AJ70: 0 | AK70: 0 | AL70: 3 | AM70: 0 | AN70: 0 | AO70: 0 | AP70: 0 | AQ70: 3 | AR70: 4 | AS70: 1 | AT70: 0
E71: -0.45 | F71: =Q81 -> 0.02469135802 | G71: =R81 -> 0 | Q71: =Q70+Q81 -> 0.08024691358 | R71: =R70+R81 -> 0 | S71: Your Farm Line-Operating Profit Margin Ratio | W71: 3 | X71: 5 | Y71: 2 | Z71: 6 | AA71: 5 | AB71: 2 | AC71: 7 | AD71: 4 | AE71: 4 | AF71: 0 | AG71: 10 | AJ71: 0 | AK71: 4 | AL71: 1 | AM71: 0 | AN71: 4 | AO71: 7 | AP71: 2 | AQ71: 3 | AR71: 5 | AS71: 1 | AT71: 1
E72: -0.3 | F72: 0.09259259259 | G72: 0 | Q72: 0.1728395062 | R72: 0 | S72: X's | T72: =IF(B25>0.75,0.75,B25) -> -0.02660606138 | U72: =T72 -> -0.02660606138 | W72: 2 | X72: 3 | Y72: 2 | Z72: 8 | AA72: 1 | AB72: 0 | AC72: 3 | AD72: 7 | AE72: 5 | AF72: 1 | AG72: 3 | AJ72: 2 | AK72: 4 | AL72: 1 | AM72: 1 | AN72: 5 | AO72: 3 | AP72: 3 | AQ72: 1 | AR72: 1 | AS72: 0 | AT72: 6
E73: -0.15 | F73: 0.2345679012 | G73: 0 | Q73: 0.4074074074 | R73: 0 | S73: Y's | T73: 0 | U73: 1 | W73: 2 | X73: 1 | Y73: 0 | Z73: 3 | AA73: 0 | AB73: 0 | AC73: 1 | AD73: 3 | AE73: 4 | AF73: 0 | AG73: 0 | AJ73: 1 | AK73: 2 | AL73: 0 | AM73: 6 | AN73: 2 | AO73: 1 | AP73: 2 | AQ73: 0 | AR73: 0 | AS73: 0 | AT73: 5
E74: 0 | F74: 0.2777777778 | G74: 0.106557377 | Q74: 0.6851851852 | R74: 0.106557377 | S74: =IF(B25=F81,U1 &" Average","Your Farm") -> 2016 Average | W74: 1 | X74: 5 | Y74: 0 | Z74: 0 | AA74: 0 | AB74: 0 | AC74: 1 | AD74: 4 | AE74: 2 | AF74: 0 | AG74: 0 | AJ74: 1 | AK74: 1 | AL74: 0 | AM74: 5 | AN74: 0 | AO74: 1 | AP74: 1 | AQ74: 0 | AR74: 0 | AS74: 0 | AT74: 0
E75: 0.15 | F75: 0.2222222222 | G75: 0.3852459016 | Q75: 0.9074074074 | R75: 0.4918032787 | W75: 0 | X75: 1 | Y75: 4 | Z75: 0 | AA75: 0 | AB75: 0 | AC75: 1 | AD75: 1 | AE75: 3 | AF75: 0 | AG75: 0 | AJ75: 1 | AK75: 1 | AL75: 1 | AM75: 0 | AN75: 1 | AO75: 0 | AP75: 2 | AQ75: 0 | AR75: 0 | AS75: 0 | AT75: 0
E76: 0.3 | F76: 0.08641975309 | G76: 0.4098360656 | Q76: 0.9938271605 | R76: 0.9016393443 | W76: 8 | X76: 1 | Z76: 0 | AA76: 0 | AB76: 0 | AC76: 1 | AG76: 0 | AJ76: 7 | AK76: 0 | AM76: 0 | AN76: 0 | AO76: 0 | AP76: 2 | AT76: 0
E77: 0.45 | F77: 0.006172839506 | G77: 0.09836065574 | Q77: 1 | R77: 1 | V77: Count | W77: 24 | X77: 24 | Y77: 24 | Z77: 24 | AA77: 24 | AB77: 24 | AC77: 24 | AD77: 24 | AE77: 24 | AF77: 24 | AG77: 24 | AI77: Count | AJ77: 12 | AK77: 12 | AL77: 12 | AM77: 12 | AN77: 12 | AO77: 12 | AP77: 12 | AQ77: 12 | AR77: 12 | AS77: 12 | AT77: 12
E78: 0.6 | F78: 0 | G78: 0 | Q78: 1 | R78: 1 | V78: Average | W78: 2.625652582 | X78: 0.5830879369 | Y78: 0.2350844692 | Z78: 0.03035312577 | AA78: 0.006616109319 | AB78: -0.002272137611 | AC78: 0.2179712682 | AD78: 0.8151109117 | AE78: 0.1138714846 | AF78: 0.03836277729 | AG78: 0.03265482641 | AI78: Average | AJ78: 4.301688256 | AK78: 0.6670949871 | AL78: 0.2229381676 | AM78: 0.2450864392 | AN78: 0.08339313357 | AO78: 0.09434836235 | AP78: 0.3402600888 | AQ78: 0.6478562824 | AR78: 0.07721888937 | AS78: 0.02939481953 | AT78: 0.2455300087
E79: More | F79: 0 | G79: 0 | Q79: 1 | R79: 1 | V79: Non-ratio average | X79: 1081040.433 | AG79: 60541.79046 | AI79: Non-ratio average | AK79: 1555385.628 | AT79: 572472.9673
E80: Count | F80: =F58 -> 162 | G80: =G58 -> 122 | Q80: =IF($T$6=$W$1,Z3/$F$80,IF($T$6=$W$17,Z19/$F$80,IF($T$6=$W$33,Z35/$F$80,IF($T$6=$W$49,Z51/$F$80,IF($T$6=$W$65,Z67/$F$80,IF($T$6=$W$81,Z83/$F$80,IF($T$6=$W$97,Z99/$F$80,IF($T$6=$W$113,Z115/$F$80,IF($T$6=$W$129,Z131/$F$80,IF($T$6=$W$145,Z147/$F$80,IF($T$6=$W$161,Z163/$F$80,"N/A"))))))))))) -> 0.05555555556 | R80: =IF($T$6=$W$1,AM3/$G$38,IF($T$6=$W$17,AM19/$G$38,IF($T$6=$W$33,AM35/$G$38,IF($T$6=$W$49,AM51/$G$38,IF($T$6=$W$65,AM67/$G$38,IF($T$6=$W$81,AM83/$G$38,IF($T$6=$W$97,AM99/$G$38,IF($T$6=$W$113,AM115/$G$38,IF($T$6=$W$129,AM131/$G$38,IF($T$6=$W$145,AM147/$G$38,IF($T$6=$W$161,AM163/$G$38,"N/A"))))))))))) -> 0
E81: Average | F81: =IF($T$6=$W$1,$Z$14,IF($T$6=$W$17,$Z$30,IF($T$6=$W$33,$Z$46,IF($T$6=$W$49,$Z$62,IF($T$6=$W$65,$Z$78,IF($T$6=$W$81,$Z$94,IF($T$6=$W$97,$Z$110,IF($T$6=$W$113,$Z$126,IF($T$6=$W$129,$Z$142,IF($T$6=$W$145,$Z$158,IF($T$6=W161,Z174,"N/A"))))))))))) -> -0.02660606138 | G81: =IF($T$6=$W$1,$AM$14,IF($T$6=$W$17,$AM$30,IF($T$6=$W$33,$AM$46,IF($T$6=$W$49,$AM$62,IF($T$6=$W$65,$AM$78,IF($T$6=$W$81,$AM$94,IF($T$6=$W$97,$AM$110,IF($T$6=$W$113,$AM$126,IF($T$6=$W$129,$AM$142,IF($T$6=$W$145,$AM$158,IF($T$6=$W$161,$AM$174,"N/A"))))))))))) -> 0.1861611893 | Q81: 0.02469135802 | R81: 0 | W81: Greater than 3000Yes
Q82: 0.09259259259 | R82: 0 | W82: Current Ratio | X82: Working Capital Ratio | Y82: Debt to Asset Ratio | Z82: Operating Profit Margin | AA82: ROA | AB82: ROE | AC82: Asset Turnover | AD82: Operating Expense Ratio | AE82: Depr Expense Ratio | AF82: Interest Expense Ratio | AG82: NFI Ratio | AJ82: Current Ratio | AK82: Working Capital Ratio | AL82: Debt to Asset Ratio | AM82: Operating Profit Margin | AN82: ROA | AO82: ROE | AP82: Asset Turnover | AQ82: Operating Expense Ratio | AR82: Depr Expense Ratio | AS82: Interest Expense Ratio | AT82: NFI Ratio
Q83: 0.2345679012 | R83: 0 | W83: 0 | X83: 1 | Y83: 0 | Z83: 0 | AA83: 0 | AB83: 3 | AC83: 0 | AD83: 0 | AE83: 0 | AF83: 1 | AG83: 0 | AJ83: 0 | AK83: 0 | AL83: 0 | AM83: 0 | AN83: 0 | AO83: 1 | AP83: 0 | AQ83: 0 | AR83: 0 | AS83: 0 | AT83: 0
Q84: 0.2777777778 | R84: 0.106557377 | W84: 1 | X84: 3 | Y84: 5 | Z84: 0 | AA84: 1 | AB84: 4 | AC84: 0 | AD84: 0 | AE84: 0 | AF84: 8 | AG84: 0 | AJ84: 0 | AK84: 0 | AL84: 2 | AM84: 0 | AN84: 0 | AO84: 0 | AP84: 0 | AQ84: 0 | AR84: 0 | AS84: 8 | AT84: 0
F85: =IF(B25=F81,"","Your Farm") ->  | G85: =IF(B25=F81,"",B25) ->  | Q85: 0.2222222222 | R85: 0.3852459016 | W85: 9 | X85: 6 | Y85: 4 | Z85: 2 | AA85: 7 | AB85: 13 | AC85: 6 | AD85: 0 | AE85: 3 | AF85: 7 | AG85: 4 | AJ85: 1 | AK85: 1 | AL85: 8 | AM85: 0 | AN85: 1 | AO85: 2 | AP85: 1 | AQ85: 5 | AR85: 4 | AS85: 11 | AT85: 0
Q86: 0.08641975309 | R86: 0.4098360656 | W86: 5 | X86: 5 | Y86: 6 | Z86: 4 | AA86: 14 | AB86: 5 | AC86: 7 | AD86: 4 | AE86: 7 | AF86: 6 | AG86: 6 | AJ86: 5 | AK86: 7 | AL86: 6 | AM86: 0 | AN86: 6 | AO86: 11 | AP86: 4 | AQ86: 5 | AR86: 14 | AS86: 2 | AT86: 2
Q87: 0.006172839506 | R87: 0.09836065574 | W87: 1 | X87: 3 | Y87: 3 | Z87: 9 | AA87: 3 | AB87: 0 | AC87: 3 | AD87: 6 | AE87: 9 | AF87: 1 | AG87: 13 | AJ87: 4 | AK87: 6 | AL87: 3 | AM87: 2 | AN87: 8 | AO87: 5 | AP87: 6 | AQ87: 5 | AR87: 3 | AS87: 1 | AT87: 9
Q88: 0 | R88: 0 | W88: 3 | X88: 4 | Y88: 1 | Z88: 8 | AA88: 0 | AB88: 0 | AC88: 5 | AD88: 8 | AE88: 5 | AF88: 0 | AG88: 2 | AJ88: 4 | AK88: 4 | AL88: 0 | AM88: 9 | AN88: 5 | AO88: 3 | AP88: 5 | AQ88: 6 | AR88: 1 | AS88: 0 | AT88: 8
E89: Rate of Return on Farm Assets | Q89: 0 | R89: 0 | W89: 1 | X89: 1 | Y89: 3 | Z89: 2 | AA89: 0 | AB89: 0 | AC89: 1 | AD89: 3 | AE89: 1 | AF89: 0 | AG89: 0 | AJ89: 0 | AK89: 2 | AL89: 2 | AM89: 9 | AN89: 2 | AO89: 0 | AP89: 1 | AQ89: 1 | AR89: 0 | AS89: 0 | AT89: 3
F90: =U1 -> 2016 | G90: 10-Year | W90: 0 | X90: 1 | Y90: 1 | Z90: 0 | AA90: 0 | AB90: 0 | AC90: 0 | AD90: 3 | AE90: 0 | AF90: 1 | AG90: 0 | AJ90: 1 | AK90: 0 | AL90: 1 | AM90: 2 | AN90: 0 | AO90: 0 | AP90: 2 | AQ90: 0 | AR90: 0 | AS90: 0 | AT90: 0
E91: -0.1 | F91: =Q101 -> 0.08024691358 | G91: =R101 -> 0 | Q91: =Q101 -> 0.08024691358 | R91: =R101 -> 0 | W91: 0 | X91: 0 | Y91: 2 | Z91: 0 | AA91: 0 | AB91: 0 | AC91: 1 | AD91: 1 | AE91: 0 | AF91: 1 | AG91: 0 | AJ91: 3 | AK91: 2 | AL91: 0 | AM91: 0 | AN91: 0 | AO91: 0 | AP91: 1 | AQ91: 0 | AR91: 0 | AS91: 0 | AT91: 0
E92: -0.06 | F92: =Q102 -> 0.09259259259 | G92: =R102 -> 0.008196721311 | Q92: =Q91+Q102 -> 0.1728395062 | R92: =R91+R102 -> 0.008196721311 | W92: 5 | X92: 1 | Z92: 0 | AA92: 0 | AB92: 0 | AC92: 2 | AG92: 0 | AJ92: 4 | AK92: 0 | AM92: 0 | AN92: 0 | AO92: 0 | AP92: 2 | AT92: 0
E93: -0.02 | F93: 0.2777777778 | G93: 0.06557377049 | Q93: 0.450617284 | R93: 0.0737704918 | S93: Your Farm Line-Return on Assets | V93: Count | W93: 25 | X93: 25 | Y93: 25 | Z93: 25 | AA93: 25 | AB93: 25 | AC93: 25 | AD93: 25 | AE93: 25 | AF93: 25 | AG93: 25 | AI93: Count | AJ93: 22 | AK93: 22 | AL93: 22 | AM93: 22 | AN93: 22 | AO93: 22 | AP93: 22 | AQ93: 22 | AR93: 22 | AS93: 22 | AT93: 22
E94: 0.02 | F94: 0.4012345679 | G94: 0.262295082 | Q94: 0.8518518519 | R94: 0.3360655738 | S94: X's | T94: =IF(B26>0.24,0.24,B26) -> -0.004998398711 | U94: =T94 -> -0.004998398711 | V94: Average | W94: 1.588609329 | X94: 0.2807154377 | Y94: 0.2639426796 | Z94: -0.03734013379 | AA94: -0.006489346955 | AB94: -0.02289316674 | AC94: 0.1737901367 | AD94: 0.853584758 | AE94: 0.09764220346 | AF94: 0.05423187893 | AG94: -0.005458840385 | AI94: Average | AJ94: 2.338074909 | AK94: 0.4804957945 | AL94: 0.2642245287 | AM94: 0.1542776342 | AN94: 0.03734048171 | AO94: 0.03518697443 | AP94: 0.2420343163 | AQ94: 0.7240220862 | AR94: 0.0803087169 | AS94: 0.04251768021 | AT94: 0.1531515167
E95: 0.06 | F95: 0.1049382716 | G95: 0.3360655738 | Q95: 0.9567901235 | R95: 0.6721311475 | S95: Y's | T95: 0 | U95: 1 | V95: Non-ratio average | X95: 352646.3499 | AG95: -6857.6212 | AI95: Non-ratio average | AK95: 660119.7501 | AT95: 210404.2159
E96: 0.1 | F96: 0.01851851852 | G96: 0.2213114754 | Q96: 0.975308642 | R96: 0.893442623 | S96: =IF(B26=F102,U1 &" Average","Your Farm") -> 2016 Average
E97: 0.14 | F97: 0.01851851852 | G97: 0.05737704918 | Q97: 0.9938271605 | R97: 0.9508196721 | W97: All Farms
E98: 0.18 | F98: 0 | G98: 0.02459016393 | Q98: 0.9938271605 | R98: 0.9754098361 | W98: Current Ratio | X98: Working Capital Ratio | Y98: Debt to Asset Ratio | Z98: Operating Profit Margin | AA98: ROA | AB98: ROE | AC98: Asset Turnover | AD98: Operating Expense Ratio | AE98: Depr Expense Ratio | AF98: Interest Expense Ratio | AG98: NFI Ratio | AJ98: Current Ratio | AK98: Working Capital Ratio | AL98: Debt to Asset Ratio | AM98: Operating Profit Margin | AN98: ROA | AO98: ROE | AP98: Asset Turnover | AQ98: Operating Expense Ratio | AR98: Depr Expense Ratio | AS98: Interest Expense Ratio | AT98: NFI Ratio
E99: 0.22 | F99: 0 | G99: 0.01639344262 | Q99: 0.9938271605 | R99: 0.9918032787 | W99: 0 | X99: 8 | Y99: 10 | Z99: 9 | AA99: 13 | AB99: 35 | AC99: 0 | AD99: 0 | AE99: 0 | AF99: 16 | AG99: 5 | AJ99: 1 | AK99: 2 | AL99: 1 | AM99: 0 | AN99: 0 | AO99: 5 | AP99: 0 | AQ99: 1 | AR99: 0 | AS99: 1 | AT99: 0
E100: More | F100: 0.006172839506 | G100: 0.008196721311 | Q100: 1 | R100: 1 | W100: 15 | X100: 15 | Y100: 45 | Z100: 4 | AA100: 15 | AB100: 27 | AC100: 7 | AD100: 0 | AE100: 7 | AF100: 53 | AG100: 7 | AJ100: 3 | AK100: 3 | AL100: 33 | AM100: 0 | AN100: 1 | AO100: 6 | AP100: 0 | AQ100: 2 | AR100: 6 | AS100: 58 | AT100: 0
E101: Count | F101: =F80 -> 162 | G101: =G80 -> 122 | Q101: =IF($T$6=$W$1,AA3/$F$101,IF($T$6=$W$17,AA19/$F$101,IF($T$6=$W$33,AA35/$F$101,IF($T$6=$W$49,AA51/$F$101,IF($T$6=$W$65,AA67/$F$101,IF($T$6=$W$81,AA83/$F$101,IF($T$6=$W$97,AA99/$F$101,IF($T$6=$W$113,AA115/$F$101,IF($T$6=$W$129,AA131/$F$101,IF($T$6=$W$145,AA147/$F$101,IF($T$6=$W$161,AA163/$F$101,"N/A"))))))))))) -> 0.08024691358 | R101: =IF($T$6=$W$1,AN3/$G$38,IF($T$6=$W$17,AN19/$G$38,IF($T$6=$W$33,AN35/$G$38,IF($T$6=$W$49,AN51/$G$38,IF($T$6=$W$65,AN67/$G$38,IF($T$6=$W$81,AN83/$G$38,IF($T$6=$W$97,AN99/$G$38,IF($T$6=$W$113,AN115/$G$38,IF($T$6=$W$129,AN131/$G$38,IF($T$6=$W$145,AN147/$G$38,IF($T$6=$W$161,AN163/$G$38,"N/A"))))))))))) -> 0 | W101: 39 | X101: 31 | Y101: 20 | Z101: 15 | AA101: 45 | AB101: 59 | AC101: 39 | AD101: 8 | AE101: 26 | AF101: 41 | AG101: 24 | AJ101: 6 | AK101: 4 | AL101: 28 | AM101: 0 | AN101: 8 | AO101: 14 | AP101: 3 | AQ101: 28 | AR101: 35 | AS101: 41 | AT101: 0
E102: Average | F102: =IF($T$6=$W$1,$AA$14,IF($T$6=$W$17,$AA$30,IF($T$6=$W$33,$AA$46,IF($T$6=$W$49,$AA$62,IF($T$6=$W$65,$AA$78,IF($T$6=$W$81,$AA$94,IF($T$6=$W$97,$AA$110,IF($T$6=$W$113,$AA$126,IF($T$6=$W$129,$AA$142,IF($T$6=$W$145,$AA$158,IF($T$6=$W$161,AA174,"N/A"))))))))))) -> -0.004998398711 | G102: =IF($T$6=$W$1,$AN$14,IF($T$6=$W$17,$AN$30,IF($T$6=$W$33,$AN$46,IF($T$6=$W$49,$AN$62,IF($T$6=$W$65,$AN$78,IF($T$6=$W$81,$AN$94,IF($T$6=$W$97,$AN$110,IF($T$6=$W$113,$AN$126,IF($T$6=$W$129,$AN$142,IF($T$6=$W$145,$AN$158,IF($T$6=$W$161,$AN$174,"N/A"))))))))))) -> 0.05176469655 | Q102: 0.09259259259 | R102: 0.008196721311 | W102: 22 | X102: 24 | Y102: 22 | Z102: 38 | AA102: 65 | AB102: 31 | AC102: 41 | AD102: 19 | AE102: 32 | AF102: 25 | AG102: 38 | AJ102: 19 | AK102: 26 | AL102: 18 | AM102: 0 | AN102: 32 | AO102: 45 | AP102: 24 | AQ102: 41 | AR102: 40 | AS102: 14 | AT102: 4
Q103: 0.2777777778 | R103: 0.06557377049 | W103: 10 | X103: 20 | Y103: 17 | Z103: 45 | AA103: 17 | AB103: 3 | AC103: 29 | AD103: 43 | AE103: 34 | AF103: 10 | AG103: 61 | AJ103: 15 | AK103: 26 | AL103: 13 | AM103: 13 | AN103: 41 | AO103: 30 | AP103: 19 | AQ103: 36 | AR103: 27 | AS103: 5 | AT103: 36
Q104: 0.4012345679 | R104: 0.262295082 | W104: 17 | X104: 20 | Y104: 12 | Z104: 36 | AA104: 3 | AB104: 1 | AC104: 16 | AD104: 36 | AE104: 28 | AF104: 5 | AG104: 21 | AJ104: 10 | AK104: 21 | AL104: 13 | AM104: 47 | AN104: 27 | AO104: 13 | AP104: 25 | AQ104: 12 | AR104: 8 | AS104: 3 | AT104: 52
Q105: 0.1049382716 | R105: 0.3360655738 | W105: 4 | X105: 14 | Y105: 11 | Z105: 14 | AA105: 3 | AB105: 1 | AC105: 6 | AD105: 28 | AE105: 16 | AF105: 5 | AG105: 6 | AJ105: 3 | AK105: 17 | AL105: 6 | AM105: 50 | AN105: 7 | AO105: 4 | AP105: 17 | AQ105: 2 | AR105: 5 | AS105: 0 | AT105: 29
F106: =IF(B26=F102,"","Your Farm") ->  | G106: =IF(B26=F102,"",B26) ->  | Q106: 0.01851851852 | R106: 0.2213114754 | W106: 1 | X106: 10 | Y106: 5 | Z106: 1 | AA106: 0 | AB106: 1 | AC106: 4 | AD106: 15 | AE106: 9 | AF106: 3 | AG106: 0 | AJ106: 5 | AK106: 11 | AL106: 5 | AM106: 12 | AN106: 3 | AO106: 2 | AP106: 13 | AQ106: 0 | AR106: 1 | AS106: 0 | AT106: 1
Q107: 0.01851851852 | R107: 0.05737704918 | W107: 2 | X107: 8 | Y107: 20 | Z107: 0 | AA107: 0 | AB107: 1 | AC107: 5 | AD107: 13 | AE107: 10 | AF107: 4 | AG107: 0 | AJ107: 8 | AK107: 7 | AL107: 5 | AM107: 0 | AN107: 2 | AO107: 1 | AP107: 7 | AQ107: 0 | AR107: 0 | AS107: 0 | AT107: 0
Q108: 0 | R108: 0.02459016393 | W108: 52 | X108: 12 | Z108: 0 | AA108: 1 | AB108: 3 | AC108: 15 | AG108: 0 | AJ108: 52 | AK108: 5 | AM108: 0 | AN108: 1 | AO108: 2 | AP108: 14 | AT108: 0
Q109: 0 | R109: 0.01639344262 | V109: Count | W109: 162 | X109: 162 | Y109: 162 | Z109: 162 | AA109: 162 | AB109: 162 | AC109: 162 | AD109: 162 | AE109: 162 | AF109: 162 | AG109: 162 | AI109: Count | AJ109: 122 | AK109: 122 | AL109: 122 | AM109: 122 | AN109: 122 | AO109: 122 | AP109: 122 | AQ109: 122 | AR109: 122 | AS109: 122 | AT109: 122
E110: Rate of Return on Farm Equity | Q110: 0.006172839506 | R110: 0.008196721311 | V110: Average | W110: 1.934137595 | X110: 0.4194362224 | Y110: 0.2480371791 | Z110: -0.02660606138 | AA110: -0.004998398711 | AB110: -0.01900246117 | AC110: 0.1878669165 | AD110: 0.8358662139 | AE110: 0.1061734113 | AF110: 0.04896237067 | AG110: 0.008998004103 | AI110: Average | AJ110: 2.86601162 | AK110: 0.5723619295 | AL110: 0.2423692819 | AM110: 0.1861611893 | AN110: 0.05176469655 | AO110: 0.05346293468 | AP110: 0.2780638475 | AQ110: 0.6828097136 | AR110: 0.07943370533 | AS110: 0.03723978163 | AT110: 0.2005167994
F111: =U1 -> 2016 | G111: 10-Year | V111: Non-ratio average | X111: 326259.0029 | AG111: 6999.109019 | AI111: Non-ratio average | AK111: 504292.2022 | AT111: 176669.7838
E112: -0.1 | F112: =Q122 -> 0.2160493827 | G112: =R122 -> 0.04098360656 | Q112: =Q122 -> 0.2160493827 | R112: =R122 -> 0.04098360656
E113: -0.05 | F113: =Q123 -> 0.1666666667 | G113: =R123 -> 0.04918032787 | Q113: =Q112+Q123 -> 0.3827160494 | R113: =R112+R123 -> 0.09016393443 | W113: Blank
E114: 0 | F114: 0.3641975309 | G114: 0.1147540984 | Q114: 0.7469135802 | R114: 0.2049180328 | W114: Current Ratio | X114: Working Capital Ratio | Y114: Debt to Asset Ratio | Z114: Operating Profit Margin | AA114: ROA | AB114: ROE | AC114: Asset Turnover | AD114: Operating Expense Ratio | AE114: Depr Expense Ratio | AF114: Interest Expense Ratio | AG114: NFI Ratio | AJ114: Current Ratio | AK114: Working Capital Ratio | AL114: Debt to Asset Ratio | AM114: Operating Profit Margin | AN114: ROA | AO114: ROE | AP114: Asset Turnover | AQ114: Operating Expense Ratio | AR114: Depr Expense Ratio | AS114: Interest Expense Ratio | AT114: NFI Ratio
E115: 0.05 | F115: 0.1913580247 | G115: 0.368852459 | Q115: 0.9382716049 | R115: 0.5737704918 | S115: Your Farm Line-Return on Equity
E116: 0.1 | F116: 0.01851851852 | G116: 0.2459016393 | Q116: 0.9567901235 | R116: 0.8196721311 | S116: X's | T116: =IF(B27>0.35,0.35,B27) -> -0.01900246117 | U116: =T116 -> -0.01900246117
E117: 0.15 | F117: 0.006172839506 | G117: 0.106557377 | Q117: 0.962962963 | R117: 0.9262295082 | S117: Y's | T117: 0 | U117: 1
E118: 0.2 | F118: 0.006172839506 | G118: 0.03278688525 | Q118: 0.9691358025 | R118: 0.9590163934 | S118: =IF(B27=F123,U1 &" Average","Your Farm") -> 2016 Average
E119: 0.25 | F119: 0.006172839506 | G119: 0.01639344262 | Q119: 0.975308642 | R119: 0.9754098361
E120: 0.3 | F120: 0.006172839506 | G120: 0.008196721311 | Q120: 0.9814814815 | R120: 0.9836065574
E121: More | F121: 0.01851851852 | G121: 0.01639344262 | Q121: 1 | R121: 1
E122: Count | F122: =F101 -> 162 | G122: =G101 -> 122 | Q122: =IF($T$6=$W$1,AB3/$F$122,IF($T$6=$W$17,AB19/$F$122,IF($T$6=$W$33,AB35/$F$122,IF($T$6=$W$49,AB51/$F$122,IF($T$6=$W$65,AB67/$F$122,IF($T$6=$W$81,AB83/$F$122,IF($T$6=$W$97,AB99/$F$122,IF($T$6=$W$113,AB115/$F$122,IF($T$6=$W$129,AB131/$F$122,IF($T$6=$W$145,AB147/$F$122,IF($T$6=$W$161,AB163/$F$122,"N/A"))))))))))) -> 0.2160493827 | R122: =IF($T$6=$W$1,AO3/$G$38,IF($T$6=$W$17,AO19/$G$38,IF($T$6=$W$33,AO35/$G$38,IF($T$6=$W$49,AO51/$G$38,IF($T$6=$W$65,AO67/$G$38,IF($T$6=$W$81,AO83/$G$38,IF($T$6=$W$97,AO99/$G$38,IF($T$6=$W$113,AO115/$G$38,IF($T$6=$W$129,AO131/$G$38,IF($T$6=$W$145,AO147/$G$38,IF($T$6=$W$161,AO163/$G$38,"N/A"))))))))))) -> 0.04098360656
E123: Average | F123: =IF($T$6=$W$1,$AB$14,IF($T$6=$W$17,$AB$30,IF($T$6=$W$33,$AB$46,IF($T$6=$W$49,$AB$62,IF($T$6=$W$65,$AB$78,IF($T$6=$W$81,$AB$94,IF($T$6=$W$97,$AB$110,IF($T$6=$W$113,$AB$126,IF($T$6=$W$129,$AB$142,IF($T$6=$W$145,$AB$158,IF($T$6=W161,AB174,"N/A"))))))))))) -> -0.01900246117 | G123: =IF($T$6=$W$1,$AO$14,IF($T$6=$W$17,$AO$30,IF($T$6=$W$33,$AO$46,IF($T$6=$W$49,$AO$62,IF($T$6=$W$65,$AO$78,IF($T$6=$W$81,$AO$94,IF($T$6=$W$97,$AO$110,IF($T$6=$W$113,$AO$126,IF($T$6=$W$129,$AO$142,IF($T$6=$W$145,$AO$158,IF($T$6=$W$161,$AO$174,"N/A"))))))))))) -> 0.05346293468 | Q123: 0.1666666667 | R123: 0.04918032787
Q124: 0.3641975309 | R124: 0.1147540984
Q125: 0.1913580247 | R125: 0.368852459 | V125: Count | AI125: Count
Q126: 0.01851851852 | R126: 0.2459016393 | V126: Average | AI126: Average
F127: =IF(B27=F123,"","Your Farm") ->  | G127: =IF(B27=F123,"",B27) ->  | Q127: 0.006172839506 | R127: 0.106557377 | V127: Non-ratio average | AI127: Non-ratio average
Q128: 0.006172839506 | R128: 0.03278688525
Q129: 0.006172839506 | R129: 0.01639344262 | W129: Blank
Q130: 0.006172839506 | R130: 0.008196721311 | W130: Current Ratio | X130: Working Capital Ratio | Y130: Debt to Asset Ratio | Z130: Operating Profit Margin | AA130: ROA | AB130: ROE | AC130: Asset Turnover | AD130: Operating Expense Ratio | AE130: Depr Expense Ratio | AF130: Interest Expense Ratio | AG130: NFI Ratio | AJ130: Current Ratio | AK130: Working Capital Ratio | AL130: Debt to Asset Ratio | AM130: Operating Profit Margin | AN130: ROA | AO130: ROE | AP130: Asset Turnover | AQ130: Operating Expense Ratio | AR130: Depr Expense Ratio | AS130: Interest Expense Ratio | AT130: NFI Ratio
E131: Asset Turnover Rate | Q131: 0.01851851852 | R131: 0.01639344262
F132: =U1 -> 2016 | G132: 10-Year
E133: 0 | F133: =Q143 -> 0 | G133: =R143 -> 0 | Q133: =Q143 -> 0 | R133: =R143 -> 0
E134: 0.1 | F134: =Q144 -> 0.04320987654 | G134: =R144 -> 0 | Q134: =Q133+Q144 -> 0.04320987654 | R134: =R133+R144 -> 0
E135: 0.2 | F135: 0.2407407407 | G135: 0.02459016393 | Q135: 0.2839506173 | R135: 0.02459016393
E136: 0.3 | F136: 0.2530864198 | G136: 0.1967213115 | Q136: 0.537037037 | R136: 0.2213114754
E137: 0.4 | F137: 0.1790123457 | G137: 0.1557377049 | Q137: 0.7160493827 | R137: 0.3770491803 | S137: Your Farm Line-Asset Turnover Rate
E138: 0.5 | F138: 0.0987654321 | G138: 0.2049180328 | Q138: 0.8148148148 | R138: 0.5819672131 | S138: X's | T138: =IF(B28>0.9,0.9,B28) -> 0.1878669165 | U138: =T138 -> 0.1878669165
E139: 0.6 | F139: 0.03703703704 | G139: 0.1393442623 | Q139: 0.8518518519 | R139: 0.7213114754 | S139: Y's | T139: 0 | U139: 1
E140: 0.7 | F140: 0.02469135802 | G140: 0.106557377 | Q140: 0.8765432099 | R140: 0.8278688525 | S140: =IF(B28=F144,U1 &" Average","Your Farm") -> 2016 Average
E141: 0.8 | F141: 0.03086419753 | G141: 0.05737704918 | Q141: 0.9074074074 | R141: 0.8852459016 | V141: Count | AI141: Count
E142: More | F142: 0.09259259259 | G142: =R152 -> 0.1147540984 | Q142: 1 | R142: 1 | V142: Average | AI142: Average
E143: Count | F143: =F122 -> 162 | G143: =G122 -> 122 | Q143: =IF($T$6=$W$1,AC3/$F$143,IF($T$6=$W$17,AC19/$F$143,IF($T$6=$W$33,AC35/$F$143,IF($T$6=$W$49,AC51/$F$143,IF($T$6=$W$65,AC67/$F$143,IF($T$6=$W$81,AC83/$F$143,IF($T$6=$W$97,AC99/$F$143,IF($T$6=$W$113,AC115/$F$143,IF($T$6=$W$129,AC131/$F$143,IF($T$6=$W$145,AC147/$F$143,IF($T$6=$W$161,AC163/$F$143,"N/A"))))))))))) -> 0 | R143: =IF($T$6=$W$1,AP3/$G$38,IF($T$6=$W$17,AP19/$G$38,IF($T$6=$W$33,AP35/$G$38,IF($T$6=$W$49,AP51/$G$38,IF($T$6=$W$65,AP67/$G$38,IF($T$6=$W$81,AP83/$G$38,IF($T$6=$W$97,AP99/$G$38,IF($T$6=$W$113,AP115/$G$38,IF($T$6=$W$129,AP131/$G$38,IF($T$6=$W$145,AP147/$G$38,IF($T$6=$W$161,AP163/$G$38,"N/A"))))))))))) -> 0 | V143: Non-ratio average | AI143: Non-ratio average
E144: Average | F144: =IF($T$6=$W$1,$AC$14,IF($T$6=$W$17,$AC$30,IF($T$6=$W$33,$AC$46,IF($T$6=$W$49,$AC$62,IF($T$6=$W$65,$AC$78,IF($T$6=$W$81,$AC$94,IF($T$6=$W$97,$AC$110,IF($T$6=$W$113,$AC$126,IF($T$6=$W$129,$AC$142,IF($T$6=$W$145,$AC$158,IF($T$6=W161,AC174,"N/A"))))))))))) -> 0.1878669165 | G144: =IF($T$6=$W$1,$AP$14,IF($T$6=$W$17,$AP$30,IF($T$6=$W$33,$AP$46,IF($T$6=$W$49,$AP$62,IF($T$6=$W$65,$AP$78,IF($T$6=$W$81,$AP$94,IF($T$6=$W$97,$AP$110,IF($T$6=$W$113,$AP$126,IF($T$6=$W$129,$AP$142,IF($T$6=$W$145,$AP$158,IF($T$6=$W$161,$AP$174,"N/A"))))))))))) -> 0.2780638475 | Q144: 0.04320987654 | R144: 0
Q145: 0.2407407407 | R145: 0.02459016393 | W145: Blank
Q146: 0.2530864198 | R146: 0.1967213115 | W146: Current Ratio | X146: Working Capital Ratio | Y146: Debt to Asset Ratio | Z146: Operating Profit Margin | AA146: ROA | AB146: ROE | AC146: Asset Turnover | AD146: Operating Expense Ratio | AE146: Depr Expense Ratio | AF146: Interest Expense Ratio | AG146: NFI Ratio | AJ146: Current Ratio | AK146: Working Capital Ratio | AL146: Debt to Asset Ratio | AM146: Operating Profit Margin | AN146: ROA | AO146: ROE | AP146: Asset Turnover | AQ146: Operating Expense Ratio | AR146: Depr Expense Ratio | AS146: Interest Expense Ratio | AT146: NFI Ratio
Q147: 0.1790123457 | R147: 0.1557377049
F148: =IF(B28=F144,"","Your Farm") ->  | G148: =IF(B28=F144,"",B28) ->  | Q148: 0.0987654321 | R148: 0.2049180328
Q149: 0.03703703704 | R149: 0.1393442623
Q150: 0.02469135802 | R150: 0.106557377
Q151: 0.03086419753 | R151: 0.05737704918
E152: Operating Expense Ratio | Q152: 0.09259259259 | R152: 0.1147540984
F153: =U1 -> 2016 | G153: 10-Year
E154: 0.4 | F154: =Q163 -> 0 | G154: =R163 -> 0.008196721311 | Q154: =Q163 -> 0 | R154: =R163 -> 0.008196721311
E155: 0.5 | F155: =Q164 -> 0 | G155: =R164 -> 0.01639344262 | Q155: =Q154+Q164 -> 0 | R155: 0.02459016393
E156: 0.6 | F156: 0.04938271605 | G156: 0.2295081967 | Q156: 0.04938271605 | R156: 0.2540983607
E157: 0.7 | F157: 0.1172839506 | G157: 0.3360655738 | Q157: 0.1666666667 | R157: 0.5901639344 | V157: Count | AI157: Count
E158: 0.8 | F158: 0.2654320988 | G158: 0.2950819672 | Q158: 0.4320987654 | R158: 0.8852459016 | V158: Average | AI158: Average
E159: 0.9 | F159: 0.2222222222 | G159: 0.09836065574 | Q159: 0.6543209877 | R159: 0.9836065574 | S159: Your Farm Line-Operating Expense Ratio | V159: Non-ratio average | AI159: Non-ratio average
E160: 1 | F160: 0.1728395062 | G160: 0.01639344262 | Q160: 0.8271604938 | R160: 1 | S160: X's | T160: =IF(B29>1.2,1.2,B29) -> 0.8358662139 | U160: =T160 -> 0.8358662139
E161: 1.1 | F161: 0.09259259259 | G161: 0 | Q161: 0.9197530864 | R161: 1 | S161: Y's | T161: 0 | U161: 1 | W161: Blank
E162: More | F162: 0.08024691358 | G162: 0 | Q162: 1 | R162: 1 | S162: =IF(B29=F164,U1 &" Average","Your Farm") -> 2016 Average | W162: Current Ratio | X162: Working Capital Ratio | Y162: Debt to Asset Ratio | Z162: Operating Profit Margin | AA162: ROA | AB162: ROE | AC162: Asset Turnover | AD162: Operating Expense Ratio | AE162: Depr Expense Ratio | AF162: Interest Expense Ratio | AG162: NFI Ratio | AJ162: Current Ratio | AK162: Working Capital Ratio | AL162: Debt to Asset Ratio | AM162: Operating Profit Margin | AN162: ROA | AO162: ROE | AP162: Asset Turnover | AQ162: Operating Expense Ratio | AR162: Depr Expense Ratio | AS162: Interest Expense Ratio | AT162: NFI Ratio
E163: Count | F163: =F143 -> 162 | G163: =G143 -> 122 | Q163: =IF($T$6=$W$1,AD3/$F$143,IF($T$6=$W$17,AD19/$F$143,IF($T$6=$W$33,AD35/$F$143,IF($T$6=$W$49,AD51/$F$143,IF($T$6=$W$65,AD67/$F$143,IF($T$6=$W$81,AD83/$F$143,IF($T$6=$W$97,AD99/$F$143,IF($T$6=$W$113,AD115/$F$143,IF($T$6=$W$129,AD131/$F$143,IF($T$6=$W$145,AD147/$F$143,IF($T$6=$W$161,AD163/$F$143,"N/A"))))))))))) -> 0 | R163: =IF($T$6=$W$1,AQ3/$G$38,IF($T$6=$W$17,AQ19/$G$38,IF($T$6=$W$33,AQ35/$G$38,IF($T$6=$W$49,AQ51/$G$38,IF($T$6=$W$65,AQ67/$G$38,IF($T$6=$W$81,AQ83/$G$38,IF($T$6=$W$97,AQ99/$G$38,IF($T$6=$W$113,AQ115/$G$38,IF($T$6=$W$129,AQ131/$G$38,IF($T$6=$W$145,AQ147/$G$38,IF($T$6=$W$161,AQ163/$G$38,"N/A"))))))))))) -> 0.008196721311
E164: Average | F164: =IF($T$6=$W$1,$AD$14,IF($T$6=$W$17,$AD$30,IF($T$6=$W$33,$AD$46,IF($T$6=$W$49,$AD$62,IF($T$6=$W$65,$AD$78,IF($T$6=$W$81,$AD$94,IF($T$6=$W$97,$AD$110,IF($T$6=$W$113,$AD$126,IF($T$6=$W$129,$AD$142,IF($T$6=$W$145,$AD$158,IF($T$6=W161,AD174,"N/A"))))))))))) -> 0.8358662139 | G164: =IF($T$6=$W$1,$AQ$14,IF($T$6=$W$17,$AQ$30,IF($T$6=$W$33,$AQ$46,IF($T$6=$W$49,$AQ$62,IF($T$6=$W$65,$AQ$78,IF($T$6=$W$81,$AQ$94,IF($T$6=$W$97,$AQ$110,IF($T$6=$W$113,$AQ$126,IF($T$6=$W$129,$AQ$142,IF($T$6=$W$145,$AQ$158,IF($T$6=$W$161,$AQ$174,"N/A"))))))))))) -> 0.6828097136 | Q164: 0 | R164: 0.01639344262
Q165: 0.04938271605 | R165: 0.2295081967
Q166: 0.1172839506 | R166: 0.3360655738
Q167: 0.2654320988 | R167: 0.2950819672
F168: =IF(B29=F164,"","Your Farm") ->  | G168: =IF(B29=F164,"",B29) ->  | Q168: 0.2222222222 | R168: 0.09836065574
Q169: 0.1728395062 | R169: 0.01639344262
Q170: 0.09259259259 | R170: 0
Q171: 0.08024691358 | R171: 0
E173: Depreciation Expense Ratio | V173: Count | AI173: Count
F174: =U1 -> 2016 | G174: 10-Year | V174: Average | AI174: Average
E175: 0 | F175: =Q184 -> 0 | G175: =R184 -> 0 | Q175: =Q184 -> 0 | R175: =R184 -> 0 | V175: Non-ratio average | AI175: Non-ratio average
E176: 0.03 | F176: =Q185 -> 0.04320987654 | G176: =R185 -> 0.04918032787 | Q176: =Q175+Q185 -> 0.04320987654 | R176: 0.04918032787
E177: 0.06 | F177: 0.1604938272 | G177: 0.2868852459 | Q177: 0.2037037037 | R177: 0.3360655738
E178: 0.09 | F178: 0.1975308642 | G178: 0.3278688525 | Q178: 0.4012345679 | R178: 0.6639344262
E179: 0.12 | F179: 0.2098765432 | G179: 0.2213114754 | Q179: 0.6111111111 | R179: 0.8852459016
E180: 0.15 | F180: 0.1728395062 | G180: 0.06557377049 | Q180: 0.7839506173 | R180: 0.9508196721
E181: 0.18 | F181: 0.0987654321 | G181: 0.04098360656 | Q181: 0.8827160494 | R181: 0.9918032787 | S181: Your Farm Line-Depreciation Expense Ratio
E182: 0.21 | F182: 0.05555555556 | G182: 0.008196721311 | Q182: 0.9382716049 | R182: 1 | S182: X's | T182: =IF(B30>0.24,0.24,B30) -> 0.1061734113 | U182: =T182 -> 0.1061734113
E183: More | F183: 0.06172839506 | G183: 0 | Q183: 1 | R183: 1 | S183: Y's | T183: 0 | U183: 1
E184: Count | F184: =F163 -> 162 | G184: =G163 -> 122 | Q184: =IF($T$6=$W$1,AE3/$F$143,IF($T$6=$W$17,AE19/$F$143,IF($T$6=$W$33,AE35/$F$143,IF($T$6=$W$49,AE51/$F$143,IF($T$6=$W$65,AE67/$F$143,IF($T$6=$W$81,AE83/$F$143,IF($T$6=$W$97,AE99/$F$143,IF($T$6=$W$113,AE115/$F$143,IF($T$6=$W$129,AE131/$F$143,IF($T$6=$W$145,AE147/$F$143,IF($T$6=$W$161,AE163/$F$143,"N/A"))))))))))) -> 0 | R184: =IF($T$6=$W$1,AR3/$G$38,IF($T$6=$W$17,AR19/$G$38,IF($T$6=$W$33,AR35/$G$38,IF($T$6=$W$49,AR51/$G$38,IF($T$6=$W$65,AR67/$G$38,IF($T$6=$W$81,AR83/$G$38,IF($T$6=$W$97,AR99/$G$38,IF($T$6=$W$113,AR115/$G$38,IF($T$6=$W$129,AR131/$G$38,IF($T$6=$W$145,AR147/$G$38,IF($T$6=$W$161,AR163/$G$38,"N/A"))))))))))) -> 0 | S184: =IF(B30=F185,U1 &" Average","Your Farm") -> 2016 Average
E185: Average | F185: =IF($T$6=$W$1,$AE$14,IF($T$6=$W$17,$AE$30,IF($T$6=$W$33,$AE$46,IF($T$6=$W$49,$AE$62,IF($T$6=$W$65,$AE$78,IF($T$6=$W$81,$AE$94,IF($T$6=$W$97,$AE$110,IF($T$6=$W$113,$AE$126,IF($T$6=$W$129,$AE$142,IF($T$6=$W$145,$AE$158,IF($T$6=$W$161,AE174,"N/A"))))))))))) -> 0.1061734113 | G185: =IF($T$6=$W$1,$AR$14,IF($T$6=$W$17,$AR$30,IF($T$6=$W$33,$AR$46,IF($T$6=$W$49,$AR$62,IF($T$6=$W$65,$AR$78,IF($T$6=$W$81,$AR$94,IF($T$6=$W$97,$AR$110,IF($T$6=$W$113,$AR$126,IF($T$6=$W$129,$AR$142,IF($T$6=$W$145,$AR$158,IF($T$6=$W$161,$AR$174,"N/A"))))))))))) -> 0.07943370533 | Q185: 0.04320987654 | R185: 0.04918032787
Q186: 0.1604938272 | R186: 0.2868852459
Q187: 0.1975308642 | R187: 0.3278688525
Q188: 0.2098765432 | R188: 0.2213114754
F189: =IF(B30=F185,"","Your Farm") ->  | G189: =IF(B30=F185,"",B30) ->  | Q189: 0.1728395062 | R189: 0.06557377049
Q190: 0.0987654321 | R190: 0.04098360656
Q191: 0.05555555556 | R191: 0.008196721311
Q192: 0.06172839506 | R192: 0
E194: Interest Expense Ratio
F195: =U1 -> 2016 | G195: 10-Year
E196: 0 | F196: =Q205 -> 0.0987654321 | G196: =R205 -> 0.008196721311 | Q196: =Q205 -> 0.0987654321 | R196: =R205 -> 0.008196721311
E197: 0.03 | F197: =Q206 -> 0.3271604938 | G197: =R206 -> 0.4754098361 | Q197: =Q196+Q206 -> 0.4259259259 | R197: 0.4836065574
E198: 0.06 | F198: 0.2530864198 | G198: 0.3360655738 | Q198: 0.6790123457 | R198: 0.8196721311
E199: 0.09 | F199: 0.1543209877 | G199: 0.1147540984 | Q199: 0.8333333333 | R199: 0.9344262295
E200: 0.12 | F200: 0.06172839506 | G200: 0.04098360656 | Q200: 0.8950617284 | R200: 0.9754098361
E201: 0.15 | F201: 0.03086419753 | G201: 0.02459016393 | Q201: 0.9259259259 | R201: 1
E202: 0.18 | F202: 0.03086419753 | G202: 0 | Q202: 0.9567901235 | R202: 1
... 33 more rows

Sheet NorthCentral
E1: KSU FARM FINANCIAL BENCHMARKING TOOL-North Central Kansas | S1: Acres | T1: Lookup | U1: 2016 | W1: Less than 750No | AI1: 10-Year
S2: Less than 750 | T2: LT | U2: 2016 KFMA Farms | W2: Current Ratio | X2: Working Capital Ratio | Y2: Debt to Asset Ratio | Z2: Operating Profit Margin | AA2: ROA | AB2: ROE | AC2: Asset Turnover | AD2: Operating Expense Ratio | AE2: Depr Expense Ratio | AF2: Interest Expense Ratio | AG2: NFI Ratio | AJ2: Current Ratio | AK2: Working Capital Ratio | AL2: Debt to Asset Ratio | AM2: Operating Profit Margin | AN2: ROA | AO2: ROE | AP2: Asset Turnover | AQ2: Operating Expense Ratio | AR2: Depr Expense Ratio | AS2: Interest Expense Ratio | AT2: NFI Ratio
E3: Tillable Crop Acres: | G3: =B16 -> All Farms | I3: =A17 ->  | K3: =IF(B17="","",B17) ->  | L3: =A18 ->  | P3: =IF(B18="","",B18) ->  | S3: 750-1250 | T3: BTW | W3: 0 | X3: 3 | Y3: 9 | Z3: 2 | AA3: 0 | AB3: 5 | AC3: 0 | AD3: 0 | AE3: 0 | AF3: 11 | AG3: 1 | AJ3: 0 | AK3: 0 | AL3: 1 | AM3: 0 | AN3: 0 | AO3: 1 | AP3: 0 | AQ3: 1 | AR3: 0 | AS3: 0 | AT3: 0
S4: Greater than 1250 | T4: GT | W4: 2 | X4: 1 | Y4: 6 | Z4: 2 | AA4: 6 | AB4: 2 | AC4: 5 | AD4: 2 | AE4: 3 | AF4: 9 | AG4: 0 | AJ4: 0 | AK4: 1 | AL4: 5 | AM4: 0 | AN4: 0 | AO4: 2 | AP4: 0 | AQ4: 1 | AR4: 1 | AS4: 6 | AT4: 0
E5: Current Ratio | S5: All Farms | T5: All | W5: 2 | X5: 0 | Y5: 3 | Z5: 3 | AA5: 3 | AB5: 7 | AC5: 4 | AD5: 4 | AE5: 7 | AF5: 2 | AG5: 5 | AJ5: 3 | AK5: 2 | AL5: 1 | AM5: 0 | AN5: 3 | AO5: 3 | AP5: 0 | AQ5: 4 | AR5: 4 | AS5: 5 | AT5: 0
F6: =U1 -> 2016 | G6: 10-Year | S6: LTList | T6: =B16&B17&B18 -> All Farms | W6: 3 | X6: 2 | Y6: 6 | Z6: 1 | AA6: 14 | AB6: 11 | AC6: 10 | AD6: 5 | AE6: 7 | AF6: 3 | AG6: 2 | AJ6: 1 | AK6: 2 | AL6: 3 | AM6: 1 | AN6: 2 | AO6: 6 | AP6: 5 | AQ6: 3 | AR6: 5 | AS6: 2 | AT6: 0
E7: 0 | F7: =Q17 -> 0 | G7: =R17 -> 0.004424778761 | S7: Yes | W7: 1 | X7: 6 | Y7: 0 | Z7: 5 | AA7: 2 | AB7: 1 | AC7: 2 | AD7: 6 | AE7: 4 | AF7: 0 | AG7: 5 | AJ7: 1 | AK7: 2 | AL7: 1 | AM7: 3 | AN7: 8 | AO7: 1 | AP7: 3 | AQ7: 2 | AR7: 1 | AS7: 1 | AT7: 5
E8: 0.5 | F8: =Q18 -> 0.08810572687 | G8: =R18 -> 0.02212389381 | Q8: =Q7+Q18 -> 0.08810572687 | R8: =R7+R18 -> 0.02212389381 | S8: No | W8: 0 | X8: 3 | Y8: 1 | Z8: 10 | AA8: 1 | AB8: 0 | AC8: 1 | AD8: 5 | AE8: 1 | AF8: 0 | AG8: 10 | AJ8: 2 | AK8: 1 | AL8: 1 | AM8: 3 | AN8: 1 | AO8: 0 | AP8: 1 | AQ8: 2 | AR8: 3 | AS8: 0 | AT8: 4
E9: 1 | F9: 0.1189427313 | G9: 0.09292035398 | Q9: 0.2070484581 | R9: 0.1150442478 | W9: 1 | X9: 2 | Y9: 1 | Z9: 4 | AA9: 0 | AB9: 0 | AC9: 2 | AD9: 2 | AE9: 4 | AF9: 0 | AG9: 4 | AJ9: 1 | AK9: 3 | AL9: 1 | AM9: 4 | AN9: 0 | AO9: 1 | AP9: 2 | AQ9: 1 | AR9: 0 | AS9: 0 | AT9: 4
E10: 1.5 | F10: 0.1585903084 | G10: 0.1327433628 | Q10: 0.3656387665 | R10: 0.2477876106 | W10: 0 | X10: 0 | Y10: 1 | Z10: 1 | AA10: 0 | AB10: 0 | AC10: 0 | AD10: 1 | AE10: 0 | AF10: 2 | AG10: 1 | AJ10: 0 | AK10: 0 | AL10: 0 | AM10: 3 | AN10: 0 | AO10: 0 | AP10: 2 | AQ10: 0 | AR10: 0 | AS10: 0 | AT10: 1
E11: 2 | F11: 0.09691629956 | G11: 0.110619469 | Q11: 0.4625550661 | R11: 0.3584070796 | S11: BTWList | W11: 0 | X11: 3 | Y11: 1 | Z11: 0 | AA11: 0 | AB11: 0 | AC11: 0 | AD11: 3 | AE11: 2 | AF11: 1 | AG11: 0 | AJ11: 0 | AK11: 1 | AL11: 1 | AM11: 0 | AN11: 0 | AO11: 0 | AP11: 0 | AQ11: 0 | AR11: 0 | AS11: 0 | AT11: 0
E12: 2.5 | F12: 0.05726872247 | G12: 0.07522123894 | Q12: 0.5198237885 | R12: 0.4336283186 | S12: None | W12: 19 | X12: 8 | Z12: 0 | AA12: 2 | AB12: 2 | AC12: 4 | AG12: 0 | AJ12: 6 | AK12: 2 | AM12: 0 | AN12: 0 | AO12: 0 | AP12: 1 | AT12: 0
E13: 3 | F13: 0.02202643172 | G13: 0.06637168142 | Q13: 0.5418502203 | R13: 0.5 | S13: <100 | V13: Count | W13: 28 | X13: 28 | Y13: 28 | Z13: 28 | AA13: 28 | AB13: 28 | AC13: 28 | AD13: 28 | AE13: 28 | AF13: 28 | AG13: 28 | AI13: Count | AJ13: 14 | AK13: 14 | AL13: 14 | AM13: 14 | AN13: 14 | AO13: 14 | AP13: 14 | AQ13: 14 | AR13: 14 | AS13: 14 | AT13: 14
E14: 3.5 | F14: 0.02643171806 | G14: 0.05752212389 | Q14: 0.5682819383 | R14: 0.5575221239 | S14: 100+ | V14: Average | W14: 5.90491485 | X14: 1.050624976 | Y14: 0.09449418119 | Z14: -0.003794403397 | AA14: -0.0004889783958 | AB14: -0.004538780312 | AC14: 0.1288683212 | AD14: 0.7364863991 | AE14: 0.08415752726 | AF14: 0.02776440322 | AG14: 0.1515916704 | AI14: Average | AJ14: 4.134700634 | AK14: 0.6939847265 | AL14: 0.1426324964 | AM14: 0.1463705718 | AN14: 0.02938651591 | AO14: 0.0260212953 | AP14: 0.2007679246 | AQ14: 0.6323470662 | AR14: 0.08274250373 | AS14: 0.03456042694 | AT14: 0.2503500032
A15: BENCHMARK CATEGORY | E15: 4 | F15: 0.01762114537 | G15: 0.01769911504 | Q15: 0.5859030837 | R15: 0.5752212389 | V15: Non-ratio average | X15: 157901.3732 | AG15: 22783.13714 | AI15: Non-ratio average | AK15: 123371.8209 | AT15: 44505.49786
A16: Tillable Crop Acres: | B16: All Farms | E16: More | F16: 0.4140969163 | G16: 0.4203539823 | Q16: 1 | R16: 0.9955752212 | S16: GTList
A17: =IF(B16="Less than 750", "Beef Cows:", IF(B16="All Farms","", "Head of Beef Cows:")) ->  | E17: Count | F17: =IF($T$6=$W$1,$W$13,IF($T$6=$W$17,$W$29,IF($T$6=$W$33,$W$45,IF($T$6=$W$49,$W$61,IF($T$6=$W$65,$W$77,IF($T$6=$W$81,$W$93,IF($T$6=$W$97,$W$109,IF($T$6=$W$113,$W$125,IF($T$6=$W$129,$W$141,IF($T$6=$W$145,$W$157,IF(T6=$W$161,$W$173,"N/A"))))))))))) -> 227 | G17: =IF($T$6=$W$1,$AJ$13,IF($T$6=$W$17,$AJ$29,IF($T$6=$W$33,$AJ$45,IF($T$6=$W$49,$AJ$61,IF($T$6=$W$65,$AJ$77,IF($T$6=$W$81,$AJ$93,IF($T$6=$W$97,$AJ$109,IF($T$6=$W$113,$AJ$125,IF($T$6=$W$129,$AJ$141,IF($T$6=$W$145,$AJ$157, IF($T$6=$W$161,$AJ$173,"N/A"))))))))))) -> 226 | Q17: =IF($T$6=$W$1,W3/$W$13,IF($T$6=$W$17,W19/$W$29,IF($T$6=$W$33,W35/$W$45,IF($T$6=$W$49,W51/$W$61,IF($T$6=$W$65,W67/$W$77,IF($T$6=$W$81,W83/$W$93,IF($T$6=$W$97,W99/$W$109,IF($T$6=$W$113,W115/$W$125,IF($T$6=$W$129,W131/$W$141,IF($T$6=$W$145,W147/$W$157,IF($T$6=$W$161,W163/$W$173,"N/A"))))))))))) -> 0 | R17: =IF($T$6=$W$1,AJ3/$AJ$13,IF($T$6=$W$17,AJ19/$AJ$29,IF($T$6=$W$33,AJ35/$AJ$45,IF($T$6=$W$49,AJ51/$AJ$61,IF($T$6=$W$65,AJ67/$AJ$77,IF($T$6=$W$81,AJ83/$AJ$93,IF($T$6=$W$97,AJ99/$AJ$109,IF($T$6=$W$113,AJ115/$AJ$125,IF($T$6=$W$129,AJ131/$AJ$141,IF($T$6=$W$145,AJ147/$AJ$157,IF($T$6=$W$161,AJ163/$AJ$173,"N/A"))))))))))) -> 0.004424778761 | S17: None | W17: Less than 750Yes
A18: =IF(B16="Less than 750","",IF(B17="None", "Backgrounding or Finishing:","")) ->  | E18: Average | F18: =IF($T$6=$W$1,$W$14,IF($T$6=$W$17,$W$30,IF($T$6=$W$33,$W$46,IF($T$6=$W$49,$W$62,IF($T$6=$W$65,$W$78,IF($T$6=$W$81,$W$94,IF($T$6=$W$97,$W$110,IF($T$6=$W$113,$W$126,IF($T$6=$W$129,$W$142,IF($T$6=$W$145,$W$158, IF($T$6=$W$161,$W$174,"N/A"))))))))))) -> 1.925755339 | G18: =IF($T$6=$W$1,$AJ$14,IF($T$6=$W$17,$AJ$30,IF($T$6=$W$33,$AJ$46,IF($T$6=$W$49,$AJ$62,IF($T$6=$W$65,$AJ$78,IF($T$6=$W$81,$AJ$94,IF($T$6=$W$97,$AJ$110,IF($T$6=$W$113,$AJ$126,IF($T$6=$W$129,$AJ$142,IF($T$6=$W$145,$AJ$158, IF($T$6=$W$161,$AJ$174,"N/A"))))))))))) -> 2.433506287 | Q18: 0.08810572687 | R18: 0.02212389381 | S18: <100 | W18: Current Ratio | X18: Working Capital Ratio | Y18: Debt to Asset Ratio | Z18: Operating Profit Margin | AA18: ROA | AB18: ROE | AC18: Asset Turnover | AD18: Operating Expense Ratio | AE18: Depr Expense Ratio | AF18: Interest Expense Ratio | AG18: NFI Ratio | AJ18: Current Ratio | AK18: Working Capital Ratio | AL18: Debt to Asset Ratio | AM18: Operating Profit Margin | AN18: ROA | AO18: ROE | AP18: Asset Turnover | AQ18: Operating Expense Ratio | AR18: Depr Expense Ratio | AS18: Interest Expense Ratio | AT18: NFI Ratio
Q19: 0.1189427313 | R19: 0.09292035398 | S19: 100+ | W19: 0 | X19: 4 | Y19: 3 | Z19: 7 | AA19: 2 | AB19: 5 | AC19: 0 | AD19: 1 | AE19: 0 | AF19: 3 | AG19: 5 | AJ19: 0 | AK19: 2 | AL19: 2 | AM19: 0 | AN19: 3 | AO19: 7 | AP19: 0 | AQ19: 1 | AR19: 0 | AS19: 1 | AT19: 0
F20: =IF(B22=F18,"","Your Farm") ->  | G20: =IF(B22=F18,"",B22) ->  | Q20: 0.1585903084 | R20: 0.1327433628 | W20: 4 | X20: 0 | Y20: 7 | Z20: 1 | AA20: 6 | AB20: 7 | AC20: 3 | AD20: 1 | AE20: 5 | AF20: 4 | AG20: 2 | AJ20: 1 | AK20: 0 | AL20: 13 | AM20: 0 | AN20: 2 | AO20: 2 | AP20: 0 | AQ20: 2 | AR20: 2 | AS20: 13 | AT20: 0
A21: YOUR FARM VALUES* | Q21: 0.09691629956 | R21: 0.110619469 | W21: 3 | X21: 3 | Y21: 6 | Z21: 5 | AA21: 7 | AB21: 15 | AC21: 14 | AD21: 0 | AE21: 7 | AF21: 11 | AG21: 1 | AJ21: 1 | AK21: 0 | AL21: 10 | AM21: 3 | AN21: 8 | AO21: 16 | AP21: 3 | AQ21: 11 | AR21: 16 | AS21: 13 | AT21: 0
A22: Current Ratio: | B22: =S37 -> 1.925755339 | Q22: 0.05726872247 | R22: 0.07522123894 | S22: None | W22: 4 | X22: 5 | Y22: 4 | Z22: 3 | AA22: 14 | AB22: 4 | AC22: 4 | AD22: 5 | AE22: 6 | AF22: 6 | AG22: 3 | AJ22: 5 | AK22: 7 | AL22: 3 | AM22: 6 | AN22: 19 | AO22: 13 | AP22: 12 | AQ22: 9 | AR22: 10 | AS22: 10 | AT22: 3
A23: Working Capital Ratio: | B23: 0.4659635592 | Q23: 0.02202643172 | R23: 0.06637168142 | S23: Yes | W23: 4 | X23: 4 | Y23: 3 | Z23: 9 | AA23: 3 | AB23: 0 | AC23: 4 | AD23: 8 | AE23: 7 | AF23: 6 | AG23: 12 | AJ23: 5 | AK23: 9 | AL23: 7 | AM23: 13 | AN23: 8 | AO23: 1 | AP23: 12 | AQ23: 14 | AR23: 8 | AS23: 5 | AT23: 13
A24: Debt to Asset Ratio: | B24: 0.2359744454 | Q24: 0.02643171806 | R24: 0.05752212389 | S24: No | W24: 2 | X24: 10 | Y24: 4 | Z24: 5 | AA24: 0 | AB24: 0 | AC24: 2 | AD24: 9 | AE24: 2 | AF24: 0 | AG24: 8 | AJ24: 1 | AK24: 10 | AL24: 4 | AM24: 13 | AN24: 1 | AO24: 2 | AP24: 5 | AQ24: 4 | AR24: 6 | AS24: 0 | AT24: 16
A25: Operating Profit Margin | B25: -0.01946055851 | Q25: 0.01762114537 | R25: 0.01769911504 | W25: 0 | X25: 3 | Y25: 1 | Z25: 2 | AA25: 0 | AB25: 0 | AC25: 4 | AD25: 2 | AE25: 1 | AF25: 1 | AG25: 1 | AJ25: 1 | AK25: 9 | AL25: 1 | AM25: 6 | AN25: 2 | AO25: 1 | AP25: 4 | AQ25: 2 | AR25: 1 | AS25: 1 | AT25: 10
A26: Rate of Return on Farm Assets | B26: -0.003613277326 | E26: Working Captial Ratio | Q26: 0.4140969163 | R26: 0.4203539823 | W26: 0 | X26: 1 | Y26: 2 | Z26: 1 | AA26: 1 | AB26: 0 | AC26: 0 | AD26: 1 | AE26: 3 | AF26: 0 | AG26: 1 | AJ26: 6 | AK26: 1 | AL26: 1 | AM26: 2 | AN26: 0 | AO26: 0 | AP26: 4 | AQ26: 0 | AR26: 0 | AS26: 0 | AT26: 1
A27: Rate of Return on Farm Equity | B27: -0.01700517689 | F27: =U1 -> 2016 | G27: 10-Year | S27: Your Farm Line-Current Ratio | W27: 1 | X27: 1 | Y27: 3 | Z27: 0 | AA27: 0 | AB27: 0 | AC27: 1 | AD27: 6 | AE27: 2 | AF27: 2 | AG27: 0 | AJ27: 1 | AK27: 1 | AL27: 2 | AM27: 0 | AN27: 0 | AO27: 0 | AP27: 1 | AQ27: 0 | AR27: 0 | AS27: 0 | AT27: 0
A28: Asset Turnover Rate | B28: 0.1856718204 | E28: -0.5 | F28: =Q38 -> 0.06607929515 | G28: =R38 -> 0.02212389381 | Q28: =Q38 -> 0.06607929515 | R28: =R38 -> 0.02212389381 | S28: X's | T28: =IF(B22<4.5,B22,4.5) -> 1.925755339 | U28: =IF(B22<4.5,B22,4.5) -> 1.925755339 | W28: 15 | X28: 2 | Z28: 0 | AA28: 0 | AB28: 2 | AC28: 1 | AG28: 0 | AJ28: 22 | AK28: 4 | AM28: 0 | AN28: 0 | AO28: 1 | AP28: 2 | AT28: 0
A29: Operating Expense Ratio | B29: 0.7741789158 | E29: =E28+0.25 -> -0.25 | F29: =Q39 -> 0.04845814978 | G29: =R39 -> 0.008849557522 | Q29: =Q28+Q39 -> 0.1145374449 | R29: =R28+R39 -> 0.03097345133 | S29: Y's | T29: 0 | U29: 1 | V29: Count | W29: 33 | X29: 33 | Y29: 33 | Z29: 33 | AA29: 33 | AB29: 33 | AC29: 33 | AD29: 33 | AE29: 33 | AF29: 33 | AG29: 33 | AI29: Count | AJ29: 43 | AK29: 43 | AL29: 43 | AM29: 43 | AN29: 43 | AO29: 43 | AP29: 43 | AQ29: 43 | AR29: 43 | AS29: 43 | AT29: 43
A30: Depreciation Expense Ratio | B30: 0.1060345587 | E30: =E29+0.25 -> 0 | F30: 0.09251101322 | G30: 0.08407079646 | Q30: 0.2070484581 | R30: 0.1150442478 | S30: =IF(B22=F18,U1 &" Average","Your Farm") -> 2016 Average | V30: Average | W30: 2.788297002 | X30: 0.6974225957 | Y30: 0.1575978995 | Z30: -0.1948575023 | AA30: -0.02182125559 | AB30: -0.03453298757 | AC30: 0.1119857092 | AD30: 0.8180480214 | AE30: 0.08816828977 | AF30: 0.06105093961 | AG30: 0.03273274919 | AI30: Average | AJ30: 4.153197302 | AK30: 0.7041399456 | AL30: 0.1676682146 | AM30: 0.03940541149 | AN30: 0.007760300066 | AO30: -0.001801418576 | AP30: 0.1969348821 | AQ30: 0.6534769133 | AR30: 0.07703098906 | AS30: 0.04480833018 | AT30: 0.2246837675
A31: Interest Expense Ratio | B31: 0.04735968071 | E31: 0.25 | F31: 0.1629955947 | G31: 0.1681415929 | Q31: 0.3700440529 | R31: 0.2831858407 | S31: Your Farm Line-Working Capital Ratio | V31: Non-ratio average | X31: 109741.3264 | AG31: 5150.586364 | AI31: Non-ratio average | AK31: 129987.1148 | AT31: 41477.54272
A32: Net Farm Income Ratio: | B32: 0.07242684473 | E32: 0.5 | F32: 0.1674008811 | G32: 0.2168141593 | Q32: 0.5374449339 | R32: 0.5 | S32: X's | T32: =IF(B23>1.75,1.75,B23) -> 0.4659635592 | U32: =IF(B23>1.75,1.75,B23) -> 0.4659635592
A33: *Defaults to Averages for 2016 if not entered | E33: 0.75 | F33: 0.1453744493 | G33: 0.1991150442 | Q33: 0.6828193833 | R33: 0.6991150442 | S33: Y's | T33: 0 | U33: 1 | W33: 750-1250NoneYes
E34: 1 | F34: 0.1321585903 | G34: 0.1592920354 | Q34: 0.8149779736 | R34: 0.8584070796 | S34: =IF(B23=F39,U1 &" Average","Your Farm") -> 2016 Average | W34: Current Ratio | X34: Working Capital Ratio | Y34: Debt to Asset Ratio | Z34: Operating Profit Margin | AA34: ROA | AB34: ROE | AC34: Asset Turnover | AD34: Operating Expense Ratio | AE34: Depr Expense Ratio | AF34: Interest Expense Ratio | AG34: NFI Ratio | AJ34: Current Ratio | AK34: Working Capital Ratio | AL34: Debt to Asset Ratio | AM34: Operating Profit Margin | AN34: ROA | AO34: ROE | AP34: Asset Turnover | AQ34: Operating Expense Ratio | AR34: Depr Expense Ratio | AS34: Interest Expense Ratio | AT34: NFI Ratio
E35: 1.25 | F35: 0.05286343612 | G35: 0.06637168142 | Q35: 0.8678414097 | R35: 0.9247787611 | W35: 0 | X35: 0 | Y35: 0 | Z35: 2 | AA35: 1 | AB35: 3 | AC35: 0 | AD35: 0 | AE35: 0 | AF35: 0 | AG35: 0 | AJ35: 0 | AK35: 0 | AL35: 0 | AM35: 0 | AN35: 0 | AO35: 1 | AP35: 0 | AQ35: 0 | AR35: 0 | AS35: 0 | AT35: 0
E36: 1.5 | F36: 0.05286343612 | G36: 0.03097345133 | Q36: 0.9207048458 | R36: 0.9557522124 | W36: 1 | X36: 1 | Y36: 1 | Z36: 0 | AA36: 1 | AB36: 1 | AC36: 1 | AD36: 0 | AE36: 1 | AF36: 2 | AG36: 1 | AJ36: 0 | AK36: 0 | AL36: 2 | AM36: 0 | AN36: 0 | AO36: 0 | AP36: 0 | AQ36: 0 | AR36: 1 | AS36: 4 | AT36: 0
E37: More | F37: 0.07929515419 | G37: 0.04424778761 | Q37: 1 | R37: 1 | S37: =$F$18 -> 1.925755339 | W37: 0 | X37: 0 | Y37: 1 | Z37: 1 | AA37: 2 | AB37: 3 | AC37: 2 | AD37: 0 | AE37: 0 | AF37: 1 | AG37: 1 | AJ37: 1 | AK37: 1 | AL37: 0 | AM37: 0 | AN37: 1 | AO37: 3 | AP37: 1 | AQ37: 2 | AR37: 1 | AS37: 3 | AT37: 0
E38: Count | F38: =F17 -> 227 | G38: =G17 -> 226 | Q38: =IF($T$6=$W$1,X3/$F$38,IF($T$6=$W$17,X19/$F$38,IF($T$6=$W$33,X35/$F$38,IF($T$6=$W$49,X51/$F$38,IF($T$6=$W$65,X67/$F$38,IF($T$6=$W$81,X83/$F$38,IF($T$6=$W$97,X99/$F$38,IF($T$6=$W$113,X115/$F$38,IF($T$6=$W$129,X131/$F$38,IF($T$6=$W$145,X147/$F$38,IF($T$6=$W$161,X163/$F$38,"N/A"))))))))))) -> 0.06607929515 | R38: =IF($T$6=$W$1,AK3/$G$38,IF($T$6=$W$17,AK19/$G$38,IF($T$6=$W$33,AK35/$G$38,IF($T$6=$W$49,AK51/$G$38,IF($T$6=$W$65,AK67/$G$38,IF($T$6=$W$81,AK83/$G$38,IF($T$6=$W$97,AK99/$G$38,IF($T$6=$W$113,AK115/$G$38,IF($T$6=$W$129,AK131/$G$38,IF($T$6=$W$145,AK147/$G$38,IF($T$6=$W$161,AK163/$G$38,"N/A"))))))))))) -> 0.02212389381 | S38: =$F$39 -> 0.4659635592 | W38: 2 | X38: 2 | Y38: 2 | Z38: 1 | AA38: 3 | AB38: 1 | AC38: 2 | AD38: 3 | AE38: 2 | AF38: 3 | AG38: 2 | AJ38: 2 | AK38: 2 | AL38: 2 | AM38: 0 | AN38: 4 | AO38: 4 | AP38: 2 | AQ38: 2 | AR38: 3 | AS38: 1 | AT38: 0
E39: Average | F39: =IF($T$6=$W$1,$X$14,IF($T$6=$W$17,$X$30,IF($T$6=$W$33,$X$46,IF($T$6=$W$49,$X$62,IF($T$6=$W$65,$X$78,IF($T$6=$W$81,$X$94,IF($T$6=$W$97,$X$110,IF($T$6=$W$113,$X$126,IF($T$6=$W$129,$X$142,IF($T$6=$W$145,$X$158,IF($T$6=$W$161,$X$174,"N/A"))))))))))) -> 0.4659635592 | G39: =IF($T$6=$W$1,$AK$14,IF($T$6=$W$17,$AK$30,IF($T$6=$W$33,$AK$46,IF($T$6=$W$49,$AK$62,IF($T$6=$W$65,$AK$78,IF($T$6=$W$81,$AK$94,IF($T$6=$W$97,$AK$110,IF($T$6=$W$113,$AK$126,IF($T$6=$W$129,$AK$142,IF($T$6=$W$145,$AK$158,IF($T$6=$W$161,$AK$174,"N/A"))))))))))) -> 0.5087198796 | Q39: 0.04845814978 | R39: 0.008849557522 | S39: =$F$59 -> 0.2359744454 | W39: 1 | X39: 1 | Y39: 3 | Z39: 2 | AA39: 1 | AB39: 0 | AC39: 1 | AD39: 1 | AE39: 4 | AF39: 2 | AG39: 2 | AJ39: 3 | AK39: 1 | AL39: 1 | AM39: 2 | AN39: 3 | AO39: 0 | AP39: 3 | AQ39: 4 | AR39: 3 | AS39: 1 | AT39: 4
E40: Working Capital Avg. | Q40: 0.09251101322 | R40: 0.08407079646 | S40: =$F$81 -> -0.01946055851 | W40: 1 | X40: 1 | Y40: 0 | Z40: 2 | AA40: 0 | AB40: 0 | AC40: 1 | AD40: 0 | AE40: 0 | AF40: 0 | AG40: 2 | AJ40: 0 | AK40: 3 | AL40: 2 | AM40: 4 | AN40: 1 | AO40: 1 | AP40: 0 | AQ40: 1 | AR40: 1 | AS40: 0 | AT40: 3
F41: =IF($T$6=$W$1,$X$15,IF($T$6=$W$17,$X$31,IF($T$6=$W$33,$X$47,IF($T$6=$W$49,$X$63,IF($T$6=$W$65,$X$79,IF($T$6=$W$81,$X$95,IF($T$6=$W$97,$X$111,IF($T$6=$W$113,$X$127,IF($T$6=$W$129,$X$143,IF($T$6=$W$145,$X$159,IF($T$6=$W$161,$X$175,"N/A"))))))))))) -> 220605.753 | G41: =IF($T$6=$W$1,$AK$15,IF($T$6=$W$17,$AK$31,IF($T$6=$W$33,$AK$47,IF($T$6=$W$49,$AK$63,IF($T$6=$W$65,$AK$79,IF($T$6=$W$81,$AK$95,IF($T$6=$W$97,$AK$111,IF($T$6=$W$113,$AK$127,IF($T$6=$W$129,$AK$143,IF($T$6=$W$145,$AK$159,IF($T$6=$W$161,$AK$175,"N/A"))))))))))) -> 250041.6625 | Q41: 0.1629955947 | R41: 0.1681415929 | S41: =$F$102 -> -0.003613277326 | W41: 1 | X41: 1 | Y41: 1 | Z41: 0 | AA41: 0 | AB41: 0 | AC41: 0 | AD41: 1 | AE41: 1 | AF41: 0 | AG41: 0 | AJ41: 0 | AK41: 2 | AL41: 1 | AM41: 2 | AN41: 0 | AO41: 0 | AP41: 1 | AQ41: 0 | AR41: 0 | AS41: 0 | AT41: 2
Q42: 0.1674008811 | R42: 0.2168141593 | S42: =$F$123 -> -0.01700517689 | W42: 1 | X42: 1 | Y42: 0 | Z42: 0 | AA42: 0 | AB42: 0 | AC42: 0 | AD42: 2 | AE42: 0 | AF42: 0 | AG42: 0 | AJ42: 0 | AK42: 0 | AL42: 1 | AM42: 1 | AN42: 0 | AO42: 0 | AP42: 1 | AQ42: 0 | AR42: 0 | AS42: 0 | AT42: 0
F43: =IF(B23=F39,"","Your Farm") ->  | G43: =IF(B23=F39,"",B23) ->  | Q43: 0.1453744493 | R43: 0.1991150442 | S43: =$F$144 -> 0.1856718204 | W43: 0 | X43: 1 | Y43: 0 | Z43: 0 | AA43: 0 | AB43: 0 | AC43: 1 | AD43: 1 | AE43: 0 | AF43: 0 | AG43: 0 | AJ43: 0 | AK43: 0 | AL43: 0 | AM43: 0 | AN43: 0 | AO43: 0 | AP43: 0 | AQ43: 0 | AR43: 0 | AS43: 0 | AT43: 0
Q44: 0.1321585903 | R44: 0.1592920354 | S44: =$F$164 -> 0.7741789158 | W44: 1 | X44: 0 | Z44: 0 | AA44: 0 | AB44: 0 | AC44: 0 | AG44: 0 | AJ44: 3 | AK44: 0 | AM44: 0 | AN44: 0 | AO44: 0 | AP44: 1 | AT44: 0
Q45: 0.05286343612 | R45: 0.06637168142 | S45: =$F$185 -> 0.1060345587 | V45: Count | W45: 8 | X45: 8 | Y45: 8 | Z45: 8 | AA45: 8 | AB45: 8 | AC45: 8 | AD45: 8 | AE45: 8 | AF45: 8 | AG45: 8 | AI45: Count | AJ45: 9 | AK45: 9 | AL45: 9 | AM45: 9 | AN45: 9 | AO45: 9 | AP45: 9 | AQ45: 9 | AR45: 9 | AS45: 9 | AT45: 9
Q46: 0.05286343612 | R46: 0.03097345133 | S46: =$F$206 -> 0.04735968071 | V46: Average | W46: 1.32465489 | X46: 0.4243169893 | Y46: 0.3661253043 | Z46: -0.2786263885 | AA46: -0.03188014171 | AB46: -0.06677486082 | AC46: 0.1144189604 | AD46: 0.9501667768 | AE46: 0.06437493855 | AF46: 0.05207445896 | AG46: -0.06661617434 | AI46: Average | AJ46: 1.379871327 | AK46: 0.3737406705 | AL46: 0.3999448871 | AM46: 0.1274175414 | AN46: 0.02366889709 | AO46: 0.01389496869 | AP46: 0.185758545 | AQ46: 0.7723315876 | AR46: 0.05093991043 | AS46: 0.04900046521 | AT46: 0.1277280368
E47: Debt to Asset Ratio | Q47: 0.07929515419 | R47: 0.04424778761 | S47: =$F$228 -> 0.07242684473 | V47: Non-ratio average | X47: 251088.1537 | AG47: -39419.8975 | AI47: Non-ratio average | AK47: 211501.9876 | AT47: 72282.02812
F48: =U1 -> 2016 | G48: 10-Year
E49: 0 | F49: =Q58 -> 0.1145374449 | G49: =R58 -> 0.03097345133 | Q49: =Q58 -> 0.1145374449 | R49: =R58 -> 0.03097345133 | S49: Your Farm Line-Debt to Asset | W49: 750-1250NoneNo
E50: 0.1 | F50: =Q59 -> 0.2026431718 | G50: =R59 -> 0.2522123894 | Q50: =Q49+Q59 -> 0.3171806167 | R50: 0.2831858407 | S50: X's | T50: =IF(B24>0.8,0.8,B24) -> 0.2359744454 | U50: =T50 -> 0.2359744454 | W50: Current Ratio | X50: Working Capital Ratio | Y50: Debt to Asset Ratio | Z50: Operating Profit Margin | AA50: ROA | AB50: ROE | AC50: Asset Turnover | AD50: Operating Expense Ratio | AE50: Depr Expense Ratio | AF50: Interest Expense Ratio | AG50: NFI Ratio | AJ50: Current Ratio | AK50: Working Capital Ratio | AL50: Debt to Asset Ratio | AM50: Operating Profit Margin | AN50: ROA | AO50: ROE | AP50: Asset Turnover | AQ50: Operating Expense Ratio | AR50: Depr Expense Ratio | AS50: Interest Expense Ratio | AT50: NFI Ratio
E51: 0.2 | F51: 0.1453744493 | G51: 0.1460176991 | Q51: 0.4625550661 | R51: 0.4292035398 | S51: Y's | T51: 0 | U51: 1 | W51: 0 | X51: 1 | Y51: 2 | Z51: 0 | AA51: 1 | AB51: 0 | AC51: 0 | AD51: 0 | AE51: 0 | AF51: 2 | AG51: 0 | AJ51: 1 | AK51: 1 | AL51: 1 | AM51: 0 | AN51: 0 | AO51: 1 | AP51: 0 | AQ51: 0 | AR51: 0 | AS51: 0 | AT51: 0
E52: 0.3 | F52: 0.154185022 | G52: 0.1637168142 | Q52: 0.6167400881 | R52: 0.592920354 | S52: =IF(B24=F59,U1 &" Average","Your Farm") -> 2016 Average | W52: 1 | X52: 0 | Y52: 4 | Z52: 0 | AA52: 0 | AB52: 1 | AC52: 0 | AD52: 0 | AE52: 1 | AF52: 7 | AG52: 0 | AJ52: 1 | AK52: 0 | AL52: 7 | AM52: 0 | AN52: 0 | AO52: 5 | AP52: 0 | AQ52: 1 | AR52: 2 | AS52: 12 | AT52: 0
E53: 0.4 | F53: 0.1497797357 | G53: 0.1504424779 | Q53: 0.7665198238 | R53: 0.7433628319 | W53: 1 | X53: 1 | Y53: 3 | Z53: 1 | AA53: 3 | AB53: 5 | AC53: 2 | AD53: 3 | AE53: 3 | AF53: 2 | AG53: 0 | AJ53: 2 | AK53: 2 | AL53: 3 | AM53: 1 | AN53: 4 | AO53: 3 | AP53: 1 | AQ53: 6 | AR53: 2 | AS53: 3 | AT53: 2
E54: 0.5 | F54: 0.07929515419 | G54: 0.1150442478 | Q54: 0.845814978 | R54: 0.8584070796 | W54: 0 | X54: 3 | Y54: 2 | Z54: 2 | AA54: 5 | AB54: 6 | AC54: 4 | AD54: 6 | AE54: 4 | AF54: 2 | AG54: 4 | AJ54: 2 | AK54: 4 | AL54: 4 | AM54: 2 | AN54: 6 | AO54: 9 | AP54: 4 | AQ54: 6 | AR54: 7 | AS54: 3 | AT54: 0
E55: 0.6 | F55: 0.05286343612 | G55: 0.04867256637 | Q55: 0.8986784141 | R55: 0.907079646 | W55: 3 | X55: 3 | Y55: 1 | Z55: 2 | AA55: 4 | AB55: 1 | AC55: 4 | AD55: 3 | AE55: 1 | AF55: 1 | AG55: 1 | AJ55: 1 | AK55: 6 | AL55: 1 | AM55: 3 | AN55: 8 | AO55: 3 | AP55: 2 | AQ55: 4 | AR55: 4 | AS55: 0 | AT55: 4
E56: 0.7 | F56: 0.03964757709 | G56: 0.03097345133 | Q56: 0.9383259912 | R56: 0.9380530973 | W56: 0 | X56: 2 | Y56: 1 | Z56: 7 | AA56: 2 | AB56: 0 | AC56: 0 | AD56: 1 | AE56: 2 | AF56: 0 | AG56: 7 | AJ56: 1 | AK56: 1 | AL56: 2 | AM56: 9 | AN56: 3 | AO56: 0 | AP56: 5 | AQ56: 2 | AR56: 4 | AS56: 1 | AT56: 9
E57: More | F57: 0.06167400881 | G57: 0.06194690265 | Q57: 1 | R57: 1 | W57: 0 | X57: 4 | Y57: 0 | Z57: 3 | AA57: 0 | AB57: 1 | AC57: 2 | AD57: 2 | AE57: 2 | AF57: 0 | AG57: 3 | AJ57: 4 | AK57: 5 | AL57: 2 | AM57: 6 | AN57: 0 | AO57: 0 | AP57: 4 | AQ57: 2 | AR57: 1 | AS57: 2 | AT57: 6
E58: Count | F58: =F38 -> 227 | G58: =G38 -> 226 | Q58: =IF($T$6=$W$1,Y3/$F$58,IF($T$6=$W$17,Y19/$F$58,IF($T$6=$W$33,Y35/$F$58,IF($T$6=$W$49,Y51/$F$58,IF($T$6=$W$65,Y67/$F$58,IF($T$6=$W$81,Y83/$F$58,IF($T$6=$W$97,Y99/$F$58,IF($T$6=$W$113,Y115/$F$58,IF($T$6=$W$129,Y131/$F$58,IF($T$6=$W$145,Y147/$F$58,IF($T$6=$W$161,Y163/$F$58,"N/A"))))))))))) -> 0.1145374449 | R58: =IF($T$6=$W$1,AL3/$G$38,IF($T$6=$W$17,AL19/$G$38,IF($T$6=$W$33,AL35/$G$38,IF($T$6=$W$49,AL51/$G$38,IF($T$6=$W$65,AL67/$G$38,IF($T$6=$W$81,AL83/$G$38,IF($T$6=$W$97,AL99/$G$38,IF($T$6=$W$113,AL115/$G$38,IF($T$6=$W$129,AL131/$G$38,IF($T$6=$W$145,AL147/$G$38,IF($T$6=$W$161,AL163/$G$38,"N/A"))))))))))) -> 0.03097345133 | W58: 0 | X58: 1 | Y58: 0 | Z58: 0 | AA58: 0 | AB58: 0 | AC58: 0 | AD58: 0 | AE58: 1 | AF58: 1 | AG58: 0 | AJ58: 0 | AK58: 1 | AL58: 1 | AM58: 0 | AN58: 0 | AO58: 0 | AP58: 1 | AQ58: 0 | AR58: 1 | AS58: 0 | AT58: 0
E59: Average | F59: =IF($T$6=$W$1,$Y$14,IF($T$6=$W$17,$Y$30,IF($T$6=$W$33,$Y$46,IF($T$6=$W$49,$Y$62,IF($T$6=$W$65,$Y$78,IF($T$6=$W$81,$Y$94,IF($T$6=$W$97,$Y$110,IF($T$6=$W$113,$Y$126,IF($T$6=$W$129,$Y$142,IF($T$6=$W$145,$Y$158,IF($T$6=$W$161,$Y$174,"N/A"))))))))))) -> 0.2359744454 | G59: =IF($T$6=$W$1,$AL$14,IF($T$6=$W$17,$AL$30,IF($T$6=$W$33,$AL$46,IF($T$6=$W$49,$AL$62,IF($T$6=$W$65,$AL$78,IF($T$6=$W$81,$AL$94,IF($T$6=$W$97,$AL$110,IF($T$6=$W$113,$AL$126,IF($T$6=$W$129,$AL$142,IF($T$6=$W$145,$AL$158,IF($T$6=$W$161,$AL$174,"N/A"))))))))))) -> 0.2571442264 | Q59: 0.2026431718 | R59: 0.2522123894 | W59: 2 | X59: 0 | Y59: 2 | Z59: 0 | AA59: 0 | AB59: 0 | AC59: 2 | AD59: 0 | AE59: 1 | AF59: 0 | AG59: 0 | AJ59: 0 | AK59: 0 | AL59: 0 | AM59: 0 | AN59: 0 | AO59: 0 | AP59: 3 | AQ59: 0 | AR59: 0 | AS59: 0 | AT59: 0
Q60: 0.1453744493 | R60: 0.1460176991 | W60: 8 | X60: 0 | Z60: 0 | AA60: 0 | AB60: 1 | AC60: 1 | AG60: 0 | AJ60: 9 | AK60: 1 | AM60: 0 | AN60: 0 | AO60: 0 | AP60: 1 | AT60: 0
Q61: 0.154185022 | R61: 0.1637168142 | V61: Count | W61: 15 | X61: 15 | Y61: 15 | Z61: 15 | AA61: 15 | AB61: 15 | AC61: 15 | AD61: 15 | AE61: 15 | AF61: 15 | AG61: 15 | AI61: Count | AJ61: 21 | AK61: 21 | AL61: 21 | AM61: 21 | AN61: 21 | AO61: 21 | AP61: 21 | AQ61: 21 | AR61: 21 | AS61: 21 | AT61: 21
Q62: 0.1497797357 | R62: 0.1504424779 | V62: Average | W62: 4.973238156 | X62: 0.4880569127 | Y62: 0.1425319427 | Z62: 0.05503939798 | AA62: 0.01035839368 | AB62: 0.003954133893 | AC62: 0.1881996181 | AD62: 0.6756223947 | AE62: 0.1009215555 | AF62: 0.03574952382 | AG62: 0.1877065259 | AI62: Average | AJ62: 4.333779493 | AK62: 0.5200830486 | AL62: 0.1860486003 | AM62: 0.101229383 | AN62: 0.02491945493 | AO62: 0.01842308838 | AP62: 0.2461681994 | AQ62: 0.6497411733 | AR62: 0.09683089407 | AS62: 0.03969439145 | AT62: 0.2137335412
F63: =IF(B24=F59,"","Your Farm") ->  | G63: =IF(B24=F59,"",B24) ->  | Q63: 0.07929515419 | R63: 0.1150442478 | V63: Non-ratio average | X63: 175784.1773 | AG63: 67606.536 | AI63: Non-ratio average | AK63: 161277.6969 | AT63: 66278.74793
Q64: 0.05286343612 | R64: 0.04867256637
Q65: 0.03964757709 | R65: 0.03097345133 | W65: 750-1250<100
Q66: 0.06167400881 | R66: 0.06194690265 | W66: Current Ratio | X66: Working Capital Ratio | Y66: Debt to Asset Ratio | Z66: Operating Profit Margin | AA66: ROA | AB66: ROE | AC66: Asset Turnover | AD66: Operating Expense Ratio | AE66: Depr Expense Ratio | AF66: Interest Expense Ratio | AG66: NFI Ratio | AJ66: Current Ratio | AK66: Working Capital Ratio | AL66: Debt to Asset Ratio | AM66: Operating Profit Margin | AN66: ROA | AO66: ROE | AP66: Asset Turnover | AQ66: Operating Expense Ratio | AR66: Depr Expense Ratio | AS66: Interest Expense Ratio | AT66: NFI Ratio
W67: 0 | X67: 0 | Y67: 3 | Z67: 1 | AA67: 0 | AB67: 2 | AC67: 0 | AD67: 0 | AE67: 0 | AF67: 2 | AG67: 1 | AJ67: 0 | AK67: 0 | AL67: 1 | AM67: 0 | AN67: 0 | AO67: 2 | AP67: 0 | AQ67: 0 | AR67: 0 | AS67: 1 | AT67: 0
E68: Operating Profit Margin Ratio | W68: 1 | X68: 0 | Y68: 5 | Z68: 0 | AA68: 2 | AB68: 8 | AC68: 0 | AD68: 1 | AE68: 0 | AF68: 7 | AG68: 0 | AJ68: 1 | AK68: 1 | AL68: 4 | AM68: 0 | AN68: 0 | AO68: 1 | AP68: 0 | AQ68: 0 | AR68: 3 | AS68: 11 | AT68: 0
F69: =U1 -> 2016 | G69: 10-Year | W69: 2 | X69: 3 | Y69: 4 | Z69: 4 | AA69: 8 | AB69: 5 | AC69: 8 | AD69: 3 | AE69: 4 | AF69: 6 | AG69: 2 | AJ69: 1 | AK69: 1 | AL69: 4 | AM69: 0 | AN69: 2 | AO69: 4 | AP69: 1 | AQ69: 4 | AR69: 6 | AS69: 6 | AT69: 0
E70: -0.6 | F70: =Q80 -> 0.05726872247 | G70: =R80 -> 0 | Q70: =Q80 -> 0.05726872247 | R70: =R80 -> 0 | W70: 4 | X70: 5 | Y70: 3 | Z70: 4 | AA70: 9 | AB70: 5 | AC70: 5 | AD70: 6 | AE70: 3 | AF70: 3 | AG70: 6 | AJ70: 6 | AK70: 5 | AL70: 3 | AM70: 0 | AN70: 8 | AO70: 10 | AP70: 3 | AQ70: 10 | AR70: 9 | AS70: 5 | AT70: 0
E71: -0.45 | F71: =Q81 -> 0.03083700441 | G71: =R81 -> 0 | Q71: =Q70+Q81 -> 0.08810572687 | R71: =R70+R81 -> 0 | S71: Your Farm Line-Operating Profit Margin Ratio | W71: 2 | X71: 2 | Y71: 1 | Z71: 5 | AA71: 2 | AB71: 2 | AC71: 3 | AD71: 2 | AE71: 4 | AF71: 3 | AG71: 5 | AJ71: 1 | AK71: 6 | AL71: 4 | AM71: 4 | AN71: 9 | AO71: 3 | AP71: 4 | AQ71: 7 | AR71: 5 | AS71: 0 | AT71: 8
E72: -0.3 | F72: 0.09691629956 | G72: 0.01769911504 | Q72: 0.1850220264 | R72: 0.01769911504 | S72: X's | T72: =IF(B25>0.75,0.75,B25) -> -0.01946055851 | U72: =T72 -> -0.01946055851 | W72: 3 | X72: 2 | Y72: 3 | Z72: 6 | AA72: 1 | AB72: 0 | AC72: 3 | AD72: 8 | AE72: 2 | AF72: 1 | AG72: 6 | AJ72: 1 | AK72: 3 | AL72: 3 | AM72: 13 | AN72: 3 | AO72: 4 | AP72: 4 | AQ72: 3 | AR72: 1 | AS72: 1 | AT72: 9
E73: -0.15 | F73: 0.1321585903 | G73: 0.04867256637 | Q73: 0.3171806167 | R73: 0.06637168142 | S73: Y's | T73: 0 | U73: 1 | W73: 1 | X73: 4 | Y73: 2 | Z73: 2 | AA73: 0 | AB73: 0 | AC73: 1 | AD73: 0 | AE73: 5 | AF73: 0 | AG73: 1 | AJ73: 2 | AK73: 2 | AL73: 1 | AM73: 6 | AN73: 2 | AO73: 0 | AP73: 5 | AQ73: 0 | AR73: 0 | AS73: 0 | AT73: 6
E74: 0 | F74: 0.2643171806 | G74: 0.1504424779 | Q74: 0.5814977974 | R74: 0.2168141593 | S74: =IF(B25=F81,U1 &" Average","Your Farm") -> 2016 Average | W74: 1 | X74: 3 | Y74: 1 | Z74: 0 | AA74: 0 | AB74: 0 | AC74: 0 | AD74: 1 | AE74: 2 | AF74: 0 | AG74: 1 | AJ74: 0 | AK74: 3 | AL74: 1 | AM74: 1 | AN74: 0 | AO74: 0 | AP74: 0 | AQ74: 0 | AR74: 0 | AS74: 0 | AT74: 1
E75: 0.15 | F75: 0.268722467 | G75: 0.4159292035 | Q75: 0.8502202643 | R75: 0.6327433628 | W75: 0 | X75: 0 | Y75: 0 | Z75: 0 | AA75: 0 | AB75: 0 | AC75: 1 | AD75: 1 | AE75: 2 | AF75: 0 | AG75: 0 | AJ75: 1 | AK75: 2 | AL75: 3 | AM75: 0 | AN75: 0 | AO75: 0 | AP75: 2 | AQ75: 0 | AR75: 0 | AS75: 0 | AT75: 0
E76: 0.3 | F76: 0.1321585903 | G76: 0.3230088496 | Q76: 0.9823788546 | R76: 0.9557522124 | W76: 8 | X76: 3 | Z76: 0 | AA76: 0 | AB76: 0 | AC76: 1 | AG76: 0 | AJ76: 11 | AK76: 1 | AM76: 0 | AN76: 0 | AO76: 0 | AP76: 5 | AT76: 0
E77: 0.45 | F77: 0.01321585903 | G77: 0.04424778761 | Q77: 0.9955947137 | R77: 1 | V77: Count | W77: 22 | X77: 22 | Y77: 22 | Z77: 22 | AA77: 22 | AB77: 22 | AC77: 22 | AD77: 22 | AE77: 22 | AF77: 22 | AG77: 22 | AI77: Count | AJ77: 24 | AK77: 24 | AL77: 24 | AM77: 24 | AN77: 24 | AO77: 24 | AP77: 24 | AQ77: 24 | AR77: 24 | AS77: 24 | AT77: 24
E78: 0.6 | F78: 0.004405286344 | G78: 0 | Q78: 1 | R78: 1 | V78: Average | W78: 2.990947735 | X78: 0.7098658448 | Y78: 0.1961981319 | Z78: -0.07691216784 | AA78: -0.01161301621 | AB78: -0.02321686237 | AC78: 0.1509906239 | AD78: 0.7411752909 | AE78: 0.1238975247 | AF78: 0.04587895912 | AG78: 0.08904822525 | AI78: Average | AJ78: 3.051818847 | AK78: 0.6479145103 | AL78: 0.28286673 | AM78: 0.113974941 | AN78: 0.03215755789 | AO78: 0.02794168319 | AP78: 0.2821458614 | AQ78: 0.6807046571 | AR78: 0.07120133366 | AS78: 0.03959540658 | AT78: 0.2084986027
E79: More | F79: 0 | G79: 0 | Q79: 1 | R79: 1 | V79: Non-ratio average | X79: 221798.7668 | AG79: 27823.26645 | AI79: Non-ratio average | AK79: 230647.9679 | AT79: 74222.41401
E80: Count | F80: =F58 -> 227 | G80: =G58 -> 226 | Q80: =IF($T$6=$W$1,Z3/$F$80,IF($T$6=$W$17,Z19/$F$80,IF($T$6=$W$33,Z35/$F$80,IF($T$6=$W$49,Z51/$F$80,IF($T$6=$W$65,Z67/$F$80,IF($T$6=$W$81,Z83/$F$80,IF($T$6=$W$97,Z99/$F$80,IF($T$6=$W$113,Z115/$F$80,IF($T$6=$W$129,Z131/$F$80,IF($T$6=$W$145,Z147/$F$80,IF($T$6=$W$161,Z163/$F$80,"N/A"))))))))))) -> 0.05726872247 | R80: =IF($T$6=$W$1,AM3/$G$38,IF($T$6=$W$17,AM19/$G$38,IF($T$6=$W$33,AM35/$G$38,IF($T$6=$W$49,AM51/$G$38,IF($T$6=$W$65,AM67/$G$38,IF($T$6=$W$81,AM83/$G$38,IF($T$6=$W$97,AM99/$G$38,IF($T$6=$W$113,AM115/$G$38,IF($T$6=$W$129,AM131/$G$38,IF($T$6=$W$145,AM147/$G$38,IF($T$6=$W$161,AM163/$G$38,"N/A"))))))))))) -> 0
E81: Average | F81: =IF($T$6=$W$1,$Z$14,IF($T$6=$W$17,$Z$30,IF($T$6=$W$33,$Z$46,IF($T$6=$W$49,$Z$62,IF($T$6=$W$65,$Z$78,IF($T$6=$W$81,$Z$94,IF($T$6=$W$97,$Z$110,IF($T$6=$W$113,$Z$126,IF($T$6=$W$129,$Z$142,IF($T$6=$W$145,$Z$158,IF($T$6=W161,Z174,"N/A"))))))))))) -> -0.01946055851 | G81: =IF($T$6=$W$1,$AM$14,IF($T$6=$W$17,$AM$30,IF($T$6=$W$33,$AM$46,IF($T$6=$W$49,$AM$62,IF($T$6=$W$65,$AM$78,IF($T$6=$W$81,$AM$94,IF($T$6=$W$97,$AM$110,IF($T$6=$W$113,$AM$126,IF($T$6=$W$129,$AM$142,IF($T$6=$W$145,$AM$158,IF($T$6=$W$161,$AM$174,"N/A"))))))))))) -> 0.1387936035 | Q81: 0.03083700441 | R81: 0 | W81: 750-1250100+
Q82: 0.09691629956 | R82: 0.01769911504 | W82: Current Ratio | X82: Working Capital Ratio | Y82: Debt to Asset Ratio | Z82: Operating Profit Margin | AA82: ROA | AB82: ROE | AC82: Asset Turnover | AD82: Operating Expense Ratio | AE82: Depr Expense Ratio | AF82: Interest Expense Ratio | AG82: NFI Ratio | AJ82: Current Ratio | AK82: Working Capital Ratio | AL82: Debt to Asset Ratio | AM82: Operating Profit Margin | AN82: ROA | AO82: ROE | AP82: Asset Turnover | AQ82: Operating Expense Ratio | AR82: Depr Expense Ratio | AS82: Interest Expense Ratio | AT82: NFI Ratio
Q83: 0.1321585903 | R83: 0.04867256637 | W83: 0 | X83: 0 | Y83: 1 | Z83: 0 | AA83: 2 | AB83: 4 | AC83: 0 | AD83: 0 | AE83: 0 | AF83: 3 | AG83: 0 | AJ83: 0 | AK83: 1 | AL83: 1 | AM83: 0 | AN83: 0 | AO83: 1 | AP83: 0 | AQ83: 0 | AR83: 0 | AS83: 1 | AT83: 0
Q84: 0.2643171806 | R84: 0.1504424779 | W84: 0 | X84: 0 | Y84: 3 | Z84: 2 | AA84: 1 | AB84: 4 | AC84: 0 | AD84: 0 | AE84: 1 | AF84: 5 | AG84: 0 | AJ84: 1 | AK84: 0 | AL84: 1 | AM84: 0 | AN84: 0 | AO84: 1 | AP84: 0 | AQ84: 0 | AR84: 0 | AS84: 3 | AT84: 0
F85: =IF(B25=F81,"","Your Farm") ->  | G85: =IF(B25=F81,"",B25) ->  | Q85: 0.268722467 | R85: 0.4159292035 | W85: 1 | X85: 1 | Y85: 4 | Z85: 4 | AA85: 7 | AB85: 5 | AC85: 4 | AD85: 1 | AE85: 2 | AF85: 5 | AG85: 3 | AJ85: 1 | AK85: 1 | AL85: 3 | AM85: 0 | AN85: 0 | AO85: 7 | AP85: 0 | AQ85: 3 | AR85: 5 | AS85: 6 | AT85: 0
Q86: 0.1321585903 | R86: 0.3230088496 | W86: 4 | X86: 5 | Y86: 3 | Z86: 5 | AA86: 4 | AB86: 3 | AC86: 7 | AD86: 2 | AE86: 1 | AF86: 3 | AG86: 7 | AJ86: 2 | AK86: 2 | AL86: 3 | AM86: 0 | AN86: 9 | AO86: 8 | AP86: 4 | AQ86: 9 | AR86: 8 | AS86: 5 | AT86: 2
Q87: 0.01321585903 | R87: 0.04424778761 | W87: 4 | X87: 2 | Y87: 3 | Z87: 2 | AA87: 2 | AB87: 0 | AC87: 3 | AD87: 2 | AE87: 7 | AF87: 0 | AG87: 4 | AJ87: 3 | AK87: 6 | AL87: 8 | AM87: 3 | AN87: 10 | AO87: 3 | AP87: 7 | AQ87: 7 | AR87: 5 | AS87: 2 | AT87: 5
Q88: 0.004405286344 | R88: 0 | W88: 1 | X88: 6 | Y88: 1 | Z88: 2 | AA88: 1 | AB88: 1 | AC88: 0 | AD88: 7 | AE88: 2 | AF88: 0 | AG88: 2 | AJ88: 1 | AK88: 6 | AL88: 1 | AM88: 12 | AN88: 1 | AO88: 0 | AP88: 6 | AQ88: 1 | AR88: 2 | AS88: 3 | AT88: 12
E89: Rate of Return on Farm Assets | Q89: 0 | R89: 0 | W89: 1 | X89: 0 | Y89: 2 | Z89: 2 | AA89: 0 | AB89: 0 | AC89: 2 | AD89: 4 | AE89: 1 | AF89: 1 | AG89: 1 | AJ89: 4 | AK89: 3 | AL89: 1 | AM89: 5 | AN89: 0 | AO89: 0 | AP89: 2 | AQ89: 0 | AR89: 0 | AS89: 0 | AT89: 1
F90: =U1 -> 2016 | G90: 10-Year | W90: 0 | X90: 0 | Y90: 0 | Z90: 0 | AA90: 0 | AB90: 0 | AC90: 0 | AD90: 1 | AE90: 2 | AF90: 0 | AG90: 0 | AJ90: 2 | AK90: 1 | AL90: 1 | AM90: 0 | AN90: 0 | AO90: 0 | AP90: 1 | AQ90: 0 | AR90: 0 | AS90: 0 | AT90: 0
E91: -0.1 | F91: =Q101 -> 0.03964757709 | G91: =R101 -> 0.01327433628 | Q91: =Q101 -> 0.03964757709 | R91: =R101 -> 0.01327433628 | W91: 0 | X91: 2 | Y91: 0 | Z91: 0 | AA91: 0 | AB91: 0 | AC91: 1 | AD91: 0 | AE91: 1 | AF91: 0 | AG91: 0 | AJ91: 0 | AK91: 0 | AL91: 1 | AM91: 0 | AN91: 0 | AO91: 0 | AP91: 0 | AQ91: 0 | AR91: 0 | AS91: 0 | AT91: 0
E92: -0.06 | F92: =Q102 -> 0.1013215859 | G92: =R102 -> 0.008849557522 | Q92: =Q91+Q102 -> 0.140969163 | R92: =R91+R102 -> 0.02212389381 | W92: 6 | X92: 1 | Z92: 0 | AA92: 0 | AB92: 0 | AC92: 0 | AG92: 0 | AJ92: 6 | AK92: 0 | AM92: 0 | AN92: 0 | AO92: 0 | AP92: 0 | AT92: 0
E93: -0.02 | F93: 0.2026431718 | G93: 0.09292035398 | Q93: 0.3436123348 | R93: 0.1150442478 | S93: Your Farm Line-Return on Assets | V93: Count | W93: 17 | X93: 17 | Y93: 17 | Z93: 17 | AA93: 17 | AB93: 17 | AC93: 17 | AD93: 17 | AE93: 17 | AF93: 17 | AG93: 17 | AI93: Count | AJ93: 20 | AK93: 20 | AL93: 20 | AM93: 20 | AN93: 20 | AO93: 20 | AP93: 20 | AQ93: 20 | AR93: 20 | AS93: 20 | AT93: 20
E94: 0.02 | F94: 0.436123348 | G94: 0.2699115044 | Q94: 0.7797356828 | R94: 0.3849557522 | S94: X's | T94: =IF(B26>0.24,0.24,B26) -> -0.003613277326 | U94: =T94 -> -0.003613277326 | V94: Average | W94: 2.324468878 | X94: 0.534394837 | Y94: 0.212473589 | Z94: -0.1383099581 | AA94: -0.02049422127 | AB94: -0.03545365936 | AC94: 0.1481760356 | AD94: 0.8191798786 | AE94: 0.1122330125 | AF94: 0.04657463652 | AG94: 0.02201247234 | AI94: Average | AJ94: 2.197387526 | AK94: 0.4433362314 | AL94: 0.3122960976 | AM94: 0.1015093983 | AN94: 0.02493591576 | AO94: 0.01329710113 | AP94: 0.245651301 | AQ94: 0.6858688001 | AR94: 0.08158844056 | AS94: 0.05925168972 | AT94: 0.1732910696
E95: 0.06 | F95: 0.1585903084 | G95: 0.4247787611 | Q95: 0.9383259912 | R95: 0.8097345133 | S95: Y's | T95: 0 | U95: 1 | V95: Non-ratio average | X95: 208160.0476 | AG95: 8574.404118 | AI95: Non-ratio average | AK95: 191246.6501 | AT95: 74754.40581
E96: 0.1 | F96: 0.03964757709 | G96: 0.1238938053 | Q96: 0.9779735683 | R96: 0.9336283186 | S96: =IF(B26=F102,U1 &" Average","Your Farm") -> 2016 Average
E97: 0.14 | F97: 0.004405286344 | G97: 0.05309734513 | Q97: 0.9823788546 | R97: 0.9867256637 | W97: Greater than 1250NoneYes
E98: 0.18 | F98: 0.008810572687 | G98: 0.008849557522 | Q98: 0.9911894273 | R98: 0.9955752212 | W98: Current Ratio | X98: Working Capital Ratio | Y98: Debt to Asset Ratio | Z98: Operating Profit Margin | AA98: ROA | AB98: ROE | AC98: Asset Turnover | AD98: Operating Expense Ratio | AE98: Depr Expense Ratio | AF98: Interest Expense Ratio | AG98: NFI Ratio | AJ98: Current Ratio | AK98: Working Capital Ratio | AL98: Debt to Asset Ratio | AM98: Operating Profit Margin | AN98: ROA | AO98: ROE | AP98: Asset Turnover | AQ98: Operating Expense Ratio | AR98: Depr Expense Ratio | AS98: Interest Expense Ratio | AT98: NFI Ratio
E99: 0.22 | F99: 0 | G99: 0.004424778761 | Q99: 0.9911894273 | R99: 1 | W99: 0 | X99: 0 | Y99: 0 | Z99: 0 | AA99: 0 | AB99: 2 | AC99: 0 | AD99: 0 | AE99: 0 | AF99: 0 | AG99: 0 | AJ99: 0 | AK99: 0 | AL99: 0 | AM99: 0 | AN99: 0 | AO99: 0 | AP99: 0 | AQ99: 0 | AR99: 0 | AS99: 0 | AT99: 0
E100: More | F100: 0.008810572687 | G100: 0 | Q100: 1 | R100: 1 | W100: 0 | X100: 1 | Y100: 1 | Z100: 0 | AA100: 2 | AB100: 0 | AC100: 0 | AD100: 0 | AE100: 0 | AF100: 2 | AG100: 0 | AJ100: 0 | AK100: 0 | AL100: 0 | AM100: 0 | AN100: 0 | AO100: 0 | AP100: 0 | AQ100: 0 | AR100: 0 | AS100: 2 | AT100: 0
E101: Count | F101: =F80 -> 227 | G101: =G80 -> 226 | Q101: =IF($T$6=$W$1,AA3/$F$101,IF($T$6=$W$17,AA19/$F$101,IF($T$6=$W$33,AA35/$F$101,IF($T$6=$W$49,AA51/$F$101,IF($T$6=$W$65,AA67/$F$101,IF($T$6=$W$81,AA83/$F$101,IF($T$6=$W$97,AA99/$F$101,IF($T$6=$W$113,AA115/$F$101,IF($T$6=$W$129,AA131/$F$101,IF($T$6=$W$145,AA147/$F$101,IF($T$6=$W$161,AA163/$F$101,"N/A"))))))))))) -> 0.03964757709 | R101: =IF($T$6=$W$1,AN3/$G$38,IF($T$6=$W$17,AN19/$G$38,IF($T$6=$W$33,AN35/$G$38,IF($T$6=$W$49,AN51/$G$38,IF($T$6=$W$65,AN67/$G$38,IF($T$6=$W$81,AN83/$G$38,IF($T$6=$W$97,AN99/$G$38,IF($T$6=$W$113,AN115/$G$38,IF($T$6=$W$129,AN131/$G$38,IF($T$6=$W$145,AN147/$G$38,IF($T$6=$W$161,AN163/$G$38,"N/A"))))))))))) -> 0.01327433628 | W101: 1 | X101: 0 | Y101: 2 | Z101: 2 | AA101: 0 | AB101: 2 | AC101: 1 | AD101: 1 | AE101: 1 | AF101: 3 | AG101: 2 | AJ101: 1 | AK101: 1 | AL101: 2 | AM101: 0 | AN101: 0 | AO101: 2 | AP101: 0 | AQ101: 0 | AR101: 1 | AS101: 5 | AT101: 0
E102: Average | F102: =IF($T$6=$W$1,$AA$14,IF($T$6=$W$17,$AA$30,IF($T$6=$W$33,$AA$46,IF($T$6=$W$49,$AA$62,IF($T$6=$W$65,$AA$78,IF($T$6=$W$81,$AA$94,IF($T$6=$W$97,$AA$110,IF($T$6=$W$113,$AA$126,IF($T$6=$W$129,$AA$142,IF($T$6=$W$145,$AA$158,IF($T$6=$W$161,AA174,"N/A"))))))))))) -> -0.003613277326 | G102: =IF($T$6=$W$1,$AN$14,IF($T$6=$W$17,$AN$30,IF($T$6=$W$33,$AN$46,IF($T$6=$W$49,$AN$62,IF($T$6=$W$65,$AN$78,IF($T$6=$W$81,$AN$94,IF($T$6=$W$97,$AN$110,IF($T$6=$W$113,$AN$126,IF($T$6=$W$129,$AN$142,IF($T$6=$W$145,$AN$158,IF($T$6=$W$161,$AN$174,"N/A"))))))))))) -> 0.03989230597 | Q102: 0.1013215859 | R102: 0.008849557522 | W102: 4 | X102: 2 | Y102: 1 | Z102: 0 | AA102: 4 | AB102: 4 | AC102: 3 | AD102: 2 | AE102: 3 | AF102: 4 | AG102: 1 | AJ102: 2 | AK102: 1 | AL102: 4 | AM102: 0 | AN102: 2 | AO102: 1 | AP102: 0 | AQ102: 6 | AR102: 2 | AS102: 2 | AT102: 0
Q103: 0.2026431718 | R103: 0.09292035398 | W103: 1 | X103: 3 | Y103: 2 | Z103: 2 | AA103: 3 | AB103: 1 | AC103: 3 | AD103: 2 | AE103: 1 | AF103: 0 | AG103: 3 | AJ103: 1 | AK103: 3 | AL103: 0 | AM103: 0 | AN103: 5 | AO103: 6 | AP103: 3 | AQ103: 2 | AR103: 1 | AS103: 0 | AT103: 4
Q104: 0.436123348 | R104: 0.2699115044 | W104: 1 | X104: 1 | Y104: 1 | Z104: 3 | AA104: 0 | AB104: 0 | AC104: 1 | AD104: 1 | AE104: 2 | AF104: 0 | AG104: 3 | AJ104: 1 | AK104: 2 | AL104: 1 | AM104: 4 | AN104: 2 | AO104: 0 | AP104: 3 | AQ104: 1 | AR104: 3 | AS104: 0 | AT104: 5
Q105: 0.1585903084 | R105: 0.4247787611 | W105: 0 | X105: 1 | Y105: 0 | Z105: 2 | AA105: 0 | AB105: 0 | AC105: 0 | AD105: 2 | AE105: 1 | AF105: 0 | AG105: 0 | AJ105: 1 | AK105: 1 | AL105: 2 | AM105: 5 | AN105: 0 | AO105: 0 | AP105: 2 | AQ105: 0 | AR105: 2 | AS105: 0 | AT105: 0
F106: =IF(B26=F102,"","Your Farm") ->  | G106: =IF(B26=F102,"",B26) ->  | Q106: 0.03964757709 | R106: 0.1238938053 | W106: 0 | X106: 0 | Y106: 2 | Z106: 0 | AA106: 0 | AB106: 0 | AC106: 0 | AD106: 1 | AE106: 0 | AF106: 0 | AG106: 0 | AJ106: 2 | AK106: 1 | AL106: 0 | AM106: 0 | AN106: 0 | AO106: 0 | AP106: 1 | AQ106: 0 | AR106: 0 | AS106: 0 | AT106: 0
Q107: 0.004405286344 | R107: 0.05309734513 | W107: 0 | X107: 1 | Y107: 0 | Z107: 0 | AA107: 0 | AB107: 0 | AC107: 0 | AD107: 0 | AE107: 1 | AF107: 0 | AG107: 0 | AJ107: 0 | AK107: 0 | AL107: 0 | AM107: 0 | AN107: 0 | AO107: 0 | AP107: 0 | AQ107: 0 | AR107: 0 | AS107: 0 | AT107: 0
Q108: 0.008810572687 | R108: 0.008849557522 | W108: 2 | X108: 0 | Z108: 0 | AA108: 0 | AB108: 0 | AC108: 1 | AG108: 0 | AJ108: 1 | AK108: 0 | AM108: 0 | AN108: 0 | AO108: 0 | AP108: 0 | AT108: 0
Q109: 0 | R109: 0.004424778761 | V109: Count | W109: 9 | X109: 9 | Y109: 9 | Z109: 9 | AA109: 9 | AB109: 9 | AC109: 9 | AD109: 9 | AE109: 9 | AF109: 9 | AG109: 9 | AI109: Count | AJ109: 9 | AK109: 9 | AL109: 9 | AM109: 9 | AN109: 9 | AO109: 9 | AP109: 9 | AQ109: 9 | AR109: 9 | AS109: 9 | AT109: 9
E110: Rate of Return on Farm Equity | Q110: 0.008810572687 | R110: 0 | V110: Average | W110: 1.459749736 | X110: 0.4115177635 | Y110: 0.3337901698 | Z110: 0.03127688873 | AA110: 0.00597967675 | AB110: -0.01230665953 | AC110: 0.1911851528 | AD110: 0.8000249862 | AE110: 0.08512837679 | AF110: 0.0564190185 | AG110: 0.05842761847 | AI110: Average | AJ110: 1.840607786 | AK110: 0.481089059 | AL110: 0.3200941107 | AM110: 0.1434963305 | AN110: 0.04186278159 | AO110: 0.04188478777 | AP110: 0.2917341611 | AQ110: 0.7002214406 | AR110: 0.1024056611 | AS110: 0.04253250596 | AT110: 0.1548403923
F111: =U1 -> 2016 | G111: 10-Year | V111: Non-ratio average | X111: 478117.6589 | AG111: 67883.52444 | AI111: Non-ratio average | AK111: 413125.0696 | AT111: 132965.9169
E112: -0.1 | F112: =Q122 -> 0.1629955947 | G112: =R122 -> 0.08407079646 | Q112: =Q122 -> 0.1629955947 | R112: =R122 -> 0.08407079646
E113: -0.05 | F113: =Q123 -> 0.1453744493 | G113: =R123 -> 0.05752212389 | Q113: =Q112+Q123 -> 0.3083700441 | R113: =R112+R123 -> 0.1415929204 | W113: Greater than 1250NoneNo
E114: 0 | F114: 0.3171806167 | G114: 0.1946902655 | Q114: 0.6255506608 | R114: 0.3362831858 | W114: Current Ratio | X114: Working Capital Ratio | Y114: Debt to Asset Ratio | Z114: Operating Profit Margin | AA114: ROA | AB114: ROE | AC114: Asset Turnover | AD114: Operating Expense Ratio | AE114: Depr Expense Ratio | AF114: Interest Expense Ratio | AG114: NFI Ratio | AJ114: Current Ratio | AK114: Working Capital Ratio | AL114: Debt to Asset Ratio | AM114: Operating Profit Margin | AN114: ROA | AO114: ROE | AP114: Asset Turnover | AQ114: Operating Expense Ratio | AR114: Depr Expense Ratio | AS114: Interest Expense Ratio | AT114: NFI Ratio
E115: 0.05 | F115: 0.2775330396 | G115: 0.3628318584 | Q115: 0.9030837004 | R115: 0.6991150442 | S115: Your Farm Line-Return on Equity | W115: 0 | X115: 3 | Y115: 5 | Z115: 0 | AA115: 1 | AB115: 3 | AC115: 0 | AD115: 1 | AE115: 0 | AF115: 4 | AG115: 0 | AJ115: 0 | AK115: 1 | AL115: 1 | AM115: 0 | AN115: 0 | AO115: 0 | AP115: 0 | AQ115: 0 | AR115: 0 | AS115: 1 | AT115: 0
E116: 0.1 | F116: 0.03964757709 | G116: 0.1946902655 | Q116: 0.9427312775 | R116: 0.8938053097 | S116: X's | T116: =IF(B27>0.35,0.35,B27) -> -0.01700517689 | U116: =T116 -> -0.01700517689 | W116: 6 | X116: 4 | Y116: 6 | Z116: 0 | AA116: 1 | AB116: 1 | AC116: 0 | AD116: 1 | AE116: 1 | AF116: 13 | AG116: 0 | AJ116: 1 | AK116: 0 | AL116: 6 | AM116: 0 | AN116: 0 | AO116: 0 | AP116: 0 | AQ116: 0 | AR116: 0 | AS116: 11 | AT116: 0
E117: 0.15 | F117: 0.01762114537 | G117: 0.06637168142 | Q117: 0.9603524229 | R117: 0.9601769912 | S117: Y's | T117: 0 | U117: 1 | W117: 2 | X117: 1 | Y117: 5 | Z117: 1 | AA117: 4 | AB117: 8 | AC117: 1 | AD117: 4 | AE117: 1 | AF117: 4 | AG117: 2 | AJ117: 1 | AK117: 1 | AL117: 3 | AM117: 0 | AN117: 0 | AO117: 1 | AP117: 0 | AQ117: 6 | AR117: 2 | AS117: 6 | AT117: 0
E118: 0.2 | F118: 0.008810572687 | G118: 0.01769911504 | Q118: 0.9691629956 | R118: 0.9778761062 | S118: =IF(B27=F123,U1 &" Average","Your Farm") -> 2016 Average | W118: 2 | X118: 2 | Y118: 2 | Z118: 3 | AA118: 13 | AB118: 9 | AC118: 6 | AD118: 7 | AE118: 6 | AF118: 5 | AG118: 2 | AJ118: 1 | AK118: 2 | AL118: 4 | AM118: 0 | AN118: 1 | AO118: 8 | AP118: 0 | AQ118: 11 | AR118: 9 | AS118: 1 | AT118: 0
E119: 0.25 | F119: 0.004405286344 | G119: 0.008849557522 | Q119: 0.9735682819 | R119: 0.9867256637 | W119: 2 | X119: 4 | Y119: 4 | Z119: 10 | AA119: 5 | AB119: 2 | AC119: 4 | AD119: 9 | AE119: 6 | AF119: 2 | AG119: 12 | AJ119: 3 | AK119: 4 | AL119: 4 | AM119: 0 | AN119: 10 | AO119: 6 | AP119: 1 | AQ119: 3 | AR119: 6 | AS119: 1 | AT119: 2
E120: 0.3 | F120: 0 | G120: 0 | Q120: 0.9735682819 | R120: 0.9867256637 | W120: 0 | X120: 2 | Y120: 1 | Z120: 8 | AA120: 3 | AB120: 3 | AC120: 4 | AD120: 4 | AE120: 5 | AF120: 0 | AG120: 9 | AJ120: 0 | AK120: 6 | AL120: 0 | AM120: 10 | AN120: 5 | AO120: 2 | AP120: 4 | AQ120: 0 | AR120: 2 | AS120: 0 | AT120: 14
E121: More | F121: 0.02643171806 | G121: 0.01327433628 | Q121: 1 | R121: 1 | W121: 0 | X121: 4 | Y121: 1 | Z121: 5 | AA121: 1 | AB121: 1 | AC121: 4 | AD121: 1 | AE121: 5 | AF121: 0 | AG121: 2 | AJ121: 1 | AK121: 2 | AL121: 1 | AM121: 10 | AN121: 2 | AO121: 0 | AP121: 4 | AQ121: 0 | AR121: 1 | AS121: 0 | AT121: 4
E122: Count | F122: =F101 -> 227 | G122: =G101 -> 226 | Q122: =IF($T$6=$W$1,AB3/$F$122,IF($T$6=$W$17,AB19/$F$122,IF($T$6=$W$33,AB35/$F$122,IF($T$6=$W$49,AB51/$F$122,IF($T$6=$W$65,AB67/$F$122,IF($T$6=$W$81,AB83/$F$122,IF($T$6=$W$97,AB99/$F$122,IF($T$6=$W$113,AB115/$F$122,IF($T$6=$W$129,AB131/$F$122,IF($T$6=$W$145,AB147/$F$122,IF($T$6=$W$161,AB163/$F$122,"N/A"))))))))))) -> 0.1629955947 | R122: =IF($T$6=$W$1,AO3/$G$38,IF($T$6=$W$17,AO19/$G$38,IF($T$6=$W$33,AO35/$G$38,IF($T$6=$W$49,AO51/$G$38,IF($T$6=$W$65,AO67/$G$38,IF($T$6=$W$81,AO83/$G$38,IF($T$6=$W$97,AO99/$G$38,IF($T$6=$W$113,AO115/$G$38,IF($T$6=$W$129,AO131/$G$38,IF($T$6=$W$145,AO147/$G$38,IF($T$6=$W$161,AO163/$G$38,"N/A"))))))))))) -> 0.08407079646 | W122: 3 | X122: 4 | Y122: 1 | Z122: 0 | AA122: 0 | AB122: 0 | AC122: 3 | AD122: 1 | AE122: 3 | AF122: 0 | AG122: 1 | AJ122: 1 | AK122: 2 | AL122: 0 | AM122: 0 | AN122: 1 | AO122: 2 | AP122: 5 | AQ122: 0 | AR122: 0 | AS122: 0 | AT122: 0
E123: Average | F123: =IF($T$6=$W$1,$AB$14,IF($T$6=$W$17,$AB$30,IF($T$6=$W$33,$AB$46,IF($T$6=$W$49,$AB$62,IF($T$6=$W$65,$AB$78,IF($T$6=$W$81,$AB$94,IF($T$6=$W$97,$AB$110,IF($T$6=$W$113,$AB$126,IF($T$6=$W$129,$AB$142,IF($T$6=$W$145,$AB$158,IF($T$6=W161,AB174,"N/A"))))))))))) -> -0.01700517689 | G123: =IF($T$6=$W$1,$AO$14,IF($T$6=$W$17,$AO$30,IF($T$6=$W$33,$AO$46,IF($T$6=$W$49,$AO$62,IF($T$6=$W$65,$AO$78,IF($T$6=$W$81,$AO$94,IF($T$6=$W$97,$AO$110,IF($T$6=$W$113,$AO$126,IF($T$6=$W$129,$AO$142,IF($T$6=$W$145,$AO$158,IF($T$6=$W$161,$AO$174,"N/A"))))))))))) -> 0.03736168774 | Q123: 0.1453744493 | R123: 0.05752212389 | W123: 0 | X123: 1 | Y123: 3 | Z123: 1 | AA123: 0 | AB123: 0 | AC123: 2 | AD123: 0 | AE123: 1 | AF123: 0 | AG123: 0 | AJ123: 1 | AK123: 1 | AL123: 1 | AM123: 0 | AN123: 1 | AO123: 0 | AP123: 0 | AQ123: 0 | AR123: 0 | AS123: 0 | AT123: 0
Q124: 0.3171806167 | R124: 0.1946902655 | W124: 13 | X124: 3 | Z124: 0 | AA124: 0 | AB124: 1 | AC124: 4 | AG124: 0 | AJ124: 11 | AK124: 1 | AM124: 0 | AN124: 0 | AO124: 1 | AP124: 6 | AT124: 0
Q125: 0.2775330396 | R125: 0.3628318584 | V125: Count | W125: 28 | X125: 28 | Y125: 28 | Z125: 28 | AA125: 28 | AB125: 28 | AC125: 28 | AD125: 28 | AE125: 28 | AF125: 28 | AG125: 28 | AI125: Count | AJ125: 20 | AK125: 20 | AL125: 20 | AM125: 20 | AN125: 20 | AO125: 20 | AP125: 20 | AQ125: 20 | AR125: 20 | AS125: 20 | AT125: 20
Q126: 0.03964757709 | R126: 0.1946902655 | V126: Average | W126: 2.755320881 | X126: 0.5783020658 | Y126: 0.183879078 | Z126: 0.02506094681 | AA126: 0.006352347735 | AB126: -0.001102559519 | AC126: 0.2534759673 | AD126: 0.7257525591 | AE126: 0.1222922296 | AF126: 0.02892456537 | AG126: 0.123030646 | AI126: Average | AJ126: 4.099115044 | AK126: 0.6083277841 | AL126: 0.1875485763 | AM126: 0.1728380138 | AN126: 0.06965971382 | AO126: 0.07511116569 | AP126: 0.4030346814 | AQ126: 0.648159266 | AR126: 0.08764312362 | AS126: 0.02155594068 | AT126: 0.2426416697
F127: =IF(B27=F123,"","Your Farm") ->  | G127: =IF(B27=F123,"",B27) ->  | Q127: 0.01762114537 | R127: 0.06637168142 | V127: Non-ratio average | X127: 360250.3986 | AG127: 76641.32964 | AI127: Non-ratio average | AK127: 454061.0086 | AT127: 181109.7967
Q128: 0.008810572687 | R128: 0.01769911504
Q129: 0.004405286344 | R129: 0.008849557522 | W129: Greater than 1250<100
Q130: 0 | R130: 0 | W130: Current Ratio | X130: Working Capital Ratio | Y130: Debt to Asset Ratio | Z130: Operating Profit Margin | AA130: ROA | AB130: ROE | AC130: Asset Turnover | AD130: Operating Expense Ratio | AE130: Depr Expense Ratio | AF130: Interest Expense Ratio | AG130: NFI Ratio | AJ130: Current Ratio | AK130: Working Capital Ratio | AL130: Debt to Asset Ratio | AM130: Operating Profit Margin | AN130: ROA | AO130: ROE | AP130: Asset Turnover | AQ130: Operating Expense Ratio | AR130: Depr Expense Ratio | AS130: Interest Expense Ratio | AT130: NFI Ratio
E131: Asset Turnover Rate | Q131: 0.02643171806 | R131: 0.01327433628 | W131: 0 | X131: 2 | Y131: 2 | Z131: 1 | AA131: 0 | AB131: 5 | AC131: 0 | AD131: 0 | AE131: 0 | AF131: 1 | AG131: 1 | AJ131: 0 | AK131: 0 | AL131: 0 | AM131: 0 | AN131: 0 | AO131: 0 | AP131: 0 | AQ131: 0 | AR131: 0 | AS131: 0 | AT131: 0
F132: =U1 -> 2016 | G132: 10-Year | W132: 3 | X132: 2 | Y132: 6 | Z132: 0 | AA132: 2 | AB132: 4 | AC132: 1 | AD132: 1 | AE132: 0 | AF132: 7 | AG132: 0 | AJ132: 0 | AK132: 0 | AL132: 10 | AM132: 0 | AN132: 0 | AO132: 1 | AP132: 0 | AQ132: 2 | AR132: 0 | AS132: 16 | AT132: 0
E133: 0 | F133: =Q143 -> 0 | G133: =R143 -> 0 | Q133: =Q143 -> 0 | R133: =R143 -> 0 | W133: 5 | X133: 4 | Y133: 2 | Z133: 0 | AA133: 4 | AB133: 5 | AC133: 2 | AD133: 2 | AE133: 1 | AF133: 7 | AG133: 1 | AJ133: 1 | AK133: 1 | AL133: 6 | AM133: 0 | AN133: 1 | AO133: 3 | AP133: 0 | AQ133: 9 | AR133: 6 | AS133: 16 | AT133: 0
E134: 0.1 | F134: =Q144 -> 0.04405286344 | G134: =R144 -> 0 | Q134: =Q133+Q144 -> 0.04405286344 | R134: =R133+R144 -> 0 | W134: 6 | X134: 6 | Y134: 6 | Z134: 5 | AA134: 13 | AB134: 12 | AC134: 10 | AD134: 10 | AE134: 6 | AF134: 6 | AG134: 8 | AJ134: 5 | AK134: 8 | AL134: 8 | AM134: 1 | AN134: 3 | AO134: 11 | AP134: 2 | AQ134: 16 | AR134: 15 | AS134: 1 | AT134: 0
E135: 0.2 | F135: 0.1938325991 | G135: 0.03097345133 | Q135: 0.2378854626 | R135: 0.03097345133 | W135: 1 | X135: 3 | Y135: 7 | Z135: 8 | AA135: 7 | AB135: 1 | AC135: 8 | AD135: 5 | AE135: 10 | AF135: 4 | AG135: 6 | AJ135: 4 | AK135: 8 | AL135: 3 | AM135: 0 | AN135: 17 | AO135: 13 | AP135: 5 | AQ135: 5 | AR135: 7 | AS135: 1 | AT135: 6
E136: 0.3 | F136: 0.295154185 | G136: 0.1504424779 | Q136: 0.5330396476 | R136: 0.1814159292 | W136: 2 | X136: 3 | Y136: 1 | Z136: 7 | AA136: 1 | AB136: 0 | AC136: 5 | AD136: 6 | AE136: 3 | AF136: 0 | AG136: 10 | AJ136: 7 | AK136: 7 | AL136: 6 | AM136: 14 | AN136: 8 | AO136: 4 | AP136: 9 | AQ136: 2 | AR136: 4 | AS136: 0 | AT136: 17
E137: 0.4 | F137: 0.1806167401 | G137: 0.203539823 | Q137: 0.7136563877 | R137: 0.3849557522 | S137: Your Farm Line-Asset Turnover Rate | W137: 0 | X137: 4 | Y137: 1 | Z137: 5 | AA137: 0 | AB137: 0 | AC137: 1 | AD137: 2 | AE137: 4 | AF137: 0 | AG137: 1 | AJ137: 0 | AK137: 6 | AL137: 0 | AM137: 17 | AN137: 4 | AO137: 2 | AP137: 6 | AQ137: 0 | AR137: 2 | AS137: 0 | AT137: 11
E138: 0.5 | F138: 0.08370044053 | G138: 0.2123893805 | Q138: 0.7973568282 | R138: 0.5973451327 | S138: X's | T138: =IF(B28>0.9,0.9,B28) -> 0.1856718204 | U138: =T138 -> 0.1856718204 | W138: 1 | X138: 2 | Y138: 1 | Z138: 1 | AA138: 0 | AB138: 0 | AC138: 0 | AD138: 0 | AE138: 0 | AF138: 1 | AG138: 0 | AJ138: 1 | AK138: 3 | AL138: 1 | AM138: 2 | AN138: 1 | AO138: 0 | AP138: 4 | AQ138: 0 | AR138: 0 | AS138: 0 | AT138: 0
E139: 0.6 | F139: 0.07488986784 | G139: 0.1548672566 | Q139: 0.872246696 | R139: 0.7522123894 | S139: Y's | T139: 0 | U139: 1 | W139: 0 | X139: 1 | Y139: 1 | Z139: 0 | AA139: 0 | AB139: 0 | AC139: 0 | AD139: 1 | AE139: 3 | AF139: 1 | AG139: 0 | AJ139: 0 | AK139: 1 | AL139: 0 | AM139: 0 | AN139: 0 | AO139: 0 | AP139: 2 | AQ139: 0 | AR139: 0 | AS139: 0 | AT139: 0
E140: 0.7 | F140: 0.01762114537 | G140: 0.09734513274 | Q140: 0.8898678414 | R140: 0.8495575221 | S140: =IF(B28=F144,U1 &" Average","Your Farm") -> 2016 Average | W140: 9 | X140: 0 | Z140: 0 | AA140: 0 | AB140: 0 | AC140: 0 | AG140: 0 | AJ140: 16 | AK140: 0 | AM140: 0 | AN140: 0 | AO140: 0 | AP140: 6 | AT140: 0
E141: 0.8 | F141: 0.03524229075 | G141: 0.03539823009 | Q141: 0.9251101322 | R141: 0.8849557522 | V141: Count | W141: 27 | X141: 27 | Y141: 27 | Z141: 27 | AA141: 27 | AB141: 27 | AC141: 27 | AD141: 27 | AE141: 27 | AF141: 27 | AG141: 27 | AI141: Count | AJ141: 34 | AK141: 34 | AL141: 34 | AM141: 34 | AN141: 34 | AO141: 34 | AP141: 34 | AQ141: 34 | AR141: 34 | AS141: 34 | AT141: 34
E142: More | F142: 0.07488986784 | G142: =R152 -> 0.1150442478 | Q142: 1 | R142: 1 | V142: Average | W142: 1.681820018 | X142: 0.3124377185 | Y142: 0.242092842 | Z142: 0.02898923165 | AA142: 0.005165828198 | AB142: -0.005951434769 | AC142: 0.1781981758 | AD142: 0.7139594375 | AE142: 0.1198641326 | AF142: 0.0532408193 | AG142: 0.1129356106 | AI142: Average | AJ142: 2.857355605 | AK142: 0.5295165444 | AL142: 0.2222318236 | AM142: 0.1836707049 | AN142: 0.05549476462 | AO142: 0.05960810348 | AP142: 0.3021427105 | AQ142: 0.6472684325 | AR142: 0.08809679437 | AS142: 0.0285440968 | AT142: 0.2360906763
E143: Count | F143: =F122 -> 227 | G143: =G122 -> 226 | Q143: =IF($T$6=$W$1,AC3/$F$143,IF($T$6=$W$17,AC19/$F$143,IF($T$6=$W$33,AC35/$F$143,IF($T$6=$W$49,AC51/$F$143,IF($T$6=$W$65,AC67/$F$143,IF($T$6=$W$81,AC83/$F$143,IF($T$6=$W$97,AC99/$F$143,IF($T$6=$W$113,AC115/$F$143,IF($T$6=$W$129,AC131/$F$143,IF($T$6=$W$145,AC147/$F$143,IF($T$6=$W$161,AC163/$F$143,"N/A"))))))))))) -> 0 | R143: =IF($T$6=$W$1,AP3/$G$38,IF($T$6=$W$17,AP19/$G$38,IF($T$6=$W$33,AP35/$G$38,IF($T$6=$W$49,AP51/$G$38,IF($T$6=$W$65,AP67/$G$38,IF($T$6=$W$81,AP83/$G$38,IF($T$6=$W$97,AP99/$G$38,IF($T$6=$W$113,AP115/$G$38,IF($T$6=$W$129,AP131/$G$38,IF($T$6=$W$145,AP147/$G$38,IF($T$6=$W$161,AP163/$G$38,"N/A"))))))))))) -> 0 | V143: Non-ratio average | X143: 159784.7474 | AG143: 57756.75259 | AI143: Non-ratio average | AK143: 348236.4218 | AT143: 155264.9737
E144: Average | F144: =IF($T$6=$W$1,$AC$14,IF($T$6=$W$17,$AC$30,IF($T$6=$W$33,$AC$46,IF($T$6=$W$49,$AC$62,IF($T$6=$W$65,$AC$78,IF($T$6=$W$81,$AC$94,IF($T$6=$W$97,$AC$110,IF($T$6=$W$113,$AC$126,IF($T$6=$W$129,$AC$142,IF($T$6=$W$145,$AC$158,IF($T$6=W161,AC174,"N/A"))))))))))) -> 0.1856718204 | G144: =IF($T$6=$W$1,$AP$14,IF($T$6=$W$17,$AP$30,IF($T$6=$W$33,$AP$46,IF($T$6=$W$49,$AP$62,IF($T$6=$W$65,$AP$78,IF($T$6=$W$81,$AP$94,IF($T$6=$W$97,$AP$110,IF($T$6=$W$113,$AP$126,IF($T$6=$W$129,$AP$142,IF($T$6=$W$145,$AP$158,IF($T$6=$W$161,$AP$174,"N/A"))))))))))) -> 0.2874217901 | Q144: 0.04405286344 | R144: 0
Q145: 0.1938325991 | R145: 0.03097345133 | W145: Greater than 1250100+
Q146: 0.295154185 | R146: 0.1504424779 | W146: Current Ratio | X146: Working Capital Ratio | Y146: Debt to Asset Ratio | Z146: Operating Profit Margin | AA146: ROA | AB146: ROE | AC146: Asset Turnover | AD146: Operating Expense Ratio | AE146: Depr Expense Ratio | AF146: Interest Expense Ratio | AG146: NFI Ratio | AJ146: Current Ratio | AK146: Working Capital Ratio | AL146: Debt to Asset Ratio | AM146: Operating Profit Margin | AN146: ROA | AO146: ROE | AP146: Asset Turnover | AQ146: Operating Expense Ratio | AR146: Depr Expense Ratio | AS146: Interest Expense Ratio | AT146: NFI Ratio
Q147: 0.1806167401 | R147: 0.203539823 | W147: 0 | X147: 2 | Y147: 1 | Z147: 0 | AA147: 2 | AB147: 4 | AC147: 0 | AD147: 0 | AE147: 0 | AF147: 2 | AG147: 0 | AJ147: 0 | AK147: 0 | AL147: 0 | AM147: 0 | AN147: 0 | AO147: 3 | AP147: 0 | AQ147: 0 | AR147: 0 | AS147: 0 | AT147: 0
F148: =IF(B28=F144,"","Your Farm") ->  | G148: =IF(B28=F144,"",B28) ->  | Q148: 0.08370044053 | R148: 0.2123893805 | W148: 2 | X148: 2 | Y148: 7 | Z148: 1 | AA148: 1 | AB148: 5 | AC148: 0 | AD148: 0 | AE148: 0 | AF148: 10 | AG148: 2 | AJ148: 0 | AK148: 0 | AL148: 8 | AM148: 0 | AN148: 0 | AO148: 1 | AP148: 0 | AQ148: 0 | AR148: 0 | AS148: 10 | AT148: 0
Q149: 0.07488986784 | R149: 0.1548672566 | W149: 8 | X149: 6 | Y149: 3 | Z149: 1 | AA149: 6 | AB149: 16 | AC149: 5 | AD149: 1 | AE149: 0 | AF149: 10 | AG149: 2 | AJ149: 7 | AK149: 7 | AL149: 0 | AM149: 0 | AN149: 0 | AO149: 1 | AP149: 0 | AQ149: 2 | AR149: 6 | AS149: 11 | AT149: 0
Q150: 0.01762114537 | R150: 0.09734513274 | W150: 4 | X150: 4 | Y150: 5 | Z150: 5 | AA150: 18 | AB150: 8 | AC150: 13 | AD150: 8 | AE150: 11 | AF150: 8 | AG150: 7 | AJ150: 3 | AK150: 5 | AL150: 3 | AM150: 0 | AN150: 5 | AO150: 12 | AP150: 1 | AQ150: 13 | AR150: 13 | AS150: 5 | AT150: 1
Q151: 0.03524229075 | R151: 0.03539823009 | W151: 3 | X151: 8 | Y151: 10 | Z151: 13 | AA151: 7 | AB151: 1 | AC151: 8 | AD151: 13 | AE151: 13 | AF151: 2 | AG151: 16 | AJ151: 3 | AK151: 3 | AL151: 5 | AM151: 3 | AN151: 17 | AO151: 7 | AP151: 4 | AQ151: 8 | AR151: 6 | AS151: 0 | AT151: 10
E152: Operating Expense Ratio | Q152: 0.07488986784 | R152: 0.1150442478 | W152: 3 | X152: 3 | Y152: 4 | Z152: 10 | AA152: 0 | AB152: 0 | AC152: 2 | AD152: 8 | AE152: 6 | AF152: 0 | AG152: 5 | AJ152: 3 | AK152: 6 | AL152: 6 | AM152: 11 | AN152: 3 | AO152: 2 | AP152: 11 | AQ152: 4 | AR152: 1 | AS152: 1 | AT152: 13
F153: =U1 -> 2016 | G153: 10-Year | W153: 1 | X153: 7 | Y153: 2 | Z153: 5 | AA153: 0 | AB153: 0 | AC153: 1 | AD153: 1 | AE153: 3 | AF153: 2 | AG153: 3 | AJ153: 1 | AK153: 3 | AL153: 1 | AM153: 12 | AN153: 2 | AO153: 0 | AP153: 5 | AQ153: 0 | AR153: 1 | AS153: 0 | AT153: 3
E154: 0.4 | F154: =Q163 -> 0.008810572687 | G154: =R163 -> 0.008849557522 | Q154: =Q163 -> 0.008810572687 | R154: =R163 -> 0.008849557522 | W154: 0 | X154: 0 | Y154: 1 | Z154: 0 | AA154: 1 | AB154: 1 | AC154: 1 | AD154: 3 | AE154: 2 | AF154: 1 | AG154: 0 | AJ154: 1 | AK154: 2 | AL154: 0 | AM154: 1 | AN154: 0 | AO154: 0 | AP154: 2 | AQ154: 0 | AR154: 0 | AS154: 0 | AT154: 0
E155: 0.5 | F155: =Q164 -> 0.02643171806 | G155: =R164 -> 0.02654867257 | Q155: =Q154+Q164 -> 0.03524229075 | R155: 0.03539823009 | W155: 1 | X155: 2 | Y155: 2 | Z155: 0 | AA155: 0 | AB155: 0 | AC155: 0 | AD155: 1 | AE155: 0 | AF155: 0 | AG155: 0 | AJ155: 1 | AK155: 1 | AL155: 4 | AM155: 0 | AN155: 0 | AO155: 0 | AP155: 0 | AQ155: 0 | AR155: 0 | AS155: 0 | AT155: 0
E156: 0.6 | F156: 0.08370044053 | G156: 0.2079646018 | Q156: 0.1189427313 | R156: 0.2433628319 | W156: 13 | X156: 1 | Z156: 0 | AA156: 0 | AB156: 0 | AC156: 5 | AG156: 0 | AJ156: 8 | AK156: 0 | AM156: 0 | AN156: 0 | AO156: 1 | AP156: 4 | AT156: 0
E157: 0.7 | F157: 0.2378854626 | G157: 0.3761061947 | Q157: 0.3568281938 | R157: 0.6194690265 | V157: Count | W157: 35 | X157: 35 | Y157: 35 | Z157: 35 | AA157: 35 | AB157: 35 | AC157: 35 | AD157: 35 | AE157: 35 | AF157: 35 | AG157: 35 | AI157: Count | AJ157: 27 | AK157: 27 | AL157: 27 | AM157: 27 | AN157: 27 | AO157: 27 | AP157: 27 | AQ157: 27 | AR157: 27 | AS157: 27 | AT157: 27
E158: 0.8 | F158: 0.2378854626 | G158: 0.2610619469 | Q158: 0.5947136564 | R158: 0.8805309735 | V158: Average | W158: 1.606126328 | X158: 0.3187042993 | Y158: 0.3013109639 | Z158: -0.003765413768 | AA158: -0.0008514782891 | AB158: -0.01916775838 | AC158: 0.2261314006 | AD158: 0.8014220637 | AE158: 0.1062038226 | AF158: 0.05166855384 | AG158: 0.04070555981 | AI158: Average | AJ158: 1.836723212 | AK158: 0.3515018883 | AL158: 0.3270349576 | AM158: 0.1457504294 | AN158: 0.04957924773 | AO158: 0.05059673319 | AP158: 0.3401653631 | AQ158: 0.7086313571 | AR158: 0.07545045138 | AS158: 0.04172333029 | AT158: 0.1741948612
E159: 0.9 | F159: 0.2202643172 | G159: 0.09734513274 | Q159: 0.8149779736 | R159: 0.9778761062 | S159: Your Farm Line-Operating Expense Ratio | V159: Non-ratio average | X159: 289903.3629 | AG159: 37027.04577 | AI159: Non-ratio average | AK159: 333868.0296 | AT159: 165455.9962
E160: 1 | F160: 0.07488986784 | G160: 0.02212389381 | Q160: 0.8898678414 | R160: 1 | S160: X's | T160: =IF(B29>1.2,1.2,B29) -> 0.7741789158 | U160: =T160 -> 0.7741789158
E161: 1.1 | F161: 0.04845814978 | G161: 0 | Q161: 0.9383259912 | R161: 1 | S161: Y's | T161: 0 | U161: 1 | W161: All Farms
E162: More | F162: 0.06167400881 | G162: 0 | Q162: 1 | R162: 1 | S162: =IF(B29=F164,U1 &" Average","Your Farm") -> 2016 Average | W162: Current Ratio | X162: Working Capital Ratio | Y162: Debt to Asset Ratio | Z162: Operating Profit Margin | AA162: ROA | AB162: ROE | AC162: Asset Turnover | AD162: Operating Expense Ratio | AE162: Depr Expense Ratio | AF162: Interest Expense Ratio | AG162: NFI Ratio | AJ162: Current Ratio | AK162: Working Capital Ratio | AL162: Debt to Asset Ratio | AM162: Operating Profit Margin | AN162: ROA | AO162: ROE | AP162: Asset Turnover | AQ162: Operating Expense Ratio | AR162: Depr Expense Ratio | AS162: Interest Expense Ratio | AT162: NFI Ratio
E163: Count | F163: =F143 -> 227 | G163: =G143 -> 226 | Q163: =IF($T$6=$W$1,AD3/$F$143,IF($T$6=$W$17,AD19/$F$143,IF($T$6=$W$33,AD35/$F$143,IF($T$6=$W$49,AD51/$F$143,IF($T$6=$W$65,AD67/$F$143,IF($T$6=$W$81,AD83/$F$143,IF($T$6=$W$97,AD99/$F$143,IF($T$6=$W$113,AD115/$F$143,IF($T$6=$W$129,AD131/$F$143,IF($T$6=$W$145,AD147/$F$143,IF($T$6=$W$161,AD163/$F$143,"N/A"))))))))))) -> 0.008810572687 | R163: =IF($T$6=$W$1,AQ3/$G$38,IF($T$6=$W$17,AQ19/$G$38,IF($T$6=$W$33,AQ35/$G$38,IF($T$6=$W$49,AQ51/$G$38,IF($T$6=$W$65,AQ67/$G$38,IF($T$6=$W$81,AQ83/$G$38,IF($T$6=$W$97,AQ99/$G$38,IF($T$6=$W$113,AQ115/$G$38,IF($T$6=$W$129,AQ131/$G$38,IF($T$6=$W$145,AQ147/$G$38,IF($T$6=$W$161,AQ163/$G$38,"N/A"))))))))))) -> 0.008849557522 | W163: 0 | X163: 15 | Y163: 26 | Z163: 13 | AA163: 9 | AB163: 37 | AC163: 0 | AD163: 2 | AE163: 0 | AF163: 28 | AG163: 8 | AJ163: 1 | AK163: 5 | AL163: 7 | AM163: 0 | AN163: 3 | AO163: 19 | AP163: 0 | AQ163: 2 | AR163: 0 | AS163: 4 | AT163: 0
E164: Average | F164: =IF($T$6=$W$1,$AD$14,IF($T$6=$W$17,$AD$30,IF($T$6=$W$33,$AD$46,IF($T$6=$W$49,$AD$62,IF($T$6=$W$65,$AD$78,IF($T$6=$W$81,$AD$94,IF($T$6=$W$97,$AD$110,IF($T$6=$W$113,$AD$126,IF($T$6=$W$129,$AD$142,IF($T$6=$W$145,$AD$158,IF($T$6=W161,AD174,"N/A"))))))))))) -> 0.7741789158 | G164: =IF($T$6=$W$1,$AQ$14,IF($T$6=$W$17,$AQ$30,IF($T$6=$W$33,$AQ$46,IF($T$6=$W$49,$AQ$62,IF($T$6=$W$65,$AQ$78,IF($T$6=$W$81,$AQ$94,IF($T$6=$W$97,$AQ$110,IF($T$6=$W$113,$AQ$126,IF($T$6=$W$129,$AQ$142,IF($T$6=$W$145,$AQ$158,IF($T$6=$W$161,$AQ$174,"N/A"))))))))))) -> 0.6779795895 | Q164: 0.02643171806 | R164: 0.02654867257 | W164: 20 | X164: 11 | Y164: 46 | Z164: 7 | AA164: 23 | AB164: 33 | AC164: 10 | AD164: 6 | AE164: 13 | AF164: 66 | AG164: 6 | AJ164: 5 | AK164: 2 | AL164: 57 | AM164: 0 | AN164: 2 | AO164: 13 | AP164: 0 | AQ164: 6 | AR164: 11 | AS164: 89 | AT164: 0
Q165: 0.08370044053 | R165: 0.2079646018 | W165: 27 | X165: 21 | Y165: 33 | Z165: 22 | AA165: 46 | AB165: 72 | AC165: 44 | AD165: 19 | AE165: 28 | AF165: 52 | AG165: 19 | AJ165: 21 | AK165: 19 | AL165: 33 | AM165: 4 | AN165: 21 | AO165: 44 | AP165: 7 | AQ165: 47 | AR165: 50 | AS165: 75 | AT165: 2
Q166: 0.2378854626 | R166: 0.3761061947 | W166: 36 | X166: 37 | Y166: 35 | Z166: 30 | AA166: 99 | AB166: 63 | AC166: 67 | AD166: 54 | AE166: 49 | AF166: 44 | AG166: 43 | AJ166: 30 | AK166: 38 | AL166: 37 | AM166: 11 | AN166: 61 | AO166: 82 | AP166: 34 | AQ166: 85 | AR166: 83 | AS166: 36 | AT166: 7
Q167: 0.2378854626 | R167: 0.2610619469 | W167: 22 | X167: 38 | Y167: 34 | Z167: 60 | AA167: 36 | AB167: 9 | AC167: 41 | AD167: 54 | AE167: 58 | AF167: 20 | AG167: 69 | AJ167: 25 | AK167: 49 | AL167: 34 | AM167: 34 | AN167: 96 | AO167: 44 | AP167: 46 | AQ167: 59 | AR167: 46 | AS167: 11 | AT167: 63
F168: =IF(B29=F164,"","Your Farm") ->  | G168: =IF(B29=F164,"",B29) ->  | Q168: 0.2202643172 | R168: 0.09734513274 | W168: 13 | X168: 33 | Y168: 18 | Z168: 61 | AA168: 9 | AB168: 4 | AC168: 19 | AD168: 50 | AE168: 26 | AF168: 3 | AG168: 62 | AJ168: 17 | AK168: 45 | AL168: 26 | AM168: 94 | AN168: 28 | AO168: 15 | AP168: 48 | AQ168: 22 | AR168: 27 | AS168: 6 | AT168: 104
Q169: 0.07488986784 | R169: 0.02212389381 | W169: 5 | X169: 30 | Y169: 12 | Z169: 30 | AA169: 1 | AB169: 2 | AC169: 17 | AD169: 17 | AE169: 27 | AF169: 4 | AG169: 16 | AJ169: 15 | AK169: 36 | AL169: 11 | AM169: 73 | AN169: 12 | AO169: 4 | AP169: 35 | AQ169: 5 | AR169: 8 | AS169: 4 | AT169: 47
Q170: 0.04845814978 | R170: 0 | W170: 6 | X170: 12 | Y170: 9 | Z170: 3 | AA170: 2 | AB170: 1 | AC170: 4 | AD170: 11 | AE170: 13 | AF170: 6 | AG170: 4 | AJ170: 13 | AK170: 15 | AL170: 7 | AM170: 10 | AN170: 2 | AO170: 2 | AP170: 22 | AQ170: 0 | AR170: 1 | AS170: 0 | AT170: 3
Q171: 0.06167400881 | R171: 0 | W171: 4 | X171: 12 | Y171: 14 | Z171: 1 | AA171: 0 | AB171: 0 | AC171: 8 | AD171: 14 | AE171: 13 | AF171: 4 | AG171: 0 | AJ171: 4 | AK171: 7 | AL171: 14 | AM171: 0 | AN171: 1 | AO171: 0 | AP171: 8 | AQ171: 0 | AR171: 0 | AS171: 1 | AT171: 0
W172: 94 | X172: 18 | Z172: 0 | AA172: 2 | AB172: 6 | AC172: 17 | AG172: 0 | AJ172: 95 | AK172: 10 | AM172: 0 | AN172: 0 | AO172: 3 | AP172: 26 | AT172: 0
E173: Depreciation Expense Ratio | V173: Count | W173: 227 | X173: 227 | Y173: 227 | Z173: 227 | AA173: 227 | AB173: 227 | AC173: 227 | AD173: 227 | AE173: 227 | AF173: 227 | AG173: 227 | AI173: Count | AJ173: 226 | AK173: 226 | AL173: 226 | AM173: 226 | AN173: 226 | AO173: 226 | AP173: 226 | AQ173: 226 | AR173: 226 | AS173: 226 | AT173: 226
F174: =U1 -> 2016 | G174: 10-Year | V174: Average | W174: 1.925755339 | X174: 0.4659635592 | Y174: 0.2359744454 | Z174: -0.01946055851 | AA174: -0.003613277326 | AB174: -0.01700517689 | AC174: 0.1856718204 | AD174: 0.7741789158 | AE174: 0.1060345587 | AF174: 0.04735968071 | AG174: 0.07242684473 | AI174: Average | AJ174: 2.433506287 | AK174: 0.5087198796 | AL174: 0.2571442264 | AM174: 0.1387936035 | AN174: 0.03989230597 | AO174: 0.03736168774 | AP174: 0.2874217901 | AQ174: 0.6779795895 | AR174: 0.08179417832 | AS174: 0.03828698114 | AT174: 0.2019392511
E175: 0 | F175: =Q184 -> 0 | G175: =R184 -> 0 | Q175: =Q184 -> 0 | R175: =R184 -> 0 | V175: Non-ratio average | X175: 220605.753 | AG175: 34289.76002 | AI175: Non-ratio average | AK175: 250041.6625 | AT175: 99255.46082
E176: 0.03 | F176: =Q185 -> 0.05726872247 | G176: =R185 -> 0.04867256637 | Q176: =Q175+Q185 -> 0.05726872247 | R176: 0.04867256637
E177: 0.06 | F177: 0.1233480176 | G177: 0.2212389381 | Q177: 0.1806167401 | R177: 0.2699115044
E178: 0.09 | F178: 0.2158590308 | G178: 0.3672566372 | Q178: 0.3964757709 | R178: 0.6371681416
E179: 0.12 | F179: 0.2555066079 | G179: 0.203539823 | Q179: 0.6519823789 | R179: 0.8407079646
E180: 0.15 | F180: 0.1145374449 | G180: 0.1194690265 | Q180: 0.7665198238 | R180: 0.9601769912
E181: 0.18 | F181: 0.1189427313 | G181: 0.03539823009 | Q181: 0.8854625551 | R181: 0.9955752212 | S181: Your Farm Line-Depreciation Expense Ratio
E182: 0.21 | F182: 0.05726872247 | G182: 0.004424778761 | Q182: 0.9427312775 | R182: 1 | S182: X's | T182: =IF(B30>0.24,0.24,B30) -> 0.1060345587 | U182: =T182 -> 0.1060345587
E183: More | F183: 0.05726872247 | G183: 0 | Q183: 1 | R183: 1 | S183: Y's | T183: 0 | U183: 1
E184: Count | F184: =F163 -> 227 | G184: =G163 -> 226 | Q184: =IF($T$6=$W$1,AE3/$F$143,IF($T$6=$W$17,AE19/$F$143,IF($T$6=$W$33,AE35/$F$143,IF($T$6=$W$49,AE51/$F$143,IF($T$6=$W$65,AE67/$F$143,IF($T$6=$W$81,AE83/$F$143,IF($T$6=$W$97,AE99/$F$143,IF($T$6=$W$113,AE115/$F$143,IF($T$6=$W$129,AE131/$F$143,IF($T$6=$W$145,AE147/$F$143,IF($T$6=$W$161,AE163/$F$143,"N/A"))))))))))) -> 0 | R184: =IF($T$6=$W$1,AR3/$G$38,IF($T$6=$W$17,AR19/$G$38,IF($T$6=$W$33,AR35/$G$38,IF($T$6=$W$49,AR51/$G$38,IF($T$6=$W$65,AR67/$G$38,IF($T$6=$W$81,AR83/$G$38,IF($T$6=$W$97,AR99/$G$38,IF($T$6=$W$113,AR115/$G$38,IF($T$6=$W$129,AR131/$G$38,IF($T$6=$W$145,AR147/$G$38,IF($T$6=$W$161,AR163/$G$38,"N/A"))))))))))) -> 0 | S184: =IF(B30=F185,U1 &" Average","Your Farm") -> 2016 Average
E185: Average | F185: =IF($T$6=$W$1,$AE$14,IF($T$6=$W$17,$AE$30,IF($T$6=$W$33,$AE$46,IF($T$6=$W$49,$AE$62,IF($T$6=$W$65,$AE$78,IF($T$6=$W$81,$AE$94,IF($T$6=$W$97,$AE$110,IF($T$6=$W$113,$AE$126,IF($T$6=$W$129,$AE$142,IF($T$6=$W$145,$AE$158,IF($T$6=$W$161,AE174,"N/A"))))))))))) -> 0.1060345587 | G185: =IF($T$6=$W$1,$AR$14,IF($T$6=$W$17,$AR$30,IF($T$6=$W$33,$AR$46,IF($T$6=$W$49,$AR$62,IF($T$6=$W$65,$AR$78,IF($T$6=$W$81,$AR$94,IF($T$6=$W$97,$AR$110,IF($T$6=$W$113,$AR$126,IF($T$6=$W$129,$AR$142,IF($T$6=$W$145,$AR$158,IF($T$6=$W$161,$AR$174,"N/A"))))))))))) -> 0.08179417832 | Q185: 0.05726872247 | R185: 0.04867256637
Q186: 0.1233480176 | R186: 0.2212389381
Q187: 0.2158590308 | R187: 0.3672566372
Q188: 0.2555066079 | R188: 0.203539823
F189: =IF(B30=F185,"","Your Farm") ->  | G189: =IF(B30=F185,"",B30) ->  | Q189: 0.1145374449 | R189: 0.1194690265
Q190: 0.1189427313 | R190: 0.03539823009
Q191: 0.05726872247 | R191: 0.004424778761
Q192: 0.05726872247 | R192: 0
E194: Interest Expense Ratio
F195: =U1 -> 2016 | G195: 10-Year
E196: 0 | F196: =Q205 -> 0.1233480176 | G196: =R205 -> 0.01769911504 | Q196: =Q205 -> 0.1233480176 | R196: =R205 -> 0.01769911504
E197: 0.03 | F197: =Q206 -> 0.2907488987 | G197: =R206 -> 0.3938053097 | Q197: =Q196+Q206 -> 0.4140969163 | R197: 0.4115044248
E198: 0.06 | F198: 0.2290748899 | G198: 0.3318584071 | Q198: 0.6431718062 | R198: 0.7433628319
E199: 0.09 | F199: 0.1938325991 | G199: 0.1592920354 | Q199: 0.8370044053 | R199: 0.9026548673
E200: 0.12 | F200: 0.08810572687 | G200: 0.04867256637 | Q200: 0.9251101322 | R200: 0.9513274336
E201: 0.15 | F201: 0.01321585903 | G201: 0.02654867257 | Q201: 0.9383259912 | R201: 0.9778761062
... 34 more rows

Sheet NorthEast
E1: KSU FARM FINANCIAL BENCHMARKING TOOL-Northeast Kansas | S1: Acres | T1: Lookup | U1: 2016 | W1: Less than 500No | AI1: 10-Year
S2: Less than 500 | T2: LT | U2: 2016 KFMA Farms | W2: Current Ratio | X2: Working Capital Ratio | Y2: Debt to Asset Ratio | Z2: Operating Profit Margin | AA2: ROA | AB2: ROE | AC2: Asset Turnover | AD2: Operating Expense Ratio | AE2: Depr Expense Ratio | AF2: Interest Expense Ratio | AG2: NFI Ratio | AJ2: Current Ratio | AK2: Working Capital Ratio | AL2: Debt to Asset Ratio | AM2: Operating Profit Margin | AN2: ROA | AO2: ROE | AP2: Asset Turnover | AQ2: Operating Expense Ratio | AR2: Depr Expense Ratio | AS2: Interest Expense Ratio | AT2: NFI Ratio
E3: Tillable Crop Acres: | G3: =B16 -> All Farms | I3: =A17 ->  | K3: =IF(B17="","",B17) ->  | P3: =IF(B18="","",B18) ->  | S3: 500-1000 | T3: BTW | U3: =J3 -> 0 | W3: 0 | X3: 1 | Y3: 6 | Z3: 1 | AA3: 1 | AB3: 2 | AC3: 0 | AD3: 0 | AE3: 0 | AF3: 5 | AG3: 0 | AJ3: 0 | AK3: 0 | AL3: 3 | AM3: 2 | AN3: 1 | AO3: 0 | AP3: 0 | AQ3: 0 | AR3: 0 | AS3: 5 | AT3: 0
S4: Greater than 1000 | T4: GT | W4: 1 | X4: 0 | Y4: 4 | Z4: 3 | AA4: 1 | AB4: 3 | AC4: 2 | AD4: 0 | AE4: 3 | AF4: 4 | AG4: 1 | AJ4: 0 | AK4: 0 | AL4: 6 | AM4: 0 | AN4: 0 | AO4: 1 | AP4: 0 | AQ4: 0 | AR4: 3 | AS4: 6 | AT4: 0
E5: Current Ratio | S5: All Farms | T5: All | W5: 0 | X5: 0 | Y5: 3 | Z5: 3 | AA5: 7 | AB5: 7 | AC5: 5 | AD5: 1 | AE5: 3 | AF5: 2 | AG5: 1 | AJ5: 0 | AK5: 0 | AL5: 1 | AM5: 0 | AN5: 2 | AO5: 3 | AP5: 3 | AQ5: 5 | AR5: 5 | AS5: 2 | AT5: 0
F6: =U1 -> 2016 | G6: 10-Year | S6: LTList | T6: =B16&B17&B18 -> All Farms | W6: 1 | X6: 0 | Y6: 1 | Z6: 3 | AA6: 4 | AB6: 1 | AC6: 2 | AD6: 3 | AE6: 1 | AF6: 2 | AG6: 4 | AJ6: 1 | AK6: 2 | AL6: 2 | AM6: 1 | AN6: 5 | AO6: 7 | AP6: 3 | AQ6: 7 | AR6: 4 | AS6: 1 | AT6: 2
E7: 0 | F7: =Q17 -> 0.005347593583 | G7: =R17 -> 0.01020408163 | S7: Yes | W7: 0 | X7: 4 | Y7: 0 | Z7: 2 | AA7: 0 | AB7: 0 | AC7: 1 | AD7: 4 | AE7: 3 | AF7: 2 | AG7: 5 | AJ7: 1 | AK7: 2 | AL7: 1 | AM7: 2 | AN7: 4 | AO7: 0 | AP7: 4 | AQ7: 1 | AR7: 1 | AS7: 0 | AT7: 1
E8: 0.5 | F8: =Q18 -> 0.05347593583 | G8: =R18 -> 0.005102040816 | Q8: =Q7+Q18 -> 0.05347593583 | R8: =R7+R18 -> 0.005102040816 | S8: No | W8: 0 | X8: 0 | Y8: 0 | Z8: 1 | AA8: 0 | AB8: 0 | AC8: 1 | AD8: 3 | AE8: 0 | AF8: 0 | AG8: 2 | AJ8: 0 | AK8: 1 | AL8: 0 | AM8: 4 | AN8: 0 | AO8: 1 | AP8: 0 | AQ8: 0 | AR8: 2 | AS8: 1 | AT8: 4
E9: 1 | F9: 0.06417112299 | G9: 0.07142857143 | Q9: 0.1176470588 | R9: 0.07653061224 | W9: 1 | X9: 2 | Y9: 0 | Z9: 1 | AA9: 0 | AB9: 1 | AC9: 0 | AD9: 2 | AE9: 2 | AF9: 0 | AG9: 2 | AJ9: 1 | AK9: 2 | AL9: 0 | AM9: 6 | AN9: 2 | AO9: 0 | AP9: 0 | AQ9: 2 | AR9: 0 | AS9: 0 | AT9: 8
E10: 1.5 | F10: 0.1604278075 | G10: 0.08673469388 | Q10: 0.2780748663 | R10: 0.1632653061 | W10: 0 | X10: 0 | Y10: 0 | Z10: 1 | AA10: 0 | AB10: 0 | AC10: 0 | AD10: 1 | AE10: 0 | AF10: 0 | AG10: 0 | AJ10: 0 | AK10: 0 | AL10: 1 | AM10: 0 | AN10: 0 | AO10: 0 | AP10: 0 | AQ10: 0 | AR10: 0 | AS10: 0 | AT10: 0
E11: 2 | F11: 0.08021390374 | G11: 0.1173469388 | Q11: 0.3582887701 | R11: 0.2806122449 | S11: BTWList | T11: Lookup | W11: 0 | X11: 3 | Y11: 1 | Z11: 0 | AA11: 1 | AB11: 0 | AC11: 0 | AD11: 1 | AE11: 3 | AF11: 0 | AG11: 0 | AJ11: 0 | AK11: 1 | AL11: 1 | AM11: 0 | AN11: 0 | AO11: 1 | AP11: 1 | AQ11: 0 | AR11: 0 | AS11: 0 | AT11: 0
E12: 2.5 | F12: 0.02673796791 | G12: 0.09693877551 | Q12: 0.385026738 | R12: 0.3775510204 | S12: Yes | T12: LL | W12: 12 | X12: 5 | Z12: 0 | AA12: 1 | AB12: 1 | AC12: 4 | AG12: 0 | AJ12: 12 | AK12: 7 | AM12: 0 | AN12: 1 | AO12: 2 | AP12: 4 | AT12: 0
E13: 3 | F13: 0.06417112299 | G13: 0.1020408163 | Q13: 0.449197861 | R13: 0.4795918367 | S13: No | T13: GG | V13: Count | W13: 15 | X13: 15 | Y13: 15 | Z13: 15 | AA13: 15 | AB13: 15 | AC13: 15 | AD13: 15 | AE13: 15 | AF13: 15 | AG13: 15 | AI13: Count | AJ13: 15 | AK13: 15 | AL13: 15 | AM13: 15 | AN13: 15 | AO13: 15 | AP13: 15 | AQ13: 15 | AR13: 15 | AS13: 15 | AT13: 15
E14: 3.5 | F14: 0.03743315508 | G14: 0.02551020408 | Q14: 0.486631016 | R14: 0.5051020408 | V14: Average | W14: 10.93341719 | X14: 1.679333006 | Y14: 0.04828277682 | Z14: -0.2076921102 | AA14: -0.02614374513 | AB14: -0.03188013876 | AC14: 0.1258774111 | AD14: 0.789228888 | AE14: 0.1090071645 | AF14: 0.02936465138 | AG14: 0.07239929607 | AI14: Average | AJ14: 14.01709863 | AK14: 1.328003848 | AL14: 0.09138220973 | AM14: 0.08226654903 | AN14: 0.0169924964 | AO14: 0.01229735507 | AP14: 0.2065541414 | AQ14: 0.6488216618 | AR14: 0.05609583958 | AS14: 0.02339819719 | AT14: 0.2716843014
A15: BENCHMARK CATEGORY | E15: 4 | F15: 0.04278074866 | G15: 0.03571428571 | Q15: 0.5294117647 | R15: 0.5408163265 | V15: Non-ratio average | X15: 257117.352 | AG15: 11084.82667 | AI15: Non-ratio average | AK15: 175015.3247 | AT15: 35804.80305
A16: Tillable Crop Acres: | B16: All Farms | E16: More | F16: 0.4652406417 | G16: 0.4489795918 | Q16: 0.9946524064 | R16: 0.9897959184 | S16: GTList
A17: =IF(B16="All Farms", "", "Beef Cows:") ->  | E17: Count | F17: =IF($T$6=$W$1,$W$13,IF($T$6=$W$17,$W$29,IF($T$6=$W$33,$W$45,IF($T$6=$W$49,$W$61,IF($T$6=$W$65,$W$77,IF($T$6=$W$81,$W$93,IF($T$6=$W$97,$W$109,IF($T$6=$W$113,$W$125,IF($T$6=$W$129,$W$141,IF($T$6=$W$145,$W$157,IF(T6=$W$161,$W$173,"N/A"))))))))))) -> 187 | G17: =IF($T$6=$W$1,$AJ$13,IF($T$6=$W$17,$AJ$29,IF($T$6=$W$33,$AJ$45,IF($T$6=$W$49,$AJ$61,IF($T$6=$W$65,$AJ$77,IF($T$6=$W$81,$AJ$93,IF($T$6=$W$97,$AJ$109,IF($T$6=$W$113,$AJ$125,IF($T$6=$W$129,$AJ$141,IF($T$6=$W$145,$AJ$157, IF($T$6=$W$161,$AJ$173,"N/A"))))))))))) -> 196 | Q17: =IF($T$6=$W$1,W3/$W$13,IF($T$6=$W$17,W19/$W$29,IF($T$6=$W$33,W35/$W$45,IF($T$6=$W$49,W51/$W$61,IF($T$6=$W$65,W67/$W$77,IF($T$6=$W$81,W83/$W$93,IF($T$6=$W$97,W99/$W$109,IF($T$6=$W$113,W115/$W$125,IF($T$6=$W$129,W131/$W$141,IF($T$6=$W$145,W147/$W$157,IF($T$6=$W$161,W163/$W$173,"N/A"))))))))))) -> 0.005347593583 | R17: =IF($T$6=$W$1,AJ3/$AJ$13,IF($T$6=$W$17,AJ19/$AJ$29,IF($T$6=$W$33,AJ35/$AJ$45,IF($T$6=$W$49,AJ51/$AJ$61,IF($T$6=$W$65,AJ67/$AJ$77,IF($T$6=$W$81,AJ83/$AJ$93,IF($T$6=$W$97,AJ99/$AJ$109,IF($T$6=$W$113,AJ115/$AJ$125,IF($T$6=$W$129,AJ131/$AJ$141,IF($T$6=$W$145,AJ147/$AJ$157,IF($T$6=$W$161,AJ163/$AJ$173,"N/A"))))))))))) -> 0.01020408163 | S17: Yes | W17: Less than 500Yes
E18: Average | F18: =IF($T$6=$W$1,$W$14,IF($T$6=$W$17,$W$30,IF($T$6=$W$33,$W$46,IF($T$6=$W$49,$W$62,IF($T$6=$W$65,$W$78,IF($T$6=$W$81,$W$94,IF($T$6=$W$97,$W$110,IF($T$6=$W$113,$W$126,IF($T$6=$W$129,$W$142,IF($T$6=$W$145,$W$158, IF($T$6=$W$161,$W$174,"N/A"))))))))))) -> 2.805671674 | G18: =IF($T$6=$W$1,$AJ$14,IF($T$6=$W$17,$AJ$30,IF($T$6=$W$33,$AJ$46,IF($T$6=$W$49,$AJ$62,IF($T$6=$W$65,$AJ$78,IF($T$6=$W$81,$AJ$94,IF($T$6=$W$97,$AJ$110,IF($T$6=$W$113,$AJ$126,IF($T$6=$W$129,$AJ$142,IF($T$6=$W$145,$AJ$158, IF($T$6=$W$161,$AJ$174,"N/A"))))))))))) -> 3.09855791 | Q18: 0.05347593583 | R18: 0.005102040816 | S18: No | W18: Current Ratio | X18: Working Capital Ratio | Y18: Debt to Asset Ratio | Z18: Operating Profit Margin | AA18: ROA | AB18: ROE | AC18: Asset Turnover | AD18: Operating Expense Ratio | AE18: Depr Expense Ratio | AF18: Interest Expense Ratio | AG18: NFI Ratio | AJ18: Current Ratio | AK18: Working Capital Ratio | AL18: Debt to Asset Ratio | AM18: Operating Profit Margin | AN18: ROA | AO18: ROE | AP18: Asset Turnover | AQ18: Operating Expense Ratio | AR18: Depr Expense Ratio | AS18: Interest Expense Ratio | AT18: NFI Ratio
Q19: 0.06417112299 | R19: 0.07142857143 | S19: 100+ | W19: 0 | X19: 1 | Y19: 6 | Z19: 8 | AA19: 4 | AB19: 7 | AC19: 0 | AD19: 0 | AE19: 0 | AF19: 7 | AG19: 6 | AJ19: 1 | AK19: 1 | AL19: 4 | AM19: 5 | AN19: 3 | AO19: 10 | AP19: 0 | AQ19: 0 | AR19: 0 | AS19: 4 | AT19: 2
F20: =IF(B22=F18,"","Your Farm") ->  | G20: =IF(B22=F18,"",B22) ->  | Q20: 0.1604278075 | R20: 0.08673469388 | W20: 0 | X20: 2 | Y20: 6 | Z20: 4 | AA20: 3 | AB20: 6 | AC20: 8 | AD20: 1 | AE20: 2 | AF20: 2 | AG20: 1 | AJ20: 1 | AK20: 3 | AL20: 12 | AM20: 4 | AN20: 5 | AO20: 5 | AP20: 4 | AQ20: 2 | AR20: 4 | AS20: 10 | AT20: 0
A21: YOUR FARM VALUES* | Q21: 0.08021390374 | R21: 0.1173469388 | W21: 4 | X21: 1 | Y21: 2 | Z21: 4 | AA21: 8 | AB21: 8 | AC21: 9 | AD21: 0 | AE21: 4 | AF21: 5 | AG21: 4 | AJ21: 6 | AK21: 3 | AL21: 3 | AM21: 5 | AN21: 9 | AO21: 10 | AP21: 7 | AQ21: 7 | AR21: 9 | AS21: 7 | AT21: 4
A22: Current Ratio: | B22: =S37 -> 2.805671674 | Q22: 0.02673796791 | R22: 0.09693877551 | S22: AllList | W22: 4 | X22: 3 | Y22: 1 | Z22: 2 | AA22: 7 | AB22: 2 | AC22: 3 | AD22: 3 | AE22: 4 | AF22: 3 | AG22: 7 | AJ22: 2 | AK22: 2 | AL22: 2 | AM22: 4 | AN22: 11 | AO22: 5 | AP22: 12 | AQ22: 0 | AR22: 5 | AS22: 6 | AT22: 7
A23: Working Capital Ratio: | B23: 0.5848651592 | Q23: 0.06417112299 | R23: 0.1020408163 | S23: Yes | W23: 2 | X23: 7 | Y23: 3 | Z23: 3 | AA23: 2 | AB23: 0 | AC23: 3 | AD23: 4 | AE23: 3 | AF23: 1 | AG23: 2 | AJ23: 2 | AK23: 5 | AL23: 2 | AM23: 7 | AN23: 3 | AO23: 1 | AP23: 4 | AQ23: 7 | AR23: 6 | AS23: 2 | AT23: 8
A24: Debt to Asset Ratio: | B24: 0.2002717786 | Q24: 0.03743315508 | R24: 0.02551020408 | S24: No | W24: 1 | X24: 2 | Y24: 2 | Z24: 2 | AA24: 0 | AB24: 0 | AC24: 1 | AD24: 3 | AE24: 0 | AF24: 3 | AG24: 2 | AJ24: 3 | AK24: 5 | AL24: 6 | AM24: 3 | AN24: 1 | AO24: 1 | AP24: 2 | AQ24: 11 | AR24: 2 | AS24: 2 | AT24: 5
A25: Operating Profit Margin | B25: -0.02224825597 | Q25: 0.04278074866 | R25: 0.03571428571 | W25: 1 | X25: 3 | Y25: 2 | Z25: 1 | AA25: 0 | AB25: 0 | AC25: 0 | AD25: 2 | AE25: 4 | AF25: 2 | AG25: 1 | AJ25: 3 | AK25: 5 | AL25: 3 | AM25: 4 | AN25: 0 | AO25: 0 | AP25: 1 | AQ25: 2 | AR25: 2 | AS25: 1 | AT25: 6
A26: Rate of Return on Farm Assets | B26: -0.004307799698 | E26: Working Captial Ratio | Q26: 0.4652406417 | R26: 0.4489795918 | W26: 0 | X26: 0 | Y26: 1 | Z26: 0 | AA26: 0 | AB26: 0 | AC26: 0 | AD26: 5 | AE26: 2 | AF26: 0 | AG26: 1 | AJ26: 0 | AK26: 4 | AL26: 1 | AM26: 1 | AN26: 1 | AO26: 1 | AP26: 2 | AQ26: 2 | AR26: 1 | AS26: 0 | AT26: 1
A27: Rate of Return on Farm Equity | B27: -0.01565674504 | F27: =U1 -> 2016 | G27: 10-Year | S27: Your Farm Line-Current Ratio | W27: 2 | X27: 0 | Y27: 1 | Z27: 0 | AA27: 0 | AB27: 0 | AC27: 0 | AD27: 6 | AE27: 5 | AF27: 1 | AG27: 0 | AJ27: 1 | AK27: 1 | AL27: 0 | AM27: 0 | AN27: 0 | AO27: 0 | AP27: 1 | AQ27: 2 | AR27: 4 | AS27: 1 | AT27: 0
A28: Asset Turnover Rate | B28: 0.1936241521 | E28: -0.5 | F28: =Q38 -> 0.04278074866 | G28: =R38 -> 0.005102040816 | Q28: =Q38 -> 0.04278074866 | R28: =R38 -> 0.005102040816 | S28: X's | T28: =IF(B22<4.5,B22,4.5) -> 2.805671674 | U28: =IF(B22<4.5,B22,4.5) -> 2.805671674 | W28: 10 | X28: 5 | Z28: 0 | AA28: 0 | AB28: 1 | AC28: 0 | AG28: 0 | AJ28: 14 | AK28: 4 | AM28: 0 | AN28: 0 | AO28: 0 | AP28: 0 | AT28: 0
A29: Operating Expense Ratio | B29: 0.7669282121 | E29: =E28+0.25 -> -0.25 | F29: =Q39 -> 0.04278074866 | G29: =R39 -> 0.02040816327 | Q29: =Q28+Q39 -> 0.08556149733 | R29: =R28+R39 -> 0.02551020408 | S29: Y's | T29: 0 | U29: 1 | V29: Count | W29: 24 | X29: 24 | Y29: 24 | Z29: 24 | AA29: 24 | AB29: 24 | AC29: 24 | AD29: 24 | AE29: 24 | AF29: 24 | AG29: 24 | AI29: Count | AJ29: 33 | AK29: 33 | AL29: 33 | AM29: 33 | AN29: 33 | AO29: 33 | AP29: 33 | AQ29: 33 | AR29: 33 | AS29: 33 | AT29: 33
A30: Depreciation Expense Ratio | B30: 0.1078854533 | E30: =E29+0.25 -> 0 | F30: 0.0320855615 | G30: 0.05102040816 | Q30: 0.1176470588 | R30: 0.07653061224 | S30: =IF(B22=F18,U1 &" Average","Your Farm") -> 2016 Average | V30: Average | W30: 1.752974421 | X30: 0.451774713 | Y30: 0.2052178535 | Z30: -0.2857538551 | AA30: -0.02888789184 | AB30: -0.04568034374 | AC30: 0.1010936207 | AD30: 0.8821207245 | AE30: 0.07621838629 | AF30: 0.055911545 | AG30: -0.01425065575 | AI30: Average | AJ30: 2.227408705 | AK30: 0.5118932157 | AL30: 0.1753673384 | AM30: -0.04077329782 | AN30: -0.006499451781 | AO30: -0.01813229184 | AP30: 0.1594046135 | AQ30: 0.756933442 | AR30: 0.06806199517 | AS30: 0.04155654345 | AT30: 0.1334480194
A31: Interest Expense Ratio | B31: 0.03960541449 | E31: 0.25 | F31: 0.1443850267 | G31: 0.1224489796 | Q31: 0.2620320856 | R31: 0.1989795918 | S31: Your Farm Line-Working Capital Ratio | V31: Non-ratio average | X31: 103071.5942 | AG31: -3251.261667 | AI31: Non-ratio average | AK31: 94291.93135 | AT31: 24581.43828
A32: Net Farm Income Ratio: | B32: 0.08558092011 | E32: 0.5 | F32: 0.2139037433 | G32: 0.2704081633 | Q32: 0.4759358289 | R32: 0.4693877551 | S32: X's | T32: =IF(B23>1.75,1.75,B23) -> 0.5848651592 | U32: =IF(B23>1.75,1.75,B23) -> 0.5848651592
A33: *Defaults to Averages for 2016 if not entered | E33: 0.75 | F33: 0.1443850267 | G33: 0.1836734694 | Q33: 0.6203208556 | R33: 0.6530612245 | S33: Y's | T33: 0 | U33: 1 | W33: 500-1000No
E34: 1 | F34: 0.1336898396 | G34: 0.1479591837 | Q34: 0.7540106952 | R34: 0.8010204082 | S34: =IF(B23=F39,U1 &" Average","Your Farm") -> 2016 Average | W34: Current Ratio | X34: Working Capital Ratio | Y34: Debt to Asset Ratio | Z34: Operating Profit Margin | AA34: ROA | AB34: ROE | AC34: Asset Turnover | AD34: Operating Expense Ratio | AE34: Depr Expense Ratio | AF34: Interest Expense Ratio | AG34: NFI Ratio | AJ34: Current Ratio | AK34: Working Capital Ratio | AL34: Debt to Asset Ratio | AM34: Operating Profit Margin | AN34: ROA | AO34: ROE | AP34: Asset Turnover | AQ34: Operating Expense Ratio | AR34: Depr Expense Ratio | AS34: Interest Expense Ratio | AT34: NFI Ratio
E35: 1.25 | F35: 0.07486631016 | G35: 0.04591836735 | Q35: 0.8288770053 | R35: 0.8469387755 | W35: 1 | X35: 1 | Y35: 3 | Z35: 0 | AA35: 0 | AB35: 0 | AC35: 0 | AD35: 0 | AE35: 0 | AF35: 3 | AG35: 0 | AJ35: 1 | AK35: 0 | AL35: 2 | AM35: 0 | AN35: 0 | AO35: 0 | AP35: 0 | AQ35: 0 | AR35: 0 | AS35: 1 | AT35: 0
E36: 1.5 | F36: 0.0320855615 | G36: 0.04591836735 | Q36: 0.8609625668 | R36: 0.8928571429 | W36: 1 | X36: 0 | Y36: 7 | Z36: 0 | AA36: 1 | AB36: 2 | AC36: 0 | AD36: 0 | AE36: 1 | AF36: 6 | AG36: 0 | AJ36: 0 | AK36: 0 | AL36: 4 | AM36: 1 | AN36: 1 | AO36: 1 | AP36: 0 | AQ36: 1 | AR36: 1 | AS36: 5 | AT36: 0
E37: More | F37: 0.1390374332 | G37: 0.1071428571 | Q37: 1 | R37: 1 | S37: =$F$18 -> 2.805671674 | W37: 0 | X37: 0 | Y37: 3 | Z37: 1 | AA37: 2 | AB37: 7 | AC37: 4 | AD37: 1 | AE37: 3 | AF37: 5 | AG37: 1 | AJ37: 0 | AK37: 0 | AL37: 1 | AM37: 0 | AN37: 0 | AO37: 0 | AP37: 0 | AQ37: 5 | AR37: 3 | AS37: 4 | AT37: 0
E38: Count | F38: =F17 -> 187 | G38: =G17 -> 196 | Q38: =IF($T$6=$W$1,X3/$F$38,IF($T$6=$W$17,X19/$F$38,IF($T$6=$W$33,X35/$F$38,IF($T$6=$W$49,X51/$F$38,IF($T$6=$W$65,X67/$F$38,IF($T$6=$W$81,X83/$F$38,IF($T$6=$W$97,X99/$F$38,IF($T$6=$W$113,X115/$F$38,IF($T$6=$W$129,X131/$F$38,IF($T$6=$W$145,X147/$F$38,IF($T$6=$W$161,X163/$F$38,"N/A"))))))))))) -> 0.04278074866 | R38: =IF($T$6=$W$1,AK3/$G$38,IF($T$6=$W$17,AK19/$G$38,IF($T$6=$W$33,AK35/$G$38,IF($T$6=$W$49,AK51/$G$38,IF($T$6=$W$65,AK67/$G$38,IF($T$6=$W$81,AK83/$G$38,IF($T$6=$W$97,AK99/$G$38,IF($T$6=$W$113,AK115/$G$38,IF($T$6=$W$129,AK131/$G$38,IF($T$6=$W$145,AK147/$G$38,IF($T$6=$W$161,AK163/$G$38,"N/A"))))))))))) -> 0.005102040816 | S38: =$F$39 -> 0.5848651592 | W38: 1 | X38: 2 | Y38: 1 | Z38: 1 | AA38: 11 | AB38: 7 | AC38: 4 | AD38: 7 | AE38: 4 | AF38: 1 | AG38: 1 | AJ38: 2 | AK38: 3 | AL38: 0 | AM38: 0 | AN38: 4 | AO38: 6 | AP38: 4 | AQ38: 3 | AR38: 4 | AS38: 0 | AT38: 1
E39: Average | F39: =IF($T$6=$W$1,$X$14,IF($T$6=$W$17,$X$30,IF($T$6=$W$33,$X$46,IF($T$6=$W$49,$X$62,IF($T$6=$W$65,$X$78,IF($T$6=$W$81,$X$94,IF($T$6=$W$97,$X$110,IF($T$6=$W$113,$X$126,IF($T$6=$W$129,$X$142,IF($T$6=$W$145,$X$158,IF($T$6=$W$161,$X$174,"N/A"))))))))))) -> 0.5848651592 | G39: =IF($T$6=$W$1,$AK$14,IF($T$6=$W$17,$AK$30,IF($T$6=$W$33,$AK$46,IF($T$6=$W$49,$AK$62,IF($T$6=$W$65,$AK$78,IF($T$6=$W$81,$AK$94,IF($T$6=$W$97,$AK$110,IF($T$6=$W$113,$AK$126,IF($T$6=$W$129,$AK$142,IF($T$6=$W$145,$AK$158,IF($T$6=$W$161,$AK$174,"N/A"))))))))))) -> 0.5860212903 | Q39: 0.04278074866 | R39: 0.02040816327 | S39: =$F$59 -> 0.2002717786 | W39: 0 | X39: 3 | Y39: 2 | Z39: 6 | AA39: 2 | AB39: 0 | AC39: 5 | AD39: 3 | AE39: 4 | AF39: 1 | AG39: 5 | AJ39: 2 | AK39: 3 | AL39: 4 | AM39: 0 | AN39: 3 | AO39: 3 | AP39: 2 | AQ39: 1 | AR39: 3 | AS39: 1 | AT39: 0
E40: Working Capital Avg. | Q40: 0.0320855615 | R40: 0.05102040816 | S40: =$F$81 -> -0.02224825597 | W40: 1 | X40: 1 | Y40: 0 | Z40: 7 | AA40: 0 | AB40: 0 | AC40: 2 | AD40: 4 | AE40: 3 | AF40: 0 | AG40: 8 | AJ40: 0 | AK40: 1 | AL40: 0 | AM40: 7 | AN40: 2 | AO40: 1 | AP40: 2 | AQ40: 0 | AR40: 0 | AS40: 0 | AT40: 6
F41: =IF($T$6=$W$1,$X$15,IF($T$6=$W$17,$X$31,IF($T$6=$W$33,$X$47,IF($T$6=$W$49,$X$63,IF($T$6=$W$65,$X$79,IF($T$6=$W$81,$X$95,IF($T$6=$W$97,$X$111,IF($T$6=$W$113,$X$127,IF($T$6=$W$129,$X$143,IF($T$6=$W$145,$X$159,IF($T$6=$W$161,$X$175,"N/A"))))))))))) -> 315586.6088 | G41: =IF($T$6=$W$1,$AK$15,IF($T$6=$W$17,$AK$31,IF($T$6=$W$33,$AK$47,IF($T$6=$W$49,$AK$63,IF($T$6=$W$65,$AK$79,IF($T$6=$W$81,$AK$95,IF($T$6=$W$97,$AK$111,IF($T$6=$W$113,$AK$127,IF($T$6=$W$129,$AK$143,IF($T$6=$W$145,$AK$159,IF($T$6=$W$161,$AK$175,"N/A"))))))))))) -> 333573.1495 | Q41: 0.1443850267 | R41: 0.1224489796 | S41: =$F$102 -> -0.004307799698 | W41: 0 | X41: 3 | Y41: 0 | Z41: 1 | AA41: 0 | AB41: 0 | AC41: 0 | AD41: 1 | AE41: 1 | AF41: 0 | AG41: 1 | AJ41: 1 | AK41: 0 | AL41: 0 | AM41: 3 | AN41: 1 | AO41: 0 | AP41: 0 | AQ41: 0 | AR41: 0 | AS41: 0 | AT41: 3
Q42: 0.2139037433 | R42: 0.2704081633 | S42: =$F$123 -> -0.01565674504 | W42: 1 | X42: 3 | Y42: 0 | Z42: 0 | AA42: 0 | AB42: 0 | AC42: 0 | AD42: 0 | AE42: 0 | AF42: 0 | AG42: 0 | AJ42: 0 | AK42: 0 | AL42: 0 | AM42: 0 | AN42: 0 | AO42: 0 | AP42: 1 | AQ42: 1 | AR42: 0 | AS42: 0 | AT42: 1
F43: =IF(B23=F39,"","Your Farm") ->  | G43: =IF(B23=F39,"",B23) ->  | Q43: 0.1443850267 | R43: 0.1836734694 | S43: =$F$144 -> 0.1936241521 | W43: 0 | X43: 1 | Y43: 0 | Z43: 0 | AA43: 0 | AB43: 0 | AC43: 0 | AD43: 0 | AE43: 0 | AF43: 0 | AG43: 0 | AJ43: 1 | AK43: 1 | AL43: 0 | AM43: 0 | AN43: 0 | AO43: 0 | AP43: 0 | AQ43: 0 | AR43: 0 | AS43: 0 | AT43: 0
Q44: 0.1336898396 | R44: 0.1479591837 | S44: =$F$164 -> 0.7669282121 | W44: 11 | X44: 2 | Z44: 0 | AA44: 0 | AB44: 0 | AC44: 1 | AG44: 0 | AJ44: 4 | AK44: 3 | AM44: 0 | AN44: 0 | AO44: 0 | AP44: 2 | AT44: 0
Q45: 0.07486631016 | R45: 0.04591836735 | S45: =$F$185 -> 0.1078854533 | V45: Count | W45: 16 | X45: 16 | Y45: 16 | Z45: 16 | AA45: 16 | AB45: 16 | AC45: 16 | AD45: 16 | AE45: 16 | AF45: 16 | AG45: 16 | AI45: Count | AJ45: 11 | AK45: 11 | AL45: 11 | AM45: 11 | AN45: 11 | AO45: 11 | AP45: 11 | AQ45: 11 | AR45: 11 | AS45: 11 | AT45: 11
Q46: 0.0320855615 | R46: 0.04591836735 | S46: =$F$206 -> 0.03960541449 | V46: Average | W46: 5.446084947 | X46: 0.8699622248 | Y46: 0.0883036579 | Z46: -0.01282953943 | AA46: -0.001727203473 | AB46: -0.006360422013 | AC46: 0.1346270832 | AD46: 0.7358843791 | AE46: 0.09088519002 | AF46: 0.02995731707 | AG46: 0.1432731138 | AI46: Average | AJ46: 5.563737926 | AK46: 0.7400803079 | AL46: 0.1000298017 | AM46: 0.09669167094 | AN46: 0.01932002133 | AO46: 0.01541255045 | AP46: 0.1998106056 | AQ46: 0.6514141843 | AR46: 0.07611422495 | AS46: 0.02658529029 | AT46: 0.2458863004
E47: Debt to Asset Ratio | Q47: 0.1390374332 | R47: 0.1071428571 | S47: =$F$228 -> 0.08558092011 | V47: Non-ratio average | X47: 297375.6025 | AG47: 48974.45813 | AI47: Non-ratio average | AK47: 263025.0061 | AT47: 87388.14556
F48: =U1 -> 2016 | G48: 10-Year
E49: 0 | F49: =Q58 -> 0.1443850267 | G49: =R58 -> 0.06632653061 | Q49: =Q58 -> 0.1443850267 | R49: =R58 -> 0.06632653061 | S49: Your Farm Line-Debt to Asset | W49: 500-1000Yes
E50: 0.1 | F50: =Q59 -> 0.2406417112 | G50: =R59 -> 0.2551020408 | Q50: =Q49+Q59 -> 0.385026738 | R50: 0.3214285714 | S50: X's | T50: =IF(B24>0.8,0.8,B24) -> 0.2002717786 | U50: =T50 -> 0.2002717786 | W50: Current Ratio | X50: Working Capital Ratio | Y50: Debt to Asset Ratio | Z50: Operating Profit Margin | AA50: ROA | AB50: ROE | AC50: Asset Turnover | AD50: Operating Expense Ratio | AE50: Depr Expense Ratio | AF50: Interest Expense Ratio | AG50: NFI Ratio | AJ50: Current Ratio | AK50: Working Capital Ratio | AL50: Debt to Asset Ratio | AM50: Operating Profit Margin | AN50: ROA | AO50: ROE | AP50: Asset Turnover | AQ50: Operating Expense Ratio | AR50: Depr Expense Ratio | AS50: Interest Expense Ratio | AT50: NFI Ratio
E51: 0.2 | F51: 0.1336898396 | G51: 0.1479591837 | Q51: 0.5187165775 | R51: 0.4693877551 | S51: Y's | T51: 0 | U51: 1 | W51: 0 | X51: 1 | Y51: 5 | Z51: 5 | AA51: 2 | AB51: 7 | AC51: 0 | AD51: 0 | AE51: 0 | AF51: 4 | AG51: 1 | AJ51: 0 | AK51: 0 | AL51: 3 | AM51: 0 | AN51: 0 | AO51: 1 | AP51: 0 | AQ51: 0 | AR51: 0 | AS51: 2 | AT51: 0
E52: 0.3 | F52: 0.1550802139 | G52: 0.1683673469 | Q52: 0.6737967914 | R52: 0.637755102 | S52: =IF(B24=F59,U1 &" Average","Your Farm") -> 2016 Average | W52: 2 | X52: 2 | Y52: 7 | Z52: 1 | AA52: 5 | AB52: 8 | AC52: 1 | AD52: 1 | AE52: 3 | AF52: 13 | AG52: 3 | AJ52: 0 | AK52: 1 | AL52: 11 | AM52: 1 | AN52: 0 | AO52: 4 | AP52: 0 | AQ52: 0 | AR52: 4 | AS52: 17 | AT52: 0
E53: 0.4 | F53: 0.128342246 | G53: 0.1632653061 | Q53: 0.8021390374 | R53: 0.8010204082 | W53: 2 | X53: 1 | Y53: 2 | Z53: 4 | AA53: 9 | AB53: 8 | AC53: 6 | AD53: 3 | AE53: 5 | AF53: 5 | AG53: 2 | AJ53: 3 | AK53: 2 | AL53: 6 | AM53: 0 | AN53: 6 | AO53: 8 | AP53: 3 | AQ53: 10 | AR53: 8 | AS53: 10 | AT53: 0
E54: 0.5 | F54: 0.08556149733 | G54: 0.112244898 | Q54: 0.8877005348 | R54: 0.9132653061 | W54: 6 | X54: 7 | Y54: 7 | Z54: 5 | AA54: 9 | AB54: 6 | AC54: 12 | AD54: 9 | AE54: 8 | AF54: 4 | AG54: 6 | AJ54: 3 | AK54: 4 | AL54: 4 | AM54: 3 | AN54: 19 | AO54: 19 | AP54: 10 | AQ54: 17 | AR54: 12 | AS54: 6 | AT54: 2
E55: 0.6 | F55: 0.02139037433 | G55: 0.03571428571 | Q55: 0.9090909091 | R55: 0.9489795918 | W55: 5 | X55: 8 | Y55: 5 | Z55: 5 | AA55: 6 | AB55: 2 | AC55: 5 | AD55: 8 | AE55: 6 | AF55: 4 | AG55: 8 | AJ55: 1 | AK55: 12 | AL55: 8 | AM55: 6 | AN55: 8 | AO55: 3 | AP55: 9 | AQ55: 7 | AR55: 7 | AS55: 2 | AT55: 10
E56: 0.7 | F56: 0.0320855615 | G56: 0.02551020408 | Q56: 0.9411764706 | R56: 0.9744897959 | W56: 1 | X56: 3 | Y56: 3 | Z56: 8 | AA56: 1 | AB56: 2 | AC56: 3 | AD56: 3 | AE56: 6 | AF56: 1 | AG56: 10 | AJ56: 4 | AK56: 6 | AL56: 4 | AM56: 24 | AN56: 4 | AO56: 1 | AP56: 6 | AQ56: 5 | AR56: 5 | AS56: 0 | AT56: 18
E57: More | F57: 0.05882352941 | G57: 0.02551020408 | Q57: 1 | R57: 1 | W57: 1 | X57: 4 | Y57: 1 | Z57: 6 | AA57: 1 | AB57: 0 | AC57: 2 | AD57: 3 | AE57: 2 | AF57: 0 | AG57: 4 | AJ57: 3 | AK57: 4 | AL57: 1 | AM57: 3 | AN57: 2 | AO57: 2 | AP57: 4 | AQ57: 0 | AR57: 2 | AS57: 1 | AT57: 9
E58: Count | F58: =F38 -> 187 | G58: =G38 -> 196 | Q58: =IF($T$6=$W$1,Y3/$F$58,IF($T$6=$W$17,Y19/$F$58,IF($T$6=$W$33,Y35/$F$58,IF($T$6=$W$49,Y51/$F$58,IF($T$6=$W$65,Y67/$F$58,IF($T$6=$W$81,Y83/$F$58,IF($T$6=$W$97,Y99/$F$58,IF($T$6=$W$113,Y115/$F$58,IF($T$6=$W$129,Y131/$F$58,IF($T$6=$W$145,Y147/$F$58,IF($T$6=$W$161,Y163/$F$58,"N/A"))))))))))) -> 0.1443850267 | R58: =IF($T$6=$W$1,AL3/$G$38,IF($T$6=$W$17,AL19/$G$38,IF($T$6=$W$33,AL35/$G$38,IF($T$6=$W$49,AL51/$G$38,IF($T$6=$W$65,AL67/$G$38,IF($T$6=$W$81,AL83/$G$38,IF($T$6=$W$97,AL99/$G$38,IF($T$6=$W$113,AL115/$G$38,IF($T$6=$W$129,AL131/$G$38,IF($T$6=$W$145,AL147/$G$38,IF($T$6=$W$161,AL163/$G$38,"N/A"))))))))))) -> 0.06632653061 | W58: 0 | X58: 0 | Y58: 2 | Z58: 0 | AA58: 0 | AB58: 0 | AC58: 1 | AD58: 4 | AE58: 2 | AF58: 2 | AG58: 0 | AJ58: 4 | AK58: 1 | AL58: 1 | AM58: 2 | AN58: 0 | AO58: 0 | AP58: 2 | AQ58: 0 | AR58: 0 | AS58: 1 | AT58: 0
E59: Average | F59: =IF($T$6=$W$1,$Y$14,IF($T$6=$W$17,$Y$30,IF($T$6=$W$33,$Y$46,IF($T$6=$W$49,$Y$62,IF($T$6=$W$65,$Y$78,IF($T$6=$W$81,$Y$94,IF($T$6=$W$97,$Y$110,IF($T$6=$W$113,$Y$126,IF($T$6=$W$129,$Y$142,IF($T$6=$W$145,$Y$158,IF($T$6=$W$161,$Y$174,"N/A"))))))))))) -> 0.2002717786 | G59: =IF($T$6=$W$1,$AL$14,IF($T$6=$W$17,$AL$30,IF($T$6=$W$33,$AL$46,IF($T$6=$W$49,$AL$62,IF($T$6=$W$65,$AL$78,IF($T$6=$W$81,$AL$94,IF($T$6=$W$97,$AL$110,IF($T$6=$W$113,$AL$126,IF($T$6=$W$129,$AL$142,IF($T$6=$W$145,$AL$158,IF($T$6=$W$161,$AL$174,"N/A"))))))))))) -> 0.2172404784 | Q59: 0.2406417112 | R59: 0.2551020408 | W59: 0 | X59: 0 | Y59: 2 | Z59: 0 | AA59: 0 | AB59: 0 | AC59: 0 | AD59: 3 | AE59: 2 | AF59: 1 | AG59: 0 | AJ59: 1 | AK59: 3 | AL59: 1 | AM59: 0 | AN59: 0 | AO59: 0 | AP59: 2 | AQ59: 0 | AR59: 1 | AS59: 0 | AT59: 0
Q60: 0.1336898396 | R60: 0.1479591837 | W60: 17 | X60: 8 | Z60: 0 | AA60: 1 | AB60: 1 | AC60: 4 | AG60: 0 | AJ60: 20 | AK60: 6 | AM60: 0 | AN60: 0 | AO60: 1 | AP60: 3 | AT60: 0
Q61: 0.1550802139 | R61: 0.1683673469 | V61: Count | W61: 34 | X61: 34 | Y61: 34 | Z61: 34 | AA61: 34 | AB61: 34 | AC61: 34 | AD61: 34 | AE61: 34 | AF61: 34 | AG61: 34 | AI61: Count | AJ61: 39 | AK61: 39 | AL61: 39 | AM61: 39 | AN61: 39 | AO61: 39 | AP61: 39 | AQ61: 39 | AR61: 39 | AS61: 39 | AT61: 39
Q62: 0.128342246 | R62: 0.1632653061 | V62: Average | W62: 2.362973692 | X62: 0.5210189767 | Y62: 0.2290204653 | Z62: -0.0739821729 | AA62: -0.01308218338 | AB62: -0.03042826696 | AC62: 0.1768288611 | AD62: 0.7678495938 | AE62: 0.1093264344 | AF62: 0.05193241377 | AG62: 0.07089155797 | AI62: Average | AJ62: 3.871628429 | AK62: 0.7206764938 | AL62: 0.1974277468 | AM62: 0.08364257257 | AN62: 0.01821575275 | AO62: 0.01020663692 | AP62: 0.2177808763 | AQ62: 0.6660553526 | AR62: 0.08646569867 | AS62: 0.0420778918 | AT62: 0.2054010569
F63: =IF(B24=F59,"","Your Farm") ->  | G63: =IF(B24=F59,"",B24) ->  | Q63: 0.08556149733 | R63: 0.112244898 | V63: Non-ratio average | X63: 197738.3912 | AG63: 26904.93676 | AI63: Non-ratio average | AK63: 250706.2921 | AT63: 71454.1654
Q64: 0.02139037433 | R64: 0.03571428571
Q65: 0.0320855615 | R65: 0.02551020408 | W65: Blank
Q66: 0.05882352941 | R66: 0.02551020408 | W66: Current Ratio | X66: Working Capital Ratio | Y66: Debt to Asset Ratio | Z66: Operating Profit Margin | AA66: ROA | AB66: ROE | AC66: Asset Turnover | AD66: Operating Expense Ratio | AE66: Depr Expense Ratio | AF66: Interest Expense Ratio | AG66: NFI Ratio | AJ66: Current Ratio | AK66: Working Capital Ratio | AL66: Debt to Asset Ratio | AM66: Operating Profit Margin | AN66: ROA | AO66: ROE | AP66: Asset Turnover | AQ66: Operating Expense Ratio | AR66: Depr Expense Ratio | AS66: Interest Expense Ratio | AT66: NFI Ratio
E68: Operating Profit Margin Ratio
F69: =U1 -> 2016 | G69: 10-Year
E70: -0.6 | F70: =Q80 -> 0.1069518717 | G70: =R80 -> 0.03571428571 | Q70: =Q80 -> 0.1069518717 | R70: =R80 -> 0.03571428571
E71: -0.45 | F71: =Q81 -> 0.05347593583 | G71: =R81 -> 0.0306122449 | Q71: =Q70+Q81 -> 0.1604278075 | R71: =R70+R81 -> 0.06632653061 | S71: Your Farm Line-Operating Profit Margin Ratio
E72: -0.3 | F72: 0.1016042781 | G72: 0.02551020408 | Q72: 0.2620320856 | R72: 0.09183673469 | S72: X's | T72: =IF(B25>0.75,0.75,B25) -> -0.02224825597 | U72: =T72 -> -0.02224825597
E73: -0.15 | F73: 0.09090909091 | G73: 0.04081632653 | Q73: 0.3529411765 | R73: 0.1326530612 | S73: Y's | T73: 0 | U73: 1
E74: 0 | F74: 0.256684492 | G74: 0.1020408163 | Q74: 0.6096256684 | R74: 0.2346938776 | S74: =IF(B25=F81,U1 &" Average","Your Farm") -> 2016 Average
E75: 0.15 | F75: 0.256684492 | G75: 0.387755102 | Q75: 0.8663101604 | R75: 0.6224489796
E76: 0.3 | F76: 0.1176470588 | G76: 0.3367346939 | Q76: 0.9839572193 | R76: 0.9591836735
E77: 0.45 | F77: 0.01604278075 | G77: 0.04081632653 | Q77: 1 | R77: 1 | V77: Count | AI77: Count
E78: 0.6 | F78: 0 | G78: 0 | Q78: 1 | R78: 1 | V78: Average | AI78: Average
E79: More | F79: 0 | G79: 0 | Q79: 1 | R79: 1 | V79: Non-ratio average | AI79: Non-ratio average
E80: Count | F80: =F58 -> 187 | G80: =G58 -> 196 | Q80: =IF($T$6=$W$1,Z3/$F$80,IF($T$6=$W$17,Z19/$F$80,IF($T$6=$W$33,Z35/$F$80,IF($T$6=$W$49,Z51/$F$80,IF($T$6=$W$65,Z67/$F$80,IF($T$6=$W$81,Z83/$F$80,IF($T$6=$W$97,Z99/$F$80,IF($T$6=$W$113,Z115/$F$80,IF($T$6=$W$129,Z131/$F$80,IF($T$6=$W$145,Z147/$F$80,IF($T$6=$W$161,Z163/$F$80,"N/A"))))))))))) -> 0.1069518717 | R80: =IF($T$6=$W$1,AM3/$G$38,IF($T$6=$W$17,AM19/$G$38,IF($T$6=$W$33,AM35/$G$38,IF($T$6=$W$49,AM51/$G$38,IF($T$6=$W$65,AM67/$G$38,IF($T$6=$W$81,AM83/$G$38,IF($T$6=$W$97,AM99/$G$38,IF($T$6=$W$113,AM115/$G$38,IF($T$6=$W$129,AM131/$G$38,IF($T$6=$W$145,AM147/$G$38,IF($T$6=$W$161,AM163/$G$38,"N/A"))))))))))) -> 0.03571428571
E81: Average | F81: =IF($T$6=$W$1,$Z$14,IF($T$6=$W$17,$Z$30,IF($T$6=$W$33,$Z$46,IF($T$6=$W$49,$Z$62,IF($T$6=$W$65,$Z$78,IF($T$6=$W$81,$Z$94,IF($T$6=$W$97,$Z$110,IF($T$6=$W$113,$Z$126,IF($T$6=$W$129,$Z$142,IF($T$6=$W$145,$Z$158,IF($T$6=W161,Z174,"N/A"))))))))))) -> -0.02224825597 | G81: =IF($T$6=$W$1,$AM$14,IF($T$6=$W$17,$AM$30,IF($T$6=$W$33,$AM$46,IF($T$6=$W$49,$AM$62,IF($T$6=$W$65,$AM$78,IF($T$6=$W$81,$AM$94,IF($T$6=$W$97,$AM$110,IF($T$6=$W$113,$AM$126,IF($T$6=$W$129,$AM$142,IF($T$6=$W$145,$AM$158,IF($T$6=$W$161,$AM$174,"N/A"))))))))))) -> 0.1429011007 | Q81: 0.05347593583 | R81: 0.0306122449 | W81: Greater than 1000No
Q82: 0.1016042781 | R82: 0.02551020408 | W82: Current Ratio | X82: Working Capital Ratio | Y82: Debt to Asset Ratio | Z82: Operating Profit Margin | AA82: ROA | AB82: ROE | AC82: Asset Turnover | AD82: Operating Expense Ratio | AE82: Depr Expense Ratio | AF82: Interest Expense Ratio | AG82: NFI Ratio | AJ82: Current Ratio | AK82: Working Capital Ratio | AL82: Debt to Asset Ratio | AM82: Operating Profit Margin | AN82: ROA | AO82: ROE | AP82: Asset Turnover | AQ82: Operating Expense Ratio | AR82: Depr Expense Ratio | AS82: Interest Expense Ratio | AT82: NFI Ratio
Q83: 0.09090909091 | R83: 0.04081632653 | W83: 0 | X83: 2 | Y83: 2 | Z83: 1 | AA83: 2 | AB83: 4 | AC83: 0 | AD83: 0 | AE83: 0 | AF83: 0 | AG83: 0 | AJ83: 0 | AK83: 0 | AL83: 0 | AM83: 0 | AN83: 0 | AO83: 0 | AP83: 0 | AQ83: 1 | AR83: 0 | AS83: 0 | AT83: 0
Q84: 0.256684492 | R84: 0.1020408163 | W84: 4 | X84: 2 | Y84: 6 | Z84: 0 | AA84: 1 | AB84: 5 | AC84: 0 | AD84: 1 | AE84: 0 | AF84: 21 | AG84: 0 | AJ84: 0 | AK84: 0 | AL84: 7 | AM84: 0 | AN84: 0 | AO84: 0 | AP84: 0 | AQ84: 0 | AR84: 1 | AS84: 25 | AT84: 0
F85: =IF(B25=F81,"","Your Farm") ->  | G85: =IF(B25=F81,"",B25) ->  | Q85: 0.256684492 | R85: 0.387755102 | W85: 4 | X85: 4 | Y85: 7 | Z85: 3 | AA85: 8 | AB85: 11 | AC85: 1 | AD85: 5 | AE85: 2 | AF85: 12 | AG85: 3 | AJ85: 2 | AK85: 2 | AL85: 6 | AM85: 0 | AN85: 0 | AO85: 3 | AP85: 0 | AQ85: 9 | AR85: 4 | AS85: 6 | AT85: 0
Q86: 0.1176470588 | R86: 0.3367346939 | W86: 8 | X86: 9 | Y86: 6 | Z86: 2 | AA86: 13 | AB86: 9 | AC86: 4 | AD86: 10 | AE86: 9 | AF86: 2 | AG86: 6 | AJ86: 3 | AK86: 8 | AL86: 6 | AM86: 0 | AN86: 4 | AO86: 6 | AP86: 1 | AQ86: 15 | AR86: 15 | AS86: 2 | AT86: 0
Q87: 0.01604278075 | R87: 0.04081632653 | W87: 1 | X87: 4 | Y87: 6 | Z87: 14 | AA87: 6 | AB87: 2 | AC87: 5 | AD87: 8 | AE87: 11 | AF87: 2 | AG87: 14 | AJ87: 3 | AK87: 8 | AL87: 4 | AM87: 0 | AN87: 7 | AO87: 11 | AP87: 2 | AQ87: 6 | AR87: 10 | AS87: 1 | AT87: 8
Q88: 0 | R88: 0 | W88: 0 | X88: 9 | Y88: 5 | Z88: 10 | AA88: 2 | AB88: 2 | AC88: 3 | AD88: 8 | AE88: 7 | AF88: 1 | AG88: 12 | AJ88: 5 | AK88: 7 | AL88: 9 | AM88: 16 | AN88: 12 | AO88: 5 | AP88: 4 | AQ88: 3 | AR88: 3 | AS88: 0 | AT88: 16
E89: Rate of Return on Farm Assets | Q89: 0 | R89: 0 | W89: 5 | X89: 2 | Y89: 1 | Z89: 8 | AA89: 3 | AB89: 1 | AC89: 6 | AD89: 2 | AE89: 6 | AF89: 0 | AG89: 2 | AJ89: 4 | AK89: 6 | AL89: 1 | AM89: 17 | AN89: 8 | AO89: 6 | AP89: 2 | AQ89: 0 | AR89: 1 | AS89: 0 | AT89: 9
F90: =U1 -> 2016 | G90: 10-Year | W90: 0 | X90: 6 | Y90: 2 | Z90: 0 | AA90: 3 | AB90: 1 | AC90: 4 | AD90: 3 | AE90: 1 | AF90: 0 | AG90: 1 | AJ90: 0 | AK90: 2 | AL90: 0 | AM90: 1 | AN90: 3 | AO90: 2 | AP90: 3 | AQ90: 0 | AR90: 0 | AS90: 0 | AT90: 1
E91: -0.1 | F91: =Q101 -> 0.06417112299 | G91: =R101 -> 0.02040816327 | Q91: =Q101 -> 0.06417112299 | R91: =R101 -> 0.02040816327 | W91: 1 | X91: 0 | Y91: 3 | Z91: 0 | AA91: 0 | AB91: 2 | AC91: 2 | AD91: 1 | AE91: 2 | AF91: 0 | AG91: 0 | AJ91: 1 | AK91: 1 | AL91: 1 | AM91: 0 | AN91: 0 | AO91: 0 | AP91: 3 | AQ91: 0 | AR91: 0 | AS91: 0 | AT91: 0
E92: -0.06 | F92: =Q102 -> 0.08021390374 | G92: =R102 -> 0.0306122449 | Q92: =Q91+Q102 -> 0.1443850267 | R92: =R91+R102 -> 0.05102040816 | W92: 15 | X92: 0 | Z92: 0 | AA92: 0 | AB92: 1 | AC92: 13 | AG92: 0 | AJ92: 16 | AK92: 0 | AM92: 0 | AN92: 0 | AO92: 1 | AP92: 19 | AT92: 0
E93: -0.02 | F93: 0.2406417112 | G93: 0.09183673469 | Q93: 0.385026738 | R93: 0.1428571429 | S93: Your Farm Line-Return on Assets | V93: Count | W93: 38 | X93: 38 | Y93: 38 | Z93: 38 | AA93: 38 | AB93: 38 | AC93: 38 | AD93: 38 | AE93: 38 | AF93: 38 | AG93: 38 | AI93: Count | AJ93: 34 | AK93: 34 | AL93: 34 | AM93: 34 | AN93: 34 | AO93: 34 | AP93: 34 | AQ93: 34 | AR93: 34 | AS93: 34 | AT93: 34
E94: 0.02 | F94: 0.385026738 | G94: 0.2959183673 | Q94: 0.7700534759 | R94: 0.4387755102 | S94: X's | T94: =IF(B26>0.24,0.24,B26) -> -0.004307799698 | U94: =T94 -> -0.004307799698 | V94: Average | W94: 2.225371506 | X94: 0.334823023 | Y94: 0.2363689274 | Z94: 0.01366418882 | AA94: 0.004920561084 | AB94: -0.006957732963 | AC94: 0.3601063443 | AD94: 0.7584404799 | AE94: 0.1132716571 | AF94: 0.02835737621 | AG94: 0.09993048684 | AI94: Average | AJ94: 3.232132319 | AK94: 0.4424188945 | AL94: 0.2456063211 | AM94: 0.1501131776 | AN94: 0.07183956118 | AO94: 0.07681213106 | AP94: 0.4785693192 | AQ94: 0.6678225036 | AR94: 0.08991778377 | AS94: 0.0249846869 | AT94: 0.2172750257
E95: 0.06 | F95: 0.1497326203 | G95: 0.3010204082 | Q95: 0.9197860963 | R95: 0.7397959184 | S95: Y's | T95: 0 | U95: 1 | V95: Non-ratio average | X95: 281238.4232 | AG95: 83937.75403 | AI95: Non-ratio average | AK95: 378354.2914 | AT95: 185812.4493
E96: 0.1 | F96: 0.02673796791 | G96: 0.1479591837 | Q96: 0.9465240642 | R96: 0.887755102 | S96: =IF(B26=F102,U1 &" Average","Your Farm") -> 2016 Average
E97: 0.14 | F97: 0.02139037433 | G97: 0.08163265306 | Q97: 0.9679144385 | R97: 0.9693877551 | W97: Greater than 1000Yes
E98: 0.18 | F98: 0.01604278075 | G98: 0.02551020408 | Q98: 0.9839572193 | R98: 0.9948979592 | W98: Current Ratio | X98: Working Capital Ratio | Y98: Debt to Asset Ratio | Z98: Operating Profit Margin | AA98: ROA | AB98: ROE | AC98: Asset Turnover | AD98: Operating Expense Ratio | AE98: Depr Expense Ratio | AF98: Interest Expense Ratio | AG98: NFI Ratio | AJ98: Current Ratio | AK98: Working Capital Ratio | AL98: Debt to Asset Ratio | AM98: Operating Profit Margin | AN98: ROA | AO98: ROE | AP98: Asset Turnover | AQ98: Operating Expense Ratio | AR98: Depr Expense Ratio | AS98: Interest Expense Ratio | AT98: NFI Ratio
E99: 0.22 | F99: 0.005347593583 | G99: 0 | Q99: 0.9893048128 | R99: 0.9948979592 | W99: 0 | X99: 0 | Y99: 3 | Z99: 0 | AA99: 0 | AB99: 2 | AC99: 0 | AD99: 0 | AE99: 0 | AF99: 3 | AG99: 0 | AJ99: 0 | AK99: 0 | AL99: 0 | AM99: 0 | AN99: 0 | AO99: 0 | AP99: 0 | AQ99: 0 | AR99: 0 | AS99: 0 | AT99: 0
E100: More | F100: 0.01069518717 | G100: 0.005102040816 | Q100: 1 | R100: 1 | W100: 1 | X100: 1 | Y100: 11 | Z100: 0 | AA100: 2 | AB100: 1 | AC100: 0 | AD100: 1 | AE100: 0 | AF100: 12 | AG100: 0 | AJ100: 0 | AK100: 0 | AL100: 6 | AM100: 0 | AN100: 0 | AO100: 1 | AP100: 0 | AQ100: 0 | AR100: 1 | AS100: 13 | AT100: 0
E101: Count | F101: =F80 -> 187 | G101: =G80 -> 196 | Q101: =IF($T$6=$W$1,AA3/$F$101,IF($T$6=$W$17,AA19/$F$101,IF($T$6=$W$33,AA35/$F$101,IF($T$6=$W$49,AA51/$F$101,IF($T$6=$W$65,AA67/$F$101,IF($T$6=$W$81,AA83/$F$101,IF($T$6=$W$97,AA99/$F$101,IF($T$6=$W$113,AA115/$F$101,IF($T$6=$W$129,AA131/$F$101,IF($T$6=$W$145,AA147/$F$101,IF($T$6=$W$161,AA163/$F$101,"N/A"))))))))))) -> 0.06417112299 | R101: =IF($T$6=$W$1,AN3/$G$38,IF($T$6=$W$17,AN19/$G$38,IF($T$6=$W$33,AN35/$G$38,IF($T$6=$W$49,AN51/$G$38,IF($T$6=$W$65,AN67/$G$38,IF($T$6=$W$81,AN83/$G$38,IF($T$6=$W$97,AN99/$G$38,IF($T$6=$W$113,AN115/$G$38,IF($T$6=$W$129,AN131/$G$38,IF($T$6=$W$145,AN147/$G$38,IF($T$6=$W$161,AN163/$G$38,"N/A"))))))))))) -> 0.02040816327 | W101: 0 | X101: 0 | Y101: 6 | Z101: 2 | AA101: 6 | AB101: 20 | AC101: 11 | AD101: 2 | AE101: 2 | AF101: 14 | AG101: 3 | AJ101: 1 | AK101: 1 | AL101: 8 | AM101: 0 | AN101: 0 | AO101: 3 | AP101: 0 | AQ101: 8 | AR101: 8 | AS101: 20 | AT101: 0
E102: Average | F102: =IF($T$6=$W$1,$AA$14,IF($T$6=$W$17,$AA$30,IF($T$6=$W$33,$AA$46,IF($T$6=$W$49,$AA$62,IF($T$6=$W$65,$AA$78,IF($T$6=$W$81,$AA$94,IF($T$6=$W$97,$AA$110,IF($T$6=$W$113,$AA$126,IF($T$6=$W$129,$AA$142,IF($T$6=$W$145,$AA$158,IF($T$6=$W$161,AA174,"N/A"))))))))))) -> -0.004307799698 | G102: =IF($T$6=$W$1,$AN$14,IF($T$6=$W$17,$AN$30,IF($T$6=$W$33,$AN$46,IF($T$6=$W$49,$AN$62,IF($T$6=$W$65,$AN$78,IF($T$6=$W$81,$AN$94,IF($T$6=$W$97,$AN$110,IF($T$6=$W$113,$AN$126,IF($T$6=$W$129,$AN$142,IF($T$6=$W$145,$AN$158,IF($T$6=$W$161,$AN$174,"N/A"))))))))))) -> 0.04014231376 | Q102: 0.08021390374 | R102: 0.0306122449 | W102: 2 | X102: 2 | Y102: 10 | Z102: 3 | AA102: 20 | AB102: 13 | AC102: 11 | AD102: 12 | AE102: 10 | AF102: 8 | AG102: 6 | AJ102: 2 | AK102: 3 | AL102: 16 | AM102: 0 | AN102: 6 | AO102: 18 | AP102: 3 | AQ102: 25 | AR102: 16 | AS102: 7 | AT102: 0
Q103: 0.2406417112 | R103: 0.09183673469 | W103: 6 | X103: 8 | Y103: 5 | Z103: 14 | AA103: 9 | AB103: 1 | AC103: 5 | AD103: 13 | AE103: 10 | AF103: 1 | AG103: 17 | AJ103: 9 | AK103: 17 | AL103: 7 | AM103: 1 | AN103: 26 | AO103: 18 | AP103: 11 | AQ103: 7 | AR103: 12 | AS103: 2 | AT103: 6
Q104: 0.385026738 | R104: 0.2959183673 | W104: 2 | X104: 10 | Y104: 2 | Z104: 15 | AA104: 1 | AB104: 1 | AC104: 2 | AD104: 5 | AE104: 9 | AF104: 0 | AG104: 10 | AJ104: 6 | AK104: 10 | AL104: 2 | AM104: 14 | AN104: 8 | AO104: 0 | AP104: 12 | AQ104: 2 | AR104: 5 | AS104: 0 | AT104: 29
Q105: 0.1497326203 | R105: 0.3010204082 | W105: 3 | X105: 8 | Y105: 0 | Z105: 4 | AA105: 0 | AB105: 0 | AC105: 4 | AD105: 3 | AE105: 5 | AF105: 0 | AG105: 2 | AJ105: 6 | AK105: 9 | AL105: 2 | AM105: 26 | AN105: 1 | AO105: 2 | AP105: 5 | AQ105: 0 | AR105: 0 | AS105: 0 | AT105: 7
F106: =IF(B26=F102,"","Your Farm") ->  | G106: =IF(B26=F102,"",B26) ->  | Q106: 0.02673796791 | R106: 0.1479591837 | W106: 4 | X106: 4 | Y106: 0 | Z106: 0 | AA106: 0 | AB106: 0 | AC106: 1 | AD106: 2 | AE106: 0 | AF106: 0 | AG106: 0 | AJ106: 1 | AK106: 2 | AL106: 0 | AM106: 1 | AN106: 1 | AO106: 0 | AP106: 4 | AQ106: 0 | AR106: 0 | AS106: 0 | AT106: 0
Q107: 0.02139037433 | R107: 0.08163265306 | W107: 4 | X107: 2 | Y107: 1 | Z107: 0 | AA107: 0 | AB107: 0 | AC107: 0 | AD107: 0 | AE107: 2 | AF107: 0 | AG107: 0 | AJ107: 2 | AK107: 0 | AL107: 1 | AM107: 0 | AN107: 0 | AO107: 0 | AP107: 3 | AQ107: 0 | AR107: 0 | AS107: 0 | AT107: 0
Q108: 0.01604278075 | R108: 0.02551020408 | W108: 16 | X108: 3 | Z108: 0 | AA108: 0 | AB108: 0 | AC108: 4 | AG108: 0 | AJ108: 15 | AK108: 0 | AM108: 0 | AN108: 0 | AO108: 0 | AP108: 4 | AT108: 0
Q109: 0.005347593583 | R109: 0 | V109: Count | W109: 38 | X109: 38 | Y109: 38 | Z109: 38 | AA109: 38 | AB109: 38 | AC109: 38 | AD109: 38 | AE109: 38 | AF109: 38 | AG109: 38 | AI109: Count | AJ109: 42 | AK109: 42 | AL109: 42 | AM109: 42 | AN109: 42 | AO109: 42 | AP109: 42 | AQ109: 42 | AR109: 42 | AS109: 42 | AT109: 42
E110: Rate of Return on Farm Equity | Q110: 0.01069518717 | R110: 0.005102040816 | V110: Average | W110: 3.791239354 | X110: 0.6938731614 | Y110: 0.1986181075 | Z110: 0.01669283318 | AA110: 0.002941699583 | AB110: -0.005220793112 | AC110: 0.1762253029 | AD110: 0.7488515147 | AE110: 0.1082960492 | AF110: 0.03837936566 | AG110: 0.1044730705 | AI110: Average | AJ110: 3.024314799 | AK110: 0.5560995448 | AL110: 0.239040486 | AM110: 0.1814893 | AN110: 0.05186014107 | AO110: 0.05299706161 | AP110: 0.2857476505 | AQ110: 0.6607425461 | AR110: 0.07807451135 | AS110: 0.0378278762 | AT110: 0.2233550664
F111: =U1 -> 2016 | G111: 10-Year | V111: Non-ratio average | X111: 583459.8116 | AG111: 87848.67526 | AI111: Non-ratio average | AK111: 563487.3389 | AT111: 226322.3431
E112: -0.1 | F112: =Q122 -> 0.1550802139 | G112: =R122 -> 0.0612244898 | Q112: =Q122 -> 0.1550802139 | R112: =R122 -> 0.0612244898
E113: -0.05 | F113: =Q123 -> 0.1497326203 | G113: =R123 -> 0.07142857143 | Q113: =Q112+Q123 -> 0.3048128342 | R113: =R112+R123 -> 0.1326530612 | W113: Blank
E114: 0 | F114: 0.3582887701 | G114: 0.1632653061 | Q114: 0.6631016043 | R114: 0.2959183673 | W114: Current Ratio | X114: Working Capital Ratio | Y114: Debt to Asset Ratio | Z114: Operating Profit Margin | AA114: ROA | AB114: ROE | AC114: Asset Turnover | AD114: Operating Expense Ratio | AE114: Depr Expense Ratio | AF114: Interest Expense Ratio | AG114: NFI Ratio | AJ114: Current Ratio | AK114: Working Capital Ratio | AL114: Debt to Asset Ratio | AM114: Operating Profit Margin | AN114: ROA | AO114: ROE | AP114: Asset Turnover | AQ114: Operating Expense Ratio | AR114: Depr Expense Ratio | AS114: Interest Expense Ratio | AT114: NFI Ratio
E115: 0.05 | F115: 0.2299465241 | G115: 0.3520408163 | Q115: 0.8930481283 | R115: 0.6479591837 | S115: Your Farm Line-Return on Equity
E116: 0.1 | F116: 0.02673796791 | G116: 0.2040816327 | Q116: 0.9197860963 | R116: 0.8520408163 | S116: X's | T116: =IF(B27>0.35,0.35,B27) -> -0.01565674504 | U116: =T116 -> -0.01565674504
E117: 0.15 | F117: 0.0320855615 | G117: 0.05612244898 | Q117: 0.9518716578 | R117: 0.9081632653 | S117: Y's | T117: 0 | U117: 1
E118: 0.2 | F118: 0.01069518717 | G118: 0.05102040816 | Q118: 0.9625668449 | R118: 0.9591836735 | S118: =IF(B27=F123,U1 &" Average","Your Farm") -> 2016 Average
E119: 0.25 | F119: 0.005347593583 | G119: 0.01530612245 | Q119: 0.9679144385 | R119: 0.9744897959
E120: 0.3 | F120: 0.01069518717 | G120: 0.005102040816 | Q120: 0.9786096257 | R120: 0.9795918367
E121: More | F121: 0.02139037433 | G121: 0.02040816327 | Q121: 1 | R121: 1
E122: Count | F122: =F101 -> 187 | G122: =G101 -> 196 | Q122: =IF($T$6=$W$1,AB3/$F$122,IF($T$6=$W$17,AB19/$F$122,IF($T$6=$W$33,AB35/$F$122,IF($T$6=$W$49,AB51/$F$122,IF($T$6=$W$65,AB67/$F$122,IF($T$6=$W$81,AB83/$F$122,IF($T$6=$W$97,AB99/$F$122,IF($T$6=$W$113,AB115/$F$122,IF($T$6=$W$129,AB131/$F$122,IF($T$6=$W$145,AB147/$F$122,IF($T$6=$W$161,AB163/$F$122,"N/A"))))))))))) -> 0.1550802139 | R122: =IF($T$6=$W$1,AO3/$G$38,IF($T$6=$W$17,AO19/$G$38,IF($T$6=$W$33,AO35/$G$38,IF($T$6=$W$49,AO51/$G$38,IF($T$6=$W$65,AO67/$G$38,IF($T$6=$W$81,AO83/$G$38,IF($T$6=$W$97,AO99/$G$38,IF($T$6=$W$113,AO115/$G$38,IF($T$6=$W$129,AO131/$G$38,IF($T$6=$W$145,AO147/$G$38,IF($T$6=$W$161,AO163/$G$38,"N/A"))))))))))) -> 0.0612244898
E123: Average | F123: =IF($T$6=$W$1,$AB$14,IF($T$6=$W$17,$AB$30,IF($T$6=$W$33,$AB$46,IF($T$6=$W$49,$AB$62,IF($T$6=$W$65,$AB$78,IF($T$6=$W$81,$AB$94,IF($T$6=$W$97,$AB$110,IF($T$6=$W$113,$AB$126,IF($T$6=$W$129,$AB$142,IF($T$6=$W$145,$AB$158,IF($T$6=W161,AB174,"N/A"))))))))))) -> -0.01565674504 | G123: =IF($T$6=$W$1,$AO$14,IF($T$6=$W$17,$AO$30,IF($T$6=$W$33,$AO$46,IF($T$6=$W$49,$AO$62,IF($T$6=$W$65,$AO$78,IF($T$6=$W$81,$AO$94,IF($T$6=$W$97,$AO$110,IF($T$6=$W$113,$AO$126,IF($T$6=$W$129,$AO$142,IF($T$6=$W$145,$AO$158,IF($T$6=$W$161,$AO$174,"N/A"))))))))))) -> 0.03702366628 | Q123: 0.1497326203 | R123: 0.07142857143
Q124: 0.3582887701 | R124: 0.1632653061
Q125: 0.2299465241 | R125: 0.3520408163 | V125: Count | AI125: Count
Q126: 0.02673796791 | R126: 0.2040816327 | V126: Average | AI126: Average
F127: =IF(B27=F123,"","Your Farm") ->  | G127: =IF(B27=F123,"",B27) ->  | Q127: 0.0320855615 | R127: 0.05612244898 | V127: Non-ratio average | AI127: Non-ratio average
Q128: 0.01069518717 | R128: 0.05102040816
Q129: 0.005347593583 | R129: 0.01530612245 | W129: All Farms
Q130: 0.01069518717 | R130: 0.005102040816 | W130: Current Ratio | X130: Working Capital Ratio | Y130: Debt to Asset Ratio | Z130: Operating Profit Margin | AA130: ROA | AB130: ROE | AC130: Asset Turnover | AD130: Operating Expense Ratio | AE130: Depr Expense Ratio | AF130: Interest Expense Ratio | AG130: NFI Ratio | AJ130: Current Ratio | AK130: Working Capital Ratio | AL130: Debt to Asset Ratio | AM130: Operating Profit Margin | AN130: ROA | AO130: ROE | AP130: Asset Turnover | AQ130: Operating Expense Ratio | AR130: Depr Expense Ratio | AS130: Interest Expense Ratio | AT130: NFI Ratio
E131: Asset Turnover Rate | Q131: 0.02139037433 | R131: 0.02040816327 | W131: 1 | X131: 8 | Y131: 27 | Z131: 20 | AA131: 12 | AB131: 29 | AC131: 0 | AD131: 0 | AE131: 0 | AF131: 26 | AG131: 13 | AJ131: 2 | AK131: 1 | AL131: 13 | AM131: 7 | AN131: 4 | AO131: 12 | AP131: 0 | AQ131: 1 | AR131: 0 | AS131: 13 | AT131: 2
F132: =U1 -> 2016 | G132: 10-Year | W132: 10 | X132: 8 | Y132: 45 | Z132: 10 | AA132: 15 | AB132: 28 | AC132: 17 | AD132: 5 | AE132: 9 | AF132: 59 | AG132: 5 | AJ132: 1 | AK132: 4 | AL132: 50 | AM132: 6 | AN132: 6 | AO132: 14 | AP132: 5 | AQ132: 3 | AR132: 17 | AS132: 79 | AT132: 0
E133: 0 | F133: =Q143 -> 0 | G133: =R143 -> 0 | Q133: =Q143 -> 0 | R133: =R143 -> 0 | W133: 12 | X133: 6 | Y133: 25 | Z133: 19 | AA133: 45 | AB133: 67 | AC133: 41 | AD133: 15 | AE133: 25 | AF133: 49 | AG133: 16 | AJ133: 14 | AK133: 10 | AL133: 29 | AM133: 5 | AN133: 18 | AO133: 32 | AP133: 17 | AQ133: 48 | AR133: 44 | AS133: 60 | AT133: 4
E134: 0.1 | F134: =Q144 -> 0.09090909091 | G134: =R144 -> 0.02551020408 | Q134: =Q133+Q144 -> 0.09090909091 | R134: =R133+R144 -> 0.02551020408 | W134: 30 | X134: 27 | Y134: 29 | Z134: 17 | AA134: 72 | AB134: 43 | AC134: 44 | AD134: 46 | AE134: 38 | AF134: 23 | AG134: 32 | AJ134: 17 | AK134: 24 | AL134: 33 | AM134: 8 | AN134: 58 | AO134: 69 | AP134: 37 | AQ134: 74 | AR134: 65 | AS134: 26 | AT134: 13
E135: 0.2 | F135: 0.2192513369 | G135: 0.08673469388 | Q135: 0.3101604278 | R135: 0.112244898 | W135: 15 | X135: 40 | Y135: 24 | Z135: 48 | AA135: 28 | AB135: 5 | AC135: 25 | AD135: 44 | AE135: 42 | AF135: 14 | AG135: 57 | AJ135: 23 | AK135: 53 | AL135: 32 | AM135: 20 | AN135: 59 | AO135: 40 | AP135: 37 | AQ135: 35 | AR135: 41 | AS135: 11 | AT135: 41
E136: 0.3 | F136: 0.2352941176 | G136: 0.1887755102 | Q136: 0.5454545455 | R136: 0.3010204082 | W136: 5 | X136: 27 | Y136: 16 | Z136: 48 | AA136: 5 | AB136: 6 | AC136: 13 | AD136: 29 | AE136: 29 | AF136: 6 | AG136: 47 | AJ136: 19 | AK136: 36 | AL136: 22 | AM136: 76 | AN136: 29 | AO136: 11 | AP136: 28 | AQ136: 26 | AR136: 18 | AS136: 3 | AT136: 86
E137: 0.4 | F137: 0.1336898396 | G137: 0.1887755102 | Q137: 0.679144385 | R137: 0.4897959184 | S137: Your Farm Line-Asset Turnover Rate | W137: 12 | X137: 25 | Y137: 4 | Z137: 22 | AA137: 4 | AB137: 2 | AC137: 12 | AD137: 15 | AE137: 22 | AF137: 2 | AG137: 15 | AJ137: 20 | AK137: 29 | AL137: 7 | AM137: 66 | AN137: 16 | AO137: 10 | AP137: 14 | AQ137: 4 | AR137: 5 | AS137: 2 | AT137: 47
E138: 0.5 | F138: 0.06951871658 | G138: 0.1428571429 | Q138: 0.7486631016 | R138: 0.6326530612 | S138: X's | T138: =IF(B28>0.9,0.9,B28) -> 0.1936241521 | U138: =T138 -> 0.1936241521 | W138: 7 | X138: 14 | Y138: 6 | Z138: 3 | AA138: 3 | AB138: 1 | AC138: 7 | AD138: 16 | AE138: 5 | AF138: 4 | AG138: 2 | AJ138: 5 | AK138: 9 | AL138: 5 | AM138: 8 | AN138: 5 | AO138: 3 | AP138: 13 | AQ138: 3 | AR138: 1 | AS138: 1 | AT138: 3
E139: 0.6 | F139: 0.06417112299 | G139: 0.07142857143 | Q139: 0.8128342246 | R139: 0.7040816327 | S139: Y's | T139: 0 | U139: 1 | W139: 8 | X139: 6 | Y139: 11 | Z139: 0 | AA139: 1 | AB139: 2 | AC139: 2 | AD139: 17 | AE139: 17 | AF139: 4 | AG139: 0 | AJ139: 7 | AK139: 9 | AL139: 5 | AM139: 0 | AN139: 0 | AO139: 1 | AP139: 13 | AQ139: 2 | AR139: 5 | AS139: 1 | AT139: 0
E140: 0.7 | F140: 0.03743315508 | G140: 0.06632653061 | Q140: 0.8502673797 | R140: 0.7704081633 | S140: =IF(B28=F144,U1 &" Average","Your Farm") -> 2016 Average | W140: 87 | X140: 26 | Z140: 0 | AA140: 2 | AB140: 4 | AC140: 26 | AG140: 0 | AJ140: 88 | AK140: 21 | AM140: 0 | AN140: 1 | AO140: 4 | AP140: 32 | AT140: 0
E141: 0.8 | F141: 0.01069518717 | G141: 0.06632653061 | Q141: 0.8609625668 | R141: 0.8367346939 | V141: Count | W141: 187 | X141: 187 | Y141: 187 | Z141: 187 | AA141: 187 | AB141: 187 | AC141: 187 | AD141: 187 | AE141: 187 | AF141: 187 | AG141: 187 | AI141: Count | AJ141: 196 | AK141: 196 | AL141: 196 | AM141: 196 | AN141: 196 | AO141: 196 | AP141: 196 | AQ141: 196 | AR141: 196 | AS141: 196 | AT141: 196
E142: More | F142: 0.1390374332 | G142: =R152 -> 0.1632653061 | Q142: 1 | R142: 1 | V142: Average | W142: 2.805671674 | X142: 0.5848651592 | Y142: 0.2002717786 | Z142: -0.02224825597 | AA142: -0.004307799698 | AB142: -0.01565674504 | AC142: 0.1936241521 | AD142: 0.7669282121 | AE142: 0.1078854533 | AF142: 0.03960541449 | AG142: 0.08558092011 | AI142: Average | AJ142: 3.09855791 | AK142: 0.5860212903 | AL142: 0.2172404784 | AM142: 0.1429011007 | AN142: 0.04014231376 | AO142: 0.03702366628 | AP142: 0.2809097591 | AQ142: 0.6737611313 | AR142: 0.07995450818 | AS142: 0.03540036295 | AT142: 0.2108839976
E143: Count | F143: =F122 -> 187 | G143: =G122 -> 196 | Q143: =IF($T$6=$W$1,AC3/$F$143,IF($T$6=$W$17,AC19/$F$143,IF($T$6=$W$33,AC35/$F$143,IF($T$6=$W$49,AC51/$F$143,IF($T$6=$W$65,AC67/$F$143,IF($T$6=$W$81,AC83/$F$143,IF($T$6=$W$97,AC99/$F$143,IF($T$6=$W$113,AC115/$F$143,IF($T$6=$W$129,AC131/$F$143,IF($T$6=$W$145,AC147/$F$143,IF($T$6=$W$161,AC163/$F$143,"N/A"))))))))))) -> 0 | R143: =IF($T$6=$W$1,AP3/$G$38,IF($T$6=$W$17,AP19/$G$38,IF($T$6=$W$33,AP35/$G$38,IF($T$6=$W$49,AP51/$G$38,IF($T$6=$W$65,AP67/$G$38,IF($T$6=$W$81,AP83/$G$38,IF($T$6=$W$97,AP99/$G$38,IF($T$6=$W$113,AP115/$G$38,IF($T$6=$W$129,AP131/$G$38,IF($T$6=$W$145,AP147/$G$38,IF($T$6=$W$161,AP163/$G$38,"N/A"))))))))))) -> 0 | V143: Non-ratio average | X143: 315586.6088 | AG143: 46178.49419 | AI143: Non-ratio average | AK143: 333573.1495 | AT143: 120038.7092
E144: Average | F144: =IF($T$6=$W$1,$AC$14,IF($T$6=$W$17,$AC$30,IF($T$6=$W$33,$AC$46,IF($T$6=$W$49,$AC$62,IF($T$6=$W$65,$AC$78,IF($T$6=$W$81,$AC$94,IF($T$6=$W$97,$AC$110,IF($T$6=$W$113,$AC$126,IF($T$6=$W$129,$AC$142,IF($T$6=$W$145,$AC$158,IF($T$6=W161,AC174,"N/A"))))))))))) -> 0.1936241521 | G144: =IF($T$6=$W$1,$AP$14,IF($T$6=$W$17,$AP$30,IF($T$6=$W$33,$AP$46,IF($T$6=$W$49,$AP$62,IF($T$6=$W$65,$AP$78,IF($T$6=$W$81,$AP$94,IF($T$6=$W$97,$AP$110,IF($T$6=$W$113,$AP$126,IF($T$6=$W$129,$AP$142,IF($T$6=$W$145,$AP$158,IF($T$6=$W$161,$AP$174,"N/A"))))))))))) -> 0.2809097591 | Q144: 0.09090909091 | R144: 0.02551020408
Q145: 0.2192513369 | R145: 0.08673469388 | W145: Blank
Q146: 0.2352941176 | R146: 0.1887755102 | W146: Current Ratio | X146: Working Capital Ratio | Y146: Debt to Asset Ratio | Z146: Operating Profit Margin | AA146: ROA | AB146: ROE | AC146: Asset Turnover | AD146: Operating Expense Ratio | AE146: Depr Expense Ratio | AF146: Interest Expense Ratio | AG146: NFI Ratio | AJ146: Current Ratio | AK146: Working Capital Ratio | AL146: Debt to Asset Ratio | AM146: Operating Profit Margin | AN146: ROA | AO146: ROE | AP146: Asset Turnover | AQ146: Operating Expense Ratio | AR146: Depr Expense Ratio | AS146: Interest Expense Ratio | AT146: NFI Ratio
Q147: 0.1336898396 | R147: 0.1887755102
F148: =IF(B28=F144,"","Your Farm") ->  | G148: =IF(B28=F144,"",B28) ->  | Q148: 0.06951871658 | R148: 0.1428571429
Q149: 0.06417112299 | R149: 0.07142857143
Q150: 0.03743315508 | R150: 0.06632653061
Q151: 0.01069518717 | R151: 0.06632653061
E152: Operating Expense Ratio | Q152: 0.1390374332 | R152: 0.1632653061
F153: =U1 -> 2016 | G153: 10-Year
E154: 0.4 | F154: =Q163 -> 0 | G154: =R163 -> 0.005102040816 | Q154: =Q163 -> 0 | R154: =R163 -> 0.005102040816
E155: 0.5 | F155: =Q164 -> 0.02673796791 | G155: =R164 -> 0.01530612245 | Q155: =Q154+Q164 -> 0.02673796791 | R155: 0.02040816327
E156: 0.6 | F156: 0.08021390374 | G156: 0.2448979592 | Q156: 0.1069518717 | R156: 0.2653061224
E157: 0.7 | F157: 0.2459893048 | G157: 0.3775510204 | Q157: 0.3529411765 | R157: 0.6428571429 | V157: Count | AI157: Count
E158: 0.8 | F158: 0.2352941176 | G158: 0.1785714286 | Q158: 0.5882352941 | R158: 0.8214285714 | V158: Average | AI158: Average
E159: 0.9 | F159: 0.1550802139 | G159: 0.1326530612 | Q159: 0.743315508 | R159: 0.9540816327 | S159: Your Farm Line-Operating Expense Ratio | V159: Non-ratio average | AI159: Non-ratio average
E160: 1 | F160: 0.08021390374 | G160: 0.02040816327 | Q160: 0.8235294118 | R160: 0.9744897959 | S160: X's | T160: =IF(B29>1.2,1.2,B29) -> 0.7669282121 | U160: =T160 -> 0.7669282121
E161: 1.1 | F161: 0.08556149733 | G161: 0.01530612245 | Q161: 0.9090909091 | R161: 0.9897959184 | S161: Y's | T161: 0 | U161: 1 | W161: Blank
E162: More | F162: 0.09090909091 | G162: 0.01020408163 | Q162: 1 | R162: 1 | S162: =IF(B29=F164,U1 &" Average","Your Farm") -> 2016 Average | W162: Current Ratio | X162: Working Capital Ratio | Y162: Debt to Asset Ratio | Z162: Operating Profit Margin | AA162: ROA | AB162: ROE | AC162: Asset Turnover | AD162: Operating Expense Ratio | AE162: Depr Expense Ratio | AF162: Interest Expense Ratio | AG162: NFI Ratio | AJ162: Current Ratio | AK162: Working Capital Ratio | AL162: Debt to Asset Ratio | AM162: Operating Profit Margin | AN162: ROA | AO162: ROE | AP162: Asset Turnover | AQ162: Operating Expense Ratio | AR162: Depr Expense Ratio | AS162: Interest Expense Ratio | AT162: NFI Ratio
E163: Count | F163: =F143 -> 187 | G163: =G143 -> 196 | Q163: =IF($T$6=$W$1,AD3/$F$143,IF($T$6=$W$17,AD19/$F$143,IF($T$6=$W$33,AD35/$F$143,IF($T$6=$W$49,AD51/$F$143,IF($T$6=$W$65,AD67/$F$143,IF($T$6=$W$81,AD83/$F$143,IF($T$6=$W$97,AD99/$F$143,IF($T$6=$W$113,AD115/$F$143,IF($T$6=$W$129,AD131/$F$143,IF($T$6=$W$145,AD147/$F$143,IF($T$6=$W$161,AD163/$F$143,"N/A"))))))))))) -> 0 | R163: =IF($T$6=$W$1,AQ3/$G$38,IF($T$6=$W$17,AQ19/$G$38,IF($T$6=$W$33,AQ35/$G$38,IF($T$6=$W$49,AQ51/$G$38,IF($T$6=$W$65,AQ67/$G$38,IF($T$6=$W$81,AQ83/$G$38,IF($T$6=$W$97,AQ99/$G$38,IF($T$6=$W$113,AQ115/$G$38,IF($T$6=$W$129,AQ131/$G$38,IF($T$6=$W$145,AQ147/$G$38,IF($T$6=$W$161,AQ163/$G$38,"N/A"))))))))))) -> 0.005102040816
E164: Average | F164: =IF($T$6=$W$1,$AD$14,IF($T$6=$W$17,$AD$30,IF($T$6=$W$33,$AD$46,IF($T$6=$W$49,$AD$62,IF($T$6=$W$65,$AD$78,IF($T$6=$W$81,$AD$94,IF($T$6=$W$97,$AD$110,IF($T$6=$W$113,$AD$126,IF($T$6=$W$129,$AD$142,IF($T$6=$W$145,$AD$158,IF($T$6=W161,AD174,"N/A"))))))))))) -> 0.7669282121 | G164: =IF($T$6=$W$1,$AQ$14,IF($T$6=$W$17,$AQ$30,IF($T$6=$W$33,$AQ$46,IF($T$6=$W$49,$AQ$62,IF($T$6=$W$65,$AQ$78,IF($T$6=$W$81,$AQ$94,IF($T$6=$W$97,$AQ$110,IF($T$6=$W$113,$AQ$126,IF($T$6=$W$129,$AQ$142,IF($T$6=$W$145,$AQ$158,IF($T$6=$W$161,$AQ$174,"N/A"))))))))))) -> 0.6737611313 | Q164: 0.02673796791 | R164: 0.01530612245
Q165: 0.08021390374 | R165: 0.2448979592
Q166: 0.2459893048 | R166: 0.3775510204
Q167: 0.2352941176 | R167: 0.1785714286
F168: =IF(B29=F164,"","Your Farm") ->  | G168: =IF(B29=F164,"",B29) ->  | Q168: 0.1550802139 | R168: 0.1326530612
Q169: 0.08021390374 | R169: 0.02040816327
Q170: 0.08556149733 | R170: 0.01530612245
Q171: 0.09090909091 | R171: 0.01020408163
E173: Depreciation Expense Ratio | V173: Count | AI173: Count
F174: =U1 -> 2016 | G174: 10-Year | V174: Average | AI174: Average
E175: 0 | F175: =Q184 -> 0 | G175: =R184 -> 0 | Q175: =Q184 -> 0 | R175: =R184 -> 0 | V175: Non-ratio average | AI175: Non-ratio average
E176: 0.03 | F176: =Q185 -> 0.04812834225 | G176: =R185 -> 0.08673469388 | Q176: =Q175+Q185 -> 0.04812834225 | R176: 0.08673469388
E177: 0.06 | F177: 0.1336898396 | G177: 0.2244897959 | Q177: 0.1818181818 | R177: 0.3112244898
E178: 0.09 | F178: 0.2032085561 | G178: 0.3316326531 | Q178: 0.385026738 | R178: 0.6428571429
E179: 0.12 | F179: 0.2245989305 | G179: 0.2091836735 | Q179: 0.6096256684 | R179: 0.8520408163
E180: 0.15 | F180: 0.1550802139 | G180: 0.09183673469 | Q180: 0.7647058824 | R180: 0.943877551
E181: 0.18 | F181: 0.1176470588 | G181: 0.02551020408 | Q181: 0.8823529412 | R181: 0.9693877551 | S181: Your Farm Line-Depreciation Expense Ratio
E182: 0.21 | F182: 0.02673796791 | G182: 0.005102040816 | Q182: 0.9090909091 | R182: 0.9744897959 | S182: X's | T182: =IF(B30>0.24,0.24,B30) -> 0.1078854533 | U182: =T182 -> 0.1078854533
E183: More | F183: 0.09090909091 | G183: 0.02551020408 | Q183: 1 | R183: 1 | S183: Y's | T183: 0 | U183: 1
E184: Count | F184: =F163 -> 187 | G184: =G163 -> 196 | Q184: =IF($T$6=$W$1,AE3/$F$143,IF($T$6=$W$17,AE19/$F$143,IF($T$6=$W$33,AE35/$F$143,IF($T$6=$W$49,AE51/$F$143,IF($T$6=$W$65,AE67/$F$143,IF($T$6=$W$81,AE83/$F$143,IF($T$6=$W$97,AE99/$F$143,IF($T$6=$W$113,AE115/$F$143,IF($T$6=$W$129,AE131/$F$143,IF($T$6=$W$145,AE147/$F$143,IF($T$6=$W$161,AE163/$F$143,"N/A"))))))))))) -> 0 | R184: =IF($T$6=$W$1,AR3/$G$38,IF($T$6=$W$17,AR19/$G$38,IF($T$6=$W$33,AR35/$G$38,IF($T$6=$W$49,AR51/$G$38,IF($T$6=$W$65,AR67/$G$38,IF($T$6=$W$81,AR83/$G$38,IF($T$6=$W$97,AR99/$G$38,IF($T$6=$W$113,AR115/$G$38,IF($T$6=$W$129,AR131/$G$38,IF($T$6=$W$145,AR147/$G$38,IF($T$6=$W$161,AR163/$G$38,"N/A"))))))))))) -> 0 | S184: =IF(B30=F185,U1 &" Average","Your Farm") -> 2016 Average
E185: Average | F185: =IF($T$6=$W$1,$AE$14,IF($T$6=$W$17,$AE$30,IF($T$6=$W$33,$AE$46,IF($T$6=$W$49,$AE$62,IF($T$6=$W$65,$AE$78,IF($T$6=$W$81,$AE$94,IF($T$6=$W$97,$AE$110,IF($T$6=$W$113,$AE$126,IF($T$6=$W$129,$AE$142,IF($T$6=$W$145,$AE$158,IF($T$6=$W$161,AE174,"N/A"))))))))))) -> 0.1078854533 | G185: =IF($T$6=$W$1,$AR$14,IF($T$6=$W$17,$AR$30,IF($T$6=$W$33,$AR$46,IF($T$6=$W$49,$AR$62,IF($T$6=$W$65,$AR$78,IF($T$6=$W$81,$AR$94,IF($T$6=$W$97,$AR$110,IF($T$6=$W$113,$AR$126,IF($T$6=$W$129,$AR$142,IF($T$6=$W$145,$AR$158,IF($T$6=$W$161,$AR$174,"N/A"))))))))))) -> 0.07995450818 | Q185: 0.04812834225 | R185: 0.08673469388
Q186: 0.1336898396 | R186: 0.2244897959
Q187: 0.2032085561 | R187: 0.3316326531
Q188: 0.2245989305 | R188: 0.2091836735
F189: =IF(B30=F185,"","Your Farm") ->  | G189: =IF(B30=F185,"",B30) ->  | Q189: 0.1550802139 | R189: 0.09183673469
Q190: 0.1176470588 | R190: 0.02551020408
Q191: 0.02673796791 | R191: 0.005102040816
Q192: 0.09090909091 | R192: 0.02551020408
E194: Interest Expense Ratio
F195: =U1 -> 2016 | G195: 10-Year
E196: 0 | F196: =Q205 -> 0.1390374332 | G196: =R205 -> 0.06632653061 | Q196: =Q205 -> 0.1390374332 | R196: =R205 -> 0.06632653061
E197: 0.03 | F197: =Q206 -> 0.3155080214 | G197: =R206 -> 0.4030612245 | Q197: =Q196+Q206 -> 0.4545454545 | R197: 0.4693877551
E198: 0.06 | F198: 0.2620320856 | G198: 0.306122449 | Q198: 0.7165775401 | R198: 0.7755102041
E199: 0.09 | F199: 0.1229946524 | G199: 0.1326530612 | Q199: 0.8395721925 | R199: 0.9081632653
E200: 0.12 | F200: 0.07486631016 | G200: 0.05612244898 | Q200: 0.9144385027 | R200: 0.9642857143
E201: 0.15 | F201: 0.0320855615 | G201: 0.01530612245 | Q201: 0.9465240642 | R201: 0.9795918367
E202: 0.18 | F202: 0.01069518717 | G202: 0.01020408163 | Q202: 0.9572192513 | R202: 0.9897959184
E203: 0.21 | F203: 0.02139037433 | G203: 0.005102040816 | Q203: 0.9786096257 | R203: 0.9948979592 | S203: Your Farm Line-Interest Expense Ratio
... 32 more rows

Sheet SouthEast
E1: KSU FARM FINANCIAL BENCHMARKING TOOL-Southeast Kansas | S1: Acres | T1: Lookup | U1: 2016 | W1: Less than 500None | AI1: 10-Year
S2: Less than 500 | T2: LT | U2: 2016 KFMA Farms | W2: Current Ratio | X2: Working Capital Ratio | Y2: Debt to Asset Ratio | Z2: Operating Profit Margin | AA2: ROA | AB2: ROE | AC2: Asset Turnover | AD2: Operating Expense Ratio | AE2: Depr Expense Ratio | AF2: Interest Expense Ratio | AG2: NFI Ratio | AJ2: Current Ratio | AK2: Working Capital Ratio | AL2: Debt to Asset Ratio | AM2: Operating Profit Margin | AN2: ROA | AO2: ROE | AP2: Asset Turnover | AQ2: Operating Expense Ratio | AR2: Depr Expense Ratio | AS2: Interest Expense Ratio | AT2: NFI Ratio
E3: Tillable Crop Acres: | G3: =B16 -> All Farms | I3: =A17 ->  | K3: =IF(B17="","",B17) ->  | P3: =IF(B18="","",B18) ->  | S3: 500-1500 | T3: BTW | U3: =J3 -> 0 | W3: 0 | X3: 0 | Y3: 3 | Z3: 1 | AA3: 1 | AB3: 0 | AC3: 0 | AD3: 3 | AE3: 1 | AF3: 2 | AG3: 1 | AJ3: 0 | AK3: 1 | AL3: 5 | AM3: 3 | AN3: 1 | AO3: 4 | AP3: 0 | AQ3: 2 | AR3: 1 | AS3: 5 | AT3: 1
S4: Greater than 1500 | T4: GT | W4: 0 | X4: 0 | Y4: 2 | Z4: 0 | AA4: 0 | AB4: 1 | AC4: 2 | AD4: 0 | AE4: 0 | AF4: 5 | AG4: 0 | AJ4: 2 | AK4: 1 | AL4: 7 | AM4: 0 | AN4: 4 | AO4: 2 | AP4: 1 | AQ4: 2 | AR4: 3 | AS4: 7 | AT4: 0
E5: Current Ratio | S5: All Farms | T5: All | W5: 0 | X5: 0 | Y5: 1 | Z5: 0 | AA5: 1 | AB5: 2 | AC5: 0 | AD5: 3 | AE5: 2 | AF5: 1 | AG5: 0 | AJ5: 1 | AK5: 1 | AL5: 4 | AM5: 1 | AN5: 2 | AO5: 7 | AP5: 8 | AQ5: 4 | AR5: 5 | AS5: 6 | AT5: 1
F6: =U1 -> 2016 | G6: 10-Year | S6: LTList | T6: =B16&B17&B18 -> All Farms | W6: 2 | X6: 4 | Y6: 0 | Z6: 0 | AA6: 3 | AB6: 3 | AC6: 4 | AD6: 0 | AE6: 4 | AF6: 2 | AG6: 1 | AJ6: 1 | AK6: 4 | AL6: 2 | AM6: 4 | AN6: 10 | AO6: 6 | AP6: 7 | AQ6: 9 | AR6: 6 | AS6: 5 | AT6: 1
E7: 0 | F7: =Q17 -> 0.004566210046 | G7: =R17 -> 0.0078125 | S7: None | W7: 0 | X7: 2 | Y7: 3 | Z7: 3 | AA7: 5 | AB7: 3 | AC7: 0 | AD7: 3 | AE7: 1 | AF7: 1 | AG7: 2 | AJ7: 2 | AK7: 7 | AL7: 0 | AM7: 6 | AN7: 5 | AO7: 3 | AP7: 1 | AQ7: 4 | AR7: 4 | AS7: 0 | AT7: 4
E8: 0.5 | F8: =Q18 -> 0.03652968037 | G8: =R18 -> 0.01822916667 | Q8: =Q7+Q18 -> 0.03652968037 | R8: =R7+R18 -> 0.01822916667 | S8: <100 | W8: 2 | X8: 2 | Y8: 1 | Z8: 2 | AA8: 0 | AB8: 0 | AC8: 3 | AD8: 0 | AE8: 0 | AF8: 0 | AG8: 1 | AJ8: 2 | AK8: 2 | AL8: 3 | AM8: 3 | AN8: 2 | AO8: 0 | AP8: 2 | AQ8: 1 | AR8: 5 | AS8: 1 | AT8: 10
E9: 1 | F9: 0.08219178082 | G9: 0.0546875 | Q9: 0.1187214612 | R9: 0.07291666667 | S9: 100+ | W9: 1 | X9: 2 | Y9: 1 | Z9: 3 | AA9: 0 | AB9: 0 | AC9: 0 | AD9: 1 | AE9: 1 | AF9: 0 | AG9: 4 | AJ9: 0 | AK9: 2 | AL9: 0 | AM9: 5 | AN9: 0 | AO9: 0 | AP9: 2 | AQ9: 0 | AR9: 1 | AS9: 0 | AT9: 5
E10: 1.5 | F10: 0.1324200913 | G10: 0.1328125 | Q10: 0.2511415525 | R10: 0.2057291667 | W10: 1 | X10: 0 | Y10: 0 | Z10: 2 | AA10: 0 | AB10: 0 | AC10: 0 | AD10: 0 | AE10: 1 | AF10: 0 | AG10: 2 | AJ10: 1 | AK10: 0 | AL10: 1 | AM10: 2 | AN10: 1 | AO10: 1 | AP10: 0 | AQ10: 2 | AR10: 0 | AS10: 0 | AT10: 2
E11: 2 | F11: 0.07305936073 | G11: 0.09635416667 | Q11: 0.3242009132 | R11: 0.3020833333 | S11: BTWList | W11: 0 | X11: 0 | Y11: 0 | Z11: 0 | AA11: 0 | AB11: 0 | AC11: 0 | AD11: 1 | AE11: 1 | AF11: 0 | AG11: 0 | AJ11: 0 | AK11: 1 | AL11: 3 | AM11: 1 | AN11: 0 | AO11: 0 | AP11: 2 | AQ11: 1 | AR11: 0 | AS11: 1 | AT11: 1
E12: 2.5 | F12: 0.06392694064 | G12: 0.07291666667 | Q12: 0.3881278539 | R12: 0.375 | S12: None | W12: 5 | X12: 1 | Z12: 0 | AA12: 1 | AB12: 2 | AC12: 2 | AG12: 0 | AJ12: 16 | AK12: 6 | AM12: 0 | AN12: 0 | AO12: 2 | AP12: 2 | AT12: 0
E13: 3 | F13: 0.04109589041 | G13: 0.046875 | Q13: 0.4292237443 | R13: 0.421875 | S13: <100 | V13: Count | W13: 11 | X13: 11 | Y13: 11 | Z13: 11 | AA13: 11 | AB13: 11 | AC13: 11 | AD13: 11 | AE13: 11 | AF13: 11 | AG13: 11 | AI13: Count | AJ13: 25 | AK13: 25 | AL13: 25 | AM13: 25 | AN13: 25 | AO13: 25 | AP13: 25 | AQ13: 25 | AR13: 25 | AS13: 25 | AT13: 25
E14: 3.5 | F14: 0.0502283105 | G14: 0.03645833333 | Q14: 0.4794520548 | R14: 0.4583333333 | S14: 100+ | V14: Average | W14: 3.298162882 | X14: 0.5240837597 | Y14: 0.1907355486 | Z14: 0.1042660834 | AA14: 0.01694855667 | AB14: 0.01125135213 | AC14: 0.1625510053 | AD14: 0.5893983212 | AE14: 0.1232852372 | AF14: 0.03969839726 | AG14: 0.2476180444 | AI14: Average | AJ14: 5.166412672 | AK14: 0.717466265 | AL14: 0.1052123772 | AM14: 0.1048816231 | AN14: 0.01535948964 | AO14: 0.01070314775 | AP14: 0.1464459568 | AQ14: 0.5856502321 | AR14: 0.08452665221 | AS14: 0.03646240248 | AT14: 0.2933607132
A15: BENCHMARK CATEGORY | E15: 4 | F15: 0.01826484018 | G15: 0.03385416667 | Q15: 0.497716895 | R15: 0.4921875 | V15: Non-ratio average | X15: 79275.19545 | AG15: 37455.78545 | AI15: Non-ratio average | AK15: 80564.68664 | AT15: 32941.63794
A16: Tillable Crop Acres: | B16: All Farms | E16: More | F16: 0.497716895 | G16: 0.5 | Q16: 0.99543379 | R16: 0.9921875 | S16: GTList
A17: =IF(B16="All Farms","","Head of Beef Cows:") ->  | E17: Count | F17: =IF($T$6=$W$1,$W$13,IF($T$6=$W$17,$W$29,IF($T$6=$W$33,$W$45,IF($T$6=$W$49,$W$61,IF($T$6=$W$65,$W$77,IF($T$6=$W$81,$W$93,IF($T$6=$W$97,$W$109,IF($T$6=$W$113,$W$125,IF($T$6=$W$129,$W$141,IF($T$6=$W$145,$W$157,IF(T6=$W$161,$W$173,"N/A"))))))))))) -> 219 | G17: =IF($T$6=$W$1,$AJ$13,IF($T$6=$W$17,$AJ$29,IF($T$6=$W$33,$AJ$45,IF($T$6=$W$49,$AJ$61,IF($T$6=$W$65,$AJ$77,IF($T$6=$W$81,$AJ$93,IF($T$6=$W$97,$AJ$109,IF($T$6=$W$113,$AJ$125,IF($T$6=$W$129,$AJ$141,IF($T$6=$W$145,$AJ$157, IF($T$6=$W$161,$AJ$173,"N/A"))))))))))) -> 384 | Q17: =IF($T$6=$W$1,W3/$W$13,IF($T$6=$W$17,W19/$W$29,IF($T$6=$W$33,W35/$W$45,IF($T$6=$W$49,W51/$W$61,IF($T$6=$W$65,W67/$W$77,IF($T$6=$W$81,W83/$W$93,IF($T$6=$W$97,W99/$W$109,IF($T$6=$W$113,W115/$W$125,IF($T$6=$W$129,W131/$W$141,IF($T$6=$W$145,W147/$W$157,IF($T$6=$W$161,W163/$W$173,"N/A"))))))))))) -> 0.004566210046 | R17: =IF($T$6=$W$1,AJ3/$AJ$13,IF($T$6=$W$17,AJ19/$AJ$29,IF($T$6=$W$33,AJ35/$AJ$45,IF($T$6=$W$49,AJ51/$AJ$61,IF($T$6=$W$65,AJ67/$AJ$77,IF($T$6=$W$81,AJ83/$AJ$93,IF($T$6=$W$97,AJ99/$AJ$109,IF($T$6=$W$113,AJ115/$AJ$125,IF($T$6=$W$129,AJ131/$AJ$141,IF($T$6=$W$145,AJ147/$AJ$157,IF($T$6=$W$161,AJ163/$AJ$173,"N/A"))))))))))) -> 0.0078125 | S17: None | W17: Less than 500<100
E18: Average | F18: =IF($T$6=$W$1,$W$14,IF($T$6=$W$17,$W$30,IF($T$6=$W$33,$W$46,IF($T$6=$W$49,$W$62,IF($T$6=$W$65,$W$78,IF($T$6=$W$81,$W$94,IF($T$6=$W$97,$W$110,IF($T$6=$W$113,$W$126,IF($T$6=$W$129,$W$142,IF($T$6=$W$145,$W$158, IF($T$6=$W$161,$W$174,"N/A"))))))))))) -> 2.692865043 | G18: =IF($T$6=$W$1,$AJ$14,IF($T$6=$W$17,$AJ$30,IF($T$6=$W$33,$AJ$46,IF($T$6=$W$49,$AJ$62,IF($T$6=$W$65,$AJ$78,IF($T$6=$W$81,$AJ$94,IF($T$6=$W$97,$AJ$110,IF($T$6=$W$113,$AJ$126,IF($T$6=$W$129,$AJ$142,IF($T$6=$W$145,$AJ$158, IF($T$6=$W$161,$AJ$174,"N/A"))))))))))) -> 3.071203688 | Q18: 0.03652968037 | R18: 0.01822916667 | S18: <100 | W18: Current Ratio | X18: Working Capital Ratio | Y18: Debt to Asset Ratio | Z18: Operating Profit Margin | AA18: ROA | AB18: ROE | AC18: Asset Turnover | AD18: Operating Expense Ratio | AE18: Depr Expense Ratio | AF18: Interest Expense Ratio | AG18: NFI Ratio | AJ18: Current Ratio | AK18: Working Capital Ratio | AL18: Debt to Asset Ratio | AM18: Operating Profit Margin | AN18: ROA | AO18: ROE | AP18: Asset Turnover | AQ18: Operating Expense Ratio | AR18: Depr Expense Ratio | AS18: Interest Expense Ratio | AT18: NFI Ratio
Q19: 0.08219178082 | R19: 0.0546875 | S19: 100+ | W19: 0 | X19: 2 | Y19: 8 | Z19: 5 | AA19: 3 | AB19: 5 | AC19: 0 | AD19: 2 | AE19: 0 | AF19: 7 | AG19: 1 | AJ19: 0 | AK19: 1 | AL19: 3 | AM19: 9 | AN19: 4 | AO19: 8 | AP19: 0 | AQ19: 1 | AR19: 0 | AS19: 1 | AT19: 1
F20: =IF(B22=F18,"","Your Farm") ->  | G20: =IF(B22=F18,"",B22) ->  | Q20: 0.1324200913 | R20: 0.1328125 | W20: 2 | X20: 1 | Y20: 2 | Z20: 3 | AA20: 1 | AB20: 3 | AC20: 5 | AD20: 5 | AE20: 0 | AF20: 7 | AG20: 2 | AJ20: 1 | AK20: 0 | AL20: 21 | AM20: 1 | AN20: 6 | AO20: 9 | AP20: 4 | AQ20: 5 | AR20: 3 | AS20: 23 | AT20: 0
A21: YOUR FARM VALUES* | Q21: 0.07305936073 | R21: 0.09635416667 | W21: 2 | X21: 1 | Y21: 10 | Z21: 2 | AA21: 6 | AB21: 11 | AC21: 11 | AD21: 1 | AE21: 4 | AF21: 3 | AG21: 5 | AJ21: 2 | AK21: 2 | AL21: 10 | AM21: 3 | AN21: 12 | AO21: 20 | AP21: 18 | AQ21: 7 | AR21: 14 | AS21: 6 | AT21: 6
A22: Current Ratio: | B22: =S37 -> 2.692865043 | Q22: 0.06392694064 | R22: 0.07291666667 | S22: None | W22: 1 | X22: 3 | Y22: 2 | Z22: 4 | AA22: 10 | AB22: 5 | AC22: 2 | AD22: 5 | AE22: 7 | AF22: 3 | AG22: 3 | AJ22: 6 | AK22: 9 | AL22: 7 | AM22: 8 | AN22: 18 | AO22: 10 | AP22: 14 | AQ22: 9 | AR22: 14 | AS22: 6 | AT22: 6
A23: Working Capital Ratio: | B23: 0.6803376567 | Q23: 0.04109589041 | R23: 0.046875 | S23: Yes | W23: 2 | X23: 4 | Y23: 2 | Z23: 3 | AA23: 6 | AB23: 2 | AC23: 2 | AD23: 3 | AE23: 4 | AF23: 2 | AG23: 5 | AJ23: 4 | AK23: 10 | AL23: 2 | AM23: 13 | AN23: 9 | AO23: 2 | AP23: 6 | AQ23: 12 | AR23: 9 | AS23: 7 | AT23: 12
A24: Debt to Asset Ratio: | B24: 0.2199725473 | Q24: 0.0502283105 | R24: 0.03645833333 | S24: No | W24: 0 | X24: 4 | Y24: 0 | Z24: 7 | AA24: 1 | AB24: 0 | AC24: 2 | AD24: 4 | AE24: 3 | AF24: 2 | AG24: 5 | AJ24: 5 | AK24: 8 | AL24: 2 | AM24: 9 | AN24: 2 | AO24: 2 | AP24: 3 | AQ24: 11 | AR24: 2 | AS24: 4 | AT24: 15
A25: Operating Profit Margin | B25: 0.1022229346 | Q25: 0.01826484018 | R25: 0.03385416667 | W25: 2 | X25: 5 | Y25: 1 | Z25: 2 | AA25: 0 | AB25: 0 | AC25: 1 | AD25: 3 | AE25: 4 | AF25: 0 | AG25: 5 | AJ25: 3 | AK25: 10 | AL25: 4 | AM25: 5 | AN25: 0 | AO25: 0 | AP25: 3 | AQ25: 2 | AR25: 3 | AS25: 2 | AT25: 9
A26: Rate of Return on Farm Assets | B26: 0.02363573018 | E26: Working Captial Ratio | Q26: 0.497716895 | R26: 0.5 | W26: 0 | X26: 2 | Y26: 1 | Z26: 2 | AA26: 0 | AB26: 1 | AC26: 2 | AD26: 3 | AE26: 1 | AF26: 1 | AG26: 2 | AJ26: 1 | AK26: 2 | AL26: 0 | AM26: 3 | AN26: 0 | AO26: 0 | AP26: 0 | AQ26: 2 | AR26: 3 | AS26: 0 | AT26: 2
A27: Rate of Return on Farm Equity | B27: 0.01945294445 | F27: =U1 -> 2016 | G27: 10-Year | S27: Your Farm Line-Current Ratio | W27: 0 | X27: 1 | Y27: 2 | Z27: 0 | AA27: 0 | AB27: 1 | AC27: 0 | AD27: 2 | AE27: 5 | AF27: 3 | AG27: 0 | AJ27: 1 | AK27: 5 | AL27: 2 | AM27: 0 | AN27: 0 | AO27: 0 | AP27: 1 | AQ27: 2 | AR27: 3 | AS27: 2 | AT27: 0
A28: Asset Turnover Rate | B28: 0.2312174882 | E28: -0.5 | F28: =Q38 -> 0.03196347032 | G28: =R38 -> 0.01041666667 | Q28: =Q38 -> 0.03196347032 | R28: =R38 -> 0.01041666667 | S28: X's | T28: =IF(B22<4.5,B22,4.5) -> 2.692865043 | U28: =IF(B22<4.5,B22,4.5) -> 2.692865043 | W28: 19 | X28: 5 | Z28: 0 | AA28: 1 | AB28: 0 | AC28: 3 | AG28: 0 | AJ28: 28 | AK28: 4 | AM28: 0 | AN28: 0 | AO28: 0 | AP28: 2 | AT28: 0
A29: Operating Expense Ratio | B29: 0.7013092645 | E29: =E28+0.25 -> -0.25 | F29: =Q39 -> 0.04109589041 | G29: =R39 -> 0.0078125 | Q29: =Q28+Q39 -> 0.07305936073 | R29: =R28+R39 -> 0.01822916667 | S29: Y's | T29: 0 | U29: 1 | V29: Count | W29: 28 | X29: 28 | Y29: 28 | Z29: 28 | AA29: 28 | AB29: 28 | AC29: 28 | AD29: 28 | AE29: 28 | AF29: 28 | AG29: 28 | AI29: Count | AJ29: 51 | AK29: 51 | AL29: 51 | AM29: 51 | AN29: 51 | AO29: 51 | AP29: 51 | AQ29: 51 | AR29: 51 | AS29: 51 | AT29: 51
A30: Depreciation Expense Ratio | B30: 0.1047569623 | E30: =E29+0.25 -> 0 | F30: 0.0502283105 | G30: 0.0546875 | Q30: 0.1232876712 | R30: 0.07291666667 | S30: =IF(B22=F18,U1 &" Average","Your Farm") -> 2016 Average | V30: Average | W30: 3.411762297 | X30: 0.7312895626 | Y30: 0.1617976472 | Z30: -0.1623797978 | AA30: -0.01765306703 | AB30: -0.02943850328 | AC30: 0.1087146755 | AD30: 0.7549156244 | AE30: 0.1263034734 | AF30: 0.05998846934 | AG30: 0.05879243281 | AI30: Average | AJ30: 1.706783101 | AK30: 0.5144649761 | AL30: 0.2299554845 | AM30: -0.01996133191 | AN30: -0.002731069449 | AO30: -0.01897807192 | AP30: 0.136817997 | AQ30: 0.7367803366 | AR30: 0.06307570869 | AS30: 0.06493895912 | AT30: 0.1352049956
A31: Interest Expense Ratio | B31: 0.0324547157 | E31: 0.25 | F31: 0.1780821918 | G31: 0.1796875 | Q31: 0.301369863 | R31: 0.2526041667 | S31: Your Farm Line-Working Capital Ratio | V31: Non-ratio average | X31: 69003.73643 | AG31: 5547.593929 | AI31: Non-ratio average | AK31: 85570.23089 | AT31: 22488.45544
A32: Net Farm Income Ratio: | B32: 0.1614790576 | E32: 0.5 | F32: 0.1369863014 | G32: 0.2109375 | Q32: 0.4383561644 | R32: 0.4635416667 | S32: X's | T32: =IF(B23>1.75,1.75,B23) -> 0.6803376567 | U32: =IF(B23>1.75,1.75,B23) -> 0.6803376567
A33: *Defaults to Averages for 2016 if not entered | E33: 0.75 | F33: 0.1369863014 | G33: 0.1901041667 | Q33: 0.5753424658 | R33: 0.6536458333 | S33: Y's | T33: 0 | U33: 1 | W33: Less than 500100+
E34: 1 | F34: 0.1826484018 | G34: 0.1588541667 | Q34: 0.7579908676 | R34: 0.8125 | S34: =IF(B23=F39,U1 &" Average","Your Farm") -> 2016 Average | W34: Current Ratio | X34: Working Capital Ratio | Y34: Debt to Asset Ratio | Z34: Operating Profit Margin | AA34: ROA | AB34: ROE | AC34: Asset Turnover | AD34: Operating Expense Ratio | AE34: Depr Expense Ratio | AF34: Interest Expense Ratio | AG34: NFI Ratio | AJ34: Current Ratio | AK34: Working Capital Ratio | AL34: Debt to Asset Ratio | AM34: Operating Profit Margin | AN34: ROA | AO34: ROE | AP34: Asset Turnover | AQ34: Operating Expense Ratio | AR34: Depr Expense Ratio | AS34: Interest Expense Ratio | AT34: NFI Ratio
E35: 1.25 | F35: 0.07762557078 | G35: 0.06770833333 | Q35: 0.8356164384 | R35: 0.8802083333 | W35: 0 | X35: 0 | Y35: 0 | Z35: 1 | AA35: 0 | AB35: 1 | AC35: 0 | AD35: 1 | AE35: 0 | AF35: 2 | AG35: 0 | AJ35: 0 | AK35: 2 | AL35: 1 | AM35: 1 | AN35: 0 | AO35: 2 | AP35: 0 | AQ35: 0 | AR35: 0 | AS35: 2 | AT35: 0
E36: 1.5 | F36: 0.06392694064 | G36: 0.046875 | Q36: 0.899543379 | R36: 0.9270833333 | W36: 2 | X36: 2 | Y36: 5 | Z36: 0 | AA36: 0 | AB36: 3 | AC36: 1 | AD36: 1 | AE36: 4 | AF36: 4 | AG36: 0 | AJ36: 2 | AK36: 0 | AL36: 13 | AM36: 0 | AN36: 2 | AO36: 6 | AP36: 1 | AQ36: 3 | AR36: 2 | AS36: 11 | AT36: 0
E37: More | F37: 0.100456621 | G37: 0.07291666667 | Q37: 1 | R37: 1 | S37: =$F$18 -> 2.692865043 | W37: 1 | X37: 1 | Y37: 3 | Z37: 3 | AA37: 7 | AB37: 6 | AC37: 5 | AD37: 0 | AE37: 1 | AF37: 3 | AG37: 0 | AJ37: 2 | AK37: 2 | AL37: 8 | AM37: 4 | AN37: 8 | AO37: 10 | AP37: 11 | AQ37: 4 | AR37: 7 | AS37: 7 | AT37: 0
E38: Count | F38: =F17 -> 219 | G38: =G17 -> 384 | Q38: =IF($T$6=$W$1,X3/$F$38,IF($T$6=$W$17,X19/$F$38,IF($T$6=$W$33,X35/$F$38,IF($T$6=$W$49,X51/$F$38,IF($T$6=$W$65,X67/$F$38,IF($T$6=$W$81,X83/$F$38,IF($T$6=$W$97,X99/$F$38,IF($T$6=$W$113,X115/$F$38,IF($T$6=$W$129,X131/$F$38,IF($T$6=$W$145,X147/$F$38,IF($T$6=$W$161,X163/$F$38,"N/A"))))))))))) -> 0.03196347032 | R38: =IF($T$6=$W$1,AK3/$G$38,IF($T$6=$W$17,AK19/$G$38,IF($T$6=$W$33,AK35/$G$38,IF($T$6=$W$49,AK51/$G$38,IF($T$6=$W$65,AK67/$G$38,IF($T$6=$W$81,AK83/$G$38,IF($T$6=$W$97,AK99/$G$38,IF($T$6=$W$113,AK115/$G$38,IF($T$6=$W$129,AK131/$G$38,IF($T$6=$W$145,AK147/$G$38,IF($T$6=$W$161,AK163/$G$38,"N/A"))))))))))) -> 0.01041666667 | S38: =$F$39 -> 0.6803376567 | W38: 2 | X38: 3 | Y38: 3 | Z38: 2 | AA38: 6 | AB38: 5 | AC38: 7 | AD38: 5 | AE38: 2 | AF38: 2 | AG38: 2 | AJ38: 2 | AK38: 3 | AL38: 2 | AM38: 7 | AN38: 14 | AO38: 12 | AP38: 12 | AQ38: 15 | AR38: 15 | AS38: 7 | AT38: 3
E39: Average | F39: =IF($T$6=$W$1,$X$14,IF($T$6=$W$17,$X$30,IF($T$6=$W$33,$X$46,IF($T$6=$W$49,$X$62,IF($T$6=$W$65,$X$78,IF($T$6=$W$81,$X$94,IF($T$6=$W$97,$X$110,IF($T$6=$W$113,$X$126,IF($T$6=$W$129,$X$142,IF($T$6=$W$145,$X$158,IF($T$6=$W$161,$X$174,"N/A"))))))))))) -> 0.6803376567 | G39: =IF($T$6=$W$1,$AK$14,IF($T$6=$W$17,$AK$30,IF($T$6=$W$33,$AK$46,IF($T$6=$W$49,$AK$62,IF($T$6=$W$65,$AK$78,IF($T$6=$W$81,$AK$94,IF($T$6=$W$97,$AK$110,IF($T$6=$W$113,$AK$126,IF($T$6=$W$129,$AK$142,IF($T$6=$W$145,$AK$158,IF($T$6=$W$161,$AK$174,"N/A"))))))))))) -> 0.6298360927 | Q39: 0.04109589041 | R39: 0.0078125 | S39: =$F$59 -> 0.2199725473 | W39: 1 | X39: 0 | Y39: 0 | Z39: 3 | AA39: 2 | AB39: 0 | AC39: 1 | AD39: 3 | AE39: 5 | AF39: 4 | AG39: 7 | AJ39: 1 | AK39: 5 | AL39: 4 | AM39: 5 | AN39: 6 | AO39: 1 | AP39: 4 | AQ39: 7 | AR39: 8 | AS39: 4 | AT39: 12
E40: Working Capital Avg. | Q40: 0.0502283105 | R40: 0.0546875 | S40: =$F$81 -> 0.1022229346 | W40: 0 | X40: 2 | Y40: 2 | Z40: 4 | AA40: 0 | AB40: 0 | AC40: 1 | AD40: 3 | AE40: 2 | AF40: 0 | AG40: 3 | AJ40: 4 | AK40: 11 | AL40: 1 | AM40: 8 | AN40: 4 | AO40: 0 | AP40: 3 | AQ40: 5 | AR40: 0 | AS40: 2 | AT40: 10
F41: =IF($T$6=$W$1,$X$15,IF($T$6=$W$17,$X$31,IF($T$6=$W$33,$X$47,IF($T$6=$W$49,$X$63,IF($T$6=$W$65,$X$79,IF($T$6=$W$81,$X$95,IF($T$6=$W$97,$X$111,IF($T$6=$W$113,$X$127,IF($T$6=$W$129,$X$143,IF($T$6=$W$145,$X$159,IF($T$6=$W$161,$X$175,"N/A"))))))))))) -> 450783.9051 | G41: =IF($T$6=$W$1,$AK$15,IF($T$6=$W$17,$AK$31,IF($T$6=$W$33,$AK$47,IF($T$6=$W$49,$AK$63,IF($T$6=$W$65,$AK$79,IF($T$6=$W$81,$AK$95,IF($T$6=$W$97,$AK$111,IF($T$6=$W$113,$AK$127,IF($T$6=$W$129,$AK$143,IF($T$6=$W$145,$AK$159,IF($T$6=$W$161,$AK$175,"N/A"))))))))))) -> 330724.4598 | Q41: 0.1780821918 | R41: 0.1796875 | S41: =$F$102 -> 0.02363573018 | W41: 1 | X41: 1 | Y41: 0 | Z41: 2 | AA41: 0 | AB41: 0 | AC41: 0 | AD41: 2 | AE41: 0 | AF41: 0 | AG41: 2 | AJ41: 3 | AK41: 3 | AL41: 2 | AM41: 8 | AN41: 0 | AO41: 2 | AP41: 1 | AQ41: 0 | AR41: 1 | AS41: 0 | AT41: 8
Q42: 0.1369863014 | R42: 0.2109375 | S42: =$F$123 -> 0.01945294445 | W42: 0 | X42: 4 | Y42: 1 | Z42: 0 | AA42: 0 | AB42: 0 | AC42: 0 | AD42: 0 | AE42: 0 | AF42: 0 | AG42: 1 | AJ42: 1 | AK42: 3 | AL42: 1 | AM42: 1 | AN42: 0 | AO42: 0 | AP42: 1 | AQ42: 0 | AR42: 1 | AS42: 1 | AT42: 1
F43: =IF(B23=F39,"","Your Farm") ->  | G43: =IF(B23=F39,"",B23) ->  | Q43: 0.1369863014 | R43: 0.1901041667 | S43: =$F$144 -> 0.2312174882 | W43: 1 | X43: 0 | Y43: 1 | Z43: 0 | AA43: 0 | AB43: 0 | AC43: 0 | AD43: 0 | AE43: 1 | AF43: 0 | AG43: 0 | AJ43: 0 | AK43: 1 | AL43: 2 | AM43: 0 | AN43: 0 | AO43: 0 | AP43: 0 | AQ43: 0 | AR43: 0 | AS43: 0 | AT43: 0
Q44: 0.1826484018 | R44: 0.1588541667 | S44: =$F$164 -> 0.7013092645 | W44: 7 | X44: 2 | Z44: 0 | AA44: 0 | AB44: 0 | AC44: 0 | AG44: 0 | AJ44: 19 | AK44: 4 | AM44: 0 | AN44: 0 | AO44: 1 | AP44: 1 | AT44: 0
Q45: 0.07762557078 | R45: 0.06770833333 | S45: =$F$185 -> 0.1047569623 | V45: Count | W45: 15 | X45: 15 | Y45: 15 | Z45: 15 | AA45: 15 | AB45: 15 | AC45: 15 | AD45: 15 | AE45: 15 | AF45: 15 | AG45: 15 | AI45: Count | AJ45: 34 | AK45: 34 | AL45: 34 | AM45: 34 | AN45: 34 | AO45: 34 | AP45: 34 | AQ45: 34 | AR45: 34 | AS45: 34 | AT45: 34
Q46: 0.06392694064 | R46: 0.046875 | S46: =$F$206 -> 0.0324547157 | V46: Average | W46: 1.45779042 | X46: 0.4450604042 | Y46: 0.2740275201 | Z46: 0.01030243604 | AA46: 0.001488827593 | AB46: -0.01113023067 | AC46: 0.1445121898 | AD46: 0.7932330842 | AE46: 0.05842754399 | AF46: 0.04867735964 | AG46: 0.09966201215 | AI46: Average | AJ46: 2.551261402 | AK46: 0.4984525333 | AL46: 0.1744049576 | AM46: 0.03306362155 | AN46: 0.004918767733 | AO46: -0.005156576715 | AP46: 0.1487667564 | AQ46: 0.6800447505 | AR46: 0.06935951283 | AS46: 0.05027419904 | AT46: 0.2003215377
E47: Debt to Asset Ratio | Q47: 0.100456621 | R47: 0.07291666667 | S47: =$F$228 -> 0.1614790576 | V47: Non-ratio average | X47: 181733.914 | AG47: 40695.52667 | AI47: Non-ratio average | AK47: 106529.06 | AT47: 42812.63245
F48: =U1 -> 2016 | G48: 10-Year
E49: 0 | F49: =Q58 -> 0.1324200913 | G49: =R58 -> 0.0390625 | Q49: =Q58 -> 0.1324200913 | R49: =R58 -> 0.0390625 | S49: Your Farm Line-Debt to Asset | W49: 500-1500None
E50: 0.1 | F50: =Q59 -> 0.200913242 | G50: =R59 -> 0.2890625 | Q50: =Q49+Q59 -> 0.3333333333 | R50: 0.328125 | S50: X's | T50: =IF(B24>0.8,0.8,B24) -> 0.2199725473 | U50: =T50 -> 0.2199725473 | W50: Current Ratio | X50: Working Capital Ratio | Y50: Debt to Asset Ratio | Z50: Operating Profit Margin | AA50: ROA | AB50: ROE | AC50: Asset Turnover | AD50: Operating Expense Ratio | AE50: Depr Expense Ratio | AF50: Interest Expense Ratio | AG50: NFI Ratio | AJ50: Current Ratio | AK50: Working Capital Ratio | AL50: Debt to Asset Ratio | AM50: Operating Profit Margin | AN50: ROA | AO50: ROE | AP50: Asset Turnover | AQ50: Operating Expense Ratio | AR50: Depr Expense Ratio | AS50: Interest Expense Ratio | AT50: NFI Ratio
E51: 0.2 | F51: 0.1735159817 | G51: 0.1666666667 | Q51: 0.5068493151 | R51: 0.4947916667 | S51: Y's | T51: 0 | U51: 1 | W51: 0 | X51: 1 | Y51: 5 | Z51: 0 | AA51: 0 | AB51: 2 | AC51: 0 | AD51: 0 | AE51: 0 | AF51: 6 | AG51: 0 | AJ51: 0 | AK51: 0 | AL51: 3 | AM51: 0 | AN51: 0 | AO51: 1 | AP51: 0 | AQ51: 1 | AR51: 0 | AS51: 3 | AT51: 0
E52: 0.3 | F52: 0.1598173516 | G52: 0.15625 | Q52: 0.6666666667 | R52: 0.6510416667 | S52: =IF(B24=F59,U1 &" Average","Your Farm") -> 2016 Average | W52: 1 | X52: 0 | Y52: 12 | Z52: 0 | AA52: 2 | AB52: 2 | AC52: 0 | AD52: 0 | AE52: 1 | AF52: 16 | AG52: 0 | AJ52: 2 | AK52: 1 | AL52: 18 | AM52: 0 | AN52: 1 | AO52: 1 | AP52: 1 | AQ52: 8 | AR52: 2 | AS52: 30 | AT52: 0
E53: 0.4 | F53: 0.1187214612 | G53: 0.1041666667 | Q53: 0.7853881279 | R53: 0.7552083333 | W53: 3 | X53: 3 | Y53: 4 | Z53: 1 | AA53: 4 | AB53: 8 | AC53: 2 | AD53: 12 | AE53: 8 | AF53: 8 | AG53: 1 | AJ53: 4 | AK53: 5 | AL53: 6 | AM53: 2 | AN53: 2 | AO53: 4 | AP53: 2 | AQ53: 12 | AR53: 14 | AS53: 14 | AT53: 0
E54: 0.5 | F54: 0.06392694064 | G54: 0.0859375 | Q54: 0.8493150685 | R54: 0.8411458333 | W54: 5 | X54: 8 | Y54: 5 | Z54: 1 | AA54: 11 | AB54: 13 | AC54: 6 | AD54: 8 | AE54: 4 | AF54: 2 | AG54: 2 | AJ54: 5 | AK54: 9 | AL54: 9 | AM54: 0 | AN54: 10 | AO54: 23 | AP54: 4 | AQ54: 23 | AR54: 10 | AS54: 6 | AT54: 0
E55: 0.6 | F55: 0.03196347032 | G55: 0.0546875 | Q55: 0.8812785388 | R55: 0.8958333333 | W55: 0 | X55: 2 | Y55: 1 | Z55: 9 | AA55: 12 | AB55: 2 | AC55: 5 | AD55: 9 | AE55: 8 | AF55: 2 | AG55: 10 | AJ55: 6 | AK55: 10 | AL55: 8 | AM55: 5 | AN55: 25 | AO55: 13 | AP55: 7 | AQ55: 8 | AR55: 15 | AS55: 2 | AT55: 8
E56: 0.7 | F56: 0.02739726027 | G56: 0.04427083333 | Q56: 0.9086757991 | R56: 0.9401041667 | W56: 1 | X56: 4 | Y56: 1 | Z56: 15 | AA56: 4 | AB56: 4 | AC56: 8 | AD56: 4 | AE56: 7 | AF56: 0 | AG56: 16 | AJ56: 1 | AK56: 9 | AL56: 2 | AM56: 22 | AN56: 11 | AO56: 7 | AP56: 10 | AQ56: 3 | AR56: 8 | AS56: 0 | AT56: 27
E57: More | F57: 0.09132420091 | G57: 0.05989583333 | Q57: 1 | R57: 1 | W57: 3 | X57: 8 | Y57: 0 | Z57: 7 | AA57: 1 | AB57: 0 | AC57: 2 | AD57: 1 | AE57: 1 | AF57: 0 | AG57: 5 | AJ57: 0 | AK57: 11 | AL57: 0 | AM57: 23 | AN57: 4 | AO57: 0 | AP57: 4 | AQ57: 0 | AR57: 5 | AS57: 0 | AT57: 16
E58: Count | F58: =F38 -> 219 | G58: =G38 -> 384 | Q58: =IF($T$6=$W$1,Y3/$F$58,IF($T$6=$W$17,Y19/$F$58,IF($T$6=$W$33,Y35/$F$58,IF($T$6=$W$49,Y51/$F$58,IF($T$6=$W$65,Y67/$F$58,IF($T$6=$W$81,Y83/$F$58,IF($T$6=$W$97,Y99/$F$58,IF($T$6=$W$113,Y115/$F$58,IF($T$6=$W$129,Y131/$F$58,IF($T$6=$W$145,Y147/$F$58,IF($T$6=$W$161,Y163/$F$58,"N/A"))))))))))) -> 0.1324200913 | R58: =IF($T$6=$W$1,AL3/$G$38,IF($T$6=$W$17,AL19/$G$38,IF($T$6=$W$33,AL35/$G$38,IF($T$6=$W$49,AL51/$G$38,IF($T$6=$W$65,AL67/$G$38,IF($T$6=$W$81,AL83/$G$38,IF($T$6=$W$97,AL99/$G$38,IF($T$6=$W$113,AL115/$G$38,IF($T$6=$W$129,AL131/$G$38,IF($T$6=$W$145,AL147/$G$38,IF($T$6=$W$161,AL163/$G$38,"N/A"))))))))))) -> 0.0390625 | W58: 0 | X58: 4 | Y58: 0 | Z58: 1 | AA58: 0 | AB58: 0 | AC58: 3 | AD58: 0 | AE58: 2 | AF58: 0 | AG58: 0 | AJ58: 4 | AK58: 3 | AL58: 3 | AM58: 2 | AN58: 1 | AO58: 0 | AP58: 9 | AQ58: 0 | AR58: 1 | AS58: 0 | AT58: 4
E59: Average | F59: =IF($T$6=$W$1,$Y$14,IF($T$6=$W$17,$Y$30,IF($T$6=$W$33,$Y$46,IF($T$6=$W$49,$Y$62,IF($T$6=$W$65,$Y$78,IF($T$6=$W$81,$Y$94,IF($T$6=$W$97,$Y$110,IF($T$6=$W$113,$Y$126,IF($T$6=$W$129,$Y$142,IF($T$6=$W$145,$Y$158,IF($T$6=$W$161,$Y$174,"N/A"))))))))))) -> 0.2199725473 | G59: =IF($T$6=$W$1,$AL$14,IF($T$6=$W$17,$AL$30,IF($T$6=$W$33,$AL$46,IF($T$6=$W$49,$AL$62,IF($T$6=$W$65,$AL$78,IF($T$6=$W$81,$AL$94,IF($T$6=$W$97,$AL$110,IF($T$6=$W$113,$AL$126,IF($T$6=$W$129,$AL$142,IF($T$6=$W$145,$AL$158,IF($T$6=$W$161,$AL$174,"N/A"))))))))))) -> 0.2205085335 | Q59: 0.200913242 | R59: 0.2890625 | W59: 0 | X59: 2 | Y59: 6 | Z59: 0 | AA59: 0 | AB59: 1 | AC59: 3 | AD59: 0 | AE59: 3 | AF59: 0 | AG59: 0 | AJ59: 1 | AK59: 2 | AL59: 6 | AM59: 1 | AN59: 0 | AO59: 1 | AP59: 6 | AQ59: 0 | AR59: 0 | AS59: 0 | AT59: 0
Q60: 0.1735159817 | R60: 0.1666666667 | W60: 21 | X60: 2 | Z60: 0 | AA60: 0 | AB60: 2 | AC60: 5 | AG60: 0 | AJ60: 32 | AK60: 5 | AM60: 0 | AN60: 1 | AO60: 5 | AP60: 12 | AT60: 0
Q61: 0.1598173516 | R61: 0.15625 | V61: Count | W61: 34 | X61: 34 | Y61: 34 | Z61: 34 | AA61: 34 | AB61: 34 | AC61: 34 | AD61: 34 | AE61: 34 | AF61: 34 | AG61: 34 | AI61: Count | AJ61: 55 | AK61: 55 | AL61: 55 | AM61: 55 | AN61: 55 | AO61: 55 | AP61: 55 | AQ61: 55 | AR61: 55 | AS61: 55 | AT61: 55
Q62: 0.1187214612 | R62: 0.1041666667 | V62: Average | W62: 3.895007654 | X62: 0.7050508233 | Y62: 0.1550828737 | Z62: 0.07998607319 | AA62: 0.01846181595 | AB62: 0.01384135326 | AC62: 0.2308128804 | AD62: 0.6665086209 | AE62: 0.1164216936 | AF62: 0.0253027063 | AG62: 0.1917669792 | AI62: Average | AJ62: 4.13427177 | AK62: 0.6087992198 | AL62: 0.1806536089 | AM62: 0.1752490213 | AN62: 0.05125737337 | AO62: 0.05045395835 | AP62: 0.2924830792 | AQ62: 0.5985639988 | AR62: 0.09853251342 | AS62: 0.02847536278 | AT62: 0.274428125
F63: =IF(B24=F59,"","Your Farm") ->  | G63: =IF(B24=F59,"",B24) ->  | Q63: 0.06392694064 | R63: 0.0859375 | V63: Non-ratio average | X63: 286877.3282 | AG63: 78027.84824 | AI63: Non-ratio average | AK63: 224686.6274 | AT63: 101281.8805
Q64: 0.03196347032 | R64: 0.0546875
Q65: 0.02739726027 | R65: 0.04427083333 | W65: Blank
Q66: 0.09132420091 | R66: 0.05989583333 | AJ66: Current Ratio | AK66: Working Capital Ratio | AL66: Debt to Asset Ratio | AM66: Operating Profit Margin | AN66: ROA | AO66: ROE | AP66: Asset Turnover | AQ66: Operating Expense Ratio | AR66: Depr Expense Ratio | AS66: Interest Expense Ratio | AT66: NFI Ratio
E68: Operating Profit Margin Ratio
F69: =U1 -> 2016 | G69: 10-Year
E70: -0.6 | F70: =Q80 -> 0.04566210046 | G70: =R80 -> 0.03385416667 | Q70: =Q80 -> 0.04566210046 | R70: =R80 -> 0.03385416667
E71: -0.45 | F71: =Q81 -> 0.01826484018 | G71: =R81 -> 0.002604166667 | Q71: =Q70+Q81 -> 0.06392694064 | R71: =R70+R81 -> 0.03645833333 | S71: Your Farm Line-Operating Profit Margin Ratio
E72: -0.3 | F72: 0.06849315068 | G72: 0.02864583333 | Q72: 0.1324200913 | R72: 0.06510416667 | S72: X's | T72: =IF(B25>0.75,0.75,B25) -> 0.1022229346 | U72: =T72 -> 0.1022229346
E73: -0.15 | F73: 0.08219178082 | G73: 0.05729166667 | Q73: 0.2146118721 | R73: 0.1223958333 | S73: Y's | T73: 0 | U73: 1
E74: 0 | F74: 0.1780821918 | G74: 0.1380208333 | Q74: 0.3926940639 | R74: 0.2604166667 | S74: =IF(B25=F81,U1 &" Average","Your Farm") -> 2016 Average
E75: 0.15 | F75: 0.3150684932 | G75: 0.3072916667 | Q75: 0.7077625571 | R75: 0.5677083333
E76: 0.3 | F76: 0.2191780822 | G76: 0.3567708333 | Q76: 0.9269406393 | R76: 0.9244791667
E77: 0.45 | F77: 0.06849315068 | G77: 0.06510416667 | Q77: 0.99543379 | R77: 0.9895833333 | AI77: Count
E78: 0.6 | F78: 0.004566210046 | G78: 0.01041666667 | Q78: 1 | R78: 1 | AI78: Average
E79: More | F79: 0 | G79: 0 | Q79: 1 | R79: 1 | AI79: Non-ratio average
E80: Count | F80: =F58 -> 219 | G80: =G58 -> 384 | Q80: =IF($T$6=$W$1,Z3/$F$80,IF($T$6=$W$17,Z19/$F$80,IF($T$6=$W$33,Z35/$F$80,IF($T$6=$W$49,Z51/$F$80,IF($T$6=$W$65,Z67/$F$80,IF($T$6=$W$81,Z83/$F$80,IF($T$6=$W$97,Z99/$F$80,IF($T$6=$W$113,Z115/$F$80,IF($T$6=$W$129,Z131/$F$80,IF($T$6=$W$145,Z147/$F$80,IF($T$6=$W$161,Z163/$F$80,"N/A"))))))))))) -> 0.04566210046 | R80: =IF($T$6=$W$1,AM3/$G$38,IF($T$6=$W$17,AM19/$G$38,IF($T$6=$W$33,AM35/$G$38,IF($T$6=$W$49,AM51/$G$38,IF($T$6=$W$65,AM67/$G$38,IF($T$6=$W$81,AM83/$G$38,IF($T$6=$W$97,AM99/$G$38,IF($T$6=$W$113,AM115/$G$38,IF($T$6=$W$129,AM131/$G$38,IF($T$6=$W$145,AM147/$G$38,IF($T$6=$W$161,AM163/$G$38,"N/A"))))))))))) -> 0.03385416667
E81: Average | F81: =IF($T$6=$W$1,$Z$14,IF($T$6=$W$17,$Z$30,IF($T$6=$W$33,$Z$46,IF($T$6=$W$49,$Z$62,IF($T$6=$W$65,$Z$78,IF($T$6=$W$81,$Z$94,IF($T$6=$W$97,$Z$110,IF($T$6=$W$113,$Z$126,IF($T$6=$W$129,$Z$142,IF($T$6=$W$145,$Z$158,IF($T$6=W161,Z174,"N/A"))))))))))) -> 0.1022229346 | G81: =IF($T$6=$W$1,$AM$14,IF($T$6=$W$17,$AM$30,IF($T$6=$W$33,$AM$46,IF($T$6=$W$49,$AM$62,IF($T$6=$W$65,$AM$78,IF($T$6=$W$81,$AM$94,IF($T$6=$W$97,$AM$110,IF($T$6=$W$113,$AM$126,IF($T$6=$W$129,$AM$142,IF($T$6=$W$145,$AM$158,IF($T$6=$W$161,$AM$174,"N/A"))))))))))) -> 0.174260465 | Q81: 0.01826484018 | R81: 0.002604166667 | W81: 500-1500<100
Q82: 0.06849315068 | R82: 0.02864583333 | W82: Current Ratio | X82: Working Capital Ratio | Y82: Debt to Asset Ratio | Z82: Operating Profit Margin | AA82: ROA | AB82: ROE | AC82: Asset Turnover | AD82: Operating Expense Ratio | AE82: Depr Expense Ratio | AF82: Interest Expense Ratio | AG82: NFI Ratio | AJ82: Current Ratio | AK82: Working Capital Ratio | AL82: Debt to Asset Ratio | AM82: Operating Profit Margin | AN82: ROA | AO82: ROE | AP82: Asset Turnover | AQ82: Operating Expense Ratio | AR82: Depr Expense Ratio | AS82: Interest Expense Ratio | AT82: NFI Ratio
Q83: 0.08219178082 | R83: 0.05729166667 | W83: 1 | X83: 1 | Y83: 2 | Z83: 1 | AA83: 3 | AB83: 2 | AC83: 0 | AD83: 0 | AE83: 0 | AF83: 3 | AG83: 1 | AJ83: 0 | AK83: 0 | AL83: 1 | AM83: 0 | AN83: 0 | AO83: 2 | AP83: 0 | AQ83: 0 | AR83: 0 | AS83: 1 | AT83: 0
Q84: 0.1780821918 | R84: 0.1380208333 | W84: 0 | X84: 1 | Y84: 5 | Z84: 0 | AA84: 1 | AB84: 3 | AC84: 1 | AD84: 0 | AE84: 2 | AF84: 6 | AG84: 0 | AJ84: 0 | AK84: 1 | AL84: 13 | AM84: 0 | AN84: 0 | AO84: 3 | AP84: 0 | AQ84: 1 | AR84: 3 | AS84: 20 | AT84: 0
F85: =IF(B25=F81,"","Your Farm") ->  | G85: =IF(B25=F81,"",B25) ->  | Q85: 0.3150684932 | R85: 0.3072916667 | W85: 2 | X85: 1 | Y85: 5 | Z85: 2 | AA85: 1 | AB85: 8 | AC85: 0 | AD85: 2 | AE85: 1 | AF85: 9 | AG85: 1 | AJ85: 4 | AK85: 3 | AL85: 10 | AM85: 0 | AN85: 4 | AO85: 20 | AP85: 1 | AQ85: 9 | AR85: 5 | AS85: 15 | AT85: 0
Q86: 0.2191780822 | R86: 0.3567708333 | W86: 2 | X86: 4 | Y86: 4 | Z86: 1 | AA86: 11 | AB86: 6 | AC86: 2 | AD86: 7 | AE86: 7 | AF86: 3 | AG86: 2 | AJ86: 11 | AK86: 14 | AL86: 9 | AM86: 0 | AN86: 20 | AO86: 16 | AP86: 8 | AQ86: 25 | AR86: 26 | AS86: 8 | AT86: 0
Q87: 0.06849315068 | R87: 0.06510416667 | W87: 2 | X87: 5 | Y87: 1 | Z87: 8 | AA87: 4 | AB87: 0 | AC87: 9 | AD87: 9 | AE87: 2 | AF87: 1 | AG87: 8 | AJ87: 6 | AK87: 11 | AL87: 4 | AM87: 15 | AN87: 19 | AO87: 3 | AP87: 13 | AQ87: 17 | AR87: 14 | AS87: 7 | AT87: 12
Q88: 0.004566210046 | R88: 0.01041666667 | W88: 4 | X88: 4 | Y88: 2 | Z88: 8 | AA88: 0 | AB88: 1 | AC88: 4 | AD88: 1 | AE88: 6 | AF88: 0 | AG88: 8 | AJ88: 0 | AK88: 12 | AL88: 8 | AM88: 21 | AN88: 4 | AO88: 6 | AP88: 12 | AQ88: 1 | AR88: 3 | AS88: 1 | AT88: 37
